{"text_format":"1","workbook":"xlsx","n_sheets":8,"sheets":["DESCRIZIONE","TFR","TCM","M&R","CALCOLI1","CALCOLI","CALCOLO PENSIONE","RENDITE VITALIZIE"],"not_rendered":{"charts":5,"images":2,"macros":1,"external_links":0,"defined_names":5,"comments":0,"pivot_tables":0},"unopened":[],"bounds":{"document_bytes":16777216,"sheet_cells":100000,"rows_first":2000,"rows_last":500,"rows_between":2000,"halvings":0,"cell_chars":16384,"cell_head_chars":4096},"cells_cut":0,"cells_raw":0,"read":"whole","date_system":"1900"}

{"sheet":"DESCRIZIONE","index":0,"n_rows":31,"n_cols":16369,"rows_kept":31,"cut":false,"hidden":false,"merged":[[30,4,30,17],[28,7,28,10],[18,16304,18,16319],[18,16320,18,16335],[18,16336,18,16351],[18,16352,18,16367],[18,16368,18,16383],[18,16224,18,16239],[18,16240,18,16255],[18,16256,18,16271],[18,16272,18,16287],[18,16288,18,16303],[18,16144,18,16159],[18,16160,18,16175],[18,16176,18,16191],[18,16192,18,16207],[18,16208,18,16223],[18,16064,18,16079],[18,16080,18,16095],[18,16096,18,16111],[18,16112,18,16127],[18,16128,18,16143],[18,15984,18,15999],[18,16000,18,16015],[18,16016,18,16031],[18,16032,18,16047],[18,16048,18,16063],[18,15904,18,15919],[18,15920,18,15935],[18,15936,18,15951],[18,15952,18,15967],[18,15968,18,15983],[18,15824,18,15839],[18,15840,18,15855],[18,15856,18,15871],[18,15872,18,15887],[18,15888,18,15903],[18,15744,18,15759],[18,15760,18,15775],[18,15776,18,15791],[18,15792,18,15807],[18,15808,18,15823],[18,15664,18,15679],[18,15680,18,15695],[18,15696,18,15711],[18,15712,18,15727],[18,15728,18,15743],[18,15584,18,15599],[18,15600,18,15615],[18,15616,18,15631],[18,15632,18,15647],[18,15648,18,15663],[18,15504,18,15519],[18,15520,18,15535],[18,15536,18,15551],[18,15552,18,15567],[18,15568,18,15583],[18,15424,18,15439],[18,15440,18,15455],[18,15456,18,15471],[18,15472,18,15487],[18,15488,18,15503],[18,15344,18,15359],[18,15360,18,15375],[18,15376,18,15391],[18,15392,18,15407],[18,15408,18,15423],[18,15264,18,15279],[18,15280,18,15295],[18,15296,18,15311],[18,15312,18,15327],[18,15328,18,15343],[18,15184,18,15199],[18,15200,18,15215],[18,15216,18,15231],[18,15232,18,15247],[18,15248,18,15263],[18,15104,18,15119],[18,15120,18,15135],[18,15136,18,15151],[18,15152,18,15167],[18,15168,18,15183],[18,15024,18,15039],[18,15040,18,15055],[18,15056,18,15071],[18,15072,18,15087],[18,15088,18,15103],[18,14944,18,14959],[18,14960,18,14975],[18,14976,18,14991],[18,14992,18,15007],[18,15008,18,15023],[18,14864,18,14879],[18,14880,18,14895],[18,14896,18,14911],[18,14912,18,14927],[18,14928,18,14943],[18,14784,18,14799],[18,14800,18,14815],[18,14816,18,14831],[18,14832,18,14847],[18,14848,18,14863],[18,14704,18,14719],[18,14720,18,14735],[18,14736,18,14751],[18,14752,18,14767],[18,14768,18,14783],[18,14624,18,14639],[18,14640,18,14655],[18,14656,18,14671],[18,14672,18,14687],[18,14688,18,14703],[18,14544,18,14559],[18,14560,18,14575],[18,14576,18,14591],[18,14592,18,14607],[18,14608,18,14623],[18,14464,18,14479],[18,14480,18,14495],[18,14496,18,14511],[18,14512,18,14527],[18,14528,18,14543],[18,14384,18,14399],[18,14400,18,14415],[18,14416,18,14431],[18,14432,18,14447],[18,14448,18,14463],[18,14304,18,14319],[18,14320,18,14335],[18,14336,18,14351],[18,14352,18,14367],[18,14368,18,14383],[18,14224,18,14239],[18,14240,18,14255],[18,14256,18,14271],[18,14272,18,14287],[18,14288,18,14303],[18,14144,18,14159],[18,14160,18,14175],[18,14176,18,14191],[18,14192,18,14207],[18,14208,18,14223],[18,14064,18,14079],[18,14080,18,14095],[18,14096,18,14111],[18,14112,18,14127],[18,14128,18,14143],[18,13984,18,13999],[18,14000,18,14015],[18,14016,18,14031],[18,14032,18,14047],[18,14048,18,14063],[18,13904,18,13919],[18,13920,18,13935],[18,13936,18,13951],[18,13952,18,13967],[18,13968,18,13983],[18,13824,18,13839],[18,13840,18,13855],[18,13856,18,13871],[18,13872,18,13887],[18,13888,18,13903],[18,13744,18,13759],[18,13760,18,13775],[18,13776,18,13791],[18,13792,18,13807],[18,13808,18,13823],[18,13664,18,13679],[18,13680,18,13695],[18,13696,18,13711],[18,13712,18,13727],[18,13728,18,13743],[18,13584,18,13599],[18,13600,18,13615],[18,13616,18,13631],[18,13632,18,13647],[18,13648,18,13663],[18,13504,18,13519],[18,13520,18,13535],[18,13536,18,13551],[18,13552,18,13567],[18,13568,18,13583],[18,13424,18,13439],[18,13440,18,13455],[18,13456,18,13471],[18,13472,18,13487],[18,13488,18,13503],[18,13344,18,13359],[18,13360,18,13375],[18,13376,18,13391],[18,13392,18,13407],[18,13408,18,13423],[18,13264,18,13279],[18,13280,18,13295],[18,13296,18,13311],[18,13312,18,13327],[18,13328,18,13343],[18,13184,18,13199],[18,13200,18,13215],[18,13216,18,13231],[18,13232,18,13247],[18,13248,18,13263],[18,13104,18,13119],[18,13120,18,13135],[18,13136,18,13151],[18,13152,18,13167],[18,13168,18,13183],[18,13024,18,13039],[18,13040,18,13055],[18,13056,18,13071],[18,13072,18,13087],[18,13088,18,13103],[18,12944,18,12959],[18,12960,18,12975],[18,12976,18,12991],[18,12992,18,13007],[18,13008,18,13023],[18,12864,18,12879],[18,12880,18,12895],[18,12896,18,12911],[18,12912,18,12927],[18,12928,18,12943],[18,12784,18,12799],[18,12800,18,12815],[18,12816,18,12831],[18,12832,18,12847],[18,12848,18,12863],[18,12704,18,12719],[18,12720,18,12735],[18,12736,18,12751],[18,12752,18,12767],[18,12768,18,12783],[18,12624,18,12639],[18,12640,18,12655],[18,12656,18,12671],[18,12672,18,12687],[18,12688,18,12703],[18,12544,18,12559],[18,12560,18,12575],[18,12576,18,12591],[18,12592,18,12607],[18,12608,18,12623],[18,12464,18,12479],[18,12480,18,12495],[18,12496,18,12511],[18,12512,18,12527],[18,12528,18,12543],[18,12384,18,12399],[18,12400,18,12415],[18,12416,18,12431],[18,12432,18,12447],[18,12448,18,12463],[18,12304,18,12319],[18,12320,18,12335],[18,12336,18,12351],[18,12352,18,12367],[18,12368,18,12383],[18,12224,18,12239],[18,12240,18,12255],[18,12256,18,12271],[18,12272,18,12287],[18,12288,18,12303],[18,12144,18,12159],[18,12160,18,12175],[18,12176,18,12191],[18,12192,18,12207],[18,12208,18,12223],[18,12064,18,12079],[18,12080,18,12095],[18,12096,18,12111],[18,12112,18,12127],[18,12128,18,12143],[18,11984,18,11999],[18,12000,18,12015],[18,12016,18,12031],[18,12032,18,12047],[18,12048,18,12063],[18,11904,18,11919],[18,11920,18,11935],[18,11936,18,11951],[18,11952,18,11967],[18,11968,18,11983],[18,11824,18,11839],[18,11840,18,11855],[18,11856,18,11871],[18,11872,18,11887],[18,11888,18,11903],[18,11744,18,11759],[18,11760,18,11775],[18,11776,18,11791],[18,11792,18,11807],[18,11808,18,11823],[18,11664,18,11679],[18,11680,18,11695],[18,11696,18,11711],[18,11712,18,11727],[18,11728,18,11743],[18,11584,18,11599],[18,11600,18,11615],[18,11616,18,11631],[18,11632,18,11647],[18,11648,18,11663],[18,11504,18,11519],[18,11520,18,11535],[18,11536,18,11551],[18,11552,18,11567],[18,11568,18,11583],[18,11424,18,11439],[18,11440,18,11455],[18,11456,18,11471],[18,11472,18,11487],[18,11488,18,11503],[18,11344,18,11359],[18,11360,18,11375],[18,11376,18,11391],[18,11392,18,11407],[18,11408,18,11423],[18,11264,18,11279],[18,11280,18,11295],[18,11296,18,11311],[18,11312,18,11327],[18,11328,18,11343],[18,11184,18,11199],[18,11200,18,11215],[18,11216,18,11231],[18,11232,18,11247],[18,11248,18,11263],[18,11104,18,11119],[18,11120,18,11135],[18,11136,18,11151],[18,11152,18,11167],[18,11168,18,11183],[18,11024,18,11039],[18,11040,18,11055],[18,11056,18,11071],[18,11072,18,11087],[18,11088,18,11103],[18,10944,18,10959],[18,10960,18,10975],[18,10976,18,10991],[18,10992,18,11007],[18,11008,18,11023],[18,10864,18,10879],[18,10880,18,10895],[18,10896,18,10911],[18,10912,18,10927],[18,10928,18,10943],[18,10784,18,10799],[18,10800,18,10815],[18,10816,18,10831],[18,10832,18,10847],[18,10848,18,10863],[18,10704,18,10719],[18,10720,18,10735],[18,10736,18,10751],[18,10752,18,10767],[18,10768,18,10783],[18,10624,18,10639],[18,10640,18,10655],[18,10656,18,10671],[18,10672,18,10687],[18,10688,18,10703],[18,10544,18,10559],[18,10560,18,10575],[18,10576,18,10591],[18,10592,18,10607],[18,10608,18,10623],[18,10464,18,10479],[18,10480,18,10495],[18,10496,18,10511],[18,10512,18,10527],[18,10528,18,10543],[18,10384,18,10399],[18,10400,18,10415],[18,10416,18,10431],[18,10432,18,10447],[18,10448,18,10463],[18,10304,18,10319],[18,10320,18,10335],[18,10336,18,10351],[18,10352,18,10367],[18,10368,18,10383],[18,10224,18,10239],[18,10240,18,10255],[18,10256,18,10271],[18,10272,18,10287],[18,10288,18,10303],[18,10144,18,10159],[18,10160,18,10175],[18,10176,18,10191],[18,10192,18,10207],[18,10208,18,10223],[18,10064,18,10079],[18,10080,18,10095],[18,10096,18,10111],[18,10112,18,10127],[18,10128,18,10143],[18,9984,18,9999],[18,10000,18,10015],[18,10016,18,10031],[18,10032,18,10047],[18,10048,18,10063],[18,9904,18,9919],[18,9920,18,9935],[18,9936,18,9951],[18,9952,18,9967],[18,9968,18,9983],[18,9824,18,9839],[18,9840,18,9855],[18,9856,18,9871],[18,9872,18,9887],[18,9888,18,9903],[18,9744,18,9759],[18,9760,18,9775],[18,9776,18,9791],[18,9792,18,9807],[18,9808,18,9823],[18,9664,18,9679],[18,9680,18,9695],[18,9696,18,9711],[18,9712,18,9727],[18,9728,18,9743],[18,9584,18,9599],[18,9600,18,9615],[18,9616,18,9631],[18,9632,18,9647],[18,9648,18,9663],[18,9504,18,9519],[18,9520,18,9535],[18,9536,18,9551],[18,9552,18,9567],[18,9568,18,9583],[18,9424,18,9439],[18,9440,18,9455],[18,9456,18,9471],[18,9472,18,9487],[18,9488,18,9503],[18,9344,18,9359],[18,9360,18,9375],[18,9376,18,9391],[18,9392,18,9407],[18,9408,18,9423],[18,9264,18,9279],[18,9280,18,9295],[18,9296,18,9311],[18,9312,18,9327],[18,9328,18,9343],[18,9184,18,9199],[18,9200,18,9215],[18,9216,18,9231],[18,9232,18,9247],[18,9248,18,9263],[18,9104,18,9119],[18,9120,18,9135],[18,9136,18,9151],[18,9152,18,9167],[18,9168,18,9183],[18,9024,18,9039],[18,9040,18,9055],[18,9056,18,9071],[18,9072,18,9087],[18,9088,18,9103],[18,8944,18,8959],[18,8960,18,8975],[18,8976,18,8991],[18,8992,18,9007],[18,9008,18,9023],[18,8864,18,8879],[18,8880,18,8895],[18,8896,18,8911],[18,8912,18,8927],[18,8928,18,8943],[18,8784,18,8799],[18,8800,18,8815],[18,8816,18,8831],[18,8832,18,8847],[18,8848,18,8863],[18,8704,18,8719],[18,8720,18,8735],[18,8736,18,8751],[18,8752,18,8767],[18,8768,18,8783],[18,8624,18,8639],[18,8640,18,8655],[18,8656,18,8671],[18,8672,18,8687],[18,8688,18,8703],[18,8544,18,8559],[18,8560,18,8575],[18,8576,18,8591],[18,8592,18,8607],[18,8608,18,8623],[18,8464,18,8479],[18,8480,18,8495],[18,8496,18,8511],[18,8512,18,8527],[18,8528,18,8543],[18,8384,18,8399],[18,8400,18,8415],[18,8416,18,8431],[18,8432,18,8447],[18,8448,18,8463],[18,8304,18,8319],[18,8320,18,8335],[18,8336,18,8351],[18,8352,18,8367],[18,8368,18,8383],[18,8224,18,8239],[18,8240,18,8255],[18,8256,18,8271],[18,8272,18,8287],[18,8288,18,8303],[18,8144,18,8159],[18,8160,18,8175],[18,8176,18,8191],[18,8192,18,8207],[18,8208,18,8223],[18,8064,18,8079],[18,8080,18,8095],[18,8096,18,8111],[18,8112,18,8127],[18,8128,18,8143],[18,7984,18,7999],[18,8000,18,8015],[18,8016,18,8031],[18,8032,18,8047],[18,8048,18,8063],[18,7904,18,7919],[18,7920,18,7935],[18,7936,18,7951],[18,7952,18,7967],[18,7968,18,7983],[18,7824,18,7839],[18,7840,18,7855],[18,7856,18,7871],[18,7872,18,7887],[18,7888,18,7903],[18,7744,18,7759],[18,7760,18,7775],[18,7776,18,7791],[18,7792,18,7807],[18,7808,18,7823],[18,7664,18,7679],[18,7680,18,7695],[18,7696,18,7711],[18,7712,18,7727],[18,7728,18,7743],[18,7584,18,7599],[18,7600,18,7615],[18,7616,18,7631],[18,7632,18,7647],[18,7648,18,7663],[18,7504,18,7519],[18,7520,18,7535],[18,7536,18,7551],[18,7552,18,7567],[18,7568,18,7583],[18,7424,18,7439],[18,7440,18,7455],[18,7456,18,7471],[18,7472,18,7487],[18,7488,18,7503],[18,7344,18,7359],[18,7360,18,7375],[18,7376,18,7391],[18,7392,18,7407],[18,7408,18,7423],[18,7264,18,7279],[18,7280,18,7295],[18,7296,18,7311],[18,7312,18,7327],[18,7328,18,7343],[18,7184,18,7199],[18,7200,18,7215],[18,7216,18,7231],[18,7232,18,7247],[18,7248,18,7263],[18,7104,18,7119],[18,7120,18,7135],[18,7136,18,7151],[18,7152,18,7167],[18,7168,18,7183],[18,7024,18,7039],[18,7040,18,7055],[18,7056,18,7071],[18,7072,18,7087],[18,7088,18,7103],[18,6944,18,6959],[18,6960,18,6975],[18,6976,18,6991],[18,6992,18,7007],[18,7008,18,7023],[18,6864,18,6879],[18,6880,18,6895],[18,6896,18,6911],[18,6912,18,6927],[18,6928,18,6943],[18,6784,18,6799],[18,6800,18,6815],[18,6816,18,6831],[18,6832,18,6847],[18,6848,18,6863],[18,6704,18,6719],[18,6720,18,6735],[18,6736,18,6751],[18,6752,18,6767],[18,6768,18,6783],[18,6624,18,6639],[18,6640,18,6655],[18,6656,18,6671],[18,6672,18,6687],[18,6688,18,6703],[18,6544,18,6559],[18,6560,18,6575],[18,6576,18,6591],[18,6592,18,6607],[18,6608,18,6623],[18,6464,18,6479],[18,6480,18,6495],[18,6496,18,6511],[18,6512,18,6527],[18,6528,18,6543],[18,6384,18,6399],[18,6400,18,6415],[18,6416,18,6431],[18,6432,18,6447],[18,6448,18,6463],[18,6304,18,6319],[18,6320,18,6335],[18,6336,18,6351],[18,6352,18,6367],[18,6368,18,6383],[18,6224,18,6239],[18,6240,18,6255],[18,6256,18,6271],[18,6272,18,6287],[18,6288,18,6303],[18,6144,18,6159],[18,6160,18,6175],[18,6176,18,6191],[18,6192,18,6207],[18,6208,18,6223],[18,6064,18,6079],[18,6080,18,6095],[18,6096,18,6111],[18,6112,18,6127],[18,6128,18,6143],[18,5984,18,5999],[18,6000,18,6015],[18,6016,18,6031],[18,6032,18,6047],[18,6048,18,6063],[18,5904,18,5919],[18,5920,18,5935],[18,5936,18,5951],[18,5952,18,5967],[18,5968,18,5983],[18,5824,18,5839],[18,5840,18,5855],[18,5856,18,5871],[18,5872,18,5887],[18,5888,18,5903],[18,5744,18,5759],[18,5760,18,5775],[18,5776,18,5791],[18,5792,18,5807],[18,5808,18,5823],[18,5664,18,5679],[18,5680,18,5695],[18,5696,18,5711],[18,5712,18,5727],[18,5728,18,5743],[18,5584,18,5599],[18,5600,18,5615],[18,5616,18,5631],[18,5632,18,5647],[18,5648,18,5663],[18,5504,18,5519],[18,5520,18,5535],[18,5536,18,5551],[18,5552,18,5567],[18,5568,18,5583],[18,5424,18,5439],[18,5440,18,5455],[18,5456,18,5471],[18,5472,18,5487],[18,5488,18,5503],[18,5344,18,5359],[18,5360,18,5375],[18,5376,18,5391],[18,5392,18,5407],[18,5408,18,5423],[18,5264,18,5279],[18,5280,18,5295],[18,5296,18,5311],[18,5312,18,5327],[18,5328,18,5343],[18,5184,18,5199],[18,5200,18,5215],[18,5216,18,5231],[18,5232,18,5247],[18,5248,18,5263],[18,5104,18,5119],[18,5120,18,5135],[18,5136,18,5151],[18,5152,18,5167],[18,5168,18,5183],[18,5024,18,5039],[18,5040,18,5055],[18,5056,18,5071],[18,5072,18,5087],[18,5088,18,5103],[18,4944,18,4959],[18,4960,18,4975],[18,4976,18,4991],[18,4992,18,5007],[18,5008,18,5023],[18,4864,18,4879],[18,4880,18,4895],[18,4896,18,4911],[18,4912,18,4927],[18,4928,18,4943],[18,4784,18,4799],[18,4800,18,4815],[18,4816,18,4831],[18,4832,18,4847],[18,4848,18,4863],[18,4704,18,4719],[18,4720,18,4735],[18,4736,18,4751],[18,4752,18,4767],[18,4768,18,4783],[18,4624,18,4639],[18,4640,18,4655],[18,4656,18,4671],[18,4672,18,4687],[18,4688,18,4703],[18,4544,18,4559],[18,4560,18,4575],[18,4576,18,4591],[18,4592,18,4607],[18,4608,18,4623],[18,4464,18,4479],[18,4480,18,4495],[18,4496,18,4511],[18,4512,18,4527],[18,4528,18,4543],[18,4384,18,4399],[18,4400,18,4415],[18,4416,18,4431],[18,4432,18,4447],[18,4448,18,4463],[18,4304,18,4319],[18,4320,18,4335],[18,4336,18,4351],[18,4352,18,4367],[18,4368,18,4383],[18,4224,18,4239],[18,4240,18,4255],[18,4256,18,4271],[18,4272,18,4287],[18,4288,18,4303],[18,4144,18,4159],[18,4160,18,4175],[18,4176,18,4191],[18,4192,18,4207],[18,4208,18,4223],[18,4064,18,4079],[18,4080,18,4095],[18,4096,18,4111],[18,4112,18,4127],[18,4128,18,4143],[18,3984,18,3999],[18,4000,18,4015],[18,4016,18,4031],[18,4032,18,4047],[18,4048,18,4063],[18,3904,18,3919],[18,3920,18,3935],[18,3936,18,3951],[18,3952,18,3967],[18,3968,18,3983],[18,3824,18,3839],[18,3840,18,3855],[18,3856,18,3871],[18,3872,18,3887],[18,3888,18,3903],[18,3744,18,3759],[18,3760,18,3775],[18,3776,18,3791],[18,3792,18,3807],[18,3808,18,3823],[18,3664,18,3679],[18,3680,18,3695],[18,3696,18,3711],[18,3712,18,3727],[18,3728,18,3743],[18,3584,18,3599],[18,3600,18,3615],[18,3616,18,3631],[18,3632,18,3647],[18,3648,18,3663],[18,3504,18,3519],[18,3520,18,3535],[18,3536,18,3551],[18,3552,18,3567],[18,3568,18,3583],[18,3424,18,3439],[18,3440,18,3455],[18,3456,18,3471],[18,3472,18,3487],[18,3488,18,3503],[18,3344,18,3359],[18,3360,18,3375],[18,3376,18,3391],[18,3392,18,3407],[18,3408,18,3423],[18,3264,18,3279],[18,3280,18,3295],[18,3296,18,3311],[18,3312,18,3327],[18,3328,18,3343],[18,3184,18,3199],[18,3200,18,3215],[18,3216,18,3231],[18,3232,18,3247],[18,3248,18,3263],[18,3104,18,3119],[18,3120,18,3135],[18,3136,18,3151],[18,3152,18,3167],[18,3168,18,3183],[18,3024,18,3039],[18,3040,18,3055],[18,3056,18,3071],[18,3072,18,3087],[18,3088,18,3103],[18,2944,18,2959],[18,2960,18,2975],[18,2976,18,2991],[18,2992,18,3007],[18,3008,18,3023],[18,2864,18,2879],[18,2880,18,2895],[18,2896,18,2911],[18,2912,18,2927],[18,2928,18,2943],[18,2784,18,2799],[18,2800,18,2815],[18,2816,18,2831],[18,2832,18,2847],[18,2848,18,2863],[18,2704,18,2719],[18,2720,18,2735],[18,2736,18,2751],[18,2752,18,2767],[18,2768,18,2783],[18,2624,18,2639],[18,2640,18,2655],[18,2656,18,2671],[18,2672,18,2687],[18,2688,18,2703],[18,2544,18,2559],[18,2560,18,2575],[18,2576,18,2591],[18,2592,18,2607],[18,2608,18,2623],[18,2464,18,2479],[18,2480,18,2495],[18,2496,18,2511],[18,2512,18,2527],[18,2528,18,2543],[18,2384,18,2399],[18,2400,18,2415],[18,2416,18,2431],[18,2432,18,2447],[18,2448,18,2463],[18,2304,18,2319],[18,2320,18,2335],[18,2336,18,2351],[18,2352,18,2367],[18,2368,18,2383],[18,2224,18,2239],[18,2240,18,2255],[18,2256,18,2271],[18,2272,18,2287],[18,2288,18,2303],[18,2144,18,2159],[18,2160,18,2175],[18,2176,18,2191],[18,2192,18,2207],[18,2208,18,2223],[18,2064,18,2079],[18,2080,18,2095],[18,2096,18,2111],[18,2112,18,2127],[18,2128,18,2143],[18,1984,18,1999],[18,2000,18,2015],[18,2016,18,2031],[18,2032,18,2047],[18,2048,18,2063],[18,1904,18,1919],[18,1920,18,1935],[18,1936,18,1951],[18,1952,18,1967],[18,1968,18,1983],[18,1824,18,1839],[18,1840,18,1855],[18,1856,18,1871],[18,1872,18,1887],[18,1888,18,1903],[18,1744,18,1759],[18,1760,18,1775],[18,1776,18,1791],[18,1792,18,1807],[18,1808,18,1823],[18,1664,18,1679],[18,1680,18,1695],[18,1696,18,1711],[18,1712,18,1727],[18,1728,18,1743],[18,1584,18,1599],[18,1600,18,1615],[18,1616,18,1631],[18,1632,18,1647],[18,1648,18,1663],[18,1504,18,1519],[18,1520,18,1535],[18,1536,18,1551],[18,1552,18,1567],[18,1568,18,1583],[18,1424,18,1439],[18,1440,18,1455],[18,1456,18,1471],[18,1472,18,1487],[18,1488,18,1503],[18,1344,18,1359],[18,1360,18,1375],[18,1376,18,1391],[18,1392,18,1407],[18,1408,18,1423],[18,1264,18,1279],[18,1280,18,1295],[18,1296,18,1311],[18,1312,18,1327],[18,1328,18,1343],[18,1184,18,1199],[18,1200,18,1215],[18,1216,18,1231],[18,1232,18,1247],[18,1248,18,1263],[18,1104,18,1119],[18,1120,18,1135],[18,1136,18,1151],[18,1152,18,1167],[18,1168,18,1183],[18,1024,18,1039],[18,1040,18,1055],[18,1056,18,1071],[18,1072,18,1087],[18,1088,18,1103],[18,944,18,959],[18,960,18,975],[18,976,18,991],[18,992,18,1007],[18,1008,18,1023],[18,864,18,879],[18,880,18,895],[18,896,18,911],[18,912,18,927],[18,928,18,943],[18,112,18,127],[18,784,18,799],[18,800,18,815],[18,816,18,831],[18,832,18,847],[18,848,18,863],[18,704,18,719],[18,720,18,735],[18,736,18,751],[18,752,18,767],[18,768,18,783],[18,624,18,639],[18,640,18,655],[18,656,18,671],[18,672,18,687],[18,688,18,703],[18,544,18,559],[18,560,18,575],[18,576,18,591],[18,592,18,607],[18,608,18,623],[18,128,18,143],[25,7,25,10],[18,464,18,479],[18,480,18,495],[18,496,18,511],[18,512,18,527],[18,528,18,543]],"merged_total":1026,"flags":["merged_cut"]}
[]
[]
[]
["Il progetto esemplificativo individuale è dedicato, in modo specifico, ai nuovi Aderenti (anche per i fiscalmente a carico) dal 2007 in poi. Vuole essere d'aiuto per valutare l'investimento nel Fondo Pensione. "]
["I risultati prodotti dai motori di calcolo non impegnano in alcun modo il Fondo Pensione"]
[]
[]
[]
[]
[]
[]
[]
[null,null,"TRA QUANTO TEMPO INVESTENDO UN CAPITALE NOTO A UN TASSO ANNUO DI RENDIMENTO NOTO POTRO' AVERE IL MONTANTE CHE MI SERVE?"]
[]
[]
[null,null,null,null,"QUANTO CAPITALE DEVO INVESTIRE PER OTTENERE TRA X ANNI IL MONTANTE DESIDERATO?"]
[]
[]
[null,"INVESTENDO UN CAPITALE ANNUALE CONOSCIUTO, CON O SENZA CAPITALE INIZIALE A UN TASSO ANNUO DI REND. CONOSCIUTO CHE MONTANTE AVRO' TRA X ANNI?",null,null,null,null,null,null,null,null,null,null,null,null,null,null,null,null,null,null,null,null,null,null,null,null,null,null,null,null,null,null,"INVESTENDO UN CAPITALE ANNUALE CONOSCIUTO, CON O SENZA CAPITALE INIZIALE A UN TASSO DI RIV CONOSCIUTO CHE MONTANTE AVRO' TRA X ANNI?",null,null,null,null,null,null,null,null,null,null,null,null,null,null,null,"INVESTENDO UN CAPITALE ANNUALE CONOSCIUTO, CON O SENZA CAPITALE INIZIALE A UN TASSO DI RIV CONOSCIUTO CHE MONTANTE AVRO' TRA X ANNI?",null,null,null,null,null,null,null,null,null,null,null,null,null,null,null,"INVESTENDO UN CAPITALE ANNUALE CONOSCIUTO, CON O SENZA CAPITALE INIZIALE A UN TASSO DI RIV CONOSCIUTO CHE MONTANTE AVRO' TRA X ANNI?",null,null,null,null,null,null,null,null,null,null,null,null,null,null,null,"INVESTENDO UN CAPITALE ANNUALE CONOSCIUTO, CON O SENZA CAPITALE INIZIALE A UN TASSO DI RIV CONOSCIUTO CHE MONTANTE AVRO' TRA X ANNI?",null,null,null,null,null,null,null,null,null,null,null,null,null,null,null,"INVESTENDO UN CAPITALE ANNUALE CONOSCIUTO, CON O SENZA CAPITALE INIZIALE A UN TASSO DI RIV CONOSCIUTO CHE MONTANTE AVRO' TRA X ANNI?",null,null,null,null,null,null,null,null,null,null,null,null,null,null,null,"INVESTENDO UN CAPITALE ANNUALE CONOSCIUTO, CON O SENZA CAPITALE INIZIALE A UN TASSO DI RIV CONOSCIUTO CHE MONTANTE AVRO' TRA X ANNI?",null,null,null,null,null,null,null,null,null,null,null,null,null,null,null,"INVESTENDO UN CAPITALE ANNUALE CONOSCIUTO, CON O SENZA CAPITALE INIZIALE A UN TASSO DI RIV CONOSCIUTO CHE MONTANTE AVRO' TRA X ANNI?",null,null,null,null,null,null,null,null,null,null,null,null,null,null,null,"INVESTENDO UN CAPITALE ANNUALE CONOSCIUTO, CON O SENZA CAPITALE INIZIALE A UN TASSO DI RIV CONOSCIUTO CHE MONTANTE AVRO' TRA X ANNI?",null,null,null,null,null,null,null,null,null,null,null,null,null,null,null,"INVESTENDO UN CAPITALE ANNUALE CONOSCIUTO, CON O SENZA CAPITALE INIZIALE A UN TASSO DI RIV CONOSCIUTO CHE MONTANTE AVRO' TRA X ANNI?",null,null,null,null,null,null,null,null,null,null,null,null,null,null,null,"INVESTENDO UN CAPITALE ANNUALE CONOSCIUTO, CON O SENZA CAPITALE INIZIALE A UN TASSO DI RIV CONOSCIUTO CHE MONTANTE AVRO' TRA X ANNI?",null,null,null,null,null,null,null,null,null,null,null,null,null,null,null,"INVESTENDO UN CAPITALE ANNUALE CONOSCIUTO, CON O SENZA CAPITALE INIZIALE A UN TASSO DI RIV CONOSCIUTO CHE MONTANTE AVRO' TRA X ANNI?",null,null,null,null,null,null,null,null,null,null,null,null,null,null,null,"INVESTENDO UN CAPITALE ANNUALE CONOSCIUTO, CON O SENZA CAPITALE INIZIALE A UN TASSO DI RIV CONOSCIUTO CHE MONTANTE AVRO' TRA X ANNI?",null,null,null,null,null,null,null,null,null,null,null,null,null,null,null,"INVESTENDO UN CAPITALE ANNUALE CONOSCIUTO, CON O SENZA CAPITALE INIZIALE A UN TASSO DI RIV CONOSCIUTO CHE MONTANTE AVRO' TRA X ANNI?",null,null,null,null,null,null,null,null,null,null,null,null,null,null,null,"INVESTENDO UN CAPITALE ANNUALE CONOSCIUTO, CON O SENZA CAPITALE INIZIALE A UN TASSO DI RIV CONOSCIUTO CHE MONTANTE AVRO' TRA X ANNI?",null,null,null,null,null,null,null,null,null,null,null,null,null,null,null,"INVESTENDO UN CAPITALE ANNUALE CONOSCIUTO, CON O SENZA CAPITALE INIZIALE A UN TASSO DI RIV CONOSCIUTO CHE MONTANTE AVRO' TRA X ANNI?",null,null,null,null,null,null,null,null,null,null,null,null,null,null,null,"INVESTENDO UN CAPITALE ANNUALE CONOSCIUTO, CON O SENZA CAPITALE INIZIALE A UN TASSO DI RIV CONOSCIUTO CHE MONTANTE AVRO' TRA X ANNI?",null,null,null,null,null,null,null,null,null,null,null,null,null,null,null,"INVESTENDO UN CAPITALE ANNUALE CONOSCIUTO, CON O SENZA CAPITALE INIZIALE A UN TASSO DI RIV CONOSCIUTO CHE MONTANTE AVRO' TRA X ANNI?",null,null,null,null,null,null,null,null,null,null,null,null,null,null,null,"INVESTENDO UN CAPITALE ANNUALE CONOSCIUTO, CON O SENZA CAPITALE INIZIALE A UN TASSO DI RIV CONOSCIUTO CHE MONTANTE AVRO' TRA X ANNI?",null,null,null,null,null,null,null,null,null,null,null,null,null,null,null,"INVESTENDO UN CAPITALE ANNUALE CONOSCIUTO, CON O SENZA CAPITALE INIZIALE A UN TASSO DI RIV CONOSCIUTO CHE MONTANTE AVRO' TRA X ANNI?",null,null,null,null,null,null,null,null,null,null,null,null,null,null,null,"INVESTENDO UN CAPITALE ANNUALE CONOSCIUTO, CON O SENZA CAPITALE INIZIALE A UN TASSO DI RIV CONOSCIUTO CHE MONTANTE AVRO' TRA X ANNI?",null,null,null,null,null,null,null,null,null,null,null,null,null,null,null,"INVESTENDO UN CAPITALE ANNUALE CONOSCIUTO, CON O SENZA CAPITALE INIZIALE A UN TASSO DI RIV CONOSCIUTO CHE MONTANTE AVRO' TRA X ANNI?",null,null,null,null,null,null,null,null,null,null,null,null,null,null,null,"INVESTENDO UN CAPITALE ANNUALE CONOSCIUTO, CON O SENZA CAPITALE INIZIALE A UN TASSO DI RIV CONOSCIUTO CHE MONTANTE AVRO' TRA X ANNI?",null,null,null,null,null,null,null,null,null,null,null,null,null,null,null,"INVESTENDO UN CAPITALE ANNUALE CONOSCIUTO, CON O SENZA CAPITALE INIZIALE A UN TASSO DI RIV CONOSCIUTO CHE MONTANTE AVRO' TRA X ANNI?",null,null,null,null,null,null,null,null,null,null,null,null,null,null,null,"INVESTENDO UN CAPITALE ANNUALE CONOSCIUTO, CON O SENZA CAPITALE INIZIALE A UN TASSO DI RIV CONOSCIUTO CHE MONTANTE AVRO' TRA X ANNI?",null,null,null,null,null,null,null,null,null,null,null,null,null,null,null,"INVESTENDO UN CAPITALE ANNUALE CONOSCIUTO, CON O SENZA CAPITALE INIZIALE A UN TASSO DI RIV CONOSCIUTO CHE MONTANTE AVRO' TRA X ANNI?",null,null,null,null,null,null,null,null,null,null,null,null,null,null,null,"INVESTENDO UN CAPITALE ANNUALE CONOSCIUTO, CON O SENZA CAPITALE INIZIALE A UN TASSO DI RIV CONOSCIUTO CHE MONTANTE AVRO' TRA X ANNI?",null,null,null,null,null,null,null,null,null,null,null,null,null,null,null,"INVESTENDO UN CAPITALE ANNUALE CONOSCIUTO, CON O SENZA CAPITALE INIZIALE A UN TASSO DI RIV CONOSCIUTO CHE MONTANTE AVRO' TRA X ANNI?",null,null,null,null,null,null,null,null,null,null,null,null,null,null,null,"INVESTENDO UN CAPITALE ANNUALE CONOSCIUTO, CON O SENZA CAPITALE INIZIALE A UN TASSO DI RIV CONOSCIUTO CHE MONTANTE AVRO' TRA X ANNI?",null,null,null,null,null,null,null,null,null,null,null,null,null,null,null,"INVESTENDO UN CAPITALE ANNUALE CONOSCIUTO, CON O SENZA CAPITALE INIZIALE A UN TASSO DI RIV CONOSCIUTO CHE MONTANTE AVRO' TRA X ANNI?",null,null,null,null,null,null,null,null,null,null,null,null,null,null,null,"INVESTENDO UN CAPITALE ANNUALE CONOSCIUTO, CON O SENZA CAPITALE INIZIALE A UN TASSO DI RIV CONOSCIUTO CHE MONTANTE AVRO' TRA X ANNI?",null,null,null,null,null,null,null,null,null,null,null,null,null,null,null,"INVESTENDO UN CAPITALE ANNUALE CONOSCIUTO, CON O SENZA CAPITALE INIZIALE A UN TASSO DI RIV CONOSCIUTO CHE MONTANTE AVRO' TRA X ANNI?",null,null,null,null,null,null,null,null,null,null,null,null,null,null,null,"INVESTENDO UN CAPITALE ANNUALE CONOSCIUTO, CON O SENZA CAPITALE INIZIALE A UN TASSO DI RIV CONOSCIUTO CHE MONTANTE AVRO' TRA X ANNI?",null,null,null,null,null,null,null,null,null,null,null,null,null,null,null,"INVESTENDO UN CAPITALE ANNUALE CONOSCIUTO, CON O SENZA CAPITALE INIZIALE A UN TASSO DI RIV CONOSCIUTO CHE MONTANTE AVRO' TRA X ANNI?",null,null,null,null,null,null,null,null,null,null,null,null,null,null,null,"INVESTENDO UN CAPITALE ANNUALE CONOSCIUTO, CON O SENZA CAPITALE INIZIALE A UN TASSO DI RIV CONOSCIUTO CHE MONTANTE AVRO' TRA X ANNI?",null,null,null,null,null,null,null,null,null,null,null,null,null,null,null,"INVESTENDO UN CAPITALE ANNUALE CONOSCIUTO, CON O SENZA CAPITALE INIZIALE A UN TASSO DI RIV CONOSCIUTO CHE MONTANTE AVRO' TRA X ANNI?",null,null,null,null,null,null,null,null,null,null,null,null,null,null,null,"INVESTENDO UN CAPITALE ANNUALE CONOSCIUTO, CON O SENZA CAPITALE INIZIALE A UN TASSO DI RIV CONOSCIUTO CHE MONTANTE AVRO' TRA X ANNI?",null,null,null,null,null,null,null,null,null,null,null,null,null,null,null,"INVESTENDO UN CAPITALE ANNUALE CONOSCIUTO, CON O SENZA CAPITALE INIZIALE A UN TASSO DI RIV CONOSCIUTO CHE MONTANTE AVRO' TRA X ANNI?",null,null,null,null,null,null,null,null,null,null,null,null,null,null,null,"INVESTENDO UN CAPITALE ANNUALE CONOSCIUTO, CON O SENZA CAPITALE INIZIALE A UN TASSO DI RIV CONOSCIUTO CHE MONTANTE AVRO' TRA X ANNI?",null,null,null,null,null,null,null,null,null,null,null,null,null,null,null,"INVESTENDO UN CAPITALE ANNUALE CONOSCIUTO, CON O SENZA CAPITALE INIZIALE A UN TASSO DI RIV CONOSCIUTO CHE MONTANTE AVRO' TRA X ANNI?",null,null,null,null,null,null,null,null,null,null,null,null,null,null,null,"INVESTENDO UN CAPITALE ANNUALE CONOSCIUTO, CON O SENZA CAPITALE INIZIALE A UN TASSO DI RIV CONOSCIUTO CHE MONTANTE AVRO' TRA X ANNI?",null,null,null,null,null,null,null,null,null,null,null,null,null,null,null,"INVESTENDO UN CAPITALE ANNUALE CONOSCIUTO, CON O SENZA CAPITALE INIZIALE A UN TASSO DI RIV CONOSCIUTO CHE MONTANTE AVRO' TRA X ANNI?",null,null,null,null,null,null,null,null,null,null,null,null,null,null,null,"INVESTENDO UN CAPITALE ANNUALE CONOSCIUTO, CON O SENZA CAPITALE INIZIALE A UN TASSO DI RIV CONOSCIUTO CHE MONTANTE AVRO' TRA X ANNI?",null,null,null,null,null,null,null,null,null,null,null,null,null,null,null,"INVESTENDO UN CAPITALE ANNUALE CONOSCIUTO, CON O SENZA CAPITALE INIZIALE A UN TASSO DI RIV CONOSCIUTO CHE MONTANTE AVRO' TRA X ANNI?",null,null,null,null,null,null,null,null,null,null,null,null,null,null,null,"INVESTENDO UN CAPITALE ANNUALE CONOSCIUTO, CON O SENZA CAPITALE INIZIALE A UN TASSO DI RIV CONOSCIUTO CHE MONTANTE AVRO' TRA X ANNI?",null,null,null,null,null,null,null,null,null,null,null,null,null,null,null,"INVESTENDO UN CAPITALE ANNUALE CONOSCIUTO, CON O SENZA CAPITALE INIZIALE A UN TASSO DI RIV CONOSCIUTO CHE MONTANTE AVRO' TRA X ANNI?",null,null,null,null,null,null,null,null,null,null,null,null,null,null,null,"INVESTENDO UN CAPITALE ANNUALE CONOSCIUTO, CON O SENZA CAPITALE INIZIALE A UN TASSO DI RIV CONOSCIUTO CHE MONTANTE AVRO' TRA X ANNI?",null,null,null,null,null,null,null,null,null,null,null,null,null,null,null,"INVESTENDO UN CAPITALE ANNUALE CONOSCIUTO, CON O SENZA CAPITALE INIZIALE A UN TASSO DI RIV CONOSCIUTO CHE MONTANTE AVRO' TRA X ANNI?",null,null,null,null,null,null,null,null,null,null,null,null,null,null,null,"INVESTENDO UN CAPITALE ANNUALE CONOSCIUTO, CON O SENZA CAPITALE INIZIALE A UN TASSO DI RIV CONOSCIUTO CHE MONTANTE AVRO' TRA X ANNI?",null,null,null,null,null,null,null,null,null,null,null,null,null,null,null,"INVESTENDO UN CAPITALE ANNUALE CONOSCIUTO, CON O SENZA CAPITALE INIZIALE A UN TASSO DI RIV CONOSCIUTO CHE MONTANTE AVRO' TRA X ANNI?",null,null,null,null,null,null,null,null,null,null,null,null,null,null,null,"INVESTENDO UN CAPITALE ANNUALE CONOSCIUTO, CON O SENZA CAPITALE INIZIALE A UN TASSO DI RIV CONOSCIUTO CHE MONTANTE AVRO' TRA X ANNI?",null,null,null,null,null,null,null,null,null,null,null,null,null,null,null,"INVESTENDO UN CAPITALE ANNUALE CONOSCIUTO, CON O SENZA CAPITALE INIZIALE A UN TASSO DI RIV CONOSCIUTO CHE MONTANTE AVRO' TRA X ANNI?",null,null,null,null,null,null,null,null,null,null,null,null,null,null,null,"INVESTENDO UN CAPITALE ANNUALE CONOSCIUTO, CON O SENZA CAPITALE INIZIALE A UN TASSO DI RIV CONOSCIUTO CHE MONTANTE AVRO' TRA X ANNI?",null,null,null,null,null,null,null,null,null,null,null,null,null,null,null,"INVESTENDO UN CAPITALE ANNUALE CONOSCIUTO, CON O SENZA CAPITALE INIZIALE A UN TASSO DI RIV CONOSCIUTO CHE MONTANTE AVRO' TRA X ANNI?",null,null,null,null,null,null,null,null,null,null,null,null,null,null,null,"INVESTENDO UN CAPITALE ANNUALE CONOSCIUTO, CON O SENZA CAPITALE INIZIALE A UN TASSO DI RIV CONOSCIUTO CHE MONTANTE AVRO' TRA X ANNI?",null,null,null,null,null,null,null,null,null,null,null,null,null,null,null,"INVESTENDO UN CAPITALE ANNUALE CONOSCIUTO, CON O SENZA CAPITALE INIZIALE A UN TASSO DI RIV CONOSCIUTO CHE MONTANTE AVRO' TRA X ANNI?",null,null,null,null,null,null,null,null,null,null,null,null,null,null,null,"INVESTENDO UN CAPITALE ANNUALE CONOSCIUTO, CON O SENZA CAPITALE INIZIALE A UN TASSO DI RIV CONOSCIUTO CHE MONTANTE AVRO' TRA X ANNI?",null,null,null,null,null,null,null,null,null,null,null,null,null,null,null,"INVESTENDO UN CAPITALE ANNUALE CONOSCIUTO, CON O SENZA CAPITALE INIZIALE A UN TASSO DI RIV CONOSCIUTO CHE MONTANTE AVRO' TRA X ANNI?",null,null,null,null,null,null,null,null,null,null,null,null,null,null,null,"INVESTENDO UN CAPITALE ANNUALE CONOSCIUTO, CON O SENZA CAPITALE INIZIALE A UN TASSO DI RIV CONOSCIUTO CHE MONTANTE AVRO' TRA X ANNI?",null,null,null,null,null,null,null,null,null,null,null,null,null,null,null,"INVESTENDO UN CAPITALE ANNUALE CONOSCIUTO, CON O SENZA CAPITALE INIZIALE A UN TASSO DI RIV CONOSCIUTO CHE MONTANTE AVRO' TRA X ANNI?",null,null,null,null,null,null,null,null,null,null,null,null,null,null,null,"INVESTENDO UN CAPITALE ANNUALE CONOSCIUTO, CON O SENZA CAPITALE INIZIALE A UN TASSO DI RIV CONOSCIUTO CHE MONTANTE AVRO' TRA X ANNI?",null,null,null,null,null,null,null,null,null,null,null,null,null,null,null,"INVESTENDO UN CAPITALE ANNUALE CONOSCIUTO, CON O SENZA CAPITALE INIZIALE A UN TASSO DI RIV CONOSCIUTO CHE MONTANTE AVRO' TRA X ANNI?",null,null,null,null,null,null,null,null,null,null,null,null,null,null,null,"INVESTENDO UN CAPITALE ANNUALE CONOSCIUTO, CON O SENZA CAPITALE INIZIALE A UN TASSO DI RIV CONOSCIUTO CHE MONTANTE AVRO' TRA X ANNI?",null,null,null,null,null,null,null,null,null,null,null,null,null,null,null,"INVESTENDO UN CAPITALE ANNUALE CONOSCIUTO, CON O SENZA CAPITALE INIZIALE A UN TASSO DI RIV CONOSCIUTO CHE MONTANTE AVRO' TRA X ANNI?",null,null,null,null,null,null,null,null,null,null,null,null,null,null,null,"INVESTENDO UN CAPITALE ANNUALE CONOSCIUTO, CON O SENZA CAPITALE INIZIALE A UN TASSO DI RIV CONOSCIUTO CHE MONTANTE AVRO' TRA X ANNI?",null,null,null,null,null,null,null,null,null,null,null,null,null,null,null,"INVESTENDO UN CAPITALE ANNUALE CONOSCIUTO, CON O SENZA CAPITALE INIZIALE A UN TASSO DI RIV CONOSCIUTO CHE MONTANTE AVRO' TRA X ANNI?",null,null,null,null,null,null,null,null,null,null,null,null,null,null,null,"INVESTENDO UN CAPITALE ANNUALE CONOSCIUTO, CON O SENZA CAPITALE INIZIALE A UN TASSO DI RIV CONOSCIUTO CHE MONTANTE AVRO' TRA X ANNI?",null,null,null,null,null,null,null,null,null,null,null,null,null,null,null,"INVESTENDO UN CAPITALE ANNUALE CONOSCIUTO, CON O SENZA CAPITALE INIZIALE A UN TASSO DI RIV CONOSCIUTO CHE MONTANTE AVRO' TRA X ANNI?",null,null,null,null,null,null,null,null,null,null,null,null,null,null,null,"INVESTENDO UN CAPITALE ANNUALE CONOSCIUTO, CON O SENZA CAPITALE INIZIALE A UN TASSO DI RIV CONOSCIUTO CHE MONTANTE AVRO' TRA X ANNI?",null,null,null,null,null,null,null,null,null,null,null,null,null,null,null,"INVESTENDO UN CAPITALE ANNUALE CONOSCIUTO, CON O SENZA CAPITALE INIZIALE A UN TASSO DI RIV CONOSCIUTO CHE MONTANTE AVRO' TRA X ANNI?",null,null,null,null,null,null,null,null,null,null,null,null,null,null,null,"INVESTENDO UN CAPITALE ANNUALE CONOSCIUTO, CON O SENZA CAPITALE INIZIALE A UN TASSO DI RIV CONOSCIUTO CHE MONTANTE AVRO' TRA X ANNI?",null,null,null,null,null,null,null,null,null,null,null,null,null,null,null,"INVESTENDO UN CAPITALE ANNUALE CONOSCIUTO, CON O SENZA CAPITALE INIZIALE A UN TASSO DI RIV CONOSCIUTO CHE MONTANTE AVRO' TRA X ANNI?",null,null,null,null,null,null,null,null,null,null,null,null,null,null,null,"INVESTENDO UN CAPITALE ANNUALE CONOSCIUTO, CON O SENZA CAPITALE INIZIALE A UN TASSO DI RIV CONOSCIUTO CHE MONTANTE AVRO' TRA X ANNI?",null,null,null,null,null,null,null,null,null,null,null,null,null,null,null,"INVESTENDO UN CAPITALE ANNUALE CONOSCIUTO, CON O SENZA CAPITALE INIZIALE A UN TASSO DI RIV CONOSCIUTO CHE MONTANTE AVRO' TRA X ANNI?",null,null,null,null,null,null,null,null,null,null,null,null,null,null,null,"INVESTENDO UN CAPITALE ANNUALE CONOSCIUTO, CON O SENZA CAPITALE INIZIALE A UN TASSO DI RIV CONOSCIUTO CHE MONTANTE AVRO' TRA X ANNI?",null,null,null,null,null,null,null,null,null,null,null,null,null,null,null,"INVESTENDO UN CAPITALE ANNUALE CONOSCIUTO, CON O SENZA CAPITALE INIZIALE A UN TASSO DI RIV CONOSCIUTO CHE MONTANTE AVRO' TRA X ANNI?",null,null,null,null,null,null,null,null,null,null,null,null,null,null,null,"INVESTENDO UN CAPITALE ANNUALE CONOSCIUTO, CON O SENZA CAPITALE INIZIALE A UN TASSO DI RIV CONOSCIUTO CHE MONTANTE AVRO' TRA X ANNI?",null,null,null,null,null,null,null,null,null,null,null,null,null,null,null,"INVESTENDO UN CAPITALE ANNUALE CONOSCIUTO, CON O SENZA CAPITALE INIZIALE A UN TASSO DI RIV CONOSCIUTO CHE MONTANTE AVRO' TRA X ANNI?",null,null,null,null,null,null,null,null,null,null,null,null,null,null,null,"INVESTENDO UN CAPITALE ANNUALE CONOSCIUTO, CON O SENZA CAPITALE INIZIALE A UN TASSO DI RIV CONOSCIUTO CHE MONTANTE AVRO' TRA X ANNI?",null,null,null,null,null,null,null,null,null,null,null,null,null,null,null,"INVESTENDO UN CAPITALE ANNUALE CONOSCIUTO, CON O SENZA CAPITALE INIZIALE A UN TASSO DI RIV CONOSCIUTO CHE MONTANTE AVRO' TRA X ANNI?",null,null,null,null,null,null,null,null,null,null,null,null,null,null,null,"INVESTENDO UN CAPITALE ANNUALE CONOSCIUTO, CON O SENZA CAPITALE INIZIALE A UN TASSO DI RIV CONOSCIUTO CHE MONTANTE AVRO' TRA X ANNI?",null,null,null,null,null,null,null,null,null,null,null,null,null,null,null,"INVESTENDO UN CAPITALE ANNUALE CONOSCIUTO, CON O SENZA CAPITALE INIZIALE A UN TASSO DI RIV CONOSCIUTO CHE MONTANTE AVRO' TRA X ANNI?",null,null,null,null,null,null,null,null,null,null,null,null,null,null,null,"INVESTENDO UN CAPITALE ANNUALE CONOSCIUTO, CON O SENZA CAPITALE INIZIALE A UN TASSO DI RIV CONOSCIUTO CHE MONTANTE AVRO' TRA X ANNI?",null,null,null,null,null,null,null,null,null,null,null,null,null,null,null,"INVESTENDO UN CAPITALE ANNUALE CONOSCIUTO, CON O SENZA CAPITALE INIZIALE A UN TASSO DI RIV CONOSCIUTO CHE MONTANTE AVRO' TRA X ANNI?",null,null,null,null,null,null,null,null,null,null,null,null,null,null,null,"INVESTENDO UN CAPITALE ANNUALE CONOSCIUTO, CON O SENZA CAPITALE INIZIALE A UN TASSO DI RIV CONOSCIUTO CHE MONTANTE AVRO' TRA X ANNI?",null,null,null,null,null,null,null,null,null,null,null,null,null,null,null,"INVESTENDO UN CAPITALE ANNUALE CONOSCIUTO, CON O SENZA CAPITALE INIZIALE A UN TASSO DI RIV CONOSCIUTO CHE MONTANTE AVRO' TRA X ANNI?",null,null,null,null,null,null,null,null,null,null,null,null,null,null,null,"INVESTENDO UN CAPITALE ANNUALE CONOSCIUTO, CON O SENZA CAPITALE INIZIALE A UN TASSO DI RIV CONOSCIUTO CHE MONTANTE AVRO' TRA X ANNI?",null,null,null,null,null,null,null,null,null,null,null,null,null,null,null,"INVESTENDO UN CAPITALE ANNUALE CONOSCIUTO, CON O SENZA CAPITALE INIZIALE A UN TASSO DI RIV CONOSCIUTO CHE MONTANTE AVRO' TRA X ANNI?",null,null,null,null,null,null,null,null,null,null,null,null,null,null,null,"INVESTENDO UN CAPITALE ANNUALE CONOSCIUTO, CON O SENZA CAPITALE INIZIALE A UN TASSO DI RIV CONOSCIUTO CHE MONTANTE AVRO' TRA X ANNI?",null,null,null,null,null,null,null,null,null,null,null,null,null,null,null,"INVESTENDO UN CAPITALE ANNUALE CONOSCIUTO, CON O SENZA CAPITALE INIZIALE A UN TASSO DI RIV CONOSCIUTO CHE MONTANTE AVRO' TRA X ANNI?",null,null,null,null,null,null,null,null,null,null,null,null,null,null,null,"INVESTENDO UN CAPITALE ANNUALE CONOSCIUTO, CON O SENZA CAPITALE INIZIALE A UN TASSO DI RIV CONOSCIUTO CHE MONTANTE AVRO' TRA X ANNI?",null,null,null,null,null,null,null,null,null,null,null,null,null,null,null,"INVESTENDO UN CAPITALE ANNUALE CONOSCIUTO, CON O SENZA CAPITALE INIZIALE A UN TASSO DI RIV CONOSCIUTO CHE MONTANTE AVRO' TRA X ANNI?",null,null,null,null,null,null,null,null,null,null,null,null,null,null,null,"INVESTENDO UN CAPITALE ANNUALE CONOSCIUTO, CON O SENZA CAPITALE INIZIALE A UN TASSO DI RIV CONOSCIUTO CHE MONTANTE AVRO' TRA X ANNI?",null,null,null,null,null,null,null,null,null,null,null,null,null,null,null,"INVESTENDO UN CAPITALE ANNUALE CONOSCIUTO, CON O SENZA CAPITALE INIZIALE A UN TASSO DI RIV CONOSCIUTO CHE MONTANTE AVRO' TRA X ANNI?",null,null,null,null,null,null,null,null,null,null,null,null,null,null,null,"INVESTENDO UN CAPITALE ANNUALE CONOSCIUTO, CON O SENZA CAPITALE INIZIALE A UN TASSO DI RIV CONOSCIUTO CHE MONTANTE AVRO' TRA X ANNI?",null,null,null,null,null,null,null,null,null,null,null,null,null,null,null,"INVESTENDO UN CAPITALE ANNUALE CONOSCIUTO, CON O SENZA CAPITALE INIZIALE A UN TASSO DI RIV CONOSCIUTO CHE MONTANTE AVRO' TRA X ANNI?",null,null,null,null,null,null,null,null,null,null,null,null,null,null,null,"INVESTENDO UN CAPITALE ANNUALE CONOSCIUTO, CON O SENZA CAPITALE INIZIALE A UN TASSO DI RIV CONOSCIUTO CHE MONTANTE AVRO' TRA X ANNI?",null,null,null,null,null,null,null,null,null,null,null,null,null,null,null,"INVESTENDO UN CAPITALE ANNUALE CONOSCIUTO, CON O SENZA CAPITALE INIZIALE A UN TASSO DI RIV CONOSCIUTO CHE MONTANTE AVRO' TRA X ANNI?",null,null,null,null,null,null,null,null,null,null,null,null,null,null,null,"INVESTENDO UN CAPITALE ANNUALE CONOSCIUTO, CON O SENZA CAPITALE INIZIALE A UN TASSO DI RIV CONOSCIUTO CHE MONTANTE AVRO' TRA X ANNI?",null,null,null,null,null,null,null,null,null,null,null,null,null,null,null,"INVESTENDO UN CAPITALE ANNUALE CONOSCIUTO, CON O SENZA CAPITALE INIZIALE A UN TASSO DI RIV CONOSCIUTO CHE MONTANTE AVRO' TRA X ANNI?",null,null,null,null,null,null,null,null,null,null,null,null,null,null,null,"INVESTENDO UN CAPITALE ANNUALE CONOSCIUTO, CON O SENZA CAPITALE INIZIALE A UN TASSO DI RIV CONOSCIUTO CHE MONTANTE AVRO' TRA X ANNI?",null,null,null,null,null,null,null,null,null,null,null,null,null,null,null,"INVESTENDO UN CAPITALE ANNUALE CONOSCIUTO, CON O SENZA CAPITALE INIZIALE A UN TASSO DI RIV CONOSCIUTO CHE MONTANTE AVRO' TRA X ANNI?",null,null,null,null,null,null,null,null,null,null,null,null,null,null,null,"INVESTENDO UN CAPITALE ANNUALE CONOSCIUTO, CON O SENZA CAPITALE INIZIALE A UN TASSO DI RIV CONOSCIUTO CHE MONTANTE AVRO' TRA X ANNI?",null,null,null,null,null,null,null,null,null,null,null,null,null,null,null,"INVESTENDO UN CAPITALE ANNUALE CONOSCIUTO, CON O SENZA CAPITALE INIZIALE A UN TASSO DI RIV CONOSCIUTO CHE MONTANTE AVRO' TRA X ANNI?",null,null,null,null,null,null,null,null,null,null,null,null,null,null,null,"INVESTENDO UN CAPITALE ANNUALE CONOSCIUTO, CON O SENZA CAPITALE INIZIALE A UN TASSO DI RIV CONOSCIUTO CHE MONTANTE AVRO' TRA X ANNI?",null,null,null,null,null,null,null,null,null,null,null,null,null,null,null,"INVESTENDO UN CAPITALE ANNUALE CONOSCIUTO, CON O SENZA CAPITALE INIZIALE A UN TASSO DI RIV CONOSCIUTO CHE MONTANTE AVRO' TRA X ANNI?",null,null,null,null,null,null,null,null,null,null,null,null,null,null,null,"INVESTENDO UN CAPITALE ANNUALE CONOSCIUTO, CON O SENZA CAPITALE INIZIALE A UN TASSO DI RIV CONOSCIUTO CHE MONTANTE AVRO' TRA X ANNI?",null,null,null,null,null,null,null,null,null,null,null,null,null,null,null,"INVESTENDO UN CAPITALE ANNUALE CONOSCIUTO, CON O SENZA CAPITALE INIZIALE A UN TASSO DI RIV CONOSCIUTO CHE MONTANTE AVRO' TRA X ANNI?",null,null,null,null,null,null,null,null,null,null,null,null,null,null,null,"INVESTENDO UN CAPITALE ANNUALE CONOSCIUTO, CON O SENZA CAPITALE INIZIALE A UN TASSO DI RIV CONOSCIUTO CHE MONTANTE AVRO' TRA X ANNI?",null,null,null,null,null,null,null,null,null,null,null,null,null,null,null,"INVESTENDO UN CAPITALE ANNUALE CONOSCIUTO, CON O SENZA CAPITALE INIZIALE A UN TASSO DI RIV CONOSCIUTO CHE MONTANTE AVRO' TRA X ANNI?",null,null,null,null,null,null,null,null,null,null,null,null,null,null,null,"INVESTENDO UN CAPITALE ANNUALE CONOSCIUTO, CON O SENZA CAPITALE INIZIALE A UN TASSO DI RIV CONOSCIUTO CHE MONTANTE AVRO' TRA X ANNI?",null,null,null,null,null,null,null,null,null,null,null,null,null,null,null,"INVESTENDO UN CAPITALE ANNUALE CONOSCIUTO, CON O SENZA CAPITALE INIZIALE A UN TASSO DI RIV CONOSCIUTO CHE MONTANTE AVRO' TRA X ANNI?",null,null,null,null,null,null,null,null,null,null,null,null,null,null,null,"INVESTENDO UN CAPITALE ANNUALE CONOSCIUTO, CON O SENZA CAPITALE INIZIALE A UN TASSO DI RIV CONOSCIUTO CHE MONTANTE AVRO' TRA X ANNI?",null,null,null,null,null,null,null,null,null,null,null,null,null,null,null,"INVESTENDO UN CAPITALE ANNUALE CONOSCIUTO, CON O SENZA CAPITALE INIZIALE A UN TASSO DI RIV CONOSCIUTO CHE MONTANTE AVRO' TRA X ANNI?",null,null,null,null,null,null,null,null,null,null,null,null,null,null,null,"INVESTENDO UN CAPITALE ANNUALE CONOSCIUTO, CON O SENZA CAPITALE INIZIALE A UN TASSO DI RIV CONOSCIUTO CHE MONTANTE AVRO' TRA X ANNI?",null,null,null,null,null,null,null,null,null,null,null,null,null,null,null,"INVESTENDO UN CAPITALE ANNUALE CONOSCIUTO, CON O SENZA CAPITALE INIZIALE A UN TASSO DI RIV CONOSCIUTO CHE MONTANTE AVRO' TRA X ANNI?",null,null,null,null,null,null,null,null,null,null,null,null,null,null,null,"INVESTENDO UN CAPITALE ANNUALE CONOSCIUTO, CON O SENZA CAPITALE INIZIALE A UN TASSO DI RIV CONOSCIUTO CHE MONTANTE AVRO' TRA X ANNI?",null,null,null,null,null,null,null,null,null,null,null,null,null,null,null,"INVESTENDO UN CAPITALE ANNUALE CONOSCIUTO, CON O SENZA CAPITALE INIZIALE A UN TASSO DI RIV CONOSCIUTO CHE MONTANTE AVRO' TRA X ANNI?",null,null,null,null,null,null,null,null,null,null,null,null,null,null,null,"INVESTENDO UN CAPITALE ANNUALE CONOSCIUTO, CON O SENZA CAPITALE INIZIALE A UN TASSO DI RIV CONOSCIUTO CHE MONTANTE AVRO' TRA X ANNI?",null,null,null,null,null,null,null,null,null,null,null,null,null,null,null,"INVESTENDO UN CAPITALE ANNUALE CONOSCIUTO, CON O SENZA CAPITALE INIZIALE A UN TASSO DI RIV CONOSCIUTO CHE MONTANTE AVRO' TRA X ANNI?",null,null,null,null,null,null,null,null,null,null,null,null,null,null,null,"INVESTENDO UN CAPITALE ANNUALE CONOSCIUTO, CON O SENZA CAPITALE INIZIALE A UN TASSO DI RIV CONOSCIUTO CHE MONTANTE AVRO' TRA X ANNI?",null,null,null,null,null,null,null,null,null,null,null,null,null,null,null,"INVESTENDO UN CAPITALE ANNUALE CONOSCIUTO, CON O SENZA CAPITALE INIZIALE A UN TASSO DI RIV CONOSCIUTO CHE MONTANTE AVRO' TRA X ANNI?",null,null,null,null,null,null,null,null,null,null,null,null,null,null,null,"INVESTENDO UN CAPITALE ANNUALE CONOSCIUTO, CON O SENZA CAPITALE INIZIALE A UN TASSO DI RIV CONOSCIUTO CHE MONTANTE AVRO' TRA X ANNI?",null,null,null,null,null,null,null,null,null,null,null,null,null,null,null,"INVESTENDO UN CAPITALE ANNUALE CONOSCIUTO, CON O SENZA CAPITALE INIZIALE A UN TASSO DI RIV CONOSCIUTO CHE MONTANTE AVRO' TRA X ANNI?",null,null,null,null,null,null,null,null,null,null,null,null,null,null,null,"INVESTENDO UN CAPITALE ANNUALE CONOSCIUTO, CON O SENZA CAPITALE INIZIALE A UN TASSO DI RIV CONOSCIUTO CHE MONTANTE AVRO' TRA X ANNI?",null,null,null,null,null,null,null,null,null,null,null,null,null,null,null,"INVESTENDO UN CAPITALE ANNUALE CONOSCIUTO, CON O SENZA CAPITALE INIZIALE A UN TASSO DI RIV CONOSCIUTO CHE MONTANTE AVRO' TRA X ANNI?",null,null,null,null,null,null,null,null,null,null,null,null,null,null,null,"INVESTENDO UN CAPITALE ANNUALE CONOSCIUTO, CON O SENZA CAPITALE INIZIALE A UN TASSO DI RIV CONOSCIUTO CHE MONTANTE AVRO' TRA X ANNI?",null,null,null,null,null,null,null,null,null,null,null,null,null,null,null,"INVESTENDO UN CAPITALE ANNUALE CONOSCIUTO, CON O SENZA CAPITALE INIZIALE A UN TASSO DI RIV CONOSCIUTO CHE MONTANTE AVRO' TRA X ANNI?",null,null,null,null,null,null,null,null,null,null,null,null,null,null,null,"INVESTENDO UN CAPITALE ANNUALE CONOSCIUTO, CON O SENZA CAPITALE INIZIALE A UN TASSO DI RIV CONOSCIUTO CHE MONTANTE AVRO' TRA X ANNI?",null,null,null,null,null,null,null,null,null,null,null,null,null,null,null,"INVESTENDO UN CAPITALE ANNUALE CONOSCIUTO, CON O SENZA CAPITALE INIZIALE A UN TASSO DI RIV CONOSCIUTO CHE MONTANTE AVRO' TRA X ANNI?",null,null,null,null,null,null,null,null,null,null,null,null,null,null,null,"INVESTENDO UN CAPITALE ANNUALE CONOSCIUTO, CON O SENZA CAPITALE INIZIALE A UN TASSO DI RIV CONOSCIUTO CHE MONTANTE AVRO' TRA X ANNI?",null,null,null,null,null,null,null,null,null,null,null,null,null,null,null,"INVESTENDO UN CAPITALE ANNUALE CONOSCIUTO, CON O SENZA CAPITALE INIZIALE A UN TASSO DI RIV CONOSCIUTO CHE MONTANTE AVRO' TRA X ANNI?",null,null,null,null,null,null,null,null,null,null,null,null,null,null,null,"INVESTENDO UN CAPITALE ANNUALE CONOSCIUTO, CON O SENZA CAPITALE INIZIALE A UN TASSO DI RIV CONOSCIUTO CHE MONTANTE AVRO' TRA X ANNI?",null,null,null,null,null,null,null,null,null,null,null,null,null,null,null,"INVESTENDO UN CAPITALE ANNUALE CONOSCIUTO, CON O SENZA CAPITALE INIZIALE A UN TASSO DI RIV CONOSCIUTO CHE MONTANTE AVRO' TRA X ANNI?",null,null,null,null,null,null,null,null,null,null,null,null,null,null,null,"INVESTENDO UN CAPITALE ANNUALE CONOSCIUTO, CON O SENZA CAPITALE INIZIALE A UN TASSO DI RIV CONOSCIUTO CHE MONTANTE AVRO' TRA X ANNI?",null,null,null,null,null,null,null,null,null,null,null,null,null,null,null,"INVESTENDO UN CAPITALE ANNUALE CONOSCIUTO, CON O SENZA CAPITALE INIZIALE A UN TASSO DI RIV CONOSCIUTO CHE MONTANTE AVRO' TRA X ANNI?",null,null,null,null,null,null,null,null,null,null,null,null,null,null,null,"INVESTENDO UN CAPITALE ANNUALE CONOSCIUTO, CON O SENZA CAPITALE INIZIALE A UN TASSO DI RIV CONOSCIUTO CHE MONTANTE AVRO' TRA X ANNI?",null,null,null,null,null,null,null,null,null,null,null,null,null,null,null,"INVESTENDO UN CAPITALE ANNUALE CONOSCIUTO, CON O SENZA CAPITALE INIZIALE A UN TASSO DI RIV CONOSCIUTO CHE MONTANTE AVRO' TRA X ANNI?",null,null,null,null,null,null,null,null,null,null,null,null,null,null,null,"INVESTENDO UN CAPITALE ANNUALE CONOSCIUTO, CON O SENZA CAPITALE INIZIALE A UN TASSO DI RIV CONOSCIUTO CHE MONTANTE AVRO' TRA X ANNI?",null,null,null,null,null,null,null,null,null,null,null,null,null,null,null,"INVESTENDO UN CAPITALE ANNUALE CONOSCIUTO, CON O SENZA CAPITALE INIZIALE A UN TASSO DI RIV CONOSCIUTO CHE MONTANTE AVRO' TRA X ANNI?",null,null,null,null,null,null,null,null,null,null,null,null,null,null,null,"INVESTENDO UN CAPITALE ANNUALE CONOSCIUTO, CON O SENZA CAPITALE INIZIALE A UN TASSO DI RIV CONOSCIUTO CHE MONTANTE AVRO' TRA X ANNI?",null,null,null,null,null,null,null,null,null,null,null,null,null,null,null,"INVESTENDO UN CAPITALE ANNUALE CONOSCIUTO, CON O SENZA CAPITALE INIZIALE A UN TASSO DI RIV CONOSCIUTO CHE MONTANTE AVRO' TRA X ANNI?",null,null,null,null,null,null,null,null,null,null,null,null,null,null,null,"INVESTENDO UN CAPITALE ANNUALE CONOSCIUTO, CON O SENZA CAPITALE INIZIALE A UN TASSO DI RIV CONOSCIUTO CHE MONTANTE AVRO' TRA X ANNI?",null,null,null,null,null,null,null,null,null,null,null,null,null,null,null,"INVESTENDO UN CAPITALE ANNUALE CONOSCIUTO, CON O SENZA CAPITALE INIZIALE A UN TASSO DI RIV CONOSCIUTO CHE MONTANTE AVRO' TRA X ANNI?",null,null,null,null,null,null,null,null,null,null,null,null,null,null,null,"INVESTENDO UN CAPITALE ANNUALE CONOSCIUTO, CON O SENZA CAPITALE INIZIALE A UN TASSO DI RIV CONOSCIUTO CHE MONTANTE AVRO' TRA X ANNI?",null,null,null,null,null,null,null,null,null,null,null,null,null,null,null,"INVESTENDO UN CAPITALE ANNUALE CONOSCIUTO, CON O SENZA CAPITALE INIZIALE A UN TASSO DI RIV CONOSCIUTO CHE MONTANTE AVRO' TRA X ANNI?",null,null,null,null,null,null,null,null,null,null,null,null,null,null,null,"INVESTENDO UN CAPITALE ANNUALE CONOSCIUTO, CON O SENZA CAPITALE INIZIALE A UN TASSO DI RIV CONOSCIUTO CHE MONTANTE AVRO' TRA X ANNI?",null,null,null,null,null,null,null,null,null,null,null,null,null,null,null,"INVESTENDO UN CAPITALE ANNUALE CONOSCIUTO, CON O SENZA CAPITALE INIZIALE A UN TASSO DI RIV CONOSCIUTO CHE MONTANTE AVRO' TRA X ANNI?",null,null,null,null,null,null,null,null,null,null,null,null,null,null,null,"INVESTENDO UN CAPITALE ANNUALE CONOSCIUTO, CON O SENZA CAPITALE INIZIALE A UN TASSO DI RIV CONOSCIUTO CHE MONTANTE AVRO' TRA X ANNI?",null,null,null,null,null,null,null,null,null,null,null,null,null,null,null,"INVESTENDO UN CAPITALE ANNUALE CONOSCIUTO, CON O SENZA CAPITALE INIZIALE A UN TASSO DI RIV CONOSCIUTO CHE MONTANTE AVRO' TRA X ANNI?",null,null,null,null,null,null,null,null,null,null,null,null,null,null,null,"INVESTENDO UN CAPITALE ANNUALE CONOSCIUTO, CON O SENZA CAPITALE INIZIALE A UN TASSO DI RIV CONOSCIUTO CHE MONTANTE AVRO' TRA X ANNI?",null,null,null,null,null,null,null,null,null,null,null,null,null,null,null,"INVESTENDO UN CAPITALE ANNUALE CONOSCIUTO, CON O SENZA CAPITALE INIZIALE A UN TASSO DI RIV CONOSCIUTO CHE MONTANTE AVRO' TRA X ANNI?",null,null,null,null,null,null,null,null,null,null,null,null,null,null,null,"INVESTENDO UN CAPITALE ANNUALE CONOSCIUTO, CON O SENZA CAPITALE INIZIALE A UN TASSO DI RIV CONOSCIUTO CHE MONTANTE AVRO' TRA X ANNI?",null,null,null,null,null,null,null,null,null,null,null,null,null,null,null,"INVESTENDO UN CAPITALE ANNUALE CONOSCIUTO, CON O SENZA CAPITALE INIZIALE A UN TASSO DI RIV CONOSCIUTO CHE MONTANTE AVRO' TRA X ANNI?",null,null,null,null,null,null,null,null,null,null,null,null,null,null,null,"INVESTENDO UN CAPITALE ANNUALE CONOSCIUTO, CON O SENZA CAPITALE INIZIALE A UN TASSO DI RIV CONOSCIUTO CHE MONTANTE AVRO' TRA X ANNI?",null,null,null,null,null,null,null,null,null,null,null,null,null,null,null,"INVESTENDO UN CAPITALE ANNUALE CONOSCIUTO, CON O SENZA CAPITALE INIZIALE A UN TASSO DI RIV CONOSCIUTO CHE MONTANTE AVRO' TRA X ANNI?",null,null,null,null,null,null,null,null,null,null,null,null,null,null,null,"INVESTENDO UN CAPITALE ANNUALE CONOSCIUTO, CON O SENZA CAPITALE INIZIALE A UN TASSO DI RIV CONOSCIUTO CHE MONTANTE AVRO' TRA X ANNI?",null,null,null,null,null,null,null,null,null,null,null,null,null,null,null,"INVESTENDO UN CAPITALE ANNUALE CONOSCIUTO, CON O SENZA CAPITALE INIZIALE A UN TASSO DI RIV CONOSCIUTO CHE MONTANTE AVRO' TRA X ANNI?",null,null,null,null,null,null,null,null,null,null,null,null,null,null,null,"INVESTENDO UN CAPITALE ANNUALE CONOSCIUTO, CON O SENZA CAPITALE INIZIALE A UN TASSO DI RIV CONOSCIUTO CHE MONTANTE AVRO' TRA X ANNI?",null,null,null,null,null,null,null,null,null,null,null,null,null,null,null,"INVESTENDO UN CAPITALE ANNUALE CONOSCIUTO, CON O SENZA CAPITALE INIZIALE A UN TASSO DI RIV CONOSCIUTO CHE MONTANTE AVRO' TRA X ANNI?",null,null,null,null,null,null,null,null,null,null,null,null,null,null,null,"INVESTENDO UN CAPITALE ANNUALE CONOSCIUTO, CON O SENZA CAPITALE INIZIALE A UN TASSO DI RIV CONOSCIUTO CHE MONTANTE AVRO' TRA X ANNI?",null,null,null,null,null,null,null,null,null,null,null,null,null,null,null,"INVESTENDO UN CAPITALE ANNUALE CONOSCIUTO, CON O SENZA CAPITALE INIZIALE A UN TASSO DI RIV CONOSCIUTO CHE MONTANTE AVRO' TRA X ANNI?",null,null,null,null,null,null,null,null,null,null,null,null,null,null,null,"INVESTENDO UN CAPITALE ANNUALE CONOSCIUTO, CON O SENZA CAPITALE INIZIALE A UN TASSO DI RIV CONOSCIUTO CHE MONTANTE AVRO' TRA X ANNI?",null,null,null,null,null,null,null,null,null,null,null,null,null,null,null,"INVESTENDO UN CAPITALE ANNUALE CONOSCIUTO, CON O SENZA CAPITALE INIZIALE A UN TASSO DI RIV CONOSCIUTO CHE MONTANTE AVRO' TRA X ANNI?",null,null,null,null,null,null,null,null,null,null,null,null,null,null,null,"INVESTENDO UN CAPITALE ANNUALE CONOSCIUTO, CON O SENZA CAPITALE INIZIALE A UN TASSO DI RIV CONOSCIUTO CHE MONTANTE AVRO' TRA X ANNI?",null,null,null,null,null,null,null,null,null,null,null,null,null,null,null,"INVESTENDO UN CAPITALE ANNUALE CONOSCIUTO, CON O SENZA CAPITALE INIZIALE A UN TASSO DI RIV CONOSCIUTO CHE MONTANTE AVRO' TRA X ANNI?",null,null,null,null,null,null,null,null,null,null,null,null,null,null,null,"INVESTENDO UN CAPITALE ANNUALE CONOSCIUTO, CON O SENZA CAPITALE INIZIALE A UN TASSO DI RIV CONOSCIUTO CHE MONTANTE AVRO' TRA X ANNI?",null,null,null,null,null,null,null,null,null,null,null,null,null,null,null,"INVESTENDO UN CAPITALE ANNUALE CONOSCIUTO, CON O SENZA CAPITALE INIZIALE A UN TASSO DI RIV CONOSCIUTO CHE MONTANTE AVRO' TRA X ANNI?",null,null,null,null,null,null,null,null,null,null,null,null,null,null,null,"INVESTENDO UN CAPITALE ANNUALE CONOSCIUTO, CON O SENZA CAPITALE INIZIALE A UN TASSO DI RIV CONOSCIUTO CHE MONTANTE AVRO' TRA X ANNI?",null,null,null,null,null,null,null,null,null,null,null,null,null,null,null,"INVESTENDO UN CAPITALE ANNUALE CONOSCIUTO, CON O SENZA CAPITALE INIZIALE A UN TASSO DI RIV CONOSCIUTO CHE MONTANTE AVRO' TRA X ANNI?",null,null,null,null,null,null,null,null,null,null,null,null,null,null,null,"INVESTENDO UN CAPITALE ANNUALE CONOSCIUTO, CON O SENZA CAPITALE INIZIALE A UN TASSO DI RIV CONOSCIUTO CHE MONTANTE AVRO' TRA X ANNI?",null,null,null,null,null,null,null,null,null,null,null,null,null,null,null,"INVESTENDO UN CAPITALE ANNUALE CONOSCIUTO, CON O SENZA CAPITALE INIZIALE A UN TASSO DI RIV CONOSCIUTO CHE MONTANTE AVRO' TRA X ANNI?",null,null,null,null,null,null,null,null,null,null,null,null,null,null,null,"INVESTENDO UN CAPITALE ANNUALE CONOSCIUTO, CON O SENZA CAPITALE INIZIALE A UN TASSO DI RIV CONOSCIUTO CHE MONTANTE AVRO' TRA X ANNI?",null,null,null,null,null,null,null,null,null,null,null,null,null,null,null,"INVESTENDO UN CAPITALE ANNUALE CONOSCIUTO, CON O SENZA CAPITALE INIZIALE A UN TASSO DI RIV CONOSCIUTO CHE MONTANTE AVRO' TRA X ANNI?",null,null,null,null,null,null,null,null,null,null,null,null,null,null,null,"INVESTENDO UN CAPITALE ANNUALE CONOSCIUTO, CON O SENZA CAPITALE INIZIALE A UN TASSO DI RIV CONOSCIUTO CHE MONTANTE AVRO' TRA X ANNI?",null,null,null,null,null,null,null,null,null,null,null,null,null,null,null,"INVESTENDO UN CAPITALE ANNUALE CONOSCIUTO, CON O SENZA CAPITALE INIZIALE A UN TASSO DI RIV CONOSCIUTO CHE MONTANTE AVRO' TRA X ANNI?",null,null,null,null,null,null,null,null,null,null,null,null,null,null,null,"INVESTENDO UN CAPITALE ANNUALE CONOSCIUTO, CON O SENZA CAPITALE INIZIALE A UN TASSO DI RIV CONOSCIUTO CHE MONTANTE AVRO' TRA X ANNI?",null,null,null,null,null,null,null,null,null,null,null,null,null,null,null,"INVESTENDO UN CAPITALE ANNUALE CONOSCIUTO, CON O SENZA CAPITALE INIZIALE A UN TASSO DI RIV CONOSCIUTO CHE MONTANTE AVRO' TRA X ANNI?",null,null,null,null,null,null,null,null,null,null,null,null,null,null,null,"INVESTENDO UN CAPITALE ANNUALE CONOSCIUTO, CON O SENZA CAPITALE INIZIALE A UN TASSO DI RIV CONOSCIUTO CHE MONTANTE AVRO' TRA X ANNI?",null,null,null,null,null,null,null,null,null,null,null,null,null,null,null,"INVESTENDO UN CAPITALE ANNUALE CONOSCIUTO, CON O SENZA CAPITALE INIZIALE A UN TASSO DI RIV CONOSCIUTO CHE MONTANTE AVRO' TRA X ANNI?",null,null,null,null,null,null,null,null,null,null,null,null,null,null,null,"INVESTENDO UN CAPITALE ANNUALE CONOSCIUTO, CON O SENZA CAPITALE INIZIALE A UN TASSO DI RIV CONOSCIUTO CHE MONTANTE AVRO' TRA X ANNI?",null,null,null,null,null,null,null,null,null,null,null,null,null,null,null,"INVESTENDO UN CAPITALE ANNUALE CONOSCIUTO, CON O SENZA CAPITALE INIZIALE A UN TASSO DI RIV CONOSCIUTO CHE MONTANTE AVRO' TRA X ANNI?",null,null,null,null,null,null,null,null,null,null,null,null,null,null,null,"INVESTENDO UN CAPITALE ANNUALE CONOSCIUTO, CON O SENZA CAPITALE INIZIALE A UN TASSO DI RIV CONOSCIUTO CHE MONTANTE AVRO' TRA X ANNI?",null,null,null,null,null,null,null,null,null,null,null,null,null,null,null,"INVESTENDO UN CAPITALE ANNUALE CONOSCIUTO, CON O SENZA CAPITALE INIZIALE A UN TASSO DI RIV CONOSCIUTO CHE MONTANTE AVRO' TRA X ANNI?",null,null,null,null,null,null,null,null,null,null,null,null,null,null,null,"INVESTENDO UN CAPITALE ANNUALE CONOSCIUTO, CON O SENZA CAPITALE INIZIALE A UN TASSO DI RIV CONOSCIUTO CHE MONTANTE AVRO' TRA X ANNI?",null,null,null,null,null,null,null,null,null,null,null,null,null,null,null,"INVESTENDO UN CAPITALE ANNUALE CONOSCIUTO, CON O SENZA CAPITALE INIZIALE A UN TASSO DI RIV CONOSCIUTO CHE MONTANTE AVRO' TRA X ANNI?",null,null,null,null,null,null,null,null,null,null,null,null,null,null,null,"INVESTENDO UN CAPITALE ANNUALE CONOSCIUTO, CON O SENZA CAPITALE INIZIALE A UN TASSO DI RIV CONOSCIUTO CHE MONTANTE AVRO' TRA X ANNI?",null,null,null,null,null,null,null,null,null,null,null,null,null,null,null,"INVESTENDO UN CAPITALE ANNUALE CONOSCIUTO, CON O SENZA CAPITALE INIZIALE A UN TASSO DI RIV CONOSCIUTO CHE MONTANTE AVRO' TRA X ANNI?",null,null,null,null,null,null,null,null,null,null,null,null,null,null,null,"INVESTENDO UN CAPITALE ANNUALE CONOSCIUTO, CON O SENZA CAPITALE INIZIALE A UN TASSO DI RIV CONOSCIUTO CHE MONTANTE AVRO' TRA X ANNI?",null,null,null,null,null,null,null,null,null,null,null,null,null,null,null,"INVESTENDO UN CAPITALE ANNUALE CONOSCIUTO, CON O SENZA CAPITALE INIZIALE A UN TASSO DI RIV CONOSCIUTO CHE MONTANTE AVRO' TRA X ANNI?",null,null,null,null,null,null,null,null,null,null,null,null,null,null,null,"INVESTENDO UN CAPITALE ANNUALE CONOSCIUTO, CON O SENZA CAPITALE INIZIALE A UN TASSO DI RIV CONOSCIUTO CHE MONTANTE AVRO' TRA X ANNI?",null,null,null,null,null,null,null,null,null,null,null,null,null,null,null,"INVESTENDO UN CAPITALE ANNUALE CONOSCIUTO, CON O SENZA CAPITALE INIZIALE A UN TASSO DI RIV CONOSCIUTO CHE MONTANTE AVRO' TRA X ANNI?",null,null,null,null,null,null,null,null,null,null,null,null,null,null,null,"INVESTENDO UN CAPITALE ANNUALE CONOSCIUTO, CON O SENZA CAPITALE INIZIALE A UN TASSO DI RIV CONOSCIUTO CHE MONTANTE AVRO' TRA X ANNI?",null,null,null,null,null,null,null,null,null,null,null,null,null,null,null,"INVESTENDO UN CAPITALE ANNUALE CONOSCIUTO, CON O SENZA CAPITALE INIZIALE A UN TASSO DI RIV CONOSCIUTO CHE MONTANTE AVRO' TRA X ANNI?",null,null,null,null,null,null,null,null,null,null,null,null,null,null,null,"INVESTENDO UN CAPITALE ANNUALE CONOSCIUTO, CON O SENZA CAPITALE INIZIALE A UN TASSO DI RIV CONOSCIUTO CHE MONTANTE AVRO' TRA X ANNI?",null,null,null,null,null,null,null,null,null,null,null,null,null,null,null,"INVESTENDO UN CAPITALE ANNUALE CONOSCIUTO, CON O SENZA CAPITALE INIZIALE A UN TASSO DI RIV CONOSCIUTO CHE MONTANTE AVRO' TRA X ANNI?",null,null,null,null,null,null,null,null,null,null,null,null,null,null,null,"INVESTENDO UN CAPITALE ANNUALE CONOSCIUTO, CON O SENZA CAPITALE INIZIALE A UN TASSO DI RIV CONOSCIUTO CHE MONTANTE AVRO' TRA X ANNI?",null,null,null,null,null,null,null,null,null,null,null,null,null,null,null,"INVESTENDO UN CAPITALE ANNUALE CONOSCIUTO, CON O SENZA CAPITALE INIZIALE A UN TASSO DI RIV CONOSCIUTO CHE MONTANTE AVRO' TRA X ANNI?",null,null,null,null,null,null,null,null,null,null,null,null,null,null,null,"INVESTENDO UN CAPITALE ANNUALE CONOSCIUTO, CON O SENZA CAPITALE INIZIALE A UN TASSO DI RIV CONOSCIUTO CHE MONTANTE AVRO' TRA X ANNI?",null,null,null,null,null,null,null,null,null,null,null,null,null,null,null,"INVESTENDO UN CAPITALE ANNUALE CONOSCIUTO, CON O SENZA CAPITALE INIZIALE A UN TASSO DI RIV CONOSCIUTO CHE MONTANTE AVRO' TRA X ANNI?",null,null,null,null,null,null,null,null,null,null,null,null,null,null,null,"INVESTENDO UN CAPITALE ANNUALE CONOSCIUTO, CON O SENZA CAPITALE INIZIALE A UN TASSO DI RIV CONOSCIUTO CHE MONTANTE AVRO' TRA X ANNI?",null,null,null,null,null,null,null,null,null,null,null,null,null,null,null,"INVESTENDO UN CAPITALE ANNUALE CONOSCIUTO, CON O SENZA CAPITALE INIZIALE A UN TASSO DI RIV CONOSCIUTO CHE MONTANTE AVRO' TRA X ANNI?",null,null,null,null,null,null,null,null,null,null,null,null,null,null,null,"INVESTENDO UN CAPITALE ANNUALE CONOSCIUTO, CON O SENZA CAPITALE INIZIALE A UN TASSO DI RIV CONOSCIUTO CHE MONTANTE AVRO' TRA X ANNI?",null,null,null,null,null,null,null,null,null,null,null,null,null,null,null,"INVESTENDO UN CAPITALE ANNUALE CONOSCIUTO, CON O SENZA CAPITALE INIZIALE A UN TASSO DI RIV CONOSCIUTO CHE MONTANTE AVRO' TRA X ANNI?",null,null,null,null,null,null,null,null,null,null,null,null,null,null,null,"INVESTENDO UN CAPITALE ANNUALE CONOSCIUTO, CON O SENZA CAPITALE INIZIALE A UN TASSO DI RIV CONOSCIUTO CHE MONTANTE AVRO' TRA X ANNI?",null,null,null,null,null,null,null,null,null,null,null,null,null,null,null,"INVESTENDO UN CAPITALE ANNUALE CONOSCIUTO, CON O SENZA CAPITALE INIZIALE A UN TASSO DI RIV CONOSCIUTO CHE MONTANTE AVRO' TRA X ANNI?",null,null,null,null,null,null,null,null,null,null,null,null,null,null,null,"INVESTENDO UN CAPITALE ANNUALE CONOSCIUTO, CON O SENZA CAPITALE INIZIALE A UN TASSO DI RIV CONOSCIUTO CHE MONTANTE AVRO' TRA X ANNI?",null,null,null,null,null,null,null,null,null,null,null,null,null,null,null,"INVESTENDO UN CAPITALE ANNUALE CONOSCIUTO, CON O SENZA CAPITALE INIZIALE A UN TASSO DI RIV CONOSCIUTO CHE MONTANTE AVRO' TRA X ANNI?",null,null,null,null,null,null,null,null,null,null,null,null,null,null,null,"INVESTENDO UN CAPITALE ANNUALE CONOSCIUTO, CON O SENZA CAPITALE INIZIALE A UN TASSO DI RIV CONOSCIUTO CHE MONTANTE AVRO' TRA X ANNI?",null,null,null,null,null,null,null,null,null,null,null,null,null,null,null,"INVESTENDO UN CAPITALE ANNUALE CONOSCIUTO, CON O SENZA CAPITALE INIZIALE A UN TASSO DI RIV CONOSCIUTO CHE MONTANTE AVRO' TRA X ANNI?",null,null,null,null,null,null,null,null,null,null,null,null,null,null,null,"INVESTENDO UN CAPITALE ANNUALE CONOSCIUTO, CON O SENZA CAPITALE INIZIALE A UN TASSO DI RIV CONOSCIUTO CHE MONTANTE AVRO' TRA X ANNI?",null,null,null,null,null,null,null,null,null,null,null,null,null,null,null,"INVESTENDO UN CAPITALE ANNUALE CONOSCIUTO, CON O SENZA CAPITALE INIZIALE A UN TASSO DI RIV CONOSCIUTO CHE MONTANTE AVRO' TRA X ANNI?",null,null,null,null,null,null,null,null,null,null,null,null,null,null,null,"INVESTENDO UN CAPITALE ANNUALE CONOSCIUTO, CON O SENZA CAPITALE INIZIALE A UN TASSO DI RIV CONOSCIUTO CHE MONTANTE AVRO' TRA X ANNI?",null,null,null,null,null,null,null,null,null,null,null,null,null,null,null,"INVESTENDO UN CAPITALE ANNUALE CONOSCIUTO, CON O SENZA CAPITALE INIZIALE A UN TASSO DI RIV CONOSCIUTO CHE MONTANTE AVRO' TRA X ANNI?",null,null,null,null,null,null,null,null,null,null,null,null,null,null,null,"INVESTENDO UN CAPITALE ANNUALE CONOSCIUTO, CON O SENZA CAPITALE INIZIALE A UN TASSO DI RIV CONOSCIUTO CHE MONTANTE AVRO' TRA X ANNI?",null,null,null,null,null,null,null,null,null,null,null,null,null,null,null,"INVESTENDO UN CAPITALE ANNUALE CONOSCIUTO, CON O SENZA CAPITALE INIZIALE A UN TASSO DI RIV CONOSCIUTO CHE MONTANTE AVRO' TRA X ANNI?",null,null,null,null,null,null,null,null,null,null,null,null,null,null,null,"INVESTENDO UN CAPITALE ANNUALE CONOSCIUTO, CON O SENZA CAPITALE INIZIALE A UN TASSO DI RIV CONOSCIUTO CHE MONTANTE AVRO' TRA X ANNI?",null,null,null,null,null,null,null,null,null,null,null,null,null,null,null,"INVESTENDO UN CAPITALE ANNUALE CONOSCIUTO, CON O SENZA CAPITALE INIZIALE A UN TASSO DI RIV CONOSCIUTO CHE MONTANTE AVRO' TRA X ANNI?",null,null,null,null,null,null,null,null,null,null,null,null,null,null,null,"INVESTENDO UN CAPITALE ANNUALE CONOSCIUTO, CON O SENZA CAPITALE INIZIALE A UN TASSO DI RIV CONOSCIUTO CHE MONTANTE AVRO' TRA X ANNI?",null,null,null,null,null,null,null,null,null,null,null,null,null,null,null,"INVESTENDO UN CAPITALE ANNUALE CONOSCIUTO, CON O SENZA CAPITALE INIZIALE A UN TASSO DI RIV CONOSCIUTO CHE MONTANTE AVRO' TRA X ANNI?",null,null,null,null,null,null,null,null,null,null,null,null,null,null,null,"INVESTENDO UN CAPITALE ANNUALE CONOSCIUTO, CON O SENZA CAPITALE INIZIALE A UN TASSO DI RIV CONOSCIUTO CHE MONTANTE AVRO' TRA X ANNI?",null,null,null,null,null,null,null,null,null,null,null,null,null,null,null,"INVESTENDO UN CAPITALE ANNUALE CONOSCIUTO, CON O SENZA CAPITALE INIZIALE A UN TASSO DI RIV CONOSCIUTO CHE MONTANTE AVRO' TRA X ANNI?",null,null,null,null,null,null,null,null,null,null,null,null,null,null,null,"INVESTENDO UN CAPITALE ANNUALE CONOSCIUTO, CON O SENZA CAPITALE INIZIALE A UN TASSO DI RIV CONOSCIUTO CHE MONTANTE AVRO' TRA X ANNI?",null,null,null,null,null,null,null,null,null,null,null,null,null,null,null,"INVESTENDO UN CAPITALE ANNUALE CONOSCIUTO, CON O SENZA CAPITALE INIZIALE A UN TASSO DI RIV CONOSCIUTO CHE MONTANTE AVRO' TRA X ANNI?",null,null,null,null,null,null,null,null,null,null,null,null,null,null,null,"INVESTENDO UN CAPITALE ANNUALE CONOSCIUTO, CON O SENZA CAPITALE INIZIALE A UN TASSO DI RIV CONOSCIUTO CHE MONTANTE AVRO' TRA X ANNI?",null,null,null,null,null,null,null,null,null,null,null,null,null,null,null,"INVESTENDO UN CAPITALE ANNUALE CONOSCIUTO, CON O SENZA CAPITALE INIZIALE A UN TASSO DI RIV CONOSCIUTO CHE MONTANTE AVRO' TRA X ANNI?",null,null,null,null,null,null,null,null,null,null,null,null,null,null,null,"INVESTENDO UN CAPITALE ANNUALE CONOSCIUTO, CON O SENZA CAPITALE INIZIALE A UN TASSO DI RIV CONOSCIUTO CHE MONTANTE AVRO' TRA X ANNI?",null,null,null,null,null,null,null,null,null,null,null,null,null,null,null,"INVESTENDO UN CAPITALE ANNUALE CONOSCIUTO, CON O SENZA CAPITALE INIZIALE A UN TASSO DI RIV CONOSCIUTO CHE MONTANTE AVRO' TRA X ANNI?",null,null,null,null,null,null,null,null,null,null,null,null,null,null,null,"INVESTENDO UN CAPITALE ANNUALE CONOSCIUTO, CON O SENZA CAPITALE INIZIALE A UN TASSO DI RIV CONOSCIUTO CHE MONTANTE AVRO' TRA X ANNI?",null,null,null,null,null,null,null,null,null,null,null,null,null,null,null,"INVESTENDO UN CAPITALE ANNUALE CONOSCIUTO, CON O SENZA CAPITALE INIZIALE A UN TASSO DI RIV CONOSCIUTO CHE MONTANTE AVRO' TRA X ANNI?",null,null,null,null,null,null,null,null,null,null,null,null,null,null,null,"INVESTENDO UN CAPITALE ANNUALE CONOSCIUTO, CON O SENZA CAPITALE INIZIALE A UN TASSO DI RIV CONOSCIUTO CHE MONTANTE AVRO' TRA X ANNI?",null,null,null,null,null,null,null,null,null,null,null,null,null,null,null,"INVESTENDO UN CAPITALE ANNUALE CONOSCIUTO, CON O SENZA CAPITALE INIZIALE A UN TASSO DI RIV CONOSCIUTO CHE MONTANTE AVRO' TRA X ANNI?",null,null,null,null,null,null,null,null,null,null,null,null,null,null,null,"INVESTENDO UN CAPITALE ANNUALE CONOSCIUTO, CON O SENZA CAPITALE INIZIALE A UN TASSO DI RIV CONOSCIUTO CHE MONTANTE AVRO' TRA X ANNI?",null,null,null,null,null,null,null,null,null,null,null,null,null,null,null,"INVESTENDO UN CAPITALE ANNUALE CONOSCIUTO, CON O SENZA CAPITALE INIZIALE A UN TASSO DI RIV CONOSCIUTO CHE MONTANTE AVRO' TRA X ANNI?",null,null,null,null,null,null,null,null,null,null,null,null,null,null,null,"INVESTENDO UN CAPITALE ANNUALE CONOSCIUTO, CON O SENZA CAPITALE INIZIALE A UN TASSO DI RIV CONOSCIUTO CHE MONTANTE AVRO' TRA X ANNI?",null,null,null,null,null,null,null,null,null,null,null,null,null,null,null,"INVESTENDO UN CAPITALE ANNUALE CONOSCIUTO, CON O SENZA CAPITALE INIZIALE A UN TASSO DI RIV CONOSCIUTO CHE MONTANTE AVRO' TRA X ANNI?",null,null,null,null,null,null,null,null,null,null,null,null,null,null,null,"INVESTENDO UN CAPITALE ANNUALE CONOSCIUTO, CON O SENZA CAPITALE INIZIALE A UN TASSO DI RIV CONOSCIUTO CHE MONTANTE AVRO' TRA X ANNI?",null,null,null,null,null,null,null,null,null,null,null,null,null,null,null,"INVESTENDO UN CAPITALE ANNUALE CONOSCIUTO, CON O SENZA CAPITALE INIZIALE A UN TASSO DI RIV CONOSCIUTO CHE MONTANTE AVRO' TRA X ANNI?",null,null,null,null,null,null,null,null,null,null,null,null,null,null,null,"INVESTENDO UN CAPITALE ANNUALE CONOSCIUTO, CON O SENZA CAPITALE INIZIALE A UN TASSO DI RIV CONOSCIUTO CHE MONTANTE AVRO' TRA X ANNI?",null,null,null,null,null,null,null,null,null,null,null,null,null,null,null,"INVESTENDO UN CAPITALE ANNUALE CONOSCIUTO, CON O SENZA CAPITALE INIZIALE A UN TASSO DI RIV CONOSCIUTO CHE MONTANTE AVRO' TRA X ANNI?",null,null,null,null,null,null,null,null,null,null,null,null,null,null,null,"INVESTENDO UN CAPITALE ANNUALE CONOSCIUTO, CON O SENZA CAPITALE INIZIALE A UN TASSO DI RIV CONOSCIUTO CHE MONTANTE AVRO' TRA X ANNI?",null,null,null,null,null,null,null,null,null,null,null,null,null,null,null,"INVESTENDO UN CAPITALE ANNUALE CONOSCIUTO, CON O SENZA CAPITALE INIZIALE A UN TASSO DI RIV CONOSCIUTO CHE MONTANTE AVRO' TRA X ANNI?",null,null,null,null,null,null,null,null,null,null,null,null,null,null,null,"INVESTENDO UN CAPITALE ANNUALE CONOSCIUTO, CON O SENZA CAPITALE INIZIALE A UN TASSO DI RIV CONOSCIUTO CHE MONTANTE AVRO' TRA X ANNI?",null,null,null,null,null,null,null,null,null,null,null,null,null,null,null,"INVESTENDO UN CAPITALE ANNUALE CONOSCIUTO, CON O SENZA CAPITALE INIZIALE A UN TASSO DI RIV CONOSCIUTO CHE MONTANTE AVRO' TRA X ANNI?",null,null,null,null,null,null,null,null,null,null,null,null,null,null,null,"INVESTENDO UN CAPITALE ANNUALE CONOSCIUTO, CON O SENZA CAPITALE INIZIALE A UN TASSO DI RIV CONOSCIUTO CHE MONTANTE AVRO' TRA X ANNI?",null,null,null,null,null,null,null,null,null,null,null,null,null,null,null,"INVESTENDO UN CAPITALE ANNUALE CONOSCIUTO, CON O SENZA CAPITALE INIZIALE A UN TASSO DI RIV CONOSCIUTO CHE MONTANTE AVRO' TRA X ANNI?",null,null,null,null,null,null,null,null,null,null,null,null,null,null,null,"INVESTENDO UN CAPITALE ANNUALE CONOSCIUTO, CON O SENZA CAPITALE INIZIALE A UN TASSO DI RIV CONOSCIUTO CHE MONTANTE AVRO' TRA X ANNI?",null,null,null,null,null,null,null,null,null,null,null,null,null,null,null,"INVESTENDO UN CAPITALE ANNUALE CONOSCIUTO, CON O SENZA CAPITALE INIZIALE A UN TASSO DI RIV CONOSCIUTO CHE MONTANTE AVRO' TRA X ANNI?",null,null,null,null,null,null,null,null,null,null,null,null,null,null,null,"INVESTENDO UN CAPITALE ANNUALE CONOSCIUTO, CON O SENZA CAPITALE INIZIALE A UN TASSO DI RIV CONOSCIUTO CHE MONTANTE AVRO' TRA X ANNI?",null,null,null,null,null,null,null,null,null,null,null,null,null,null,null,"INVESTENDO UN CAPITALE ANNUALE CONOSCIUTO, CON O SENZA CAPITALE INIZIALE A UN TASSO DI RIV CONOSCIUTO CHE MONTANTE AVRO' TRA X ANNI?",null,null,null,null,null,null,null,null,null,null,null,null,null,null,null,"INVESTENDO UN CAPITALE ANNUALE CONOSCIUTO, CON O SENZA CAPITALE INIZIALE A UN TASSO DI RIV CONOSCIUTO CHE MONTANTE AVRO' TRA X ANNI?",null,null,null,null,null,null,null,null,null,null,null,null,null,null,null,"INVESTENDO UN CAPITALE ANNUALE CONOSCIUTO, CON O SENZA CAPITALE INIZIALE A UN TASSO DI RIV CONOSCIUTO CHE MONTANTE AVRO' TRA X ANNI?",null,null,null,null,null,null,null,null,null,null,null,null,null,null,null,"INVESTENDO UN CAPITALE ANNUALE CONOSCIUTO, CON O SENZA CAPITALE INIZIALE A UN TASSO DI RIV CONOSCIUTO CHE MONTANTE AVRO' TRA X ANNI?",null,null,null,null,null,null,null,null,null,null,null,null,null,null,null,"INVESTENDO UN CAPITALE ANNUALE CONOSCIUTO, CON O SENZA CAPITALE INIZIALE A UN TASSO DI RIV CONOSCIUTO CHE MONTANTE AVRO' TRA X ANNI?",null,null,null,null,null,null,null,null,null,null,null,null,null,null,null,"INVESTENDO UN CAPITALE ANNUALE CONOSCIUTO, CON O SENZA CAPITALE INIZIALE A UN TASSO DI RIV CONOSCIUTO CHE MONTANTE AVRO' TRA X ANNI?",null,null,null,null,null,null,null,null,null,null,null,null,null,null,null,"INVESTENDO UN CAPITALE ANNUALE CONOSCIUTO, CON O SENZA CAPITALE INIZIALE A UN TASSO DI RIV CONOSCIUTO CHE MONTANTE AVRO' TRA X ANNI?",null,null,null,null,null,null,null,null,null,null,null,null,null,null,null,"INVESTENDO UN CAPITALE ANNUALE CONOSCIUTO, CON O SENZA CAPITALE INIZIALE A UN TASSO DI RIV CONOSCIUTO CHE MONTANTE AVRO' TRA X ANNI?",null,null,null,null,null,null,null,null,null,null,null,null,null,null,null,"INVESTENDO UN CAPITALE ANNUALE CONOSCIUTO, CON O SENZA CAPITALE INIZIALE A UN TASSO DI RIV CONOSCIUTO CHE MONTANTE AVRO' TRA X ANNI?",null,null,null,null,null,null,null,null,null,null,null,null,null,null,null,"INVESTENDO UN CAPITALE ANNUALE CONOSCIUTO, CON O SENZA CAPITALE INIZIALE A UN TASSO DI RIV CONOSCIUTO CHE MONTANTE AVRO' TRA X ANNI?",null,null,null,null,null,null,null,null,null,null,null,null,null,null,null,"INVESTENDO UN CAPITALE ANNUALE CONOSCIUTO, CON O SENZA CAPITALE INIZIALE A UN TASSO DI RIV CONOSCIUTO CHE MONTANTE AVRO' TRA X ANNI?",null,null,null,null,null,null,null,null,null,null,null,null,null,null,null,"INVESTENDO UN CAPITALE ANNUALE CONOSCIUTO, CON O SENZA CAPITALE INIZIALE A UN TASSO DI RIV CONOSCIUTO CHE MONTANTE AVRO' TRA X ANNI?",null,null,null,null,null,null,null,null,null,null,null,null,null,null,null,"INVESTENDO UN CAPITALE ANNUALE CONOSCIUTO, CON O SENZA CAPITALE INIZIALE A UN TASSO DI RIV CONOSCIUTO CHE MONTANTE AVRO' TRA X ANNI?",null,null,null,null,null,null,null,null,null,null,null,null,null,null,null,"INVESTENDO UN CAPITALE ANNUALE CONOSCIUTO, CON O SENZA CAPITALE INIZIALE A UN TASSO DI RIV CONOSCIUTO CHE MONTANTE AVRO' TRA X ANNI?",null,null,null,null,null,null,null,null,null,null,null,null,null,null,null,"INVESTENDO UN CAPITALE ANNUALE CONOSCIUTO, CON O SENZA CAPITALE INIZIALE A UN TASSO DI RIV CONOSCIUTO CHE MONTANTE AVRO' TRA X ANNI?",null,null,null,null,null,null,null,null,null,null,null,null,null,null,null,"INVESTENDO UN CAPITALE ANNUALE CONOSCIUTO, CON O SENZA CAPITALE INIZIALE A UN TASSO DI RIV CONOSCIUTO CHE MONTANTE AVRO' TRA X ANNI?",null,null,null,null,null,null,null,null,null,null,null,null,null,null,null,"INVESTENDO UN CAPITALE ANNUALE CONOSCIUTO, CON O SENZA CAPITALE INIZIALE A UN TASSO DI RIV CONOSCIUTO CHE MONTANTE AVRO' TRA X ANNI?",null,null,null,null,null,null,null,null,null,null,null,null,null,null,null,"INVESTENDO UN CAPITALE ANNUALE CONOSCIUTO, CON O SENZA CAPITALE INIZIALE A UN TASSO DI RIV CONOSCIUTO CHE MONTANTE AVRO' TRA X ANNI?",null,null,null,null,null,null,null,null,null,null,null,null,null,null,null,"INVESTENDO UN CAPITALE ANNUALE CONOSCIUTO, CON O SENZA CAPITALE INIZIALE A UN TASSO DI RIV CONOSCIUTO CHE MONTANTE AVRO' TRA X ANNI?",null,null,null,null,null,null,null,null,null,null,null,null,null,null,null,"INVESTENDO UN CAPITALE ANNUALE CONOSCIUTO, CON O SENZA CAPITALE INIZIALE A UN TASSO DI RIV CONOSCIUTO CHE MONTANTE AVRO' TRA X ANNI?",null,null,null,null,null,null,null,null,null,null,null,null,null,null,null,"INVESTENDO UN CAPITALE ANNUALE CONOSCIUTO, CON O SENZA CAPITALE INIZIALE A UN TASSO DI RIV CONOSCIUTO CHE MONTANTE AVRO' TRA X ANNI?",null,null,null,null,null,null,null,null,null,null,null,null,null,null,null,"INVESTENDO UN CAPITALE ANNUALE CONOSCIUTO, CON O SENZA CAPITALE INIZIALE A UN TASSO DI RIV CONOSCIUTO CHE MONTANTE AVRO' TRA X ANNI?",null,null,null,null,null,null,null,null,null,null,null,null,null,null,null,"INVESTENDO UN CAPITALE ANNUALE CONOSCIUTO, CON O SENZA CAPITALE INIZIALE A UN TASSO DI RIV CONOSCIUTO CHE MONTANTE AVRO' TRA X ANNI?",null,null,null,null,null,null,null,null,null,null,null,null,null,null,null,"INVESTENDO UN CAPITALE ANNUALE CONOSCIUTO, CON O SENZA CAPITALE INIZIALE A UN TASSO DI RIV CONOSCIUTO CHE MONTANTE AVRO' TRA X ANNI?",null,null,null,null,null,null,null,null,null,null,null,null,null,null,null,"INVESTENDO UN CAPITALE ANNUALE CONOSCIUTO, CON O SENZA CAPITALE INIZIALE A UN TASSO DI RIV CONOSCIUTO CHE MONTANTE AVRO' TRA X ANNI?",null,null,null,null,null,null,null,null,null,null,null,null,null,null,null,"INVESTENDO UN CAPITALE ANNUALE CONOSCIUTO, CON O SENZA CAPITALE INIZIALE A UN TASSO DI RIV CONOSCIUTO CHE MONTANTE AVRO' TRA X ANNI?",null,null,null,null,null,null,null,null,null,null,null,null,null,null,null,"INVESTENDO UN CAPITALE ANNUALE CONOSCIUTO, CON O SENZA CAPITALE INIZIALE A UN TASSO DI RIV CONOSCIUTO CHE MONTANTE AVRO' TRA X ANNI?",null,null,null,null,null,null,null,null,null,null,null,null,null,null,null,"INVESTENDO UN CAPITALE ANNUALE CONOSCIUTO, CON O SENZA CAPITALE INIZIALE A UN TASSO DI RIV CONOSCIUTO CHE MONTANTE AVRO' TRA X ANNI?",null,null,null,null,null,null,null,null,null,null,null,null,null,null,null,"INVESTENDO UN CAPITALE ANNUALE CONOSCIUTO, CON O SENZA CAPITALE INIZIALE A UN TASSO DI RIV CONOSCIUTO CHE MONTANTE AVRO' TRA X ANNI?",null,null,null,null,null,null,null,null,null,null,null,null,null,null,null,"INVESTENDO UN CAPITALE ANNUALE CONOSCIUTO, CON O SENZA CAPITALE INIZIALE A UN TASSO DI RIV CONOSCIUTO CHE MONTANTE AVRO' TRA X ANNI?",null,null,null,null,null,null,null,null,null,null,null,null,null,null,null,"INVESTENDO UN CAPITALE ANNUALE CONOSCIUTO, CON O SENZA CAPITALE INIZIALE A UN TASSO DI RIV CONOSCIUTO CHE MONTANTE AVRO' TRA X ANNI?",null,null,null,null,null,null,null,null,null,null,null,null,null,null,null,"INVESTENDO UN CAPITALE ANNUALE CONOSCIUTO, CON O SENZA CAPITALE INIZIALE A UN TASSO DI RIV CONOSCIUTO CHE MONTANTE AVRO' TRA X ANNI?",null,null,null,null,null,null,null,null,null,null,null,null,null,null,null,"INVESTENDO UN CAPITALE ANNUALE CONOSCIUTO, CON O SENZA CAPITALE INIZIALE A UN TASSO DI RIV CONOSCIUTO CHE MONTANTE AVRO' TRA X ANNI?",null,null,null,null,null,null,null,null,null,null,null,null,null,null,null,"INVESTENDO UN CAPITALE ANNUALE CONOSCIUTO, CON O SENZA CAPITALE INIZIALE A UN TASSO DI RIV CONOSCIUTO CHE MONTANTE AVRO' TRA X ANNI?",null,null,null,null,null,null,null,null,null,null,null,null,null,null,null,"INVESTENDO UN CAPITALE ANNUALE CONOSCIUTO, CON O SENZA CAPITALE INIZIALE A UN TASSO DI RIV CONOSCIUTO CHE MONTANTE AVRO' TRA X ANNI?",null,null,null,null,null,null,null,null,null,null,null,null,null,null,null,"INVESTENDO UN CAPITALE ANNUALE CONOSCIUTO, CON O SENZA CAPITALE INIZIALE A UN TASSO DI RIV CONOSCIUTO CHE MONTANTE AVRO' TRA X ANNI?",null,null,null,null,null,null,null,null,null,null,null,null,null,null,null,"INVESTENDO UN CAPITALE ANNUALE CONOSCIUTO, CON O SENZA CAPITALE INIZIALE A UN TASSO DI RIV CONOSCIUTO CHE MONTANTE AVRO' TRA X ANNI?",null,null,null,null,null,null,null,null,null,null,null,null,null,null,null,"INVESTENDO UN CAPITALE ANNUALE CONOSCIUTO, CON O SENZA CAPITALE INIZIALE A UN TASSO DI RIV CONOSCIUTO CHE MONTANTE AVRO' TRA X ANNI?",null,null,null,null,null,null,null,null,null,null,null,null,null,null,null,"INVESTENDO UN CAPITALE ANNUALE CONOSCIUTO, CON O SENZA CAPITALE INIZIALE A UN TASSO DI RIV CONOSCIUTO CHE MONTANTE AVRO' TRA X ANNI?",null,null,null,null,null,null,null,null,null,null,null,null,null,null,null,"INVESTENDO UN CAPITALE ANNUALE CONOSCIUTO, CON O SENZA CAPITALE INIZIALE A UN TASSO DI RIV CONOSCIUTO CHE MONTANTE AVRO' TRA X ANNI?",null,null,null,null,null,null,null,null,null,null,null,null,null,null,null,"INVESTENDO UN CAPITALE ANNUALE CONOSCIUTO, CON O SENZA CAPITALE INIZIALE A UN TASSO DI RIV CONOSCIUTO CHE MONTANTE AVRO' TRA X ANNI?",null,null,null,null,null,null,null,null,null,null,null,null,null,null,null,"INVESTENDO UN CAPITALE ANNUALE CONOSCIUTO, CON O SENZA CAPITALE INIZIALE A UN TASSO DI RIV CONOSCIUTO CHE MONTANTE AVRO' TRA X ANNI?",null,null,null,null,null,null,null,null,null,null,null,null,null,null,null,"INVESTENDO UN CAPITALE ANNUALE CONOSCIUTO, CON O SENZA CAPITALE INIZIALE A UN TASSO DI RIV CONOSCIUTO CHE MONTANTE AVRO' TRA X ANNI?",null,null,null,null,null,null,null,null,null,null,null,null,null,null,null,"INVESTENDO UN CAPITALE ANNUALE CONOSCIUTO, CON O SENZA CAPITALE INIZIALE A UN TASSO DI RIV CONOSCIUTO CHE MONTANTE AVRO' TRA X ANNI?",null,null,null,null,null,null,null,null,null,null,null,null,null,null,null,"INVESTENDO UN CAPITALE ANNUALE CONOSCIUTO, CON O SENZA CAPITALE INIZIALE A UN TASSO DI RIV CONOSCIUTO CHE MONTANTE AVRO' TRA X ANNI?",null,null,null,null,null,null,null,null,null,null,null,null,null,null,null,"INVESTENDO UN CAPITALE ANNUALE CONOSCIUTO, CON O SENZA CAPITALE INIZIALE A UN TASSO DI RIV CONOSCIUTO CHE MONTANTE AVRO' TRA X ANNI?",null,null,null,null,null,null,null,null,null,null,null,null,null,null,null,"INVESTENDO UN CAPITALE ANNUALE CONOSCIUTO, CON O SENZA CAPITALE INIZIALE A UN TASSO DI RIV CONOSCIUTO CHE MONTANTE AVRO' TRA X ANNI?",null,null,null,null,null,null,null,null,null,null,null,null,null,null,null,"INVESTENDO UN CAPITALE ANNUALE CONOSCIUTO, CON O SENZA CAPITALE INIZIALE A UN TASSO DI RIV CONOSCIUTO CHE MONTANTE AVRO' TRA X ANNI?",null,null,null,null,null,null,null,null,null,null,null,null,null,null,null,"INVESTENDO UN CAPITALE ANNUALE CONOSCIUTO, CON O SENZA CAPITALE INIZIALE A UN TASSO DI RIV CONOSCIUTO CHE MONTANTE AVRO' TRA X ANNI?",null,null,null,null,null,null,null,null,null,null,null,null,null,null,null,"INVESTENDO UN CAPITALE ANNUALE CONOSCIUTO, CON O SENZA CAPITALE INIZIALE A UN TASSO DI RIV CONOSCIUTO CHE MONTANTE AVRO' TRA X ANNI?",null,null,null,null,null,null,null,null,null,null,null,null,null,null,null,"INVESTENDO UN CAPITALE ANNUALE CONOSCIUTO, CON O SENZA CAPITALE INIZIALE A UN TASSO DI RIV CONOSCIUTO CHE MONTANTE AVRO' TRA X ANNI?",null,null,null,null,null,null,null,null,null,null,null,null,null,null,null,"INVESTENDO UN CAPITALE ANNUALE CONOSCIUTO, CON O SENZA CAPITALE INIZIALE A UN TASSO DI RIV CONOSCIUTO CHE MONTANTE AVRO' TRA X ANNI?",null,null,null,null,null,null,null,null,null,null,null,null,null,null,null,"INVESTENDO UN CAPITALE ANNUALE CONOSCIUTO, CON O SENZA CAPITALE INIZIALE A UN TASSO DI RIV CONOSCIUTO CHE MONTANTE AVRO' TRA X ANNI?",null,null,null,null,null,null,null,null,null,null,null,null,null,null,null,"INVESTENDO UN CAPITALE ANNUALE CONOSCIUTO, CON O SENZA CAPITALE INIZIALE A UN TASSO DI RIV CONOSCIUTO CHE MONTANTE AVRO' TRA X ANNI?",null,null,null,null,null,null,null,null,null,null,null,null,null,null,null,"INVESTENDO UN CAPITALE ANNUALE CONOSCIUTO, CON O SENZA CAPITALE INIZIALE A UN TASSO DI RIV CONOSCIUTO CHE MONTANTE AVRO' TRA X ANNI?",null,null,null,null,null,null,null,null,null,null,null,null,null,null,null,"INVESTENDO UN CAPITALE ANNUALE CONOSCIUTO, CON O SENZA CAPITALE INIZIALE A UN TASSO DI RIV CONOSCIUTO CHE MONTANTE AVRO' TRA X ANNI?",null,null,null,null,null,null,null,null,null,null,null,null,null,null,null,"INVESTENDO UN CAPITALE ANNUALE CONOSCIUTO, CON O SENZA CAPITALE INIZIALE A UN TASSO DI RIV CONOSCIUTO CHE MONTANTE AVRO' TRA X ANNI?",null,null,null,null,null,null,null,null,null,null,null,null,null,null,null,"INVESTENDO UN CAPITALE ANNUALE CONOSCIUTO, CON O SENZA CAPITALE INIZIALE A UN TASSO DI RIV CONOSCIUTO CHE MONTANTE AVRO' TRA X ANNI?",null,null,null,null,null,null,null,null,null,null,null,null,null,null,null,"INVESTENDO UN CAPITALE ANNUALE CONOSCIUTO, CON O SENZA CAPITALE INIZIALE A UN TASSO DI RIV CONOSCIUTO CHE MONTANTE AVRO' TRA X ANNI?",null,null,null,null,null,null,null,null,null,null,null,null,null,null,null,"INVESTENDO UN CAPITALE ANNUALE CONOSCIUTO, CON O SENZA CAPITALE INIZIALE A UN TASSO DI RIV CONOSCIUTO CHE MONTANTE AVRO' TRA X ANNI?",null,null,null,null,null,null,null,null,null,null,null,null,null,null,null,"INVESTENDO UN CAPITALE ANNUALE CONOSCIUTO, CON O SENZA CAPITALE INIZIALE A UN TASSO DI RIV CONOSCIUTO CHE MONTANTE AVRO' TRA X ANNI?",null,null,null,null,null,null,null,null,null,null,null,null,null,null,null,"INVESTENDO UN CAPITALE ANNUALE CONOSCIUTO, CON O SENZA CAPITALE INIZIALE A UN TASSO DI RIV CONOSCIUTO CHE MONTANTE AVRO' TRA X ANNI?",null,null,null,null,null,null,null,null,null,null,null,null,null,null,null,"INVESTENDO UN CAPITALE ANNUALE CONOSCIUTO, CON O SENZA CAPITALE INIZIALE A UN TASSO DI RIV CONOSCIUTO CHE MONTANTE AVRO' TRA X ANNI?",null,null,null,null,null,null,null,null,null,null,null,null,null,null,null,"INVESTENDO UN CAPITALE ANNUALE CONOSCIUTO, CON O SENZA CAPITALE INIZIALE A UN TASSO DI RIV CONOSCIUTO CHE MONTANTE AVRO' TRA X ANNI?",null,null,null,null,null,null,null,null,null,null,null,null,null,null,null,"INVESTENDO UN CAPITALE ANNUALE CONOSCIUTO, CON O SENZA CAPITALE INIZIALE A UN TASSO DI RIV CONOSCIUTO CHE MONTANTE AVRO' TRA X ANNI?",null,null,null,null,null,null,null,null,null,null,null,null,null,null,null,"INVESTENDO UN CAPITALE ANNUALE CONOSCIUTO, CON O SENZA CAPITALE INIZIALE A UN TASSO DI RIV CONOSCIUTO CHE MONTANTE AVRO' TRA X ANNI?",null,null,null,null,null,null,null,null,null,null,null,null,null,null,null,"INVESTENDO UN CAPITALE ANNUALE CONOSCIUTO, CON O SENZA CAPITALE INIZIALE A UN TASSO DI RIV CONOSCIUTO CHE MONTANTE AVRO' TRA X ANNI?",null,null,null,null,null,null,null,null,null,null,null,null,null,null,null,"INVESTENDO UN CAPITALE ANNUALE CONOSCIUTO, CON O SENZA CAPITALE INIZIALE A UN TASSO DI RIV CONOSCIUTO CHE MONTANTE AVRO' TRA X ANNI?",null,null,null,null,null,null,null,null,null,null,null,null,null,null,null,"INVESTENDO UN CAPITALE ANNUALE CONOSCIUTO, CON O SENZA CAPITALE INIZIALE A UN TASSO DI RIV CONOSCIUTO CHE MONTANTE AVRO' TRA X ANNI?",null,null,null,null,null,null,null,null,null,null,null,null,null,null,null,"INVESTENDO UN CAPITALE ANNUALE CONOSCIUTO, CON O SENZA CAPITALE INIZIALE A UN TASSO DI RIV CONOSCIUTO CHE MONTANTE AVRO' TRA X ANNI?",null,null,null,null,null,null,null,null,null,null,null,null,null,null,null,"INVESTENDO UN CAPITALE ANNUALE CONOSCIUTO, CON O SENZA CAPITALE INIZIALE A UN TASSO DI RIV CONOSCIUTO CHE MONTANTE AVRO' TRA X ANNI?",null,null,null,null,null,null,null,null,null,null,null,null,null,null,null,"INVESTENDO UN CAPITALE ANNUALE CONOSCIUTO, CON O SENZA CAPITALE INIZIALE A UN TASSO DI RIV CONOSCIUTO CHE MONTANTE AVRO' TRA X ANNI?",null,null,null,null,null,null,null,null,null,null,null,null,null,null,null,"INVESTENDO UN CAPITALE ANNUALE CONOSCIUTO, CON O SENZA CAPITALE INIZIALE A UN TASSO DI RIV CONOSCIUTO CHE MONTANTE AVRO' TRA X ANNI?",null,null,null,null,null,null,null,null,null,null,null,null,null,null,null,"INVESTENDO UN CAPITALE ANNUALE CONOSCIUTO, CON O SENZA CAPITALE INIZIALE A UN TASSO DI RIV CONOSCIUTO CHE MONTANTE AVRO' TRA X ANNI?",null,null,null,null,null,null,null,null,null,null,null,null,null,null,null,"INVESTENDO UN CAPITALE ANNUALE CONOSCIUTO, CON O SENZA CAPITALE INIZIALE A UN TASSO DI RIV CONOSCIUTO CHE MONTANTE AVRO' TRA X ANNI?",null,null,null,null,null,null,null,null,null,null,null,null,null,null,null,"INVESTENDO UN CAPITALE ANNUALE CONOSCIUTO, CON O SENZA CAPITALE INIZIALE A UN TASSO DI RIV CONOSCIUTO CHE MONTANTE AVRO' TRA X ANNI?",null,null,null,null,null,null,null,null,null,null,null,null,null,null,null,"INVESTENDO UN CAPITALE ANNUALE CONOSCIUTO, CON O SENZA CAPITALE INIZIALE A UN TASSO DI RIV CONOSCIUTO CHE MONTANTE AVRO' TRA X ANNI?",null,null,null,null,null,null,null,null,null,null,null,null,null,null,null,"INVESTENDO UN CAPITALE ANNUALE CONOSCIUTO, CON O SENZA CAPITALE INIZIALE A UN TASSO DI RIV CONOSCIUTO CHE MONTANTE AVRO' TRA X ANNI?",null,null,null,null,null,null,null,null,null,null,null,null,null,null,null,"INVESTENDO UN CAPITALE ANNUALE CONOSCIUTO, CON O SENZA CAPITALE INIZIALE A UN TASSO DI RIV CONOSCIUTO CHE MONTANTE AVRO' TRA X ANNI?",null,null,null,null,null,null,null,null,null,null,null,null,null,null,null,"INVESTENDO UN CAPITALE ANNUALE CONOSCIUTO, CON O SENZA CAPITALE INIZIALE A UN TASSO DI RIV CONOSCIUTO CHE MONTANTE AVRO' TRA X ANNI?",null,null,null,null,null,null,null,null,null,null,null,null,null,null,null,"INVESTENDO UN CAPITALE ANNUALE CONOSCIUTO, CON O SENZA CAPITALE INIZIALE A UN TASSO DI RIV CONOSCIUTO CHE MONTANTE AVRO' TRA X ANNI?",null,null,null,null,null,null,null,null,null,null,null,null,null,null,null,"INVESTENDO UN CAPITALE ANNUALE CONOSCIUTO, CON O SENZA CAPITALE INIZIALE A UN TASSO DI RIV CONOSCIUTO CHE MONTANTE AVRO' TRA X ANNI?",null,null,null,null,null,null,null,null,null,null,null,null,null,null,null,"INVESTENDO UN CAPITALE ANNUALE CONOSCIUTO, CON O SENZA CAPITALE INIZIALE A UN TASSO DI RIV CONOSCIUTO CHE MONTANTE AVRO' TRA X ANNI?",null,null,null,null,null,null,null,null,null,null,null,null,null,null,null,"INVESTENDO UN CAPITALE ANNUALE CONOSCIUTO, CON O SENZA CAPITALE INIZIALE A UN TASSO DI RIV CONOSCIUTO CHE MONTANTE AVRO' TRA X ANNI?",null,null,null,null,null,null,null,null,null,null,null,null,null,null,null,"INVESTENDO UN CAPITALE ANNUALE CONOSCIUTO, CON O SENZA CAPITALE INIZIALE A UN TASSO DI RIV CONOSCIUTO CHE MONTANTE AVRO' TRA X ANNI?",null,null,null,null,null,null,null,null,null,null,null,null,null,null,null,"INVESTENDO UN CAPITALE ANNUALE CONOSCIUTO, CON O SENZA CAPITALE INIZIALE A UN TASSO DI RIV CONOSCIUTO CHE MONTANTE AVRO' TRA X ANNI?",null,null,null,null,null,null,null,null,null,null,null,null,null,null,null,"INVESTENDO UN CAPITALE ANNUALE CONOSCIUTO, CON O SENZA CAPITALE INIZIALE A UN TASSO DI RIV CONOSCIUTO CHE MONTANTE AVRO' TRA X ANNI?",null,null,null,null,null,null,null,null,null,null,null,null,null,null,null,"INVESTENDO UN CAPITALE ANNUALE CONOSCIUTO, CON O SENZA CAPITALE INIZIALE A UN TASSO DI RIV CONOSCIUTO CHE MONTANTE AVRO' TRA X ANNI?",null,null,null,null,null,null,null,null,null,null,null,null,null,null,null,"INVESTENDO UN CAPITALE ANNUALE CONOSCIUTO, CON O SENZA CAPITALE INIZIALE A UN TASSO DI RIV CONOSCIUTO CHE MONTANTE AVRO' TRA X ANNI?",null,null,null,null,null,null,null,null,null,null,null,null,null,null,null,"INVESTENDO UN CAPITALE ANNUALE CONOSCIUTO, CON O SENZA CAPITALE INIZIALE A UN TASSO DI RIV CONOSCIUTO CHE MONTANTE AVRO' TRA X ANNI?",null,null,null,null,null,null,null,null,null,null,null,null,null,null,null,"INVESTENDO UN CAPITALE ANNUALE CONOSCIUTO, CON O SENZA CAPITALE INIZIALE A UN TASSO DI RIV CONOSCIUTO CHE MONTANTE AVRO' TRA X ANNI?",null,null,null,null,null,null,null,null,null,null,null,null,null,null,null,"INVESTENDO UN CAPITALE ANNUALE CONOSCIUTO, CON O SENZA CAPITALE INIZIALE A UN TASSO DI RIV CONOSCIUTO CHE MONTANTE AVRO' TRA X ANNI?",null,null,null,null,null,null,null,null,null,null,null,null,null,null,null,"INVESTENDO UN CAPITALE ANNUALE CONOSCIUTO, CON O SENZA CAPITALE INIZIALE A UN TASSO DI RIV CONOSCIUTO CHE MONTANTE AVRO' TRA X ANNI?",null,null,null,null,null,null,null,null,null,null,null,null,null,null,null,"INVESTENDO UN CAPITALE ANNUALE CONOSCIUTO, CON O SENZA CAPITALE INIZIALE A UN TASSO DI RIV CONOSCIUTO CHE MONTANTE AVRO' TRA X ANNI?",null,null,null,null,null,null,null,null,null,null,null,null,null,null,null,"INVESTENDO UN CAPITALE ANNUALE CONOSCIUTO, CON O SENZA CAPITALE INIZIALE A UN TASSO DI RIV CONOSCIUTO CHE MONTANTE AVRO' TRA X ANNI?",null,null,null,null,null,null,null,null,null,null,null,null,null,null,null,"INVESTENDO UN CAPITALE ANNUALE CONOSCIUTO, CON O SENZA CAPITALE INIZIALE A UN TASSO DI RIV CONOSCIUTO CHE MONTANTE AVRO' TRA X ANNI?",null,null,null,null,null,null,null,null,null,null,null,null,null,null,null,"INVESTENDO UN CAPITALE ANNUALE CONOSCIUTO, CON O SENZA CAPITALE INIZIALE A UN TASSO DI RIV CONOSCIUTO CHE MONTANTE AVRO' TRA X ANNI?",null,null,null,null,null,null,null,null,null,null,null,null,null,null,null,"INVESTENDO UN CAPITALE ANNUALE CONOSCIUTO, CON O SENZA CAPITALE INIZIALE A UN TASSO DI RIV CONOSCIUTO CHE MONTANTE AVRO' TRA X ANNI?",null,null,null,null,null,null,null,null,null,null,null,null,null,null,null,"INVESTENDO UN CAPITALE ANNUALE CONOSCIUTO, CON O SENZA CAPITALE INIZIALE A UN TASSO DI RIV CONOSCIUTO CHE MONTANTE AVRO' TRA X ANNI?",null,null,null,null,null,null,null,null,null,null,null,null,null,null,null,"INVESTENDO UN CAPITALE ANNUALE CONOSCIUTO, CON O SENZA CAPITALE INIZIALE A UN TASSO DI RIV CONOSCIUTO CHE MONTANTE AVRO' TRA X ANNI?",null,null,null,null,null,null,null,null,null,null,null,null,null,null,null,"INVESTENDO UN CAPITALE ANNUALE CONOSCIUTO, CON O SENZA CAPITALE INIZIALE A UN TASSO DI RIV CONOSCIUTO CHE MONTANTE AVRO' TRA X ANNI?",null,null,null,null,null,null,null,null,null,null,null,null,null,null,null,"INVESTENDO UN CAPITALE ANNUALE CONOSCIUTO, CON O SENZA CAPITALE INIZIALE A UN TASSO DI RIV CONOSCIUTO CHE MONTANTE AVRO' TRA X ANNI?",null,null,null,null,null,null,null,null,null,null,null,null,null,null,null,"INVESTENDO UN CAPITALE ANNUALE CONOSCIUTO, CON O SENZA CAPITALE INIZIALE A UN TASSO DI RIV CONOSCIUTO CHE MONTANTE AVRO' TRA X ANNI?",null,null,null,null,null,null,null,null,null,null,null,null,null,null,null,"INVESTENDO UN CAPITALE ANNUALE CONOSCIUTO, CON O SENZA CAPITALE INIZIALE A UN TASSO DI RIV CONOSCIUTO CHE MONTANTE AVRO' TRA X ANNI?",null,null,null,null,null,null,null,null,null,null,null,null,null,null,null,"INVESTENDO UN CAPITALE ANNUALE CONOSCIUTO, CON O SENZA CAPITALE INIZIALE A UN TASSO DI RIV CONOSCIUTO CHE MONTANTE AVRO' TRA X ANNI?",null,null,null,null,null,null,null,null,null,null,null,null,null,null,null,"INVESTENDO UN CAPITALE ANNUALE CONOSCIUTO, CON O SENZA CAPITALE INIZIALE A UN TASSO DI RIV CONOSCIUTO CHE MONTANTE AVRO' TRA X ANNI?",null,null,null,null,null,null,null,null,null,null,null,null,null,null,null,"INVESTENDO UN CAPITALE ANNUALE CONOSCIUTO, CON O SENZA CAPITALE INIZIALE A UN TASSO DI RIV CONOSCIUTO CHE MONTANTE AVRO' TRA X ANNI?",null,null,null,null,null,null,null,null,null,null,null,null,null,null,null,"INVESTENDO UN CAPITALE ANNUALE CONOSCIUTO, CON O SENZA CAPITALE INIZIALE A UN TASSO DI RIV CONOSCIUTO CHE MONTANTE AVRO' TRA X ANNI?",null,null,null,null,null,null,null,null,null,null,null,null,null,null,null,"INVESTENDO UN CAPITALE ANNUALE CONOSCIUTO, CON O SENZA CAPITALE INIZIALE A UN TASSO DI RIV CONOSCIUTO CHE MONTANTE AVRO' TRA X ANNI?",null,null,null,null,null,null,null,null,null,null,null,null,null,null,null,"INVESTENDO UN CAPITALE ANNUALE CONOSCIUTO, CON O SENZA CAPITALE INIZIALE A UN TASSO DI RIV CONOSCIUTO CHE MONTANTE AVRO' TRA X ANNI?",null,null,null,null,null,null,null,null,null,null,null,null,null,null,null,"INVESTENDO UN CAPITALE ANNUALE CONOSCIUTO, CON O SENZA CAPITALE INIZIALE A UN TASSO DI RIV CONOSCIUTO CHE MONTANTE AVRO' TRA X ANNI?",null,null,null,null,null,null,null,null,null,null,null,null,null,null,null,"INVESTENDO UN CAPITALE ANNUALE CONOSCIUTO, CON O SENZA CAPITALE INIZIALE A UN TASSO DI RIV CONOSCIUTO CHE MONTANTE AVRO' TRA X ANNI?",null,null,null,null,null,null,null,null,null,null,null,null,null,null,null,"INVESTENDO UN CAPITALE ANNUALE CONOSCIUTO, CON O SENZA CAPITALE INIZIALE A UN TASSO DI RIV CONOSCIUTO CHE MONTANTE AVRO' TRA X ANNI?",null,null,null,null,null,null,null,null,null,null,null,null,null,null,null,"INVESTENDO UN CAPITALE ANNUALE CONOSCIUTO, CON O SENZA CAPITALE INIZIALE A UN TASSO DI RIV CONOSCIUTO CHE MONTANTE AVRO' TRA X ANNI?",null,null,null,null,null,null,null,null,null,null,null,null,null,null,null,"INVESTENDO UN CAPITALE ANNUALE CONOSCIUTO, CON O SENZA CAPITALE INIZIALE A UN TASSO DI RIV CONOSCIUTO CHE MONTANTE AVRO' TRA X ANNI?",null,null,null,null,null,null,null,null,null,null,null,null,null,null,null,"INVESTENDO UN CAPITALE ANNUALE CONOSCIUTO, CON O SENZA CAPITALE INIZIALE A UN TASSO DI RIV CONOSCIUTO CHE MONTANTE AVRO' TRA X ANNI?",null,null,null,null,null,null,null,null,null,null,null,null,null,null,null,"INVESTENDO UN CAPITALE ANNUALE CONOSCIUTO, CON O SENZA CAPITALE INIZIALE A UN TASSO DI RIV CONOSCIUTO CHE MONTANTE AVRO' TRA X ANNI?",null,null,null,null,null,null,null,null,null,null,null,null,null,null,null,"INVESTENDO UN CAPITALE ANNUALE CONOSCIUTO, CON O SENZA CAPITALE INIZIALE A UN TASSO DI RIV CONOSCIUTO CHE MONTANTE AVRO' TRA X ANNI?",null,null,null,null,null,null,null,null,null,null,null,null,null,null,null,"INVESTENDO UN CAPITALE ANNUALE CONOSCIUTO, CON O SENZA CAPITALE INIZIALE A UN TASSO DI RIV CONOSCIUTO CHE MONTANTE AVRO' TRA X ANNI?",null,null,null,null,null,null,null,null,null,null,null,null,null,null,null,"INVESTENDO UN CAPITALE ANNUALE CONOSCIUTO, CON O SENZA CAPITALE INIZIALE A UN TASSO DI RIV CONOSCIUTO CHE MONTANTE AVRO' TRA X ANNI?",null,null,null,null,null,null,null,null,null,null,null,null,null,null,null,"INVESTENDO UN CAPITALE ANNUALE CONOSCIUTO, CON O SENZA CAPITALE INIZIALE A UN TASSO DI RIV CONOSCIUTO CHE MONTANTE AVRO' TRA X ANNI?",null,null,null,null,null,null,null,null,null,null,null,null,null,null,null,"INVESTENDO UN CAPITALE ANNUALE CONOSCIUTO, CON O SENZA CAPITALE INIZIALE A UN TASSO DI RIV CONOSCIUTO CHE MONTANTE AVRO' TRA X ANNI?",null,null,null,null,null,null,null,null,null,null,null,null,null,null,null,"INVESTENDO UN CAPITALE ANNUALE CONOSCIUTO, CON O SENZA CAPITALE INIZIALE A UN TASSO DI RIV CONOSCIUTO CHE MONTANTE AVRO' TRA X ANNI?",null,null,null,null,null,null,null,null,null,null,null,null,null,null,null,"INVESTENDO UN CAPITALE ANNUALE CONOSCIUTO, CON O SENZA CAPITALE INIZIALE A UN TASSO DI RIV CONOSCIUTO CHE MONTANTE AVRO' TRA X ANNI?",null,null,null,null,null,null,null,null,null,null,null,null,null,null,null,"INVESTENDO UN CAPITALE ANNUALE CONOSCIUTO, CON O SENZA CAPITALE INIZIALE A UN TASSO DI RIV CONOSCIUTO CHE MONTANTE AVRO' TRA X ANNI?",null,null,null,null,null,null,null,null,null,null,null,null,null,null,null,"INVESTENDO UN CAPITALE ANNUALE CONOSCIUTO, CON O SENZA CAPITALE INIZIALE A UN TASSO DI RIV CONOSCIUTO CHE MONTANTE AVRO' TRA X ANNI?",null,null,null,null,null,null,null,null,null,null,null,null,null,null,null,"INVESTENDO UN CAPITALE ANNUALE CONOSCIUTO, CON O SENZA CAPITALE INIZIALE A UN TASSO DI RIV CONOSCIUTO CHE MONTANTE AVRO' TRA X ANNI?",null,null,null,null,null,null,null,null,null,null,null,null,null,null,null,"INVESTENDO UN CAPITALE ANNUALE CONOSCIUTO, CON O SENZA CAPITALE INIZIALE A UN TASSO DI RIV CONOSCIUTO CHE MONTANTE AVRO' TRA X ANNI?",null,null,null,null,null,null,null,null,null,null,null,null,null,null,null,"INVESTENDO UN CAPITALE ANNUALE CONOSCIUTO, CON O SENZA CAPITALE INIZIALE A UN TASSO DI RIV CONOSCIUTO CHE MONTANTE AVRO' TRA X ANNI?",null,null,null,null,null,null,null,null,null,null,null,null,null,null,null,"INVESTENDO UN CAPITALE ANNUALE CONOSCIUTO, CON O SENZA CAPITALE INIZIALE A UN TASSO DI RIV CONOSCIUTO CHE MONTANTE AVRO' TRA X ANNI?",null,null,null,null,null,null,null,null,null,null,null,null,null,null,null,"INVESTENDO UN CAPITALE ANNUALE CONOSCIUTO, CON O SENZA CAPITALE INIZIALE A UN TASSO DI RIV CONOSCIUTO CHE MONTANTE AVRO' TRA X ANNI?",null,null,null,null,null,null,null,null,null,null,null,null,null,null,null,"INVESTENDO UN CAPITALE ANNUALE CONOSCIUTO, CON O SENZA CAPITALE INIZIALE A UN TASSO DI RIV CONOSCIUTO CHE MONTANTE AVRO' TRA X ANNI?",null,null,null,null,null,null,null,null,null,null,null,null,null,null,null,"INVESTENDO UN CAPITALE ANNUALE CONOSCIUTO, CON O SENZA CAPITALE INIZIALE A UN TASSO DI RIV CONOSCIUTO CHE MONTANTE AVRO' TRA X ANNI?",null,null,null,null,null,null,null,null,null,null,null,null,null,null,null,"INVESTENDO UN CAPITALE ANNUALE CONOSCIUTO, CON O SENZA CAPITALE INIZIALE A UN TASSO DI RIV CONOSCIUTO CHE MONTANTE AVRO' TRA X ANNI?",null,null,null,null,null,null,null,null,null,null,null,null,null,null,null,"INVESTENDO UN CAPITALE ANNUALE CONOSCIUTO, CON O SENZA CAPITALE INIZIALE A UN TASSO DI RIV CONOSCIUTO CHE MONTANTE AVRO' TRA X ANNI?",null,null,null,null,null,null,null,null,null,null,null,null,null,null,null,"INVESTENDO UN CAPITALE ANNUALE CONOSCIUTO, CON O SENZA CAPITALE INIZIALE A UN TASSO DI RIV CONOSCIUTO CHE MONTANTE AVRO' TRA X ANNI?",null,null,null,null,null,null,null,null,null,null,null,null,null,null,null,"INVESTENDO UN CAPITALE ANNUALE CONOSCIUTO, CON O SENZA CAPITALE INIZIALE A UN TASSO DI RIV CONOSCIUTO CHE MONTANTE AVRO' TRA X ANNI?",null,null,null,null,null,null,null,null,null,null,null,null,null,null,null,"INVESTENDO UN CAPITALE ANNUALE CONOSCIUTO, CON O SENZA CAPITALE INIZIALE A UN TASSO DI RIV CONOSCIUTO CHE MONTANTE AVRO' TRA X ANNI?",null,null,null,null,null,null,null,null,null,null,null,null,null,null,null,"INVESTENDO UN CAPITALE ANNUALE CONOSCIUTO, CON O SENZA CAPITALE INIZIALE A UN TASSO DI RIV CONOSCIUTO CHE MONTANTE AVRO' TRA X ANNI?",null,null,null,null,null,null,null,null,null,null,null,null,null,null,null,"INVESTENDO UN CAPITALE ANNUALE CONOSCIUTO, CON O SENZA CAPITALE INIZIALE A UN TASSO DI RIV CONOSCIUTO CHE MONTANTE AVRO' TRA X ANNI?",null,null,null,null,null,null,null,null,null,null,null,null,null,null,null,"INVESTENDO UN CAPITALE ANNUALE CONOSCIUTO, CON O SENZA CAPITALE INIZIALE A UN TASSO DI RIV CONOSCIUTO CHE MONTANTE AVRO' TRA X ANNI?",null,null,null,null,null,null,null,null,null,null,null,null,null,null,null,"INVESTENDO UN CAPITALE ANNUALE CONOSCIUTO, CON O SENZA CAPITALE INIZIALE A UN TASSO DI RIV CONOSCIUTO CHE MONTANTE AVRO' TRA X ANNI?",null,null,null,null,null,null,null,null,null,null,null,null,null,null,null,"INVESTENDO UN CAPITALE ANNUALE CONOSCIUTO, CON O SENZA CAPITALE INIZIALE A UN TASSO DI RIV CONOSCIUTO CHE MONTANTE AVRO' TRA X ANNI?",null,null,null,null,null,null,null,null,null,null,null,null,null,null,null,"INVESTENDO UN CAPITALE ANNUALE CONOSCIUTO, CON O SENZA CAPITALE INIZIALE A UN TASSO DI RIV CONOSCIUTO CHE MONTANTE AVRO' TRA X ANNI?",null,null,null,null,null,null,null,null,null,null,null,null,null,null,null,"INVESTENDO UN CAPITALE ANNUALE CONOSCIUTO, CON O SENZA CAPITALE INIZIALE A UN TASSO DI RIV CONOSCIUTO CHE MONTANTE AVRO' TRA X ANNI?",null,null,null,null,null,null,null,null,null,null,null,null,null,null,null,"INVESTENDO UN CAPITALE ANNUALE CONOSCIUTO, CON O SENZA CAPITALE INIZIALE A UN TASSO DI RIV CONOSCIUTO CHE MONTANTE AVRO' TRA X ANNI?",null,null,null,null,null,null,null,null,null,null,null,null,null,null,null,"INVESTENDO UN CAPITALE ANNUALE CONOSCIUTO, CON O SENZA CAPITALE INIZIALE A UN TASSO DI RIV CONOSCIUTO CHE MONTANTE AVRO' TRA X ANNI?",null,null,null,null,null,null,null,null,null,null,null,null,null,null,null,"INVESTENDO UN CAPITALE ANNUALE CONOSCIUTO, CON O SENZA CAPITALE INIZIALE A UN TASSO DI RIV CONOSCIUTO CHE MONTANTE AVRO' TRA X ANNI?",null,null,null,null,null,null,null,null,null,null,null,null,null,null,null,"INVESTENDO UN CAPITALE ANNUALE CONOSCIUTO, CON O SENZA CAPITALE INIZIALE A UN TASSO DI RIV CONOSCIUTO CHE MONTANTE AVRO' TRA X ANNI?",null,null,null,null,null,null,null,null,null,null,null,null,null,null,null,"INVESTENDO UN CAPITALE ANNUALE CONOSCIUTO, CON O SENZA CAPITALE INIZIALE A UN TASSO DI RIV CONOSCIUTO CHE MONTANTE AVRO' TRA X ANNI?",null,null,null,null,null,null,null,null,null,null,null,null,null,null,null,"INVESTENDO UN CAPITALE ANNUALE CONOSCIUTO, CON O SENZA CAPITALE INIZIALE A UN TASSO DI RIV CONOSCIUTO CHE MONTANTE AVRO' TRA X ANNI?",null,null,null,null,null,null,null,null,null,null,null,null,null,null,null,"INVESTENDO UN CAPITALE ANNUALE CONOSCIUTO, CON O SENZA CAPITALE INIZIALE A UN TASSO DI RIV CONOSCIUTO CHE MONTANTE AVRO' TRA X ANNI?",null,null,null,null,null,null,null,null,null,null,null,null,null,null,null,"INVESTENDO UN CAPITALE ANNUALE CONOSCIUTO, CON O SENZA CAPITALE INIZIALE A UN TASSO DI RIV CONOSCIUTO CHE MONTANTE AVRO' TRA X ANNI?",null,null,null,null,null,null,null,null,null,null,null,null,null,null,null,"INVESTENDO UN CAPITALE ANNUALE CONOSCIUTO, CON O SENZA CAPITALE INIZIALE A UN TASSO DI RIV CONOSCIUTO CHE MONTANTE AVRO' TRA X ANNI?",null,null,null,null,null,null,null,null,null,null,null,null,null,null,null,"INVESTENDO UN CAPITALE ANNUALE CONOSCIUTO, CON O SENZA CAPITALE INIZIALE A UN TASSO DI RIV CONOSCIUTO CHE MONTANTE AVRO' TRA X ANNI?",null,null,null,null,null,null,null,null,null,null,null,null,null,null,null,"INVESTENDO UN CAPITALE ANNUALE CONOSCIUTO, CON O SENZA CAPITALE INIZIALE A UN TASSO DI RIV CONOSCIUTO CHE MONTANTE AVRO' TRA X ANNI?",null,null,null,null,null,null,null,null,null,null,null,null,null,null,null,"INVESTENDO UN CAPITALE ANNUALE CONOSCIUTO, CON O SENZA CAPITALE INIZIALE A UN TASSO DI RIV CONOSCIUTO CHE MONTANTE AVRO' TRA X ANNI?",null,null,null,null,null,null,null,null,null,null,null,null,null,null,null,"INVESTENDO UN CAPITALE ANNUALE CONOSCIUTO, CON O SENZA CAPITALE INIZIALE A UN TASSO DI RIV CONOSCIUTO CHE MONTANTE AVRO' TRA X ANNI?",null,null,null,null,null,null,null,null,null,null,null,null,null,null,null,"INVESTENDO UN CAPITALE ANNUALE CONOSCIUTO, CON O SENZA CAPITALE INIZIALE A UN TASSO DI RIV CONOSCIUTO CHE MONTANTE AVRO' TRA X ANNI?",null,null,null,null,null,null,null,null,null,null,null,null,null,null,null,"INVESTENDO UN CAPITALE ANNUALE CONOSCIUTO, CON O SENZA CAPITALE INIZIALE A UN TASSO DI RIV CONOSCIUTO CHE MONTANTE AVRO' TRA X ANNI?",null,null,null,null,null,null,null,null,null,null,null,null,null,null,null,"INVESTENDO UN CAPITALE ANNUALE CONOSCIUTO, CON O SENZA CAPITALE INIZIALE A UN TASSO DI RIV CONOSCIUTO CHE MONTANTE AVRO' TRA X ANNI?",null,null,null,null,null,null,null,null,null,null,null,null,null,null,null,"INVESTENDO UN CAPITALE ANNUALE CONOSCIUTO, CON O SENZA CAPITALE INIZIALE A UN TASSO DI RIV CONOSCIUTO CHE MONTANTE AVRO' TRA X ANNI?",null,null,null,null,null,null,null,null,null,null,null,null,null,null,null,"INVESTENDO UN CAPITALE ANNUALE CONOSCIUTO, CON O SENZA CAPITALE INIZIALE A UN TASSO DI RIV CONOSCIUTO CHE MONTANTE AVRO' TRA X ANNI?",null,null,null,null,null,null,null,null,null,null,null,null,null,null,null,"INVESTENDO UN CAPITALE ANNUALE CONOSCIUTO, CON O SENZA CAPITALE INIZIALE A UN TASSO DI RIV CONOSCIUTO CHE MONTANTE AVRO' TRA X ANNI?",null,null,null,null,null,null,null,null,null,null,null,null,null,null,null,"INVESTENDO UN CAPITALE ANNUALE CONOSCIUTO, CON O SENZA CAPITALE INIZIALE A UN TASSO DI RIV CONOSCIUTO CHE MONTANTE AVRO' TRA X ANNI?",null,null,null,null,null,null,null,null,null,null,null,null,null,null,null,"INVESTENDO UN CAPITALE ANNUALE CONOSCIUTO, CON O SENZA CAPITALE INIZIALE A UN TASSO DI RIV CONOSCIUTO CHE MONTANTE AVRO' TRA X ANNI?",null,null,null,null,null,null,null,null,null,null,null,null,null,null,null,"INVESTENDO UN CAPITALE ANNUALE CONOSCIUTO, CON O SENZA CAPITALE INIZIALE A UN TASSO DI RIV CONOSCIUTO CHE MONTANTE AVRO' TRA X ANNI?",null,null,null,null,null,null,null,null,null,null,null,null,null,null,null,"INVESTENDO UN CAPITALE ANNUALE CONOSCIUTO, CON O SENZA CAPITALE INIZIALE A UN TASSO DI RIV CONOSCIUTO CHE MONTANTE AVRO' TRA X ANNI?",null,null,null,null,null,null,null,null,null,null,null,null,null,null,null,"INVESTENDO UN CAPITALE ANNUALE CONOSCIUTO, CON O SENZA CAPITALE INIZIALE A UN TASSO DI RIV CONOSCIUTO CHE MONTANTE AVRO' TRA X ANNI?",null,null,null,null,null,null,null,null,null,null,null,null,null,null,null,"INVESTENDO UN CAPITALE ANNUALE CONOSCIUTO, CON O SENZA CAPITALE INIZIALE A UN TASSO DI RIV CONOSCIUTO CHE MONTANTE AVRO' TRA X ANNI?",null,null,null,null,null,null,null,null,null,null,null,null,null,null,null,"INVESTENDO UN CAPITALE ANNUALE CONOSCIUTO, CON O SENZA CAPITALE INIZIALE A UN TASSO DI RIV CONOSCIUTO CHE MONTANTE AVRO' TRA X ANNI?",null,null,null,null,null,null,null,null,null,null,null,null,null,null,null,"INVESTENDO UN CAPITALE ANNUALE CONOSCIUTO, CON O SENZA CAPITALE INIZIALE A UN TASSO DI RIV CONOSCIUTO CHE MONTANTE AVRO' TRA X ANNI?",null,null,null,null,null,null,null,null,null,null,null,null,null,null,null,"INVESTENDO UN CAPITALE ANNUALE CONOSCIUTO, CON O SENZA CAPITALE INIZIALE A UN TASSO DI RIV CONOSCIUTO CHE MONTANTE AVRO' TRA X ANNI?",null,null,null,null,null,null,null,null,null,null,null,null,null,null,null,"INVESTENDO UN CAPITALE ANNUALE CONOSCIUTO, CON O SENZA CAPITALE INIZIALE A UN TASSO DI RIV CONOSCIUTO CHE MONTANTE AVRO' TRA X ANNI?",null,null,null,null,null,null,null,null,null,null,null,null,null,null,null,"INVESTENDO UN CAPITALE ANNUALE CONOSCIUTO, CON O SENZA CAPITALE INIZIALE A UN TASSO DI RIV CONOSCIUTO CHE MONTANTE AVRO' TRA X ANNI?",null,null,null,null,null,null,null,null,null,null,null,null,null,null,null,"INVESTENDO UN CAPITALE ANNUALE CONOSCIUTO, CON O SENZA CAPITALE INIZIALE A UN TASSO DI RIV CONOSCIUTO CHE MONTANTE AVRO' TRA X ANNI?",null,null,null,null,null,null,null,null,null,null,null,null,null,null,null,"INVESTENDO UN CAPITALE ANNUALE CONOSCIUTO, CON O SENZA CAPITALE INIZIALE A UN TASSO DI RIV CONOSCIUTO CHE MONTANTE AVRO' TRA X ANNI?",null,null,null,null,null,null,null,null,null,null,null,null,null,null,null,"INVESTENDO UN CAPITALE ANNUALE CONOSCIUTO, CON O SENZA CAPITALE INIZIALE A UN TASSO DI RIV CONOSCIUTO CHE MONTANTE AVRO' TRA X ANNI?",null,null,null,null,null,null,null,null,null,null,null,null,null,null,null,"INVESTENDO UN CAPITALE ANNUALE CONOSCIUTO, CON O SENZA CAPITALE INIZIALE A UN TASSO DI RIV CONOSCIUTO CHE MONTANTE AVRO' TRA X ANNI?",null,null,null,null,null,null,null,null,null,null,null,null,null,null,null,"INVESTENDO UN CAPITALE ANNUALE CONOSCIUTO, CON O SENZA CAPITALE INIZIALE A UN TASSO DI RIV CONOSCIUTO CHE MONTANTE AVRO' TRA X ANNI?",null,null,null,null,null,null,null,null,null,null,null,null,null,null,null,"INVESTENDO UN CAPITALE ANNUALE CONOSCIUTO, CON O SENZA CAPITALE INIZIALE A UN TASSO DI RIV CONOSCIUTO CHE MONTANTE AVRO' TRA X ANNI?",null,null,null,null,null,null,null,null,null,null,null,null,null,null,null,"INVESTENDO UN CAPITALE ANNUALE CONOSCIUTO, CON O SENZA CAPITALE INIZIALE A UN TASSO DI RIV CONOSCIUTO CHE MONTANTE AVRO' TRA X ANNI?",null,null,null,null,null,null,null,null,null,null,null,null,null,null,null,"INVESTENDO UN CAPITALE ANNUALE CONOSCIUTO, CON O SENZA CAPITALE INIZIALE A UN TASSO DI RIV CONOSCIUTO CHE MONTANTE AVRO' TRA X ANNI?",null,null,null,null,null,null,null,null,null,null,null,null,null,null,null,"INVESTENDO UN CAPITALE ANNUALE CONOSCIUTO, CON O SENZA CAPITALE INIZIALE A UN TASSO DI RIV CONOSCIUTO CHE MONTANTE AVRO' TRA X ANNI?",null,null,null,null,null,null,null,null,null,null,null,null,null,null,null,"INVESTENDO UN CAPITALE ANNUALE CONOSCIUTO, CON O SENZA CAPITALE INIZIALE A UN TASSO DI RIV CONOSCIUTO CHE MONTANTE AVRO' TRA X ANNI?",null,null,null,null,null,null,null,null,null,null,null,null,null,null,null,"INVESTENDO UN CAPITALE ANNUALE CONOSCIUTO, CON O SENZA CAPITALE INIZIALE A UN TASSO DI RIV CONOSCIUTO CHE MONTANTE AVRO' TRA X ANNI?",null,null,null,null,null,null,null,null,null,null,null,null,null,null,null,"INVESTENDO UN CAPITALE ANNUALE CONOSCIUTO, CON O SENZA CAPITALE INIZIALE A UN TASSO DI RIV CONOSCIUTO CHE MONTANTE AVRO' TRA X ANNI?",null,null,null,null,null,null,null,null,null,null,null,null,null,null,null,"INVESTENDO UN CAPITALE ANNUALE CONOSCIUTO, CON O SENZA CAPITALE INIZIALE A UN TASSO DI RIV CONOSCIUTO CHE MONTANTE AVRO' TRA X ANNI?",null,null,null,null,null,null,null,null,null,null,null,null,null,null,null,"INVESTENDO UN CAPITALE ANNUALE CONOSCIUTO, CON O SENZA CAPITALE INIZIALE A UN TASSO DI RIV CONOSCIUTO CHE MONTANTE AVRO' TRA X ANNI?",null,null,null,null,null,null,null,null,null,null,null,null,null,null,null,"INVESTENDO UN CAPITALE ANNUALE CONOSCIUTO, CON O SENZA CAPITALE INIZIALE A UN TASSO DI RIV CONOSCIUTO CHE MONTANTE AVRO' TRA X ANNI?",null,null,null,null,null,null,null,null,null,null,null,null,null,null,null,"INVESTENDO UN CAPITALE ANNUALE CONOSCIUTO, CON O SENZA CAPITALE INIZIALE A UN TASSO DI RIV CONOSCIUTO CHE MONTANTE AVRO' TRA X ANNI?",null,null,null,null,null,null,null,null,null,null,null,null,null,null,null,"INVESTENDO UN CAPITALE ANNUALE CONOSCIUTO, CON O SENZA CAPITALE INIZIALE A UN TASSO DI RIV CONOSCIUTO CHE MONTANTE AVRO' TRA X ANNI?",null,null,null,null,null,null,null,null,null,null,null,null,null,null,null,"INVESTENDO UN CAPITALE ANNUALE CONOSCIUTO, CON O SENZA CAPITALE INIZIALE A UN TASSO DI RIV CONOSCIUTO CHE MONTANTE AVRO' TRA X ANNI?",null,null,null,null,null,null,null,null,null,null,null,null,null,null,null,"INVESTENDO UN CAPITALE ANNUALE CONOSCIUTO, CON O SENZA CAPITALE INIZIALE A UN TASSO DI RIV CONOSCIUTO CHE MONTANTE AVRO' TRA X ANNI?",null,null,null,null,null,null,null,null,null,null,null,null,null,null,null,"INVESTENDO UN CAPITALE ANNUALE CONOSCIUTO, CON O SENZA CAPITALE INIZIALE A UN TASSO DI RIV CONOSCIUTO CHE MONTANTE AVRO' TRA X ANNI?",null,null,null,null,null,null,null,null,null,null,null,null,null,null,null,"INVESTENDO UN CAPITALE ANNUALE CONOSCIUTO, CON O SENZA CAPITALE INIZIALE A UN TASSO DI RIV CONOSCIUTO CHE MONTANTE AVRO' TRA X ANNI?",null,null,null,null,null,null,null,null,null,null,null,null,null,null,null,"INVESTENDO UN CAPITALE ANNUALE CONOSCIUTO, CON O SENZA CAPITALE INIZIALE A UN TASSO DI RIV CONOSCIUTO CHE MONTANTE AVRO' TRA X ANNI?",null,null,null,null,null,null,null,null,null,null,null,null,null,null,null,"INVESTENDO UN CAPITALE ANNUALE CONOSCIUTO, CON O SENZA CAPITALE INIZIALE A UN TASSO DI RIV CONOSCIUTO CHE MONTANTE AVRO' TRA X ANNI?",null,null,null,null,null,null,null,null,null,null,null,null,null,null,null,"INVESTENDO UN CAPITALE ANNUALE CONOSCIUTO, CON O SENZA CAPITALE INIZIALE A UN TASSO DI RIV CONOSCIUTO CHE MONTANTE AVRO' TRA X ANNI?",null,null,null,null,null,null,null,null,null,null,null,null,null,null,null,"INVESTENDO UN CAPITALE ANNUALE CONOSCIUTO, CON O SENZA CAPITALE INIZIALE A UN TASSO DI RIV CONOSCIUTO CHE MONTANTE AVRO' TRA X ANNI?",null,null,null,null,null,null,null,null,null,null,null,null,null,null,null,"INVESTENDO UN CAPITALE ANNUALE CONOSCIUTO, CON O SENZA CAPITALE INIZIALE A UN TASSO DI RIV CONOSCIUTO CHE MONTANTE AVRO' TRA X ANNI?",null,null,null,null,null,null,null,null,null,null,null,null,null,null,null,"INVESTENDO UN CAPITALE ANNUALE CONOSCIUTO, CON O SENZA CAPITALE INIZIALE A UN TASSO DI RIV CONOSCIUTO CHE MONTANTE AVRO' TRA X ANNI?",null,null,null,null,null,null,null,null,null,null,null,null,null,null,null,"INVESTENDO UN CAPITALE ANNUALE CONOSCIUTO, CON O SENZA CAPITALE INIZIALE A UN TASSO DI RIV CONOSCIUTO CHE MONTANTE AVRO' TRA X ANNI?",null,null,null,null,null,null,null,null,null,null,null,null,null,null,null,"INVESTENDO UN CAPITALE ANNUALE CONOSCIUTO, CON O SENZA CAPITALE INIZIALE A UN TASSO DI RIV CONOSCIUTO CHE MONTANTE AVRO' TRA X ANNI?",null,null,null,null,null,null,null,null,null,null,null,null,null,null,null,"INVESTENDO UN CAPITALE ANNUALE CONOSCIUTO, CON O SENZA CAPITALE INIZIALE A UN TASSO DI RIV CONOSCIUTO CHE MONTANTE AVRO' TRA X ANNI?",null,null,null,null,null,null,null,null,null,null,null,null,null,null,null,"INVESTENDO UN CAPITALE ANNUALE CONOSCIUTO, CON O SENZA CAPITALE INIZIALE A UN TASSO DI RIV CONOSCIUTO CHE MONTANTE AVRO' TRA X ANNI?",null,null,null,null,null,null,null,null,null,null,null,null,null,null,null,"INVESTENDO UN CAPITALE ANNUALE CONOSCIUTO, CON O SENZA CAPITALE INIZIALE A UN TASSO DI RIV CONOSCIUTO CHE MONTANTE AVRO' TRA X ANNI?",null,null,null,null,null,null,null,null,null,null,null,null,null,null,null,"INVESTENDO UN CAPITALE ANNUALE CONOSCIUTO, CON O SENZA CAPITALE INIZIALE A UN TASSO DI RIV CONOSCIUTO CHE MONTANTE AVRO' TRA X ANNI?",null,null,null,null,null,null,null,null,null,null,null,null,null,null,null,"INVESTENDO UN CAPITALE ANNUALE CONOSCIUTO, CON O SENZA CAPITALE INIZIALE A UN TASSO DI RIV CONOSCIUTO CHE MONTANTE AVRO' TRA X ANNI?",null,null,null,null,null,null,null,null,null,null,null,null,null,null,null,"INVESTENDO UN CAPITALE ANNUALE CONOSCIUTO, CON O SENZA CAPITALE INIZIALE A UN TASSO DI RIV CONOSCIUTO CHE MONTANTE AVRO' TRA X ANNI?",null,null,null,null,null,null,null,null,null,null,null,null,null,null,null,"INVESTENDO UN CAPITALE ANNUALE CONOSCIUTO, CON O SENZA CAPITALE INIZIALE A UN TASSO DI RIV CONOSCIUTO CHE MONTANTE AVRO' TRA X ANNI?",null,null,null,null,null,null,null,null,null,null,null,null,null,null,null,"INVESTENDO UN CAPITALE ANNUALE CONOSCIUTO, CON O SENZA CAPITALE INIZIALE A UN TASSO DI RIV CONOSCIUTO CHE MONTANTE AVRO' TRA X ANNI?",null,null,null,null,null,null,null,null,null,null,null,null,null,null,null,"INVESTENDO UN CAPITALE ANNUALE CONOSCIUTO, CON O SENZA CAPITALE INIZIALE A UN TASSO DI RIV CONOSCIUTO CHE MONTANTE AVRO' TRA X ANNI?",null,null,null,null,null,null,null,null,null,null,null,null,null,null,null,"INVESTENDO UN CAPITALE ANNUALE CONOSCIUTO, CON O SENZA CAPITALE INIZIALE A UN TASSO DI RIV CONOSCIUTO CHE MONTANTE AVRO' TRA X ANNI?",null,null,null,null,null,null,null,null,null,null,null,null,null,null,null,"INVESTENDO UN CAPITALE ANNUALE CONOSCIUTO, CON O SENZA CAPITALE INIZIALE A UN TASSO DI RIV CONOSCIUTO CHE MONTANTE AVRO' TRA X ANNI?",null,null,null,null,null,null,null,null,null,null,null,null,null,null,null,"INVESTENDO UN CAPITALE ANNUALE CONOSCIUTO, CON O SENZA CAPITALE INIZIALE A UN TASSO DI RIV CONOSCIUTO CHE MONTANTE AVRO' TRA X ANNI?",null,null,null,null,null,null,null,null,null,null,null,null,null,null,null,"INVESTENDO UN CAPITALE ANNUALE CONOSCIUTO, CON O SENZA CAPITALE INIZIALE A UN TASSO DI RIV CONOSCIUTO CHE MONTANTE AVRO' TRA X ANNI?",null,null,null,null,null,null,null,null,null,null,null,null,null,null,null,"INVESTENDO UN CAPITALE ANNUALE CONOSCIUTO, CON O SENZA CAPITALE INIZIALE A UN TASSO DI RIV CONOSCIUTO CHE MONTANTE AVRO' TRA X ANNI?",null,null,null,null,null,null,null,null,null,null,null,null,null,null,null,"INVESTENDO UN CAPITALE ANNUALE CONOSCIUTO, CON O SENZA CAPITALE INIZIALE A UN TASSO DI RIV CONOSCIUTO CHE MONTANTE AVRO' TRA X ANNI?",null,null,null,null,null,null,null,null,null,null,null,null,null,null,null,"INVESTENDO UN CAPITALE ANNUALE CONOSCIUTO, CON O SENZA CAPITALE INIZIALE A UN TASSO DI RIV CONOSCIUTO CHE MONTANTE AVRO' TRA X ANNI?",null,null,null,null,null,null,null,null,null,null,null,null,null,null,null,"INVESTENDO UN CAPITALE ANNUALE CONOSCIUTO, CON O SENZA CAPITALE INIZIALE A UN TASSO DI RIV CONOSCIUTO CHE MONTANTE AVRO' TRA X ANNI?",null,null,null,null,null,null,null,null,null,null,null,null,null,null,null,"INVESTENDO UN CAPITALE ANNUALE CONOSCIUTO, CON O SENZA CAPITALE INIZIALE A UN TASSO DI RIV CONOSCIUTO CHE MONTANTE AVRO' TRA X ANNI?",null,null,null,null,null,null,null,null,null,null,null,null,null,null,null,"INVESTENDO UN CAPITALE ANNUALE CONOSCIUTO, CON O SENZA CAPITALE INIZIALE A UN TASSO DI RIV CONOSCIUTO CHE MONTANTE AVRO' TRA X ANNI?",null,null,null,null,null,null,null,null,null,null,null,null,null,null,null,"INVESTENDO UN CAPITALE ANNUALE CONOSCIUTO, CON O SENZA CAPITALE INIZIALE A UN TASSO DI RIV CONOSCIUTO CHE MONTANTE AVRO' TRA X ANNI?",null,null,null,null,null,null,null,null,null,null,null,null,null,null,null,"INVESTENDO UN CAPITALE ANNUALE CONOSCIUTO, CON O SENZA CAPITALE INIZIALE A UN TASSO DI RIV CONOSCIUTO CHE MONTANTE AVRO' TRA X ANNI?",null,null,null,null,null,null,null,null,null,null,null,null,null,null,null,"INVESTENDO UN CAPITALE ANNUALE CONOSCIUTO, CON O SENZA CAPITALE INIZIALE A UN TASSO DI RIV CONOSCIUTO CHE MONTANTE AVRO' TRA X ANNI?",null,null,null,null,null,null,null,null,null,null,null,null,null,null,null,"INVESTENDO UN CAPITALE ANNUALE CONOSCIUTO, CON O SENZA CAPITALE INIZIALE A UN TASSO DI RIV CONOSCIUTO CHE MONTANTE AVRO' TRA X ANNI?",null,null,null,null,null,null,null,null,null,null,null,null,null,null,null,"INVESTENDO UN CAPITALE ANNUALE CONOSCIUTO, CON O SENZA CAPITALE INIZIALE A UN TASSO DI RIV CONOSCIUTO CHE MONTANTE AVRO' TRA X ANNI?",null,null,null,null,null,null,null,null,null,null,null,null,null,null,null,"INVESTENDO UN CAPITALE ANNUALE CONOSCIUTO, CON O SENZA CAPITALE INIZIALE A UN TASSO DI RIV CONOSCIUTO CHE MONTANTE AVRO' TRA X ANNI?",null,null,null,null,null,null,null,null,null,null,null,null,null,null,null,"INVESTENDO UN CAPITALE ANNUALE CONOSCIUTO, CON O SENZA CAPITALE INIZIALE A UN TASSO DI RIV CONOSCIUTO CHE MONTANTE AVRO' TRA X ANNI?",null,null,null,null,null,null,null,null,null,null,null,null,null,null,null,"INVESTENDO UN CAPITALE ANNUALE CONOSCIUTO, CON O SENZA CAPITALE INIZIALE A UN TASSO DI RIV CONOSCIUTO CHE MONTANTE AVRO' TRA X ANNI?",null,null,null,null,null,null,null,null,null,null,null,null,null,null,null,"INVESTENDO UN CAPITALE ANNUALE CONOSCIUTO, CON O SENZA CAPITALE INIZIALE A UN TASSO DI RIV CONOSCIUTO CHE MONTANTE AVRO' TRA X ANNI?",null,null,null,null,null,null,null,null,null,null,null,null,null,null,null,"INVESTENDO UN CAPITALE ANNUALE CONOSCIUTO, CON O SENZA CAPITALE INIZIALE A UN TASSO DI RIV CONOSCIUTO CHE MONTANTE AVRO' TRA X ANNI?",null,null,null,null,null,null,null,null,null,null,null,null,null,null,null,"INVESTENDO UN CAPITALE ANNUALE CONOSCIUTO, CON O SENZA CAPITALE INIZIALE A UN TASSO DI RIV CONOSCIUTO CHE MONTANTE AVRO' TRA X ANNI?",null,null,null,null,null,null,null,null,null,null,null,null,null,null,null,"INVESTENDO UN CAPITALE ANNUALE CONOSCIUTO, CON O SENZA CAPITALE INIZIALE A UN TASSO DI RIV CONOSCIUTO CHE MONTANTE AVRO' TRA X ANNI?",null,null,null,null,null,null,null,null,null,null,null,null,null,null,null,"INVESTENDO UN CAPITALE ANNUALE CONOSCIUTO, CON O SENZA CAPITALE INIZIALE A UN TASSO DI RIV CONOSCIUTO CHE MONTANTE AVRO' TRA X ANNI?",null,null,null,null,null,null,null,null,null,null,null,null,null,null,null,"INVESTENDO UN CAPITALE ANNUALE CONOSCIUTO, CON O SENZA CAPITALE INIZIALE A UN TASSO DI RIV CONOSCIUTO CHE MONTANTE AVRO' TRA X ANNI?",null,null,null,null,null,null,null,null,null,null,null,null,null,null,null,"INVESTENDO UN CAPITALE ANNUALE CONOSCIUTO, CON O SENZA CAPITALE INIZIALE A UN TASSO DI RIV CONOSCIUTO CHE MONTANTE AVRO' TRA X ANNI?",null,null,null,null,null,null,null,null,null,null,null,null,null,null,null,"INVESTENDO UN CAPITALE ANNUALE CONOSCIUTO, CON O SENZA CAPITALE INIZIALE A UN TASSO DI RIV CONOSCIUTO CHE MONTANTE AVRO' TRA X ANNI?",null,null,null,null,null,null,null,null,null,null,null,null,null,null,null,"INVESTENDO UN CAPITALE ANNUALE CONOSCIUTO, CON O SENZA CAPITALE INIZIALE A UN TASSO DI RIV CONOSCIUTO CHE MONTANTE AVRO' TRA X ANNI?",null,null,null,null,null,null,null,null,null,null,null,null,null,null,null,"INVESTENDO UN CAPITALE ANNUALE CONOSCIUTO, CON O SENZA CAPITALE INIZIALE A UN TASSO DI RIV CONOSCIUTO CHE MONTANTE AVRO' TRA X ANNI?",null,null,null,null,null,null,null,null,null,null,null,null,null,null,null,"INVESTENDO UN CAPITALE ANNUALE CONOSCIUTO, CON O SENZA CAPITALE INIZIALE A UN TASSO DI RIV CONOSCIUTO CHE MONTANTE AVRO' TRA X ANNI?",null,null,null,null,null,null,null,null,null,null,null,null,null,null,null,"INVESTENDO UN CAPITALE ANNUALE CONOSCIUTO, CON O SENZA CAPITALE INIZIALE A UN TASSO DI RIV CONOSCIUTO CHE MONTANTE AVRO' TRA X ANNI?",null,null,null,null,null,null,null,null,null,null,null,null,null,null,null,"INVESTENDO UN CAPITALE ANNUALE CONOSCIUTO, CON O SENZA CAPITALE INIZIALE A UN TASSO DI RIV CONOSCIUTO CHE MONTANTE AVRO' TRA X ANNI?",null,null,null,null,null,null,null,null,null,null,null,null,null,null,null,"INVESTENDO UN CAPITALE ANNUALE CONOSCIUTO, CON O SENZA CAPITALE INIZIALE A UN TASSO DI RIV CONOSCIUTO CHE MONTANTE AVRO' TRA X ANNI?",null,null,null,null,null,null,null,null,null,null,null,null,null,null,null,"INVESTENDO UN CAPITALE ANNUALE CONOSCIUTO, CON O SENZA CAPITALE INIZIALE A UN TASSO DI RIV CONOSCIUTO CHE MONTANTE AVRO' TRA X ANNI?",null,null,null,null,null,null,null,null,null,null,null,null,null,null,null,"INVESTENDO UN CAPITALE ANNUALE CONOSCIUTO, CON O SENZA CAPITALE INIZIALE A UN TASSO DI RIV CONOSCIUTO CHE MONTANTE AVRO' TRA X ANNI?",null,null,null,null,null,null,null,null,null,null,null,null,null,null,null,"INVESTENDO UN CAPITALE ANNUALE CONOSCIUTO, CON O SENZA CAPITALE INIZIALE A UN TASSO DI RIV CONOSCIUTO CHE MONTANTE AVRO' TRA X ANNI?",null,null,null,null,null,null,null,null,null,null,null,null,null,null,null,"INVESTENDO UN CAPITALE ANNUALE CONOSCIUTO, CON O SENZA CAPITALE INIZIALE A UN TASSO DI RIV CONOSCIUTO CHE MONTANTE AVRO' TRA X ANNI?",null,null,null,null,null,null,null,null,null,null,null,null,null,null,null,"INVESTENDO UN CAPITALE ANNUALE CONOSCIUTO, CON O SENZA CAPITALE INIZIALE A UN TASSO DI RIV CONOSCIUTO CHE MONTANTE AVRO' TRA X ANNI?",null,null,null,null,null,null,null,null,null,null,null,null,null,null,null,"INVESTENDO UN CAPITALE ANNUALE CONOSCIUTO, CON O SENZA CAPITALE INIZIALE A UN TASSO DI RIV CONOSCIUTO CHE MONTANTE AVRO' TRA X ANNI?",null,null,null,null,null,null,null,null,null,null,null,null,null,null,null,"INVESTENDO UN CAPITALE ANNUALE CONOSCIUTO, CON O SENZA CAPITALE INIZIALE A UN TASSO DI RIV CONOSCIUTO CHE MONTANTE AVRO' TRA X ANNI?",null,null,null,null,null,null,null,null,null,null,null,null,null,null,null,"INVESTENDO UN CAPITALE ANNUALE CONOSCIUTO, CON O SENZA CAPITALE INIZIALE A UN TASSO DI RIV CONOSCIUTO CHE MONTANTE AVRO' TRA X ANNI?",null,null,null,null,null,null,null,null,null,null,null,null,null,null,null,"INVESTENDO UN CAPITALE ANNUALE CONOSCIUTO, CON O SENZA CAPITALE INIZIALE A UN TASSO DI RIV CONOSCIUTO CHE MONTANTE AVRO' TRA X ANNI?",null,null,null,null,null,null,null,null,null,null,null,null,null,null,null,"INVESTENDO UN CAPITALE ANNUALE CONOSCIUTO, CON O SENZA CAPITALE INIZIALE A UN TASSO DI RIV CONOSCIUTO CHE MONTANTE AVRO' TRA X ANNI?",null,null,null,null,null,null,null,null,null,null,null,null,null,null,null,"INVESTENDO UN CAPITALE ANNUALE CONOSCIUTO, CON O SENZA CAPITALE INIZIALE A UN TASSO DI RIV CONOSCIUTO CHE MONTANTE AVRO' TRA X ANNI?",null,null,null,null,null,null,null,null,null,null,null,null,null,null,null,"INVESTENDO UN CAPITALE ANNUALE CONOSCIUTO, CON O SENZA CAPITALE INIZIALE A UN TASSO DI RIV CONOSCIUTO CHE MONTANTE AVRO' TRA X ANNI?",null,null,null,null,null,null,null,null,null,null,null,null,null,null,null,"INVESTENDO UN CAPITALE ANNUALE CONOSCIUTO, CON O SENZA CAPITALE INIZIALE A UN TASSO DI RIV CONOSCIUTO CHE MONTANTE AVRO' TRA X ANNI?",null,null,null,null,null,null,null,null,null,null,null,null,null,null,null,"INVESTENDO UN CAPITALE ANNUALE CONOSCIUTO, CON O SENZA CAPITALE INIZIALE A UN TASSO DI RIV CONOSCIUTO CHE MONTANTE AVRO' TRA X ANNI?",null,null,null,null,null,null,null,null,null,null,null,null,null,null,null,"INVESTENDO UN CAPITALE ANNUALE CONOSCIUTO, CON O SENZA CAPITALE INIZIALE A UN TASSO DI RIV CONOSCIUTO CHE MONTANTE AVRO' TRA X ANNI?",null,null,null,null,null,null,null,null,null,null,null,null,null,null,null,"INVESTENDO UN CAPITALE ANNUALE CONOSCIUTO, CON O SENZA CAPITALE INIZIALE A UN TASSO DI RIV CONOSCIUTO CHE MONTANTE AVRO' TRA X ANNI?",null,null,null,null,null,null,null,null,null,null,null,null,null,null,null,"INVESTENDO UN CAPITALE ANNUALE CONOSCIUTO, CON O SENZA CAPITALE INIZIALE A UN TASSO DI RIV CONOSCIUTO CHE MONTANTE AVRO' TRA X ANNI?",null,null,null,null,null,null,null,null,null,null,null,null,null,null,null,"INVESTENDO UN CAPITALE ANNUALE CONOSCIUTO, CON O SENZA CAPITALE INIZIALE A UN TASSO DI RIV CONOSCIUTO CHE MONTANTE AVRO' TRA X ANNI?",null,null,null,null,null,null,null,null,null,null,null,null,null,null,null,"INVESTENDO UN CAPITALE ANNUALE CONOSCIUTO, CON O SENZA CAPITALE INIZIALE A UN TASSO DI RIV CONOSCIUTO CHE MONTANTE AVRO' TRA X ANNI?",null,null,null,null,null,null,null,null,null,null,null,null,null,null,null,"INVESTENDO UN CAPITALE ANNUALE CONOSCIUTO, CON O SENZA CAPITALE INIZIALE A UN TASSO DI RIV CONOSCIUTO CHE MONTANTE AVRO' TRA X ANNI?",null,null,null,null,null,null,null,null,null,null,null,null,null,null,null,"INVESTENDO UN CAPITALE ANNUALE CONOSCIUTO, CON O SENZA CAPITALE INIZIALE A UN TASSO DI RIV CONOSCIUTO CHE MONTANTE AVRO' TRA X ANNI?",null,null,null,null,null,null,null,null,null,null,null,null,null,null,null,"INVESTENDO UN CAPITALE ANNUALE CONOSCIUTO, CON O SENZA CAPITALE INIZIALE A UN TASSO DI RIV CONOSCIUTO CHE MONTANTE AVRO' TRA X ANNI?",null,null,null,null,null,null,null,null,null,null,null,null,null,null,null,"INVESTENDO UN CAPITALE ANNUALE CONOSCIUTO, CON O SENZA CAPITALE INIZIALE A UN TASSO DI RIV CONOSCIUTO CHE MONTANTE AVRO' TRA X ANNI?",null,null,null,null,null,null,null,null,null,null,null,null,null,null,null,"INVESTENDO UN CAPITALE ANNUALE CONOSCIUTO, CON O SENZA CAPITALE INIZIALE A UN TASSO DI RIV CONOSCIUTO CHE MONTANTE AVRO' TRA X ANNI?",null,null,null,null,null,null,null,null,null,null,null,null,null,null,null,"INVESTENDO UN CAPITALE ANNUALE CONOSCIUTO, CON O SENZA CAPITALE INIZIALE A UN TASSO DI RIV CONOSCIUTO CHE MONTANTE AVRO' TRA X ANNI?",null,null,null,null,null,null,null,null,null,null,null,null,null,null,null,"INVESTENDO UN CAPITALE ANNUALE CONOSCIUTO, CON O SENZA CAPITALE INIZIALE A UN TASSO DI RIV CONOSCIUTO CHE MONTANTE AVRO' TRA X ANNI?",null,null,null,null,null,null,null,null,null,null,null,null,null,null,null,"INVESTENDO UN CAPITALE ANNUALE CONOSCIUTO, CON O SENZA CAPITALE INIZIALE A UN TASSO DI RIV CONOSCIUTO CHE MONTANTE AVRO' TRA X ANNI?",null,null,null,null,null,null,null,null,null,null,null,null,null,null,null,"INVESTENDO UN CAPITALE ANNUALE CONOSCIUTO, CON O SENZA CAPITALE INIZIALE A UN TASSO DI RIV CONOSCIUTO CHE MONTANTE AVRO' TRA X ANNI?",null,null,null,null,null,null,null,null,null,null,null,null,null,null,null,"INVESTENDO UN CAPITALE ANNUALE CONOSCIUTO, CON O SENZA CAPITALE INIZIALE A UN TASSO DI RIV CONOSCIUTO CHE MONTANTE AVRO' TRA X ANNI?",null,null,null,null,null,null,null,null,null,null,null,null,null,null,null,"INVESTENDO UN CAPITALE ANNUALE CONOSCIUTO, CON O SENZA CAPITALE INIZIALE A UN TASSO DI RIV CONOSCIUTO CHE MONTANTE AVRO' TRA X ANNI?",null,null,null,null,null,null,null,null,null,null,null,null,null,null,null,"INVESTENDO UN CAPITALE ANNUALE CONOSCIUTO, CON O SENZA CAPITALE INIZIALE A UN TASSO DI RIV CONOSCIUTO CHE MONTANTE AVRO' TRA X ANNI?",null,null,null,null,null,null,null,null,null,null,null,null,null,null,null,"INVESTENDO UN CAPITALE ANNUALE CONOSCIUTO, CON O SENZA CAPITALE INIZIALE A UN TASSO DI RIV CONOSCIUTO CHE MONTANTE AVRO' TRA X ANNI?",null,null,null,null,null,null,null,null,null,null,null,null,null,null,null,"INVESTENDO UN CAPITALE ANNUALE CONOSCIUTO, CON O SENZA CAPITALE INIZIALE A UN TASSO DI RIV CONOSCIUTO CHE MONTANTE AVRO' TRA X ANNI?",null,null,null,null,null,null,null,null,null,null,null,null,null,null,null,"INVESTENDO UN CAPITALE ANNUALE CONOSCIUTO, CON O SENZA CAPITALE INIZIALE A UN TASSO DI RIV CONOSCIUTO CHE MONTANTE AVRO' TRA X ANNI?",null,null,null,null,null,null,null,null,null,null,null,null,null,null,null,"INVESTENDO UN CAPITALE ANNUALE CONOSCIUTO, CON O SENZA CAPITALE INIZIALE A UN TASSO DI RIV CONOSCIUTO CHE MONTANTE AVRO' TRA X ANNI?",null,null,null,null,null,null,null,null,null,null,null,null,null,null,null,"INVESTENDO UN CAPITALE ANNUALE CONOSCIUTO, CON O SENZA CAPITALE INIZIALE A UN TASSO DI RIV CONOSCIUTO CHE MONTANTE AVRO' TRA X ANNI?",null,null,null,null,null,null,null,null,null,null,null,null,null,null,null,"INVESTENDO UN CAPITALE ANNUALE CONOSCIUTO, CON O SENZA CAPITALE INIZIALE A UN TASSO DI RIV CONOSCIUTO CHE MONTANTE AVRO' TRA X ANNI?",null,null,null,null,null,null,null,null,null,null,null,null,null,null,null,"INVESTENDO UN CAPITALE ANNUALE CONOSCIUTO, CON O SENZA CAPITALE INIZIALE A UN TASSO DI RIV CONOSCIUTO CHE MONTANTE AVRO' TRA X ANNI?",null,null,null,null,null,null,null,null,null,null,null,null,null,null,null,"INVESTENDO UN CAPITALE ANNUALE CONOSCIUTO, CON O SENZA CAPITALE INIZIALE A UN TASSO DI RIV CONOSCIUTO CHE MONTANTE AVRO' TRA X ANNI?",null,null,null,null,null,null,null,null,null,null,null,null,null,null,null,"INVESTENDO UN CAPITALE ANNUALE CONOSCIUTO, CON O SENZA CAPITALE INIZIALE A UN TASSO DI RIV CONOSCIUTO CHE MONTANTE AVRO' TRA X ANNI?",null,null,null,null,null,null,null,null,null,null,null,null,null,null,null,"INVESTENDO UN CAPITALE ANNUALE CONOSCIUTO, CON O SENZA CAPITALE INIZIALE A UN TASSO DI RIV CONOSCIUTO CHE MONTANTE AVRO' TRA X ANNI?",null,null,null,null,null,null,null,null,null,null,null,null,null,null,null,"INVESTENDO UN CAPITALE ANNUALE CONOSCIUTO, CON O SENZA CAPITALE INIZIALE A UN TASSO DI RIV CONOSCIUTO CHE MONTANTE AVRO' TRA X ANNI?",null,null,null,null,null,null,null,null,null,null,null,null,null,null,null,"INVESTENDO UN CAPITALE ANNUALE CONOSCIUTO, CON O SENZA CAPITALE INIZIALE A UN TASSO DI RIV CONOSCIUTO CHE MONTANTE AVRO' TRA X ANNI?",null,null,null,null,null,null,null,null,null,null,null,null,null,null,null,"INVESTENDO UN CAPITALE ANNUALE CONOSCIUTO, CON O SENZA CAPITALE INIZIALE A UN TASSO DI RIV CONOSCIUTO CHE MONTANTE AVRO' TRA X ANNI?",null,null,null,null,null,null,null,null,null,null,null,null,null,null,null,"INVESTENDO UN CAPITALE ANNUALE CONOSCIUTO, CON O SENZA CAPITALE INIZIALE A UN TASSO DI RIV CONOSCIUTO CHE MONTANTE AVRO' TRA X ANNI?",null,null,null,null,null,null,null,null,null,null,null,null,null,null,null,"INVESTENDO UN CAPITALE ANNUALE CONOSCIUTO, CON O SENZA CAPITALE INIZIALE A UN TASSO DI RIV CONOSCIUTO CHE MONTANTE AVRO' TRA X ANNI?",null,null,null,null,null,null,null,null,null,null,null,null,null,null,null,"INVESTENDO UN CAPITALE ANNUALE CONOSCIUTO, CON O SENZA CAPITALE INIZIALE A UN TASSO DI RIV CONOSCIUTO CHE MONTANTE AVRO' TRA X ANNI?",null,null,null,null,null,null,null,null,null,null,null,null,null,null,null,"INVESTENDO UN CAPITALE ANNUALE CONOSCIUTO, CON O SENZA CAPITALE INIZIALE A UN TASSO DI RIV CONOSCIUTO CHE MONTANTE AVRO' TRA X ANNI?",null,null,null,null,null,null,null,null,null,null,null,null,null,null,null,"INVESTENDO UN CAPITALE ANNUALE CONOSCIUTO, CON O SENZA CAPITALE INIZIALE A UN TASSO DI RIV CONOSCIUTO CHE MONTANTE AVRO' TRA X ANNI?",null,null,null,null,null,null,null,null,null,null,null,null,null,null,null,"INVESTENDO UN CAPITALE ANNUALE CONOSCIUTO, CON O SENZA CAPITALE INIZIALE A UN TASSO DI RIV CONOSCIUTO CHE MONTANTE AVRO' TRA X ANNI?",null,null,null,null,null,null,null,null,null,null,null,null,null,null,null,"INVESTENDO UN CAPITALE ANNUALE CONOSCIUTO, CON O SENZA CAPITALE INIZIALE A UN TASSO DI RIV CONOSCIUTO CHE MONTANTE AVRO' TRA X ANNI?",null,null,null,null,null,null,null,null,null,null,null,null,null,null,null,"INVESTENDO UN CAPITALE ANNUALE CONOSCIUTO, CON O SENZA CAPITALE INIZIALE A UN TASSO DI RIV CONOSCIUTO CHE MONTANTE AVRO' TRA X ANNI?",null,null,null,null,null,null,null,null,null,null,null,null,null,null,null,"INVESTENDO UN CAPITALE ANNUALE CONOSCIUTO, CON O SENZA CAPITALE INIZIALE A UN TASSO DI RIV CONOSCIUTO CHE MONTANTE AVRO' TRA X ANNI?",null,null,null,null,null,null,null,null,null,null,null,null,null,null,null,"INVESTENDO UN CAPITALE ANNUALE CONOSCIUTO, CON O SENZA CAPITALE INIZIALE A UN TASSO DI RIV CONOSCIUTO CHE MONTANTE AVRO' TRA X ANNI?",null,null,null,null,null,null,null,null,null,null,null,null,null,null,null,"INVESTENDO UN CAPITALE ANNUALE CONOSCIUTO, CON O SENZA CAPITALE INIZIALE A UN TASSO DI RIV CONOSCIUTO CHE MONTANTE AVRO' TRA X ANNI?",null,null,null,null,null,null,null,null,null,null,null,null,null,null,null,"INVESTENDO UN CAPITALE ANNUALE CONOSCIUTO, CON O SENZA CAPITALE INIZIALE A UN TASSO DI RIV CONOSCIUTO CHE MONTANTE AVRO' TRA X ANNI?",null,null,null,null,null,null,null,null,null,null,null,null,null,null,null,"INVESTENDO UN CAPITALE ANNUALE CONOSCIUTO, CON O SENZA CAPITALE INIZIALE A UN TASSO DI RIV CONOSCIUTO CHE MONTANTE AVRO' TRA X ANNI?",null,null,null,null,null,null,null,null,null,null,null,null,null,null,null,"INVESTENDO UN CAPITALE ANNUALE CONOSCIUTO, CON O SENZA CAPITALE INIZIALE A UN TASSO DI RIV CONOSCIUTO CHE MONTANTE AVRO' TRA X ANNI?",null,null,null,null,null,null,null,null,null,null,null,null,null,null,null,"INVESTENDO UN CAPITALE ANNUALE CONOSCIUTO, CON O SENZA CAPITALE INIZIALE A UN TASSO DI RIV CONOSCIUTO CHE MONTANTE AVRO' TRA X ANNI?",null,null,null,null,null,null,null,null,null,null,null,null,null,null,null,"INVESTENDO UN CAPITALE ANNUALE CONOSCIUTO, CON O SENZA CAPITALE INIZIALE A UN TASSO DI RIV CONOSCIUTO CHE MONTANTE AVRO' TRA X ANNI?",null,null,null,null,null,null,null,null,null,null,null,null,null,null,null,"INVESTENDO UN CAPITALE ANNUALE CONOSCIUTO, CON O SENZA CAPITALE INIZIALE A UN TASSO DI RIV CONOSCIUTO CHE MONTANTE AVRO' TRA X ANNI?",null,null,null,null,null,null,null,null,null,null,null,null,null,null,null,"INVESTENDO UN CAPITALE ANNUALE CONOSCIUTO, CON O SENZA CAPITALE INIZIALE A UN TASSO DI RIV CONOSCIUTO CHE MONTANTE AVRO' TRA X ANNI?",null,null,null,null,null,null,null,null,null,null,null,null,null,null,null,"INVESTENDO UN CAPITALE ANNUALE CONOSCIUTO, CON O SENZA CAPITALE INIZIALE A UN TASSO DI RIV CONOSCIUTO CHE MONTANTE AVRO' TRA X ANNI?",null,null,null,null,null,null,null,null,null,null,null,null,null,null,null,"INVESTENDO UN CAPITALE ANNUALE CONOSCIUTO, CON O SENZA CAPITALE INIZIALE A UN TASSO DI RIV CONOSCIUTO CHE MONTANTE AVRO' TRA X ANNI?",null,null,null,null,null,null,null,null,null,null,null,null,null,null,null,"INVESTENDO UN CAPITALE ANNUALE CONOSCIUTO, CON O SENZA CAPITALE INIZIALE A UN TASSO DI RIV CONOSCIUTO CHE MONTANTE AVRO' TRA X ANNI?",null,null,null,null,null,null,null,null,null,null,null,null,null,null,null,"INVESTENDO UN CAPITALE ANNUALE CONOSCIUTO, CON O SENZA CAPITALE INIZIALE A UN TASSO DI RIV CONOSCIUTO CHE MONTANTE AVRO' TRA X ANNI?",null,null,null,null,null,null,null,null,null,null,null,null,null,null,null,"INVESTENDO UN CAPITALE ANNUALE CONOSCIUTO, CON O SENZA CAPITALE INIZIALE A UN TASSO DI RIV CONOSCIUTO CHE MONTANTE AVRO' TRA X ANNI?",null,null,null,null,null,null,null,null,null,null,null,null,null,null,null,"INVESTENDO UN CAPITALE ANNUALE CONOSCIUTO, CON O SENZA CAPITALE INIZIALE A UN TASSO DI RIV CONOSCIUTO CHE MONTANTE AVRO' TRA X ANNI?",null,null,null,null,null,null,null,null,null,null,null,null,null,null,null,"INVESTENDO UN CAPITALE ANNUALE CONOSCIUTO, CON O SENZA CAPITALE INIZIALE A UN TASSO DI RIV CONOSCIUTO CHE MONTANTE AVRO' TRA X ANNI?",null,null,null,null,null,null,null,null,null,null,null,null,null,null,null,"INVESTENDO UN CAPITALE ANNUALE CONOSCIUTO, CON O SENZA CAPITALE INIZIALE A UN TASSO DI RIV CONOSCIUTO CHE MONTANTE AVRO' TRA X ANNI?",null,null,null,null,null,null,null,null,null,null,null,null,null,null,null,"INVESTENDO UN CAPITALE ANNUALE CONOSCIUTO, CON O SENZA CAPITALE INIZIALE A UN TASSO DI RIV CONOSCIUTO CHE MONTANTE AVRO' TRA X ANNI?",null,null,null,null,null,null,null,null,null,null,null,null,null,null,null,"INVESTENDO UN CAPITALE ANNUALE CONOSCIUTO, CON O SENZA CAPITALE INIZIALE A UN TASSO DI RIV CONOSCIUTO CHE MONTANTE AVRO' TRA X ANNI?",null,null,null,null,null,null,null,null,null,null,null,null,null,null,null,"INVESTENDO UN CAPITALE ANNUALE CONOSCIUTO, CON O SENZA CAPITALE INIZIALE A UN TASSO DI RIV CONOSCIUTO CHE MONTANTE AVRO' TRA X ANNI?",null,null,null,null,null,null,null,null,null,null,null,null,null,null,null,"INVESTENDO UN CAPITALE ANNUALE CONOSCIUTO, CON O SENZA CAPITALE INIZIALE A UN TASSO DI RIV CONOSCIUTO CHE MONTANTE AVRO' TRA X ANNI?",null,null,null,null,null,null,null,null,null,null,null,null,null,null,null,"INVESTENDO UN CAPITALE ANNUALE CONOSCIUTO, CON O SENZA CAPITALE INIZIALE A UN TASSO DI RIV CONOSCIUTO CHE MONTANTE AVRO' TRA X ANNI?",null,null,null,null,null,null,null,null,null,null,null,null,null,null,null,"INVESTENDO UN CAPITALE ANNUALE CONOSCIUTO, CON O SENZA CAPITALE INIZIALE A UN TASSO DI RIV CONOSCIUTO CHE MONTANTE AVRO' TRA X ANNI?",null,null,null,null,null,null,null,null,null,null,null,null,null,null,null,"INVESTENDO UN CAPITALE ANNUALE CONOSCIUTO, CON O SENZA CAPITALE INIZIALE A UN TASSO DI RIV CONOSCIUTO CHE MONTANTE AVRO' TRA X ANNI?",null,null,null,null,null,null,null,null,null,null,null,null,null,null,null,"INVESTENDO UN CAPITALE ANNUALE CONOSCIUTO, CON O SENZA CAPITALE INIZIALE A UN TASSO DI RIV CONOSCIUTO CHE MONTANTE AVRO' TRA X ANNI?",null,null,null,null,null,null,null,null,null,null,null,null,null,null,null,"INVESTENDO UN CAPITALE ANNUALE CONOSCIUTO, CON O SENZA CAPITALE INIZIALE A UN TASSO DI RIV CONOSCIUTO CHE MONTANTE AVRO' TRA X ANNI?",null,null,null,null,null,null,null,null,null,null,null,null,null,null,null,"INVESTENDO UN CAPITALE ANNUALE CONOSCIUTO, CON O SENZA CAPITALE INIZIALE A UN TASSO DI RIV CONOSCIUTO CHE MONTANTE AVRO' TRA X ANNI?",null,null,null,null,null,null,null,null,null,null,null,null,null,null,null,"INVESTENDO UN CAPITALE ANNUALE CONOSCIUTO, CON O SENZA CAPITALE INIZIALE A UN TASSO DI RIV CONOSCIUTO CHE MONTANTE AVRO' TRA X ANNI?",null,null,null,null,null,null,null,null,null,null,null,null,null,null,null,"INVESTENDO UN CAPITALE ANNUALE CONOSCIUTO, CON O SENZA CAPITALE INIZIALE A UN TASSO DI RIV CONOSCIUTO CHE MONTANTE AVRO' TRA X ANNI?",null,null,null,null,null,null,null,null,null,null,null,null,null,null,null,"INVESTENDO UN CAPITALE ANNUALE CONOSCIUTO, CON O SENZA CAPITALE INIZIALE A UN TASSO DI RIV CONOSCIUTO CHE MONTANTE AVRO' TRA X ANNI?",null,null,null,null,null,null,null,null,null,null,null,null,null,null,null,"INVESTENDO UN CAPITALE ANNUALE CONOSCIUTO, CON O SENZA CAPITALE INIZIALE A UN TASSO DI RIV CONOSCIUTO CHE MONTANTE AVRO' TRA X ANNI?",null,null,null,null,null,null,null,null,null,null,null,null,null,null,null,"INVESTENDO UN CAPITALE ANNUALE CONOSCIUTO, CON O SENZA CAPITALE INIZIALE A UN TASSO DI RIV CONOSCIUTO CHE MONTANTE AVRO' TRA X ANNI?",null,null,null,null,null,null,null,null,null,null,null,null,null,null,null,"INVESTENDO UN CAPITALE ANNUALE CONOSCIUTO, CON O SENZA CAPITALE INIZIALE A UN TASSO DI RIV CONOSCIUTO CHE MONTANTE AVRO' TRA X ANNI?",null,null,null,null,null,null,null,null,null,null,null,null,null,null,null,"INVESTENDO UN CAPITALE ANNUALE CONOSCIUTO, CON O SENZA CAPITALE INIZIALE A UN TASSO DI RIV CONOSCIUTO CHE MONTANTE AVRO' TRA X ANNI?",null,null,null,null,null,null,null,null,null,null,null,null,null,null,null,"INVESTENDO UN CAPITALE ANNUALE CONOSCIUTO, CON O SENZA CAPITALE INIZIALE A UN TASSO DI RIV CONOSCIUTO CHE MONTANTE AVRO' TRA X ANNI?",null,null,null,null,null,null,null,null,null,null,null,null,null,null,null,"INVESTENDO UN CAPITALE ANNUALE CONOSCIUTO, CON O SENZA CAPITALE INIZIALE A UN TASSO DI RIV CONOSCIUTO CHE MONTANTE AVRO' TRA X ANNI?",null,null,null,null,null,null,null,null,null,null,null,null,null,null,null,"INVESTENDO UN CAPITALE ANNUALE CONOSCIUTO, CON O SENZA CAPITALE INIZIALE A UN TASSO DI RIV CONOSCIUTO CHE MONTANTE AVRO' TRA X ANNI?",null,null,null,null,null,null,null,null,null,null,null,null,null,null,null,"INVESTENDO UN CAPITALE ANNUALE CONOSCIUTO, CON O SENZA CAPITALE INIZIALE A UN TASSO DI RIV CONOSCIUTO CHE MONTANTE AVRO' TRA X ANNI?",null,null,null,null,null,null,null,null,null,null,null,null,null,null,null,"INVESTENDO UN CAPITALE ANNUALE CONOSCIUTO, CON O SENZA CAPITALE INIZIALE A UN TASSO DI RIV CONOSCIUTO CHE MONTANTE AVRO' TRA X ANNI?",null,null,null,null,null,null,null,null,null,null,null,null,null,null,null,"INVESTENDO UN CAPITALE ANNUALE CONOSCIUTO, CON O SENZA CAPITALE INIZIALE A UN TASSO DI RIV CONOSCIUTO CHE MONTANTE AVRO' TRA X ANNI?",null,null,null,null,null,null,null,null,null,null,null,null,null,null,null,"INVESTENDO UN CAPITALE ANNUALE CONOSCIUTO, CON O SENZA CAPITALE INIZIALE A UN TASSO DI RIV CONOSCIUTO CHE MONTANTE AVRO' TRA X ANNI?",null,null,null,null,null,null,null,null,null,null,null,null,null,null,null,"INVESTENDO UN CAPITALE ANNUALE CONOSCIUTO, CON O SENZA CAPITALE INIZIALE A UN TASSO DI RIV CONOSCIUTO CHE MONTANTE AVRO' TRA X ANNI?",null,null,null,null,null,null,null,null,null,null,null,null,null,null,null,"INVESTENDO UN CAPITALE ANNUALE CONOSCIUTO, CON O SENZA CAPITALE INIZIALE A UN TASSO DI RIV CONOSCIUTO CHE MONTANTE AVRO' TRA X ANNI?",null,null,null,null,null,null,null,null,null,null,null,null,null,null,null,"INVESTENDO UN CAPITALE ANNUALE CONOSCIUTO, CON O SENZA CAPITALE INIZIALE A UN TASSO DI RIV CONOSCIUTO CHE MONTANTE AVRO' TRA X ANNI?",null,null,null,null,null,null,null,null,null,null,null,null,null,null,null,"INVESTENDO UN CAPITALE ANNUALE CONOSCIUTO, CON O SENZA CAPITALE INIZIALE A UN TASSO DI RIV CONOSCIUTO CHE MONTANTE AVRO' TRA X ANNI?",null,null,null,null,null,null,null,null,null,null,null,null,null,null,null,"INVESTENDO UN CAPITALE ANNUALE CONOSCIUTO, CON O SENZA CAPITALE INIZIALE A UN TASSO DI RIV CONOSCIUTO CHE MONTANTE AVRO' TRA X ANNI?",null,null,null,null,null,null,null,null,null,null,null,null,null,null,null,"INVESTENDO UN CAPITALE ANNUALE CONOSCIUTO, CON O SENZA CAPITALE INIZIALE A UN TASSO DI RIV CONOSCIUTO CHE MONTANTE AVRO' TRA X ANNI?",null,null,null,null,null,null,null,null,null,null,null,null,null,null,null,"INVESTENDO UN CAPITALE ANNUALE CONOSCIUTO, CON O SENZA CAPITALE INIZIALE A UN TASSO DI RIV CONOSCIUTO CHE MONTANTE AVRO' TRA X ANNI?",null,null,null,null,null,null,null,null,null,null,null,null,null,null,null,"INVESTENDO UN CAPITALE ANNUALE CONOSCIUTO, CON O SENZA CAPITALE INIZIALE A UN TASSO DI RIV CONOSCIUTO CHE MONTANTE AVRO' TRA X ANNI?",null,null,null,null,null,null,null,null,null,null,null,null,null,null,null,"INVESTENDO UN CAPITALE ANNUALE CONOSCIUTO, CON O SENZA CAPITALE INIZIALE A UN TASSO DI RIV CONOSCIUTO CHE MONTANTE AVRO' TRA X ANNI?",null,null,null,null,null,null,null,null,null,null,null,null,null,null,null,"INVESTENDO UN CAPITALE ANNUALE CONOSCIUTO, CON O SENZA CAPITALE INIZIALE A UN TASSO DI RIV CONOSCIUTO CHE MONTANTE AVRO' TRA X ANNI?",null,null,null,null,null,null,null,null,null,null,null,null,null,null,null,"INVESTENDO UN CAPITALE ANNUALE CONOSCIUTO, CON O SENZA CAPITALE INIZIALE A UN TASSO DI RIV CONOSCIUTO CHE MONTANTE AVRO' TRA X ANNI?",null,null,null,null,null,null,null,null,null,null,null,null,null,null,null,"INVESTENDO UN CAPITALE ANNUALE CONOSCIUTO, CON O SENZA CAPITALE INIZIALE A UN TASSO DI RIV CONOSCIUTO CHE MONTANTE AVRO' TRA X ANNI?",null,null,null,null,null,null,null,null,null,null,null,null,null,null,null,"INVESTENDO UN CAPITALE ANNUALE CONOSCIUTO, CON O SENZA CAPITALE INIZIALE A UN TASSO DI RIV CONOSCIUTO CHE MONTANTE AVRO' TRA X ANNI?",null,null,null,null,null,null,null,null,null,null,null,null,null,null,null,"INVESTENDO UN CAPITALE ANNUALE CONOSCIUTO, CON O SENZA CAPITALE INIZIALE A UN TASSO DI RIV CONOSCIUTO CHE MONTANTE AVRO' TRA X ANNI?",null,null,null,null,null,null,null,null,null,null,null,null,null,null,null,"INVESTENDO UN CAPITALE ANNUALE CONOSCIUTO, CON O SENZA CAPITALE INIZIALE A UN TASSO DI RIV CONOSCIUTO CHE MONTANTE AVRO' TRA X ANNI?",null,null,null,null,null,null,null,null,null,null,null,null,null,null,null,"INVESTENDO UN CAPITALE ANNUALE CONOSCIUTO, CON O SENZA CAPITALE INIZIALE A UN TASSO DI RIV CONOSCIUTO CHE MONTANTE AVRO' TRA X ANNI?",null,null,null,null,null,null,null,null,null,null,null,null,null,null,null,"INVESTENDO UN CAPITALE ANNUALE CONOSCIUTO, CON O SENZA CAPITALE INIZIALE A UN TASSO DI RIV CONOSCIUTO CHE MONTANTE AVRO' TRA X ANNI?",null,null,null,null,null,null,null,null,null,null,null,null,null,null,null,"INVESTENDO UN CAPITALE ANNUALE CONOSCIUTO, CON O SENZA CAPITALE INIZIALE A UN TASSO DI RIV CONOSCIUTO CHE MONTANTE AVRO' TRA X ANNI?",null,null,null,null,null,null,null,null,null,null,null,null,null,null,null,"INVESTENDO UN CAPITALE ANNUALE CONOSCIUTO, CON O SENZA CAPITALE INIZIALE A UN TASSO DI RIV CONOSCIUTO CHE MONTANTE AVRO' TRA X ANNI?",null,null,null,null,null,null,null,null,null,null,null,null,null,null,null,"INVESTENDO UN CAPITALE ANNUALE CONOSCIUTO, CON O SENZA CAPITALE INIZIALE A UN TASSO DI RIV CONOSCIUTO CHE MONTANTE AVRO' TRA X ANNI?",null,null,null,null,null,null,null,null,null,null,null,null,null,null,null,"INVESTENDO UN CAPITALE ANNUALE CONOSCIUTO, CON O SENZA CAPITALE INIZIALE A UN TASSO DI RIV CONOSCIUTO CHE MONTANTE AVRO' TRA X ANNI?",null,null,null,null,null,null,null,null,null,null,null,null,null,null,null,"INVESTENDO UN CAPITALE ANNUALE CONOSCIUTO, CON O SENZA CAPITALE INIZIALE A UN TASSO DI RIV CONOSCIUTO CHE MONTANTE AVRO' TRA X ANNI?",null,null,null,null,null,null,null,null,null,null,null,null,null,null,null,"INVESTENDO UN CAPITALE ANNUALE CONOSCIUTO, CON O SENZA CAPITALE INIZIALE A UN TASSO DI RIV CONOSCIUTO CHE MONTANTE AVRO' TRA X ANNI?",null,null,null,null,null,null,null,null,null,null,null,null,null,null,null,"INVESTENDO UN CAPITALE ANNUALE CONOSCIUTO, CON O SENZA CAPITALE INIZIALE A UN TASSO DI RIV CONOSCIUTO CHE MONTANTE AVRO' TRA X ANNI?",null,null,null,null,null,null,null,null,null,null,null,null,null,null,null,"INVESTENDO UN CAPITALE ANNUALE CONOSCIUTO, CON O SENZA CAPITALE INIZIALE A UN TASSO DI RIV CONOSCIUTO CHE MONTANTE AVRO' TRA X ANNI?",null,null,null,null,null,null,null,null,null,null,null,null,null,null,null,"INVESTENDO UN CAPITALE ANNUALE CONOSCIUTO, CON O SENZA CAPITALE INIZIALE A UN TASSO DI RIV CONOSCIUTO CHE MONTANTE AVRO' TRA X ANNI?",null,null,null,null,null,null,null,null,null,null,null,null,null,null,null,"INVESTENDO UN CAPITALE ANNUALE CONOSCIUTO, CON O SENZA CAPITALE INIZIALE A UN TASSO DI RIV CONOSCIUTO CHE MONTANTE AVRO' TRA X ANNI?",null,null,null,null,null,null,null,null,null,null,null,null,null,null,null,"INVESTENDO UN CAPITALE ANNUALE CONOSCIUTO, CON O SENZA CAPITALE INIZIALE A UN TASSO DI RIV CONOSCIUTO CHE MONTANTE AVRO' TRA X ANNI?",null,null,null,null,null,null,null,null,null,null,null,null,null,null,null,"INVESTENDO UN CAPITALE ANNUALE CONOSCIUTO, CON O SENZA CAPITALE INIZIALE A UN TASSO DI RIV CONOSCIUTO CHE MONTANTE AVRO' TRA X ANNI?",null,null,null,null,null,null,null,null,null,null,null,null,null,null,null,"INVESTENDO UN CAPITALE ANNUALE CONOSCIUTO, CON O SENZA CAPITALE INIZIALE A UN TASSO DI RIV CONOSCIUTO CHE MONTANTE AVRO' TRA X ANNI?",null,null,null,null,null,null,null,null,null,null,null,null,null,null,null,"INVESTENDO UN CAPITALE ANNUALE CONOSCIUTO, CON O SENZA CAPITALE INIZIALE A UN TASSO DI RIV CONOSCIUTO CHE MONTANTE AVRO' TRA X ANNI?",null,null,null,null,null,null,null,null,null,null,null,null,null,null,null,"INVESTENDO UN CAPITALE ANNUALE CONOSCIUTO, CON O SENZA CAPITALE INIZIALE A UN TASSO DI RIV CONOSCIUTO CHE MONTANTE AVRO' TRA X ANNI?",null,null,null,null,null,null,null,null,null,null,null,null,null,null,null,"INVESTENDO UN CAPITALE ANNUALE CONOSCIUTO, CON O SENZA CAPITALE INIZIALE A UN TASSO DI RIV CONOSCIUTO CHE MONTANTE AVRO' TRA X ANNI?",null,null,null,null,null,null,null,null,null,null,null,null,null,null,null,"INVESTENDO UN CAPITALE ANNUALE CONOSCIUTO, CON O SENZA CAPITALE INIZIALE A UN TASSO DI RIV CONOSCIUTO CHE MONTANTE AVRO' TRA X ANNI?",null,null,null,null,null,null,null,null,null,null,null,null,null,null,null,"INVESTENDO UN CAPITALE ANNUALE CONOSCIUTO, CON O SENZA CAPITALE INIZIALE A UN TASSO DI RIV CONOSCIUTO CHE MONTANTE AVRO' TRA X ANNI?",null,null,null,null,null,null,null,null,null,null,null,null,null,null,null,"INVESTENDO UN CAPITALE ANNUALE CONOSCIUTO, CON O SENZA CAPITALE INIZIALE A UN TASSO DI RIV CONOSCIUTO CHE MONTANTE AVRO' TRA X ANNI?",null,null,null,null,null,null,null,null,null,null,null,null,null,null,null,"INVESTENDO UN CAPITALE ANNUALE CONOSCIUTO, CON O SENZA CAPITALE INIZIALE A UN TASSO DI RIV CONOSCIUTO CHE MONTANTE AVRO' TRA X ANNI?",null,null,null,null,null,null,null,null,null,null,null,null,null,null,null,"INVESTENDO UN CAPITALE ANNUALE CONOSCIUTO, CON O SENZA CAPITALE INIZIALE A UN TASSO DI RIV CONOSCIUTO CHE MONTANTE AVRO' TRA X ANNI?",null,null,null,null,null,null,null,null,null,null,null,null,null,null,null,"INVESTENDO UN CAPITALE ANNUALE CONOSCIUTO, CON O SENZA CAPITALE INIZIALE A UN TASSO DI RIV CONOSCIUTO CHE MONTANTE AVRO' TRA X ANNI?",null,null,null,null,null,null,null,null,null,null,null,null,null,null,null,"INVESTENDO UN CAPITALE ANNUALE CONOSCIUTO, CON O SENZA CAPITALE INIZIALE A UN TASSO DI RIV CONOSCIUTO CHE MONTANTE AVRO' TRA X ANNI?",null,null,null,null,null,null,null,null,null,null,null,null,null,null,null,"INVESTENDO UN CAPITALE ANNUALE CONOSCIUTO, CON O SENZA CAPITALE INIZIALE A UN TASSO DI RIV CONOSCIUTO CHE MONTANTE AVRO' TRA X ANNI?",null,null,null,null,null,null,null,null,null,null,null,null,null,null,null,"INVESTENDO UN CAPITALE ANNUALE CONOSCIUTO, CON O SENZA CAPITALE INIZIALE A UN TASSO DI RIV CONOSCIUTO CHE MONTANTE AVRO' TRA X ANNI?",null,null,null,null,null,null,null,null,null,null,null,null,null,null,null,"INVESTENDO UN CAPITALE ANNUALE CONOSCIUTO, CON O SENZA CAPITALE INIZIALE A UN TASSO DI RIV CONOSCIUTO CHE MONTANTE AVRO' TRA X ANNI?",null,null,null,null,null,null,null,null,null,null,null,null,null,null,null,"INVESTENDO UN CAPITALE ANNUALE CONOSCIUTO, CON O SENZA CAPITALE INIZIALE A UN TASSO DI RIV CONOSCIUTO CHE MONTANTE AVRO' TRA X ANNI?",null,null,null,null,null,null,null,null,null,null,null,null,null,null,null,"INVESTENDO UN CAPITALE ANNUALE CONOSCIUTO, CON O SENZA CAPITALE INIZIALE A UN TASSO DI RIV CONOSCIUTO CHE MONTANTE AVRO' TRA X ANNI?",null,null,null,null,null,null,null,null,null,null,null,null,null,null,null,"INVESTENDO UN CAPITALE ANNUALE CONOSCIUTO, CON O SENZA CAPITALE INIZIALE A UN TASSO DI RIV CONOSCIUTO CHE MONTANTE AVRO' TRA X ANNI?",null,null,null,null,null,null,null,null,null,null,null,null,null,null,null,"INVESTENDO UN CAPITALE ANNUALE CONOSCIUTO, CON O SENZA CAPITALE INIZIALE A UN TASSO DI RIV CONOSCIUTO CHE MONTANTE AVRO' TRA X ANNI?",null,null,null,null,null,null,null,null,null,null,null,null,null,null,null,"INVESTENDO UN CAPITALE ANNUALE CONOSCIUTO, CON O SENZA CAPITALE INIZIALE A UN TASSO DI RIV CONOSCIUTO CHE MONTANTE AVRO' TRA X ANNI?",null,null,null,null,null,null,null,null,null,null,null,null,null,null,null,"INVESTENDO UN CAPITALE ANNUALE CONOSCIUTO, CON O SENZA CAPITALE INIZIALE A UN TASSO DI RIV CONOSCIUTO CHE MONTANTE AVRO' TRA X ANNI?",null,null,null,null,null,null,null,null,null,null,null,null,null,null,null,"INVESTENDO UN CAPITALE ANNUALE CONOSCIUTO, CON O SENZA CAPITALE INIZIALE A UN TASSO DI RIV CONOSCIUTO CHE MONTANTE AVRO' TRA X ANNI?",null,null,null,null,null,null,null,null,null,null,null,null,null,null,null,"INVESTENDO UN CAPITALE ANNUALE CONOSCIUTO, CON O SENZA CAPITALE INIZIALE A UN TASSO DI RIV CONOSCIUTO CHE MONTANTE AVRO' TRA X ANNI?",null,null,null,null,null,null,null,null,null,null,null,null,null,null,null,"INVESTENDO UN CAPITALE ANNUALE CONOSCIUTO, CON O SENZA CAPITALE INIZIALE A UN TASSO DI RIV CONOSCIUTO CHE MONTANTE AVRO' TRA X ANNI?",null,null,null,null,null,null,null,null,null,null,null,null,null,null,null,"INVESTENDO UN CAPITALE ANNUALE CONOSCIUTO, CON O SENZA CAPITALE INIZIALE A UN TASSO DI RIV CONOSCIUTO CHE MONTANTE AVRO' TRA X ANNI?",null,null,null,null,null,null,null,null,null,null,null,null,null,null,null,"INVESTENDO UN CAPITALE ANNUALE CONOSCIUTO, CON O SENZA CAPITALE INIZIALE A UN TASSO DI RIV CONOSCIUTO CHE MONTANTE AVRO' TRA X ANNI?",null,null,null,null,null,null,null,null,null,null,null,null,null,null,null,"INVESTENDO UN CAPITALE ANNUALE CONOSCIUTO, CON O SENZA CAPITALE INIZIALE A UN TASSO DI RIV CONOSCIUTO CHE MONTANTE AVRO' TRA X ANNI?",null,null,null,null,null,null,null,null,null,null,null,null,null,null,null,"INVESTENDO UN CAPITALE ANNUALE CONOSCIUTO, CON O SENZA CAPITALE INIZIALE A UN TASSO DI RIV CONOSCIUTO CHE MONTANTE AVRO' TRA X ANNI?",null,null,null,null,null,null,null,null,null,null,null,null,null,null,null,"INVESTENDO UN CAPITALE ANNUALE CONOSCIUTO, CON O SENZA CAPITALE INIZIALE A UN TASSO DI RIV CONOSCIUTO CHE MONTANTE AVRO' TRA X ANNI?",null,null,null,null,null,null,null,null,null,null,null,null,null,null,null,"INVESTENDO UN CAPITALE ANNUALE CONOSCIUTO, CON O SENZA CAPITALE INIZIALE A UN TASSO DI RIV CONOSCIUTO CHE MONTANTE AVRO' TRA X ANNI?",null,null,null,null,null,null,null,null,null,null,null,null,null,null,null,"INVESTENDO UN CAPITALE ANNUALE CONOSCIUTO, CON O SENZA CAPITALE INIZIALE A UN TASSO DI RIV CONOSCIUTO CHE MONTANTE AVRO' TRA X ANNI?",null,null,null,null,null,null,null,null,null,null,null,null,null,null,null,"INVESTENDO UN CAPITALE ANNUALE CONOSCIUTO, CON O SENZA CAPITALE INIZIALE A UN TASSO DI RIV CONOSCIUTO CHE MONTANTE AVRO' TRA X ANNI?",null,null,null,null,null,null,null,null,null,null,null,null,null,null,null,"INVESTENDO UN CAPITALE ANNUALE CONOSCIUTO, CON O SENZA CAPITALE INIZIALE A UN TASSO DI RIV CONOSCIUTO CHE MONTANTE AVRO' TRA X ANNI?",null,null,null,null,null,null,null,null,null,null,null,null,null,null,null,"INVESTENDO UN CAPITALE ANNUALE CONOSCIUTO, CON O SENZA CAPITALE INIZIALE A UN TASSO DI RIV CONOSCIUTO CHE MONTANTE AVRO' TRA X ANNI?",null,null,null,null,null,null,null,null,null,null,null,null,null,null,null,"INVESTENDO UN CAPITALE ANNUALE CONOSCIUTO, CON O SENZA CAPITALE INIZIALE A UN TASSO DI RIV CONOSCIUTO CHE MONTANTE AVRO' TRA X ANNI?",null,null,null,null,null,null,null,null,null,null,null,null,null,null,null,"INVESTENDO UN CAPITALE ANNUALE CONOSCIUTO, CON O SENZA CAPITALE INIZIALE A UN TASSO DI RIV CONOSCIUTO CHE MONTANTE AVRO' TRA X ANNI?",null,null,null,null,null,null,null,null,null,null,null,null,null,null,null,"INVESTENDO UN CAPITALE ANNUALE CONOSCIUTO, CON O SENZA CAPITALE INIZIALE A UN TASSO DI RIV CONOSCIUTO CHE MONTANTE AVRO' TRA X ANNI?",null,null,null,null,null,null,null,null,null,null,null,null,null,null,null,"INVESTENDO UN CAPITALE ANNUALE CONOSCIUTO, CON O SENZA CAPITALE INIZIALE A UN TASSO DI RIV CONOSCIUTO CHE MONTANTE AVRO' TRA X ANNI?",null,null,null,null,null,null,null,null,null,null,null,null,null,null,null,"INVESTENDO UN CAPITALE ANNUALE CONOSCIUTO, CON O SENZA CAPITALE INIZIALE A UN TASSO DI RIV CONOSCIUTO CHE MONTANTE AVRO' TRA X ANNI?",null,null,null,null,null,null,null,null,null,null,null,null,null,null,null,"INVESTENDO UN CAPITALE ANNUALE CONOSCIUTO, CON O SENZA CAPITALE INIZIALE A UN TASSO DI RIV CONOSCIUTO CHE MONTANTE AVRO' TRA X ANNI?",null,null,null,null,null,null,null,null,null,null,null,null,null,null,null,"INVESTENDO UN CAPITALE ANNUALE CONOSCIUTO, CON O SENZA CAPITALE INIZIALE A UN TASSO DI RIV CONOSCIUTO CHE MONTANTE AVRO' TRA X ANNI?",null,null,null,null,null,null,null,null,null,null,null,null,null,null,null,"INVESTENDO UN CAPITALE ANNUALE CONOSCIUTO, CON O SENZA CAPITALE INIZIALE A UN TASSO DI RIV CONOSCIUTO CHE MONTANTE AVRO' TRA X ANNI?",null,null,null,null,null,null,null,null,null,null,null,null,null,null,null,"INVESTENDO UN CAPITALE ANNUALE CONOSCIUTO, CON O SENZA CAPITALE INIZIALE A UN TASSO DI RIV CONOSCIUTO CHE MONTANTE AVRO' TRA X ANNI?",null,null,null,null,null,null,null,null,null,null,null,null,null,null,null,"INVESTENDO UN CAPITALE ANNUALE CONOSCIUTO, CON O SENZA CAPITALE INIZIALE A UN TASSO DI RIV CONOSCIUTO CHE MONTANTE AVRO' TRA X ANNI?",null,null,null,null,null,null,null,null,null,null,null,null,null,null,null,"INVESTENDO UN CAPITALE ANNUALE CONOSCIUTO, CON O SENZA CAPITALE INIZIALE A UN TASSO DI RIV CONOSCIUTO CHE MONTANTE AVRO' TRA X ANNI?",null,null,null,null,null,null,null,null,null,null,null,null,null,null,null,"INVESTENDO UN CAPITALE ANNUALE CONOSCIUTO, CON O SENZA CAPITALE INIZIALE A UN TASSO DI RIV CONOSCIUTO CHE MONTANTE AVRO' TRA X ANNI?",null,null,null,null,null,null,null,null,null,null,null,null,null,null,null,"INVESTENDO UN CAPITALE ANNUALE CONOSCIUTO, CON O SENZA CAPITALE INIZIALE A UN TASSO DI RIV CONOSCIUTO CHE MONTANTE AVRO' TRA X ANNI?",null,null,null,null,null,null,null,null,null,null,null,null,null,null,null,"INVESTENDO UN CAPITALE ANNUALE CONOSCIUTO, CON O SENZA CAPITALE INIZIALE A UN TASSO DI RIV CONOSCIUTO CHE MONTANTE AVRO' TRA X ANNI?",null,null,null,null,null,null,null,null,null,null,null,null,null,null,null,"INVESTENDO UN CAPITALE ANNUALE CONOSCIUTO, CON O SENZA CAPITALE INIZIALE A UN TASSO DI RIV CONOSCIUTO CHE MONTANTE AVRO' TRA X ANNI?",null,null,null,null,null,null,null,null,null,null,null,null,null,null,null,"INVESTENDO UN CAPITALE ANNUALE CONOSCIUTO, CON O SENZA CAPITALE INIZIALE A UN TASSO DI RIV CONOSCIUTO CHE MONTANTE AVRO' TRA X ANNI?",null,null,null,null,null,null,null,null,null,null,null,null,null,null,null,"INVESTENDO UN CAPITALE ANNUALE CONOSCIUTO, CON O SENZA CAPITALE INIZIALE A UN TASSO DI RIV CONOSCIUTO CHE MONTANTE AVRO' TRA X ANNI?",null,null,null,null,null,null,null,null,null,null,null,null,null,null,null,"INVESTENDO UN CAPITALE ANNUALE CONOSCIUTO, CON O SENZA CAPITALE INIZIALE A UN TASSO DI RIV CONOSCIUTO CHE MONTANTE AVRO' TRA X ANNI?",null,null,null,null,null,null,null,null,null,null,null,null,null,null,null,"INVESTENDO UN CAPITALE ANNUALE CONOSCIUTO, CON O SENZA CAPITALE INIZIALE A UN TASSO DI RIV CONOSCIUTO CHE MONTANTE AVRO' TRA X ANNI?",null,null,null,null,null,null,null,null,null,null,null,null,null,null,null,"INVESTENDO UN CAPITALE ANNUALE CONOSCIUTO, CON O SENZA CAPITALE INIZIALE A UN TASSO DI RIV CONOSCIUTO CHE MONTANTE AVRO' TRA X ANNI?",null,null,null,null,null,null,null,null,null,null,null,null,null,null,null,"INVESTENDO UN CAPITALE ANNUALE CONOSCIUTO, CON O SENZA CAPITALE INIZIALE A UN TASSO DI RIV CONOSCIUTO CHE MONTANTE AVRO' TRA X ANNI?",null,null,null,null,null,null,null,null,null,null,null,null,null,null,null,"INVESTENDO UN CAPITALE ANNUALE CONOSCIUTO, CON O SENZA CAPITALE INIZIALE A UN TASSO DI RIV CONOSCIUTO CHE MONTANTE AVRO' TRA X ANNI?",null,null,null,null,null,null,null,null,null,null,null,null,null,null,null,"INVESTENDO UN CAPITALE ANNUALE CONOSCIUTO, CON O SENZA CAPITALE INIZIALE A UN TASSO DI RIV CONOSCIUTO CHE MONTANTE AVRO' TRA X ANNI?",null,null,null,null,null,null,null,null,null,null,null,null,null,null,null,"INVESTENDO UN CAPITALE ANNUALE CONOSCIUTO, CON O SENZA CAPITALE INIZIALE A UN TASSO DI RIV CONOSCIUTO CHE MONTANTE AVRO' TRA X ANNI?",null,null,null,null,null,null,null,null,null,null,null,null,null,null,null,"INVESTENDO UN CAPITALE ANNUALE CONOSCIUTO, CON O SENZA CAPITALE INIZIALE A UN TASSO DI RIV CONOSCIUTO CHE MONTANTE AVRO' TRA X ANNI?",null,null,null,null,null,null,null,null,null,null,null,null,null,null,null,"INVESTENDO UN CAPITALE ANNUALE CONOSCIUTO, CON O SENZA CAPITALE INIZIALE A UN TASSO DI RIV CONOSCIUTO CHE MONTANTE AVRO' TRA X ANNI?",null,null,null,null,null,null,null,null,null,null,null,null,null,null,null,"INVESTENDO UN CAPITALE ANNUALE CONOSCIUTO, CON O SENZA CAPITALE INIZIALE A UN TASSO DI RIV CONOSCIUTO CHE MONTANTE AVRO' TRA X ANNI?",null,null,null,null,null,null,null,null,null,null,null,null,null,null,null,"INVESTENDO UN CAPITALE ANNUALE CONOSCIUTO, CON O SENZA CAPITALE INIZIALE A UN TASSO DI RIV CONOSCIUTO CHE MONTANTE AVRO' TRA X ANNI?",null,null,null,null,null,null,null,null,null,null,null,null,null,null,null,"INVESTENDO UN CAPITALE ANNUALE CONOSCIUTO, CON O SENZA CAPITALE INIZIALE A UN TASSO DI RIV CONOSCIUTO CHE MONTANTE AVRO' TRA X ANNI?",null,null,null,null,null,null,null,null,null,null,null,null,null,null,null,"INVESTENDO UN CAPITALE ANNUALE CONOSCIUTO, CON O SENZA CAPITALE INIZIALE A UN TASSO DI RIV CONOSCIUTO CHE MONTANTE AVRO' TRA X ANNI?",null,null,null,null,null,null,null,null,null,null,null,null,null,null,null,"INVESTENDO UN CAPITALE ANNUALE CONOSCIUTO, CON O SENZA CAPITALE INIZIALE A UN TASSO DI RIV CONOSCIUTO CHE MONTANTE AVRO' TRA X ANNI?",null,null,null,null,null,null,null,null,null,null,null,null,null,null,null,"INVESTENDO UN CAPITALE ANNUALE CONOSCIUTO, CON O SENZA CAPITALE INIZIALE A UN TASSO DI RIV CONOSCIUTO CHE MONTANTE AVRO' TRA X ANNI?",null,null,null,null,null,null,null,null,null,null,null,null,null,null,null,"INVESTENDO UN CAPITALE ANNUALE CONOSCIUTO, CON O SENZA CAPITALE INIZIALE A UN TASSO DI RIV CONOSCIUTO CHE MONTANTE AVRO' TRA X ANNI?",null,null,null,null,null,null,null,null,null,null,null,null,null,null,null,"INVESTENDO UN CAPITALE ANNUALE CONOSCIUTO, CON O SENZA CAPITALE INIZIALE A UN TASSO DI RIV CONOSCIUTO CHE MONTANTE AVRO' TRA X ANNI?",null,null,null,null,null,null,null,null,null,null,null,null,null,null,null,"INVESTENDO UN CAPITALE ANNUALE CONOSCIUTO, CON O SENZA CAPITALE INIZIALE A UN TASSO DI RIV CONOSCIUTO CHE MONTANTE AVRO' TRA X ANNI?",null,null,null,null,null,null,null,null,null,null,null,null,null,null,null,"INVESTENDO UN CAPITALE ANNUALE CONOSCIUTO, CON O SENZA CAPITALE INIZIALE A UN TASSO DI RIV CONOSCIUTO CHE MONTANTE AVRO' TRA X ANNI?",null,null,null,null,null,null,null,null,null,null,null,null,null,null,null,"INVESTENDO UN CAPITALE ANNUALE CONOSCIUTO, CON O SENZA CAPITALE INIZIALE A UN TASSO DI RIV CONOSCIUTO CHE MONTANTE AVRO' TRA X ANNI?",null,null,null,null,null,null,null,null,null,null,null,null,null,null,null,"INVESTENDO UN CAPITALE ANNUALE CONOSCIUTO, CON O SENZA CAPITALE INIZIALE A UN TASSO DI RIV CONOSCIUTO CHE MONTANTE AVRO' TRA X ANNI?",null,null,null,null,null,null,null,null,null,null,null,null,null,null,null,"INVESTENDO UN CAPITALE ANNUALE CONOSCIUTO, CON O SENZA CAPITALE INIZIALE A UN TASSO DI RIV CONOSCIUTO CHE MONTANTE AVRO' TRA X ANNI?",null,null,null,null,null,null,null,null,null,null,null,null,null,null,null,"INVESTENDO UN CAPITALE ANNUALE CONOSCIUTO, CON O SENZA CAPITALE INIZIALE A UN TASSO DI RIV CONOSCIUTO CHE MONTANTE AVRO' TRA X ANNI?",null,null,null,null,null,null,null,null,null,null,null,null,null,null,null,"INVESTENDO UN CAPITALE ANNUALE CONOSCIUTO, CON O SENZA CAPITALE INIZIALE A UN TASSO DI RIV CONOSCIUTO CHE MONTANTE AVRO' TRA X ANNI?",null,null,null,null,null,null,null,null,null,null,null,null,null,null,null,"INVESTENDO UN CAPITALE ANNUALE CONOSCIUTO, CON O SENZA CAPITALE INIZIALE A UN TASSO DI RIV CONOSCIUTO CHE MONTANTE AVRO' TRA X ANNI?",null,null,null,null,null,null,null,null,null,null,null,null,null,null,null,"INVESTENDO UN CAPITALE ANNUALE CONOSCIUTO, CON O SENZA CAPITALE INIZIALE A UN TASSO DI RIV CONOSCIUTO CHE MONTANTE AVRO' TRA X ANNI?",null,null,null,null,null,null,null,null,null,null,null,null,null,null,null,"INVESTENDO UN CAPITALE ANNUALE CONOSCIUTO, CON O SENZA CAPITALE INIZIALE A UN TASSO DI RIV CONOSCIUTO CHE MONTANTE AVRO' TRA X ANNI?",null,null,null,null,null,null,null,null,null,null,null,null,null,null,null,"INVESTENDO UN CAPITALE ANNUALE CONOSCIUTO, CON O SENZA CAPITALE INIZIALE A UN TASSO DI RIV CONOSCIUTO CHE MONTANTE AVRO' TRA X ANNI?",null,null,null,null,null,null,null,null,null,null,null,null,null,null,null,"INVESTENDO UN CAPITALE ANNUALE CONOSCIUTO, CON O SENZA CAPITALE INIZIALE A UN TASSO DI RIV CONOSCIUTO CHE MONTANTE AVRO' TRA X ANNI?",null,null,null,null,null,null,null,null,null,null,null,null,null,null,null,"INVESTENDO UN CAPITALE ANNUALE CONOSCIUTO, CON O SENZA CAPITALE INIZIALE A UN TASSO DI RIV CONOSCIUTO CHE MONTANTE AVRO' TRA X ANNI?",null,null,null,null,null,null,null,null,null,null,null,null,null,null,null,"INVESTENDO UN CAPITALE ANNUALE CONOSCIUTO, CON O SENZA CAPITALE INIZIALE A UN TASSO DI RIV CONOSCIUTO CHE MONTANTE AVRO' TRA X ANNI?",null,null,null,null,null,null,null,null,null,null,null,null,null,null,null,"INVESTENDO UN CAPITALE ANNUALE CONOSCIUTO, CON O SENZA CAPITALE INIZIALE A UN TASSO DI RIV CONOSCIUTO CHE MONTANTE AVRO' TRA X ANNI?",null,null,null,null,null,null,null,null,null,null,null,null,null,null,null,"INVESTENDO UN CAPITALE ANNUALE CONOSCIUTO, CON O SENZA CAPITALE INIZIALE A UN TASSO DI RIV CONOSCIUTO CHE MONTANTE AVRO' TRA X ANNI?",null,null,null,null,null,null,null,null,null,null,null,null,null,null,null,"INVESTENDO UN CAPITALE ANNUALE CONOSCIUTO, CON O SENZA CAPITALE INIZIALE A UN TASSO DI RIV CONOSCIUTO CHE MONTANTE AVRO' TRA X ANNI?",null,null,null,null,null,null,null,null,null,null,null,null,null,null,null,"INVESTENDO UN CAPITALE ANNUALE CONOSCIUTO, CON O SENZA CAPITALE INIZIALE A UN TASSO DI RIV CONOSCIUTO CHE MONTANTE AVRO' TRA X ANNI?",null,null,null,null,null,null,null,null,null,null,null,null,null,null,null,"INVESTENDO UN CAPITALE ANNUALE CONOSCIUTO, CON O SENZA CAPITALE INIZIALE A UN TASSO DI RIV CONOSCIUTO CHE MONTANTE AVRO' TRA X ANNI?",null,null,null,null,null,null,null,null,null,null,null,null,null,null,null,"INVESTENDO UN CAPITALE ANNUALE CONOSCIUTO, CON O SENZA CAPITALE INIZIALE A UN TASSO DI RIV CONOSCIUTO CHE MONTANTE AVRO' TRA X ANNI?",null,null,null,null,null,null,null,null,null,null,null,null,null,null,null,"INVESTENDO UN CAPITALE ANNUALE CONOSCIUTO, CON O SENZA CAPITALE INIZIALE A UN TASSO DI RIV CONOSCIUTO CHE MONTANTE AVRO' TRA X ANNI?",null,null,null,null,null,null,null,null,null,null,null,null,null,null,null,"INVESTENDO UN CAPITALE ANNUALE CONOSCIUTO, CON O SENZA CAPITALE INIZIALE A UN TASSO DI RIV CONOSCIUTO CHE MONTANTE AVRO' TRA X ANNI?",null,null,null,null,null,null,null,null,null,null,null,null,null,null,null,"INVESTENDO UN CAPITALE ANNUALE CONOSCIUTO, CON O SENZA CAPITALE INIZIALE A UN TASSO DI RIV CONOSCIUTO CHE MONTANTE AVRO' TRA X ANNI?",null,null,null,null,null,null,null,null,null,null,null,null,null,null,null,"INVESTENDO UN CAPITALE ANNUALE CONOSCIUTO, CON O SENZA CAPITALE INIZIALE A UN TASSO DI RIV CONOSCIUTO CHE MONTANTE AVRO' TRA X ANNI?",null,null,null,null,null,null,null,null,null,null,null,null,null,null,null,"INVESTENDO UN CAPITALE ANNUALE CONOSCIUTO, CON O SENZA CAPITALE INIZIALE A UN TASSO DI RIV CONOSCIUTO CHE MONTANTE AVRO' TRA X ANNI?",null,null,null,null,null,null,null,null,null,null,null,null,null,null,null,"INVESTENDO UN CAPITALE ANNUALE CONOSCIUTO, CON O SENZA CAPITALE INIZIALE A UN TASSO DI RIV CONOSCIUTO CHE MONTANTE AVRO' TRA X ANNI?",null,null,null,null,null,null,null,null,null,null,null,null,null,null,null,"INVESTENDO UN CAPITALE ANNUALE CONOSCIUTO, CON O SENZA CAPITALE INIZIALE A UN TASSO DI RIV CONOSCIUTO CHE MONTANTE AVRO' TRA X ANNI?",null,null,null,null,null,null,null,null,null,null,null,null,null,null,null,"INVESTENDO UN CAPITALE ANNUALE CONOSCIUTO, CON O SENZA CAPITALE INIZIALE A UN TASSO DI RIV CONOSCIUTO CHE MONTANTE AVRO' TRA X ANNI?",null,null,null,null,null,null,null,null,null,null,null,null,null,null,null,"INVESTENDO UN CAPITALE ANNUALE CONOSCIUTO, CON O SENZA CAPITALE INIZIALE A UN TASSO DI RIV CONOSCIUTO CHE MONTANTE AVRO' TRA X ANNI?",null,null,null,null,null,null,null,null,null,null,null,null,null,null,null,"INVESTENDO UN CAPITALE ANNUALE CONOSCIUTO, CON O SENZA CAPITALE INIZIALE A UN TASSO DI RIV CONOSCIUTO CHE MONTANTE AVRO' TRA X ANNI?",null,null,null,null,null,null,null,null,null,null,null,null,null,null,null,"INVESTENDO UN CAPITALE ANNUALE CONOSCIUTO, CON O SENZA CAPITALE INIZIALE A UN TASSO DI RIV CONOSCIUTO CHE MONTANTE AVRO' TRA X ANNI?",null,null,null,null,null,null,null,null,null,null,null,null,null,null,null,"INVESTENDO UN CAPITALE ANNUALE CONOSCIUTO, CON O SENZA CAPITALE INIZIALE A UN TASSO DI RIV CONOSCIUTO CHE MONTANTE AVRO' TRA X ANNI?",null,null,null,null,null,null,null,null,null,null,null,null,null,null,null,"INVESTENDO UN CAPITALE ANNUALE CONOSCIUTO, CON O SENZA CAPITALE INIZIALE A UN TASSO DI RIV CONOSCIUTO CHE MONTANTE AVRO' TRA X ANNI?",null,null,null,null,null,null,null,null,null,null,null,null,null,null,null,"INVESTENDO UN CAPITALE ANNUALE CONOSCIUTO, CON O SENZA CAPITALE INIZIALE A UN TASSO DI RIV CONOSCIUTO CHE MONTANTE AVRO' TRA X ANNI?",null,null,null,null,null,null,null,null,null,null,null,null,null,null,null,"INVESTENDO UN CAPITALE ANNUALE CONOSCIUTO, CON O SENZA CAPITALE INIZIALE A UN TASSO DI RIV CONOSCIUTO CHE MONTANTE AVRO' TRA X ANNI?",null,null,null,null,null,null,null,null,null,null,null,null,null,null,null,"INVESTENDO UN CAPITALE ANNUALE CONOSCIUTO, CON O SENZA CAPITALE INIZIALE A UN TASSO DI RIV CONOSCIUTO CHE MONTANTE AVRO' TRA X ANNI?",null,null,null,null,null,null,null,null,null,null,null,null,null,null,null,"INVESTENDO UN CAPITALE ANNUALE CONOSCIUTO, CON O SENZA CAPITALE INIZIALE A UN TASSO DI RIV CONOSCIUTO CHE MONTANTE AVRO' TRA X ANNI?",null,null,null,null,null,null,null,null,null,null,null,null,null,null,null,"INVESTENDO UN CAPITALE ANNUALE CONOSCIUTO, CON O SENZA CAPITALE INIZIALE A UN TASSO DI RIV CONOSCIUTO CHE MONTANTE AVRO' TRA X ANNI?",null,null,null,null,null,null,null,null,null,null,null,null,null,null,null,"INVESTENDO UN CAPITALE ANNUALE CONOSCIUTO, CON O SENZA CAPITALE INIZIALE A UN TASSO DI RIV CONOSCIUTO CHE MONTANTE AVRO' TRA X ANNI?",null,null,null,null,null,null,null,null,null,null,null,null,null,null,null,"INVESTENDO UN CAPITALE ANNUALE CONOSCIUTO, CON O SENZA CAPITALE INIZIALE A UN TASSO DI RIV CONOSCIUTO CHE MONTANTE AVRO' TRA X ANNI?",null,null,null,null,null,null,null,null,null,null,null,null,null,null,null,"INVESTENDO UN CAPITALE ANNUALE CONOSCIUTO, CON O SENZA CAPITALE INIZIALE A UN TASSO DI RIV CONOSCIUTO CHE MONTANTE AVRO' TRA X ANNI?",null,null,null,null,null,null,null,null,null,null,null,null,null,null,null,"INVESTENDO UN CAPITALE ANNUALE CONOSCIUTO, CON O SENZA CAPITALE INIZIALE A UN TASSO DI RIV CONOSCIUTO CHE MONTANTE AVRO' TRA X ANNI?",null,null,null,null,null,null,null,null,null,null,null,null,null,null,null,"INVESTENDO UN CAPITALE ANNUALE CONOSCIUTO, CON O SENZA CAPITALE INIZIALE A UN TASSO DI RIV CONOSCIUTO CHE MONTANTE AVRO' TRA X ANNI?",null,null,null,null,null,null,null,null,null,null,null,null,null,null,null,"INVESTENDO UN CAPITALE ANNUALE CONOSCIUTO, CON O SENZA CAPITALE INIZIALE A UN TASSO DI RIV CONOSCIUTO CHE MONTANTE AVRO' TRA X ANNI?",null,null,null,null,null,null,null,null,null,null,null,null,null,null,null,"INVESTENDO UN CAPITALE ANNUALE CONOSCIUTO, CON O SENZA CAPITALE INIZIALE A UN TASSO DI RIV CONOSCIUTO CHE MONTANTE AVRO' TRA X ANNI?",null,null,null,null,null,null,null,null,null,null,null,null,null,null,null,"INVESTENDO UN CAPITALE ANNUALE CONOSCIUTO, CON O SENZA CAPITALE INIZIALE A UN TASSO DI RIV CONOSCIUTO CHE MONTANTE AVRO' TRA X ANNI?",null,null,null,null,null,null,null,null,null,null,null,null,null,null,null,"INVESTENDO UN CAPITALE ANNUALE CONOSCIUTO, CON O SENZA CAPITALE INIZIALE A UN TASSO DI RIV CONOSCIUTO CHE MONTANTE AVRO' TRA X ANNI?",null,null,null,null,null,null,null,null,null,null,null,null,null,null,null,"INVESTENDO UN CAPITALE ANNUALE CONOSCIUTO, CON O SENZA CAPITALE INIZIALE A UN TASSO DI RIV CONOSCIUTO CHE MONTANTE AVRO' TRA X ANNI?",null,null,null,null,null,null,null,null,null,null,null,null,null,null,null,"INVESTENDO UN CAPITALE ANNUALE CONOSCIUTO, CON O SENZA CAPITALE INIZIALE A UN TASSO DI RIV CONOSCIUTO CHE MONTANTE AVRO' TRA X ANNI?",null,null,null,null,null,null,null,null,null,null,null,null,null,null,null,"INVESTENDO UN CAPITALE ANNUALE CONOSCIUTO, CON O SENZA CAPITALE INIZIALE A UN TASSO DI RIV CONOSCIUTO CHE MONTANTE AVRO' TRA X ANNI?",null,null,null,null,null,null,null,null,null,null,null,null,null,null,null,"INVESTENDO UN CAPITALE ANNUALE CONOSCIUTO, CON O SENZA CAPITALE INIZIALE A UN TASSO DI RIV CONOSCIUTO CHE MONTANTE AVRO' TRA X ANNI?",null,null,null,null,null,null,null,null,null,null,null,null,null,null,null,"INVESTENDO UN CAPITALE ANNUALE CONOSCIUTO, CON O SENZA CAPITALE INIZIALE A UN TASSO DI RIV CONOSCIUTO CHE MONTANTE AVRO' TRA X ANNI?",null,null,null,null,null,null,null,null,null,null,null,null,null,null,null,"INVESTENDO UN CAPITALE ANNUALE CONOSCIUTO, CON O SENZA CAPITALE INIZIALE A UN TASSO DI RIV CONOSCIUTO CHE MONTANTE AVRO' TRA X ANNI?",null,null,null,null,null,null,null,null,null,null,null,null,null,null,null,"INVESTENDO UN CAPITALE ANNUALE CONOSCIUTO, CON O SENZA CAPITALE INIZIALE A UN TASSO DI RIV CONOSCIUTO CHE MONTANTE AVRO' TRA X ANNI?",null,null,null,null,null,null,null,null,null,null,null,null,null,null,null,"INVESTENDO UN CAPITALE ANNUALE CONOSCIUTO, CON O SENZA CAPITALE INIZIALE A UN TASSO DI RIV CONOSCIUTO CHE MONTANTE AVRO' TRA X ANNI?",null,null,null,null,null,null,null,null,null,null,null,null,null,null,null,"INVESTENDO UN CAPITALE ANNUALE CONOSCIUTO, CON O SENZA CAPITALE INIZIALE A UN TASSO DI RIV CONOSCIUTO CHE MONTANTE AVRO' TRA X ANNI?",null,null,null,null,null,null,null,null,null,null,null,null,null,null,null,"INVESTENDO UN CAPITALE ANNUALE CONOSCIUTO, CON O SENZA CAPITALE INIZIALE A UN TASSO DI RIV CONOSCIUTO CHE MONTANTE AVRO' TRA X ANNI?",null,null,null,null,null,null,null,null,null,null,null,null,null,null,null,"INVESTENDO UN CAPITALE ANNUALE CONOSCIUTO, CON O SENZA CAPITALE INIZIALE A UN TASSO DI RIV CONOSCIUTO CHE MONTANTE AVRO' TRA X ANNI?",null,null,null,null,null,null,null,null,null,null,null,null,null,null,null,"INVESTENDO UN CAPITALE ANNUALE CONOSCIUTO, CON O SENZA CAPITALE INIZIALE A UN TASSO DI RIV CONOSCIUTO CHE MONTANTE AVRO' TRA X ANNI?",null,null,null,null,null,null,null,null,null,null,null,null,null,null,null,"INVESTENDO UN CAPITALE ANNUALE CONOSCIUTO, CON O SENZA CAPITALE INIZIALE A UN TASSO DI RIV CONOSCIUTO CHE MONTANTE AVRO' TRA X ANNI?",null,null,null,null,null,null,null,null,null,null,null,null,null,null,null,"INVESTENDO UN CAPITALE ANNUALE CONOSCIUTO, CON O SENZA CAPITALE INIZIALE A UN TASSO DI RIV CONOSCIUTO CHE MONTANTE AVRO' TRA X ANNI?",null,null,null,null,null,null,null,null,null,null,null,null,null,null,null,"INVESTENDO UN CAPITALE ANNUALE CONOSCIUTO, CON O SENZA CAPITALE INIZIALE A UN TASSO DI RIV CONOSCIUTO CHE MONTANTE AVRO' TRA X ANNI?",null,null,null,null,null,null,null,null,null,null,null,null,null,null,null,"INVESTENDO UN CAPITALE ANNUALE CONOSCIUTO, CON O SENZA CAPITALE INIZIALE A UN TASSO DI RIV CONOSCIUTO CHE MONTANTE AVRO' TRA X ANNI?",null,null,null,null,null,null,null,null,null,null,null,null,null,null,null,"INVESTENDO UN CAPITALE ANNUALE CONOSCIUTO, CON O SENZA CAPITALE INIZIALE A UN TASSO DI RIV CONOSCIUTO CHE MONTANTE AVRO' TRA X ANNI?",null,null,null,null,null,null,null,null,null,null,null,null,null,null,null,"INVESTENDO UN CAPITALE ANNUALE CONOSCIUTO, CON O SENZA CAPITALE INIZIALE A UN TASSO DI RIV CONOSCIUTO CHE MONTANTE AVRO' TRA X ANNI?",null,null,null,null,null,null,null,null,null,null,null,null,null,null,null,"INVESTENDO UN CAPITALE ANNUALE CONOSCIUTO, CON O SENZA CAPITALE INIZIALE A UN TASSO DI RIV CONOSCIUTO CHE MONTANTE AVRO' TRA X ANNI?",null,null,null,null,null,null,null,null,null,null,null,null,null,null,null,"INVESTENDO UN CAPITALE ANNUALE CONOSCIUTO, CON O SENZA CAPITALE INIZIALE A UN TASSO DI RIV CONOSCIUTO CHE MONTANTE AVRO' TRA X ANNI?",null,null,null,null,null,null,null,null,null,null,null,null,null,null,null,"INVESTENDO UN CAPITALE ANNUALE CONOSCIUTO, CON O SENZA CAPITALE INIZIALE A UN TASSO DI RIV CONOSCIUTO CHE MONTANTE AVRO' TRA X ANNI?",null,null,null,null,null,null,null,null,null,null,null,null,null,null,null,"INVESTENDO UN CAPITALE ANNUALE CONOSCIUTO, CON O SENZA CAPITALE INIZIALE A UN TASSO DI RIV CONOSCIUTO CHE MONTANTE AVRO' TRA X ANNI?",null,null,null,null,null,null,null,null,null,null,null,null,null,null,null,"INVESTENDO UN CAPITALE ANNUALE CONOSCIUTO, CON O SENZA CAPITALE INIZIALE A UN TASSO DI RIV CONOSCIUTO CHE MONTANTE AVRO' TRA X ANNI?",null,null,null,null,null,null,null,null,null,null,null,null,null,null,null,"INVESTENDO UN CAPITALE ANNUALE CONOSCIUTO, CON O SENZA CAPITALE INIZIALE A UN TASSO DI RIV CONOSCIUTO CHE MONTANTE AVRO' TRA X ANNI?",null,null,null,null,null,null,null,null,null,null,null,null,null,null,null,"INVESTENDO UN CAPITALE ANNUALE CONOSCIUTO, CON O SENZA CAPITALE INIZIALE A UN TASSO DI RIV CONOSCIUTO CHE MONTANTE AVRO' TRA X ANNI?",null,null,null,null,null,null,null,null,null,null,null,null,null,null,null,"INVESTENDO UN CAPITALE ANNUALE CONOSCIUTO, CON O SENZA CAPITALE INIZIALE A UN TASSO DI RIV CONOSCIUTO CHE MONTANTE AVRO' TRA X ANNI?",null,null,null,null,null,null,null,null,null,null,null,null,null,null,null,"INVESTENDO UN CAPITALE ANNUALE CONOSCIUTO, CON O SENZA CAPITALE INIZIALE A UN TASSO DI RIV CONOSCIUTO CHE MONTANTE AVRO' TRA X ANNI?",null,null,null,null,null,null,null,null,null,null,null,null,null,null,null,"INVESTENDO UN CAPITALE ANNUALE CONOSCIUTO, CON O SENZA CAPITALE INIZIALE A UN TASSO DI RIV CONOSCIUTO CHE MONTANTE AVRO' TRA X ANNI?",null,null,null,null,null,null,null,null,null,null,null,null,null,null,null,"INVESTENDO UN CAPITALE ANNUALE CONOSCIUTO, CON O SENZA CAPITALE INIZIALE A UN TASSO DI RIV CONOSCIUTO CHE MONTANTE AVRO' TRA X ANNI?",null,null,null,null,null,null,null,null,null,null,null,null,null,null,null,"INVESTENDO UN CAPITALE ANNUALE CONOSCIUTO, CON O SENZA CAPITALE INIZIALE A UN TASSO DI RIV CONOSCIUTO CHE MONTANTE AVRO' TRA X ANNI?",null,null,null,null,null,null,null,null,null,null,null,null,null,null,null,"INVESTENDO UN CAPITALE ANNUALE CONOSCIUTO, CON O SENZA CAPITALE INIZIALE A UN TASSO DI RIV CONOSCIUTO CHE MONTANTE AVRO' TRA X ANNI?",null,null,null,null,null,null,null,null,null,null,null,null,null,null,null,"INVESTENDO UN CAPITALE ANNUALE CONOSCIUTO, CON O SENZA CAPITALE INIZIALE A UN TASSO DI RIV CONOSCIUTO CHE MONTANTE AVRO' TRA X ANNI?",null,null,null,null,null,null,null,null,null,null,null,null,null,null,null,"INVESTENDO UN CAPITALE ANNUALE CONOSCIUTO, CON O SENZA CAPITALE INIZIALE A UN TASSO DI RIV CONOSCIUTO CHE MONTANTE AVRO' TRA X ANNI?",null,null,null,null,null,null,null,null,null,null,null,null,null,null,null,"INVESTENDO UN CAPITALE ANNUALE CONOSCIUTO, CON O SENZA CAPITALE INIZIALE A UN TASSO DI RIV CONOSCIUTO CHE MONTANTE AVRO' TRA X ANNI?",null,null,null,null,null,null,null,null,null,null,null,null,null,null,null,"INVESTENDO UN CAPITALE ANNUALE CONOSCIUTO, CON O SENZA CAPITALE INIZIALE A UN TASSO DI RIV CONOSCIUTO CHE MONTANTE AVRO' TRA X ANNI?",null,null,null,null,null,null,null,null,null,null,null,null,null,null,null,"INVESTENDO UN CAPITALE ANNUALE CONOSCIUTO, CON O SENZA CAPITALE INIZIALE A UN TASSO DI RIV CONOSCIUTO CHE MONTANTE AVRO' TRA X ANNI?",null,null,null,null,null,null,null,null,null,null,null,null,null,null,null,"INVESTENDO UN CAPITALE ANNUALE CONOSCIUTO, CON O SENZA CAPITALE INIZIALE A UN TASSO DI RIV CONOSCIUTO CHE MONTANTE AVRO' TRA X ANNI?",null,null,null,null,null,null,null,null,null,null,null,null,null,null,null,"INVESTENDO UN CAPITALE ANNUALE CONOSCIUTO, CON O SENZA CAPITALE INIZIALE A UN TASSO DI RIV CONOSCIUTO CHE MONTANTE AVRO' TRA X ANNI?",null,null,null,null,null,null,null,null,null,null,null,null,null,null,null,"INVESTENDO UN CAPITALE ANNUALE CONOSCIUTO, CON O SENZA CAPITALE INIZIALE A UN TASSO DI RIV CONOSCIUTO CHE MONTANTE AVRO' TRA X ANNI?",null,null,null,null,null,null,null,null,null,null,null,null,null,null,null,"INVESTENDO UN CAPITALE ANNUALE CONOSCIUTO, CON O SENZA CAPITALE INIZIALE A UN TASSO DI RIV CONOSCIUTO CHE MONTANTE AVRO' TRA X ANNI?",null,null,null,null,null,null,null,null,null,null,null,null,null,null,null,"INVESTENDO UN CAPITALE ANNUALE CONOSCIUTO, CON O SENZA CAPITALE INIZIALE A UN TASSO DI RIV CONOSCIUTO CHE MONTANTE AVRO' TRA X ANNI?",null,null,null,null,null,null,null,null,null,null,null,null,null,null,null,"INVESTENDO UN CAPITALE ANNUALE CONOSCIUTO, CON O SENZA CAPITALE INIZIALE A UN TASSO DI RIV CONOSCIUTO CHE MONTANTE AVRO' TRA X ANNI?",null,null,null,null,null,null,null,null,null,null,null,null,null,null,null,"INVESTENDO UN CAPITALE ANNUALE CONOSCIUTO, CON O SENZA CAPITALE INIZIALE A UN TASSO DI RIV CONOSCIUTO CHE MONTANTE AVRO' TRA X ANNI?",null,null,null,null,null,null,null,null,null,null,null,null,null,null,null,"INVESTENDO UN CAPITALE ANNUALE CONOSCIUTO, CON O SENZA CAPITALE INIZIALE A UN TASSO DI RIV CONOSCIUTO CHE MONTANTE AVRO' TRA X ANNI?",null,null,null,null,null,null,null,null,null,null,null,null,null,null,null,"INVESTENDO UN CAPITALE ANNUALE CONOSCIUTO, CON O SENZA CAPITALE INIZIALE A UN TASSO DI RIV CONOSCIUTO CHE MONTANTE AVRO' TRA X ANNI?",null,null,null,null,null,null,null,null,null,null,null,null,null,null,null,"INVESTENDO UN CAPITALE ANNUALE CONOSCIUTO, CON O SENZA CAPITALE INIZIALE A UN TASSO DI RIV CONOSCIUTO CHE MONTANTE AVRO' TRA X ANNI?",null,null,null,null,null,null,null,null,null,null,null,null,null,null,null,"INVESTENDO UN CAPITALE ANNUALE CONOSCIUTO, CON O SENZA CAPITALE INIZIALE A UN TASSO DI RIV CONOSCIUTO CHE MONTANTE AVRO' TRA X ANNI?",null,null,null,null,null,null,null,null,null,null,null,null,null,null,null,"INVESTENDO UN CAPITALE ANNUALE CONOSCIUTO, CON O SENZA CAPITALE INIZIALE A UN TASSO DI RIV CONOSCIUTO CHE MONTANTE AVRO' TRA X ANNI?",null,null,null,null,null,null,null,null,null,null,null,null,null,null,null,"INVESTENDO UN CAPITALE ANNUALE CONOSCIUTO, CON O SENZA CAPITALE INIZIALE A UN TASSO DI RIV CONOSCIUTO CHE MONTANTE AVRO' TRA X ANNI?",null,null,null,null,null,null,null,null,null,null,null,null,null,null,null,"INVESTENDO UN CAPITALE ANNUALE CONOSCIUTO, CON O SENZA CAPITALE INIZIALE A UN TASSO DI RIV CONOSCIUTO CHE MONTANTE AVRO' TRA X ANNI?",null,null,null,null,null,null,null,null,null,null,null,null,null,null,null,"INVESTENDO UN CAPITALE ANNUALE CONOSCIUTO, CON O SENZA CAPITALE INIZIALE A UN TASSO DI RIV CONOSCIUTO CHE MONTANTE AVRO' TRA X ANNI?",null,null,null,null,null,null,null,null,null,null,null,null,null,null,null,"INVESTENDO UN CAPITALE ANNUALE CONOSCIUTO, CON O SENZA CAPITALE INIZIALE A UN TASSO DI RIV CONOSCIUTO CHE MONTANTE AVRO' TRA X ANNI?",null,null,null,null,null,null,null,null,null,null,null,null,null,null,null,"INVESTENDO UN CAPITALE ANNUALE CONOSCIUTO, CON O SENZA CAPITALE INIZIALE A UN TASSO DI RIV CONOSCIUTO CHE MONTANTE AVRO' TRA X ANNI?",null,null,null,null,null,null,null,null,null,null,null,null,null,null,null,"INVESTENDO UN CAPITALE ANNUALE CONOSCIUTO, CON O SENZA CAPITALE INIZIALE A UN TASSO DI RIV CONOSCIUTO CHE MONTANTE AVRO' TRA X ANNI?",null,null,null,null,null,null,null,null,null,null,null,null,null,null,null,"INVESTENDO UN CAPITALE ANNUALE CONOSCIUTO, CON O SENZA CAPITALE INIZIALE A UN TASSO DI RIV CONOSCIUTO CHE MONTANTE AVRO' TRA X ANNI?",null,null,null,null,null,null,null,null,null,null,null,null,null,null,null,"INVESTENDO UN CAPITALE ANNUALE CONOSCIUTO, CON O SENZA CAPITALE INIZIALE A UN TASSO DI RIV CONOSCIUTO CHE MONTANTE AVRO' TRA X ANNI?",null,null,null,null,null,null,null,null,null,null,null,null,null,null,null,"INVESTENDO UN CAPITALE ANNUALE CONOSCIUTO, CON O SENZA CAPITALE INIZIALE A UN TASSO DI RIV CONOSCIUTO CHE MONTANTE AVRO' TRA X ANNI?",null,null,null,null,null,null,null,null,null,null,null,null,null,null,null,"INVESTENDO UN CAPITALE ANNUALE CONOSCIUTO, CON O SENZA CAPITALE INIZIALE A UN TASSO DI RIV CONOSCIUTO CHE MONTANTE AVRO' TRA X ANNI?",null,null,null,null,null,null,null,null,null,null,null,null,null,null,null,"INVESTENDO UN CAPITALE ANNUALE CONOSCIUTO, CON O SENZA CAPITALE INIZIALE A UN TASSO DI RIV CONOSCIUTO CHE MONTANTE AVRO' TRA X ANNI?",null,null,null,null,null,null,null,null,null,null,null,null,null,null,null,"INVESTENDO UN CAPITALE ANNUALE CONOSCIUTO, CON O SENZA CAPITALE INIZIALE A UN TASSO DI RIV CONOSCIUTO CHE MONTANTE AVRO' TRA X ANNI?",null,null,null,null,null,null,null,null,null,null,null,null,null,null,null,"INVESTENDO UN CAPITALE ANNUALE CONOSCIUTO, CON O SENZA CAPITALE INIZIALE A UN TASSO DI RIV CONOSCIUTO CHE MONTANTE AVRO' TRA X ANNI?",null,null,null,null,null,null,null,null,null,null,null,null,null,null,null,"INVESTENDO UN CAPITALE ANNUALE CONOSCIUTO, CON O SENZA CAPITALE INIZIALE A UN TASSO DI RIV CONOSCIUTO CHE MONTANTE AVRO' TRA X ANNI?",null,null,null,null,null,null,null,null,null,null,null,null,null,null,null,"INVESTENDO UN CAPITALE ANNUALE CONOSCIUTO, CON O SENZA CAPITALE INIZIALE A UN TASSO DI RIV CONOSCIUTO CHE MONTANTE AVRO' TRA X ANNI?",null,null,null,null,null,null,null,null,null,null,null,null,null,null,null,"INVESTENDO UN CAPITALE ANNUALE CONOSCIUTO, CON O SENZA CAPITALE INIZIALE A UN TASSO DI RIV CONOSCIUTO CHE MONTANTE AVRO' TRA X ANNI?",null,null,null,null,null,null,null,null,null,null,null,null,null,null,null,"INVESTENDO UN CAPITALE ANNUALE CONOSCIUTO, CON O SENZA CAPITALE INIZIALE A UN TASSO DI RIV CONOSCIUTO CHE MONTANTE AVRO' TRA X ANNI?",null,null,null,null,null,null,null,null,null,null,null,null,null,null,null,"INVESTENDO UN CAPITALE ANNUALE CONOSCIUTO, CON O SENZA CAPITALE INIZIALE A UN TASSO DI RIV CONOSCIUTO CHE MONTANTE AVRO' TRA X ANNI?",null,null,null,null,null,null,null,null,null,null,null,null,null,null,null,"INVESTENDO UN CAPITALE ANNUALE CONOSCIUTO, CON O SENZA CAPITALE INIZIALE A UN TASSO DI RIV CONOSCIUTO CHE MONTANTE AVRO' TRA X ANNI?",null,null,null,null,null,null,null,null,null,null,null,null,null,null,null,"INVESTENDO UN CAPITALE ANNUALE CONOSCIUTO, CON O SENZA CAPITALE INIZIALE A UN TASSO DI RIV CONOSCIUTO CHE MONTANTE AVRO' TRA X ANNI?",null,null,null,null,null,null,null,null,null,null,null,null,null,null,null,"INVESTENDO UN CAPITALE ANNUALE CONOSCIUTO, CON O SENZA CAPITALE INIZIALE A UN TASSO DI RIV CONOSCIUTO CHE MONTANTE AVRO' TRA X ANNI?",null,null,null,null,null,null,null,null,null,null,null,null,null,null,null,"INVESTENDO UN CAPITALE ANNUALE CONOSCIUTO, CON O SENZA CAPITALE INIZIALE A UN TASSO DI RIV CONOSCIUTO CHE MONTANTE AVRO' TRA X ANNI?",null,null,null,null,null,null,null,null,null,null,null,null,null,null,null,"INVESTENDO UN CAPITALE ANNUALE CONOSCIUTO, CON O SENZA CAPITALE INIZIALE A UN TASSO DI RIV CONOSCIUTO CHE MONTANTE AVRO' TRA X ANNI?",null,null,null,null,null,null,null,null,null,null,null,null,null,null,null,"INVESTENDO UN CAPITALE ANNUALE CONOSCIUTO, CON O SENZA CAPITALE INIZIALE A UN TASSO DI RIV CONOSCIUTO CHE MONTANTE AVRO' TRA X ANNI?",null,null,null,null,null,null,null,null,null,null,null,null,null,null,null,"INVESTENDO UN CAPITALE ANNUALE CONOSCIUTO, CON O SENZA CAPITALE INIZIALE A UN TASSO DI RIV CONOSCIUTO CHE MONTANTE AVRO' TRA X ANNI?",null,null,null,null,null,null,null,null,null,null,null,null,null,null,null,"INVESTENDO UN CAPITALE ANNUALE CONOSCIUTO, CON O SENZA CAPITALE INIZIALE A UN TASSO DI RIV CONOSCIUTO CHE MONTANTE AVRO' TRA X ANNI?",null,null,null,null,null,null,null,null,null,null,null,null,null,null,null,"INVESTENDO UN CAPITALE ANNUALE CONOSCIUTO, CON O SENZA CAPITALE INIZIALE A UN TASSO DI RIV CONOSCIUTO CHE MONTANTE AVRO' TRA X ANNI?",null,null,null,null,null,null,null,null,null,null,null,null,null,null,null,"INVESTENDO UN CAPITALE ANNUALE CONOSCIUTO, CON O SENZA CAPITALE INIZIALE A UN TASSO DI RIV CONOSCIUTO CHE MONTANTE AVRO' TRA X ANNI?",null,null,null,null,null,null,null,null,null,null,null,null,null,null,null,"INVESTENDO UN CAPITALE ANNUALE CONOSCIUTO, CON O SENZA CAPITALE INIZIALE A UN TASSO DI RIV CONOSCIUTO CHE MONTANTE AVRO' TRA X ANNI?",null,null,null,null,null,null,null,null,null,null,null,null,null,null,null,"INVESTENDO UN CAPITALE ANNUALE CONOSCIUTO, CON O SENZA CAPITALE INIZIALE A UN TASSO DI RIV CONOSCIUTO CHE MONTANTE AVRO' TRA X ANNI?",null,null,null,null,null,null,null,null,null,null,null,null,null,null,null,"INVESTENDO UN CAPITALE ANNUALE CONOSCIUTO, CON O SENZA CAPITALE INIZIALE A UN TASSO DI RIV CONOSCIUTO CHE MONTANTE AVRO' TRA X ANNI?",null,null,null,null,null,null,null,null,null,null,null,null,null,null,null,"INVESTENDO UN CAPITALE ANNUALE CONOSCIUTO, CON O SENZA CAPITALE INIZIALE A UN TASSO DI RIV CONOSCIUTO CHE MONTANTE AVRO' TRA X ANNI?",null,null,null,null,null,null,null,null,null,null,null,null,null,null,null,"INVESTENDO UN CAPITALE ANNUALE CONOSCIUTO, CON O SENZA CAPITALE INIZIALE A UN TASSO DI RIV CONOSCIUTO CHE MONTANTE AVRO' TRA X ANNI?",null,null,null,null,null,null,null,null,null,null,null,null,null,null,null,"INVESTENDO UN CAPITALE ANNUALE CONOSCIUTO, CON O SENZA CAPITALE INIZIALE A UN TASSO DI RIV CONOSCIUTO CHE MONTANTE AVRO' TRA X ANNI?",null,null,null,null,null,null,null,null,null,null,null,null,null,null,null,"INVESTENDO UN CAPITALE ANNUALE CONOSCIUTO, CON O SENZA CAPITALE INIZIALE A UN TASSO DI RIV CONOSCIUTO CHE MONTANTE AVRO' TRA X ANNI?",null,null,null,null,null,null,null,null,null,null,null,null,null,null,null,"INVESTENDO UN CAPITALE ANNUALE CONOSCIUTO, CON O SENZA CAPITALE INIZIALE A UN TASSO DI RIV CONOSCIUTO CHE MONTANTE AVRO' TRA X ANNI?",null,null,null,null,null,null,null,null,null,null,null,null,null,null,null,"INVESTENDO UN CAPITALE ANNUALE CONOSCIUTO, CON O SENZA CAPITALE INIZIALE A UN TASSO DI RIV CONOSCIUTO CHE MONTANTE AVRO' TRA X ANNI?",null,null,null,null,null,null,null,null,null,null,null,null,null,null,null,"INVESTENDO UN CAPITALE ANNUALE CONOSCIUTO, CON O SENZA CAPITALE INIZIALE A UN TASSO DI RIV CONOSCIUTO CHE MONTANTE AVRO' TRA X ANNI?",null,null,null,null,null,null,null,null,null,null,null,null,null,null,null,"INVESTENDO UN CAPITALE ANNUALE CONOSCIUTO, CON O SENZA CAPITALE INIZIALE A UN TASSO DI RIV CONOSCIUTO CHE MONTANTE AVRO' TRA X ANNI?",null,null,null,null,null,null,null,null,null,null,null,null,null,null,null,"INVESTENDO UN CAPITALE ANNUALE CONOSCIUTO, CON O SENZA CAPITALE INIZIALE A UN TASSO DI RIV CONOSCIUTO CHE MONTANTE AVRO' TRA X ANNI?",null,null,null,null,null,null,null,null,null,null,null,null,null,null,null,"INVESTENDO UN CAPITALE ANNUALE CONOSCIUTO, CON O SENZA CAPITALE INIZIALE A UN TASSO DI RIV CONOSCIUTO CHE MONTANTE AVRO' TRA X ANNI?",null,null,null,null,null,null,null,null,null,null,null,null,null,null,null,"INVESTENDO UN CAPITALE ANNUALE CONOSCIUTO, CON O SENZA CAPITALE INIZIALE A UN TASSO DI RIV CONOSCIUTO CHE MONTANTE AVRO' TRA X ANNI?",null,null,null,null,null,null,null,null,null,null,null,null,null,null,null,"INVESTENDO UN CAPITALE ANNUALE CONOSCIUTO, CON O SENZA CAPITALE INIZIALE A UN TASSO DI RIV CONOSCIUTO CHE MONTANTE AVRO' TRA X ANNI?",null,null,null,null,null,null,null,null,null,null,null,null,null,null,null,"INVESTENDO UN CAPITALE ANNUALE CONOSCIUTO, CON O SENZA CAPITALE INIZIALE A UN TASSO DI RIV CONOSCIUTO CHE MONTANTE AVRO' TRA X ANNI?",null,null,null,null,null,null,null,null,null,null,null,null,null,null,null,"INVESTENDO UN CAPITALE ANNUALE CONOSCIUTO, CON O SENZA CAPITALE INIZIALE A UN TASSO DI RIV CONOSCIUTO CHE MONTANTE AVRO' TRA X ANNI?",null,null,null,null,null,null,null,null,null,null,null,null,null,null,null,"INVESTENDO UN CAPITALE ANNUALE CONOSCIUTO, CON O SENZA CAPITALE INIZIALE A UN TASSO DI RIV CONOSCIUTO CHE MONTANTE AVRO' TRA X ANNI?",null,null,null,null,null,null,null,null,null,null,null,null,null,null,null,"INVESTENDO UN CAPITALE ANNUALE CONOSCIUTO, CON O SENZA CAPITALE INIZIALE A UN TASSO DI RIV CONOSCIUTO CHE MONTANTE AVRO' TRA X ANNI?",null,null,null,null,null,null,null,null,null,null,null,null,null,null,null,"INVESTENDO UN CAPITALE ANNUALE CONOSCIUTO, CON O SENZA CAPITALE INIZIALE A UN TASSO DI RIV CONOSCIUTO CHE MONTANTE AVRO' TRA X ANNI?",null,null,null,null,null,null,null,null,null,null,null,null,null,null,null,"INVESTENDO UN CAPITALE ANNUALE CONOSCIUTO, CON O SENZA CAPITALE INIZIALE A UN TASSO DI RIV CONOSCIUTO CHE MONTANTE AVRO' TRA X ANNI?",null,null,null,null,null,null,null,null,null,null,null,null,null,null,null,"INVESTENDO UN CAPITALE ANNUALE CONOSCIUTO, CON O SENZA CAPITALE INIZIALE A UN TASSO DI RIV CONOSCIUTO CHE MONTANTE AVRO' TRA X ANNI?",null,null,null,null,null,null,null,null,null,null,null,null,null,null,null,"INVESTENDO UN CAPITALE ANNUALE CONOSCIUTO, CON O SENZA CAPITALE INIZIALE A UN TASSO DI RIV CONOSCIUTO CHE MONTANTE AVRO' TRA X ANNI?",null,null,null,null,null,null,null,null,null,null,null,null,null,null,null,"INVESTENDO UN CAPITALE ANNUALE CONOSCIUTO, CON O SENZA CAPITALE INIZIALE A UN TASSO DI RIV CONOSCIUTO CHE MONTANTE AVRO' TRA X ANNI?",null,null,null,null,null,null,null,null,null,null,null,null,null,null,null,"INVESTENDO UN CAPITALE ANNUALE CONOSCIUTO, CON O SENZA CAPITALE INIZIALE A UN TASSO DI RIV CONOSCIUTO CHE MONTANTE AVRO' TRA X ANNI?",null,null,null,null,null,null,null,null,null,null,null,null,null,null,null,"INVESTENDO UN CAPITALE ANNUALE CONOSCIUTO, CON O SENZA CAPITALE INIZIALE A UN TASSO DI RIV CONOSCIUTO CHE MONTANTE AVRO' TRA X ANNI?",null,null,null,null,null,null,null,null,null,null,null,null,null,null,null,"INVESTENDO UN CAPITALE ANNUALE CONOSCIUTO, CON O SENZA CAPITALE INIZIALE A UN TASSO DI RIV CONOSCIUTO CHE MONTANTE AVRO' TRA X ANNI?",null,null,null,null,null,null,null,null,null,null,null,null,null,null,null,"INVESTENDO UN CAPITALE ANNUALE CONOSCIUTO, CON O SENZA CAPITALE INIZIALE A UN TASSO DI RIV CONOSCIUTO CHE MONTANTE AVRO' TRA X ANNI?",null,null,null,null,null,null,null,null,null,null,null,null,null,null,null,"INVESTENDO UN CAPITALE ANNUALE CONOSCIUTO, CON O SENZA CAPITALE INIZIALE A UN TASSO DI RIV CONOSCIUTO CHE MONTANTE AVRO' TRA X ANNI?",null,null,null,null,null,null,null,null,null,null,null,null,null,null,null,"INVESTENDO UN CAPITALE ANNUALE CONOSCIUTO, CON O SENZA CAPITALE INIZIALE A UN TASSO DI RIV CONOSCIUTO CHE MONTANTE AVRO' TRA X ANNI?",null,null,null,null,null,null,null,null,null,null,null,null,null,null,null,"INVESTENDO UN CAPITALE ANNUALE CONOSCIUTO, CON O SENZA CAPITALE INIZIALE A UN TASSO DI RIV CONOSCIUTO CHE MONTANTE AVRO' TRA X ANNI?",null,null,null,null,null,null,null,null,null,null,null,null,null,null,null,"INVESTENDO UN CAPITALE ANNUALE CONOSCIUTO, CON O SENZA CAPITALE INIZIALE A UN TASSO DI RIV CONOSCIUTO CHE MONTANTE AVRO' TRA X ANNI?",null,null,null,null,null,null,null,null,null,null,null,null,null,null,null,"INVESTENDO UN CAPITALE ANNUALE CONOSCIUTO, CON O SENZA CAPITALE INIZIALE A UN TASSO DI RIV CONOSCIUTO CHE MONTANTE AVRO' TRA X ANNI?",null,null,null,null,null,null,null,null,null,null,null,null,null,null,null,"INVESTENDO UN CAPITALE ANNUALE CONOSCIUTO, CON O SENZA CAPITALE INIZIALE A UN TASSO DI RIV CONOSCIUTO CHE MONTANTE AVRO' TRA X ANNI?",null,null,null,null,null,null,null,null,null,null,null,null,null,null,null,"INVESTENDO UN CAPITALE ANNUALE CONOSCIUTO, CON O SENZA CAPITALE INIZIALE A UN TASSO DI RIV CONOSCIUTO CHE MONTANTE AVRO' TRA X ANNI?",null,null,null,null,null,null,null,null,null,null,null,null,null,null,null,"INVESTENDO UN CAPITALE ANNUALE CONOSCIUTO, CON O SENZA CAPITALE INIZIALE A UN TASSO DI RIV CONOSCIUTO CHE MONTANTE AVRO' TRA X ANNI?",null,null,null,null,null,null,null,null,null,null,null,null,null,null,null,"INVESTENDO UN CAPITALE ANNUALE CONOSCIUTO, CON O SENZA CAPITALE INIZIALE A UN TASSO DI RIV CONOSCIUTO CHE MONTANTE AVRO' TRA X ANNI?",null,null,null,null,null,null,null,null,null,null,null,null,null,null,null,"INVESTENDO UN CAPITALE ANNUALE CONOSCIUTO, CON O SENZA CAPITALE INIZIALE A UN TASSO DI RIV CONOSCIUTO CHE MONTANTE AVRO' TRA X ANNI?",null,null,null,null,null,null,null,null,null,null,null,null,null,null,null,"INVESTENDO UN CAPITALE ANNUALE CONOSCIUTO, CON O SENZA CAPITALE INIZIALE A UN TASSO DI RIV CONOSCIUTO CHE MONTANTE AVRO' TRA X ANNI?",null,null,null,null,null,null,null,null,null,null,null,null,null,null,null,"INVESTENDO UN CAPITALE ANNUALE CONOSCIUTO, CON O SENZA CAPITALE INIZIALE A UN TASSO DI RIV CONOSCIUTO CHE MONTANTE AVRO' TRA X ANNI?",null,null,null,null,null,null,null,null,null,null,null,null,null,null,null,"INVESTENDO UN CAPITALE ANNUALE CONOSCIUTO, CON O SENZA CAPITALE INIZIALE A UN TASSO DI RIV CONOSCIUTO CHE MONTANTE AVRO' TRA X ANNI?",null,null,null,null,null,null,null,null,null,null,null,null,null,null,null,"INVESTENDO UN CAPITALE ANNUALE CONOSCIUTO, CON O SENZA CAPITALE INIZIALE A UN TASSO DI RIV CONOSCIUTO CHE MONTANTE AVRO' TRA X ANNI?",null,null,null,null,null,null,null,null,null,null,null,null,null,null,null,"INVESTENDO UN CAPITALE ANNUALE CONOSCIUTO, CON O SENZA CAPITALE INIZIALE A UN TASSO DI RIV CONOSCIUTO CHE MONTANTE AVRO' TRA X ANNI?",null,null,null,null,null,null,null,null,null,null,null,null,null,null,null,"INVESTENDO UN CAPITALE ANNUALE CONOSCIUTO, CON O SENZA CAPITALE INIZIALE A UN TASSO DI RIV CONOSCIUTO CHE MONTANTE AVRO' TRA X ANNI?",null,null,null,null,null,null,null,null,null,null,null,null,null,null,null,"INVESTENDO UN CAPITALE ANNUALE CONOSCIUTO, CON O SENZA CAPITALE INIZIALE A UN TASSO DI RIV CONOSCIUTO CHE MONTANTE AVRO' TRA X ANNI?",null,null,null,null,null,null,null,null,null,null,null,null,null,null,null,"INVESTENDO UN CAPITALE ANNUALE CONOSCIUTO, CON O SENZA CAPITALE INIZIALE A UN TASSO DI RIV CONOSCIUTO CHE MONTANTE AVRO' TRA X ANNI?",null,null,null,null,null,null,null,null,null,null,null,null,null,null,null,"INVESTENDO UN CAPITALE ANNUALE CONOSCIUTO, CON O SENZA CAPITALE INIZIALE A UN TASSO DI RIV CONOSCIUTO CHE MONTANTE AVRO' TRA X ANNI?",null,null,null,null,null,null,null,null,null,null,null,null,null,null,null,"INVESTENDO UN CAPITALE ANNUALE CONOSCIUTO, CON O SENZA CAPITALE INIZIALE A UN TASSO DI RIV CONOSCIUTO CHE MONTANTE AVRO' TRA X ANNI?",null,null,null,null,null,null,null,null,null,null,null,null,null,null,null,"INVESTENDO UN CAPITALE ANNUALE CONOSCIUTO, CON O SENZA CAPITALE INIZIALE A UN TASSO DI RIV CONOSCIUTO CHE MONTANTE AVRO' TRA X ANNI?",null,null,null,null,null,null,null,null,null,null,null,null,null,null,null,"INVESTENDO UN CAPITALE ANNUALE CONOSCIUTO, CON O SENZA CAPITALE INIZIALE A UN TASSO DI RIV CONOSCIUTO CHE MONTANTE AVRO' TRA X ANNI?",null,null,null,null,null,null,null,null,null,null,null,null,null,null,null,"INVESTENDO UN CAPITALE ANNUALE CONOSCIUTO, CON O SENZA CAPITALE INIZIALE A UN TASSO DI RIV CONOSCIUTO CHE MONTANTE AVRO' TRA X ANNI?",null,null,null,null,null,null,null,null,null,null,null,null,null,null,null,"INVESTENDO UN CAPITALE ANNUALE CONOSCIUTO, CON O SENZA CAPITALE INIZIALE A UN TASSO DI RIV CONOSCIUTO CHE MONTANTE AVRO' TRA X ANNI?",null,null,null,null,null,null,null,null,null,null,null,null,null,null,null,"INVESTENDO UN CAPITALE ANNUALE CONOSCIUTO, CON O SENZA CAPITALE INIZIALE A UN TASSO DI RIV CONOSCIUTO CHE MONTANTE AVRO' TRA X ANNI?",null,null,null,null,null,null,null,null,null,null,null,null,null,null,null,"INVESTENDO UN CAPITALE ANNUALE CONOSCIUTO, CON O SENZA CAPITALE INIZIALE A UN TASSO DI RIV CONOSCIUTO CHE MONTANTE AVRO' TRA X ANNI?",null,null,null,null,null,null,null,null,null,null,null,null,null,null,null,"INVESTENDO UN CAPITALE ANNUALE CONOSCIUTO, CON O SENZA CAPITALE INIZIALE A UN TASSO DI RIV CONOSCIUTO CHE MONTANTE AVRO' TRA X ANNI?",null,null,null,null,null,null,null,null,null,null,null,null,null,null,null,"INVESTENDO UN CAPITALE ANNUALE CONOSCIUTO, CON O SENZA CAPITALE INIZIALE A UN TASSO DI RIV CONOSCIUTO CHE MONTANTE AVRO' TRA X ANNI?",null,null,null,null,null,null,null,null,null,null,null,null,null,null,null,"INVESTENDO UN CAPITALE ANNUALE CONOSCIUTO, CON O SENZA CAPITALE INIZIALE A UN TASSO DI RIV CONOSCIUTO CHE MONTANTE AVRO' TRA X ANNI?",null,null,null,null,null,null,null,null,null,null,null,null,null,null,null,"INVESTENDO UN CAPITALE ANNUALE CONOSCIUTO, CON O SENZA CAPITALE INIZIALE A UN TASSO DI RIV CONOSCIUTO CHE MONTANTE AVRO' TRA X ANNI?",null,null,null,null,null,null,null,null,null,null,null,null,null,null,null,"INVESTENDO UN CAPITALE ANNUALE CONOSCIUTO, CON O SENZA CAPITALE INIZIALE A UN TASSO DI RIV CONOSCIUTO CHE MONTANTE AVRO' TRA X ANNI?",null,null,null,null,null,null,null,null,null,null,null,null,null,null,null,"INVESTENDO UN CAPITALE ANNUALE CONOSCIUTO, CON O SENZA CAPITALE INIZIALE A UN TASSO DI RIV CONOSCIUTO CHE MONTANTE AVRO' TRA X ANNI?",null,null,null,null,null,null,null,null,null,null,null,null,null,null,null,"INVESTENDO UN CAPITALE ANNUALE CONOSCIUTO, CON O SENZA CAPITALE INIZIALE A UN TASSO DI RIV CONOSCIUTO CHE MONTANTE AVRO' TRA X ANNI?",null,null,null,null,null,null,null,null,null,null,null,null,null,null,null,"INVESTENDO UN CAPITALE ANNUALE CONOSCIUTO, CON O SENZA CAPITALE INIZIALE A UN TASSO DI RIV CONOSCIUTO CHE MONTANTE AVRO' TRA X ANNI?",null,null,null,null,null,null,null,null,null,null,null,null,null,null,null,"INVESTENDO UN CAPITALE ANNUALE CONOSCIUTO, CON O SENZA CAPITALE INIZIALE A UN TASSO DI RIV CONOSCIUTO CHE MONTANTE AVRO' TRA X ANNI?",null,null,null,null,null,null,null,null,null,null,null,null,null,null,null,"INVESTENDO UN CAPITALE ANNUALE CONOSCIUTO, CON O SENZA CAPITALE INIZIALE A UN TASSO DI RIV CONOSCIUTO CHE MONTANTE AVRO' TRA X ANNI?",null,null,null,null,null,null,null,null,null,null,null,null,null,null,null,"INVESTENDO UN CAPITALE ANNUALE CONOSCIUTO, CON O SENZA CAPITALE INIZIALE A UN TASSO DI RIV CONOSCIUTO CHE MONTANTE AVRO' TRA X ANNI?",null,null,null,null,null,null,null,null,null,null,null,null,null,null,null,"INVESTENDO UN CAPITALE ANNUALE CONOSCIUTO, CON O SENZA CAPITALE INIZIALE A UN TASSO DI RIV CONOSCIUTO CHE MONTANTE AVRO' TRA X ANNI?",null,null,null,null,null,null,null,null,null,null,null,null,null,null,null,"INVESTENDO UN CAPITALE ANNUALE CONOSCIUTO, CON O SENZA CAPITALE INIZIALE A UN TASSO DI RIV CONOSCIUTO CHE MONTANTE AVRO' TRA X ANNI?",null,null,null,null,null,null,null,null,null,null,null,null,null,null,null,"INVESTENDO UN CAPITALE ANNUALE CONOSCIUTO, CON O SENZA CAPITALE INIZIALE A UN TASSO DI RIV CONOSCIUTO CHE MONTANTE AVRO' TRA X ANNI?",null,null,null,null,null,null,null,null,null,null,null,null,null,null,null,"INVESTENDO UN CAPITALE ANNUALE CONOSCIUTO, CON O SENZA CAPITALE INIZIALE A UN TASSO DI RIV CONOSCIUTO CHE MONTANTE AVRO' TRA X ANNI?",null,null,null,null,null,null,null,null,null,null,null,null,null,null,null,"INVESTENDO UN CAPITALE ANNUALE CONOSCIUTO, CON O SENZA CAPITALE INIZIALE A UN TASSO DI RIV CONOSCIUTO CHE MONTANTE AVRO' TRA X ANNI?",null,null,null,null,null,null,null,null,null,null,null,null,null,null,null,"INVESTENDO UN CAPITALE ANNUALE CONOSCIUTO, CON O SENZA CAPITALE INIZIALE A UN TASSO DI RIV CONOSCIUTO CHE MONTANTE AVRO' TRA X ANNI?",null,null,null,null,null,null,null,null,null,null,null,null,null,null,null,"INVESTENDO UN CAPITALE ANNUALE CONOSCIUTO, CON O SENZA CAPITALE INIZIALE A UN TASSO DI RIV CONOSCIUTO CHE MONTANTE AVRO' TRA X ANNI?",null,null,null,null,null,null,null,null,null,null,null,null,null,null,null,"INVESTENDO UN CAPITALE ANNUALE CONOSCIUTO, CON O SENZA CAPITALE INIZIALE A UN TASSO DI RIV CONOSCIUTO CHE MONTANTE AVRO' TRA X ANNI?",null,null,null,null,null,null,null,null,null,null,null,null,null,null,null,"INVESTENDO UN CAPITALE ANNUALE CONOSCIUTO, CON O SENZA CAPITALE INIZIALE A UN TASSO DI RIV CONOSCIUTO CHE MONTANTE AVRO' TRA X ANNI?",null,null,null,null,null,null,null,null,null,null,null,null,null,null,null,"INVESTENDO UN CAPITALE ANNUALE CONOSCIUTO, CON O SENZA CAPITALE INIZIALE A UN TASSO DI RIV CONOSCIUTO CHE MONTANTE AVRO' TRA X ANNI?",null,null,null,null,null,null,null,null,null,null,null,null,null,null,null,"INVESTENDO UN CAPITALE ANNUALE CONOSCIUTO, CON O SENZA CAPITALE INIZIALE A UN TASSO DI RIV CONOSCIUTO CHE MONTANTE AVRO' TRA X ANNI?",null,null,null,null,null,null,null,null,null,null,null,null,null,null,null,"INVESTENDO UN CAPITALE ANNUALE CONOSCIUTO, CON O SENZA CAPITALE INIZIALE A UN TASSO DI RIV CONOSCIUTO CHE MONTANTE AVRO' TRA X ANNI?",null,null,null,null,null,null,null,null,null,null,null,null,null,null,null,"INVESTENDO UN CAPITALE ANNUALE CONOSCIUTO, CON O SENZA CAPITALE INIZIALE A UN TASSO DI RIV CONOSCIUTO CHE MONTANTE AVRO' TRA X ANNI?",null,null,null,null,null,null,null,null,null,null,null,null,null,null,null,"INVESTENDO UN CAPITALE ANNUALE CONOSCIUTO, CON O SENZA CAPITALE INIZIALE A UN TASSO DI RIV CONOSCIUTO CHE MONTANTE AVRO' TRA X ANNI?",null,null,null,null,null,null,null,null,null,null,null,null,null,null,null,"INVESTENDO UN CAPITALE ANNUALE CONOSCIUTO, CON O SENZA CAPITALE INIZIALE A UN TASSO DI RIV CONOSCIUTO CHE MONTANTE AVRO' TRA X ANNI?",null,null,null,null,null,null,null,null,null,null,null,null,null,null,null,"INVESTENDO UN CAPITALE ANNUALE CONOSCIUTO, CON O SENZA CAPITALE INIZIALE A UN TASSO DI RIV CONOSCIUTO CHE MONTANTE AVRO' TRA X ANNI?",null,null,null,null,null,null,null,null,null,null,null,null,null,null,null,"INVESTENDO UN CAPITALE ANNUALE CONOSCIUTO, CON O SENZA CAPITALE INIZIALE A UN TASSO DI RIV CONOSCIUTO CHE MONTANTE AVRO' TRA X ANNI?",null,null,null,null,null,null,null,null,null,null,null,null,null,null,null,"INVESTENDO UN CAPITALE ANNUALE CONOSCIUTO, CON O SENZA CAPITALE INIZIALE A UN TASSO DI RIV CONOSCIUTO CHE MONTANTE AVRO' TRA X ANNI?",null,null,null,null,null,null,null,null,null,null,null,null,null,null,null,"INVESTENDO UN CAPITALE ANNUALE CONOSCIUTO, CON O SENZA CAPITALE INIZIALE A UN TASSO DI RIV CONOSCIUTO CHE MONTANTE AVRO' TRA X ANNI?",null,null,null,null,null,null,null,null,null,null,null,null,null,null,null,"INVESTENDO UN CAPITALE ANNUALE CONOSCIUTO, CON O SENZA CAPITALE INIZIALE A UN TASSO DI RIV CONOSCIUTO CHE MONTANTE AVRO' TRA X ANNI?",null,null,null,null,null,null,null,null,null,null,null,null,null,null,null,"INVESTENDO UN CAPITALE ANNUALE CONOSCIUTO, CON O SENZA CAPITALE INIZIALE A UN TASSO DI RIV CONOSCIUTO CHE MONTANTE AVRO' TRA X ANNI?",null,null,null,null,null,null,null,null,null,null,null,null,null,null,null,"INVESTENDO UN CAPITALE ANNUALE CONOSCIUTO, CON O SENZA CAPITALE INIZIALE A UN TASSO DI RIV CONOSCIUTO CHE MONTANTE AVRO' TRA X ANNI?",null,null,null,null,null,null,null,null,null,null,null,null,null,null,null,"INVESTENDO UN CAPITALE ANNUALE CONOSCIUTO, CON O SENZA CAPITALE INIZIALE A UN TASSO DI RIV CONOSCIUTO CHE MONTANTE AVRO' TRA X ANNI?",null,null,null,null,null,null,null,null,null,null,null,null,null,null,null,"INVESTENDO UN CAPITALE ANNUALE CONOSCIUTO, CON O SENZA CAPITALE INIZIALE A UN TASSO DI RIV CONOSCIUTO CHE MONTANTE AVRO' TRA X ANNI?",null,null,null,null,null,null,null,null,null,null,null,null,null,null,null,"INVESTENDO UN CAPITALE ANNUALE CONOSCIUTO, CON O SENZA CAPITALE INIZIALE A UN TASSO DI RIV CONOSCIUTO CHE MONTANTE AVRO' TRA X ANNI?",null,null,null,null,null,null,null,null,null,null,null,null,null,null,null,"INVESTENDO UN CAPITALE ANNUALE CONOSCIUTO, CON O SENZA CAPITALE INIZIALE A UN TASSO DI RIV CONOSCIUTO CHE MONTANTE AVRO' TRA X ANNI?",null,null,null,null,null,null,null,null,null,null,null,null,null,null,null,"INVESTENDO UN CAPITALE ANNUALE CONOSCIUTO, CON O SENZA CAPITALE INIZIALE A UN TASSO DI RIV CONOSCIUTO CHE MONTANTE AVRO' TRA X ANNI?",null,null,null,null,null,null,null,null,null,null,null,null,null,null,null,"INVESTENDO UN CAPITALE ANNUALE CONOSCIUTO, CON O SENZA CAPITALE INIZIALE A UN TASSO DI RIV CONOSCIUTO CHE MONTANTE AVRO' TRA X ANNI?",null,null,null,null,null,null,null,null,null,null,null,null,null,null,null,"INVESTENDO UN CAPITALE ANNUALE CONOSCIUTO, CON O SENZA CAPITALE INIZIALE A UN TASSO DI RIV CONOSCIUTO CHE MONTANTE AVRO' TRA X ANNI?",null,null,null,null,null,null,null,null,null,null,null,null,null,null,null,"INVESTENDO UN CAPITALE ANNUALE CONOSCIUTO, CON O SENZA CAPITALE INIZIALE A UN TASSO DI RIV CONOSCIUTO CHE MONTANTE AVRO' TRA X ANNI?",null,null,null,null,null,null,null,null,null,null,null,null,null,null,null,"INVESTENDO UN CAPITALE ANNUALE CONOSCIUTO, CON O SENZA CAPITALE INIZIALE A UN TASSO DI RIV CONOSCIUTO CHE MONTANTE AVRO' TRA X ANNI?",null,null,null,null,null,null,null,null,null,null,null,null,null,null,null,"INVESTENDO UN CAPITALE ANNUALE CONOSCIUTO, CON O SENZA CAPITALE INIZIALE A UN TASSO DI RIV CONOSCIUTO CHE MONTANTE AVRO' TRA X ANNI?",null,null,null,null,null,null,null,null,null,null,null,null,null,null,null,"INVESTENDO UN CAPITALE ANNUALE CONOSCIUTO, CON O SENZA CAPITALE INIZIALE A UN TASSO DI RIV CONOSCIUTO CHE MONTANTE AVRO' TRA X ANNI?",null,null,null,null,null,null,null,null,null,null,null,null,null,null,null,"INVESTENDO UN CAPITALE ANNUALE CONOSCIUTO, CON O SENZA CAPITALE INIZIALE A UN TASSO DI RIV CONOSCIUTO CHE MONTANTE AVRO' TRA X ANNI?",null,null,null,null,null,null,null,null,null,null,null,null,null,null,null,"INVESTENDO UN CAPITALE ANNUALE CONOSCIUTO, CON O SENZA CAPITALE INIZIALE A UN TASSO DI RIV CONOSCIUTO CHE MONTANTE AVRO' TRA X ANNI?",null,null,null,null,null,null,null,null,null,null,null,null,null,null,null,"INVESTENDO UN CAPITALE ANNUALE CONOSCIUTO, CON O SENZA CAPITALE INIZIALE A UN TASSO DI RIV CONOSCIUTO CHE MONTANTE AVRO' TRA X ANNI?",null,null,null,null,null,null,null,null,null,null,null,null,null,null,null,"INVESTENDO UN CAPITALE ANNUALE CONOSCIUTO, CON O SENZA CAPITALE INIZIALE A UN TASSO DI RIV CONOSCIUTO CHE MONTANTE AVRO' TRA X ANNI?",null,null,null,null,null,null,null,null,null,null,null,null,null,null,null,"INVESTENDO UN CAPITALE ANNUALE CONOSCIUTO, CON O SENZA CAPITALE INIZIALE A UN TASSO DI RIV CONOSCIUTO CHE MONTANTE AVRO' TRA X ANNI?",null,null,null,null,null,null,null,null,null,null,null,null,null,null,null,"INVESTENDO UN CAPITALE ANNUALE CONOSCIUTO, CON O SENZA CAPITALE INIZIALE A UN TASSO DI RIV CONOSCIUTO CHE MONTANTE AVRO' TRA X ANNI?",null,null,null,null,null,null,null,null,null,null,null,null,null,null,null,"INVESTENDO UN CAPITALE ANNUALE CONOSCIUTO, CON O SENZA CAPITALE INIZIALE A UN TASSO DI RIV CONOSCIUTO CHE MONTANTE AVRO' TRA X ANNI?",null,null,null,null,null,null,null,null,null,null,null,null,null,null,null,"INVESTENDO UN CAPITALE ANNUALE CONOSCIUTO, CON O SENZA CAPITALE INIZIALE A UN TASSO DI RIV CONOSCIUTO CHE MONTANTE AVRO' TRA X ANNI?",null,null,null,null,null,null,null,null,null,null,null,null,null,null,null,"INVESTENDO UN CAPITALE ANNUALE CONOSCIUTO, CON O SENZA CAPITALE INIZIALE A UN TASSO DI RIV CONOSCIUTO CHE MONTANTE AVRO' TRA X ANNI?",null,null,null,null,null,null,null,null,null,null,null,null,null,null,null,"INVESTENDO UN CAPITALE ANNUALE CONOSCIUTO, CON O SENZA CAPITALE INIZIALE A UN TASSO DI RIV CONOSCIUTO CHE MONTANTE AVRO' TRA X ANNI?",null,null,null,null,null,null,null,null,null,null,null,null,null,null,null,"INVESTENDO UN CAPITALE ANNUALE CONOSCIUTO, CON O SENZA CAPITALE INIZIALE A UN TASSO DI RIV CONOSCIUTO CHE MONTANTE AVRO' TRA X ANNI?",null,null,null,null,null,null,null,null,null,null,null,null,null,null,null,"INVESTENDO UN CAPITALE ANNUALE CONOSCIUTO, CON O SENZA CAPITALE INIZIALE A UN TASSO DI RIV CONOSCIUTO CHE MONTANTE AVRO' TRA X ANNI?",null,null,null,null,null,null,null,null,null,null,null,null,null,null,null,"INVESTENDO UN CAPITALE ANNUALE CONOSCIUTO, CON O SENZA CAPITALE INIZIALE A UN TASSO DI RIV CONOSCIUTO CHE MONTANTE AVRO' TRA X ANNI?",null,null,null,null,null,null,null,null,null,null,null,null,null,null,null,"INVESTENDO UN CAPITALE ANNUALE CONOSCIUTO, CON O SENZA CAPITALE INIZIALE A UN TASSO DI RIV CONOSCIUTO CHE MONTANTE AVRO' TRA X ANNI?",null,null,null,null,null,null,null,null,null,null,null,null,null,null,null,"INVESTENDO UN CAPITALE ANNUALE CONOSCIUTO, CON O SENZA CAPITALE INIZIALE A UN TASSO DI RIV CONOSCIUTO CHE MONTANTE AVRO' TRA X ANNI?",null,null,null,null,null,null,null,null,null,null,null,null,null,null,null,"INVESTENDO UN CAPITALE ANNUALE CONOSCIUTO, CON O SENZA CAPITALE INIZIALE A UN TASSO DI RIV CONOSCIUTO CHE MONTANTE AVRO' TRA X ANNI?",null,null,null,null,null,null,null,null,null,null,null,null,null,null,null,"INVESTENDO UN CAPITALE ANNUALE CONOSCIUTO, CON O SENZA CAPITALE INIZIALE A UN TASSO DI RIV CONOSCIUTO CHE MONTANTE AVRO' TRA X ANNI?",null,null,null,null,null,null,null,null,null,null,null,null,null,null,null,"INVESTENDO UN CAPITALE ANNUALE CONOSCIUTO, CON O SENZA CAPITALE INIZIALE A UN TASSO DI RIV CONOSCIUTO CHE MONTANTE AVRO' TRA X ANNI?",null,null,null,null,null,null,null,null,null,null,null,null,null,null,null,"INVESTENDO UN CAPITALE ANNUALE CONOSCIUTO, CON O SENZA CAPITALE INIZIALE A UN TASSO DI RIV CONOSCIUTO CHE MONTANTE AVRO' TRA X ANNI?",null,null,null,null,null,null,null,null,null,null,null,null,null,null,null,"INVESTENDO UN CAPITALE ANNUALE CONOSCIUTO, CON O SENZA CAPITALE INIZIALE A UN TASSO DI RIV CONOSCIUTO CHE MONTANTE AVRO' TRA X ANNI?",null,null,null,null,null,null,null,null,null,null,null,null,null,null,null,"INVESTENDO UN CAPITALE ANNUALE CONOSCIUTO, CON O SENZA CAPITALE INIZIALE A UN TASSO DI RIV CONOSCIUTO CHE MONTANTE AVRO' TRA X ANNI?",null,null,null,null,null,null,null,null,null,null,null,null,null,null,null,"INVESTENDO UN CAPITALE ANNUALE CONOSCIUTO, CON O SENZA CAPITALE INIZIALE A UN TASSO DI RIV CONOSCIUTO CHE MONTANTE AVRO' TRA X ANNI?",null,null,null,null,null,null,null,null,null,null,null,null,null,null,null,"INVESTENDO UN CAPITALE ANNUALE CONOSCIUTO, CON O SENZA CAPITALE INIZIALE A UN TASSO DI RIV CONOSCIUTO CHE MONTANTE AVRO' TRA X ANNI?",null,null,null,null,null,null,null,null,null,null,null,null,null,null,null,"INVESTENDO UN CAPITALE ANNUALE CONOSCIUTO, CON O SENZA CAPITALE INIZIALE A UN TASSO DI RIV CONOSCIUTO CHE MONTANTE AVRO' TRA X ANNI?",null,null,null,null,null,null,null,null,null,null,null,null,null,null,null,"INVESTENDO UN CAPITALE ANNUALE CONOSCIUTO, CON O SENZA CAPITALE INIZIALE A UN TASSO DI RIV CONOSCIUTO CHE MONTANTE AVRO' TRA X ANNI?",null,null,null,null,null,null,null,null,null,null,null,null,null,null,null,"INVESTENDO UN CAPITALE ANNUALE CONOSCIUTO, CON O SENZA CAPITALE INIZIALE A UN TASSO DI RIV CONOSCIUTO CHE MONTANTE AVRO' TRA X ANNI?",null,null,null,null,null,null,null,null,null,null,null,null,null,null,null,"INVESTENDO UN CAPITALE ANNUALE CONOSCIUTO, CON O SENZA CAPITALE INIZIALE A UN TASSO DI RIV CONOSCIUTO CHE MONTANTE AVRO' TRA X ANNI?",null,null,null,null,null,null,null,null,null,null,null,null,null,null,null,"INVESTENDO UN CAPITALE ANNUALE CONOSCIUTO, CON O SENZA CAPITALE INIZIALE A UN TASSO DI RIV CONOSCIUTO CHE MONTANTE AVRO' TRA X ANNI?",null,null,null,null,null,null,null,null,null,null,null,null,null,null,null,"INVESTENDO UN CAPITALE ANNUALE CONOSCIUTO, CON O SENZA CAPITALE INIZIALE A UN TASSO DI RIV CONOSCIUTO CHE MONTANTE AVRO' TRA X ANNI?",null,null,null,null,null,null,null,null,null,null,null,null,null,null,null,"INVESTENDO UN CAPITALE ANNUALE CONOSCIUTO, CON O SENZA CAPITALE INIZIALE A UN TASSO DI RIV CONOSCIUTO CHE MONTANTE AVRO' TRA X ANNI?",null,null,null,null,null,null,null,null,null,null,null,null,null,null,null,"INVESTENDO UN CAPITALE ANNUALE CONOSCIUTO, CON O SENZA CAPITALE INIZIALE A UN TASSO DI RIV CONOSCIUTO CHE MONTANTE AVRO' TRA X ANNI?",null,null,null,null,null,null,null,null,null,null,null,null,null,null,null,"INVESTENDO UN CAPITALE ANNUALE CONOSCIUTO, CON O SENZA CAPITALE INIZIALE A UN TASSO DI RIV CONOSCIUTO CHE MONTANTE AVRO' TRA X ANNI?",null,null,null,null,null,null,null,null,null,null,null,null,null,null,null,"INVESTENDO UN CAPITALE ANNUALE CONOSCIUTO, CON O SENZA CAPITALE INIZIALE A UN TASSO DI RIV CONOSCIUTO CHE MONTANTE AVRO' TRA X ANNI?",null,null,null,null,null,null,null,null,null,null,null,null,null,null,null,"INVESTENDO UN CAPITALE ANNUALE CONOSCIUTO, CON O SENZA CAPITALE INIZIALE A UN TASSO DI RIV CONOSCIUTO CHE MONTANTE AVRO' TRA X ANNI?",null,null,null,null,null,null,null,null,null,null,null,null,null,null,null,"INVESTENDO UN CAPITALE ANNUALE CONOSCIUTO, CON O SENZA CAPITALE INIZIALE A UN TASSO DI RIV CONOSCIUTO CHE MONTANTE AVRO' TRA X ANNI?",null,null,null,null,null,null,null,null,null,null,null,null,null,null,null,"INVESTENDO UN CAPITALE ANNUALE CONOSCIUTO, CON O SENZA CAPITALE INIZIALE A UN TASSO DI RIV CONOSCIUTO CHE MONTANTE AVRO' TRA X ANNI?",null,null,null,null,null,null,null,null,null,null,null,null,null,null,null,"INVESTENDO UN CAPITALE ANNUALE CONOSCIUTO, CON O SENZA CAPITALE INIZIALE A UN TASSO DI RIV CONOSCIUTO CHE MONTANTE AVRO' TRA X ANNI?",null,null,null,null,null,null,null,null,null,null,null,null,null,null,null,"INVESTENDO UN CAPITALE ANNUALE CONOSCIUTO, CON O SENZA CAPITALE INIZIALE A UN TASSO DI RIV CONOSCIUTO CHE MONTANTE AVRO' TRA X ANNI?",null,null,null,null,null,null,null,null,null,null,null,null,null,null,null,"INVESTENDO UN CAPITALE ANNUALE CONOSCIUTO, CON O SENZA CAPITALE INIZIALE A UN TASSO DI RIV CONOSCIUTO CHE MONTANTE AVRO' TRA X ANNI?",null,null,null,null,null,null,null,null,null,null,null,null,null,null,null,"INVESTENDO UN CAPITALE ANNUALE CONOSCIUTO, CON O SENZA CAPITALE INIZIALE A UN TASSO DI RIV CONOSCIUTO CHE MONTANTE AVRO' TRA X ANNI?",null,null,null,null,null,null,null,null,null,null,null,null,null,null,null,"INVESTENDO UN CAPITALE ANNUALE CONOSCIUTO, CON O SENZA CAPITALE INIZIALE A UN TASSO DI RIV CONOSCIUTO CHE MONTANTE AVRO' TRA X ANNI?",null,null,null,null,null,null,null,null,null,null,null,null,null,null,null,"INVESTENDO UN CAPITALE ANNUALE CONOSCIUTO, CON O SENZA CAPITALE INIZIALE A UN TASSO DI RIV CONOSCIUTO CHE MONTANTE AVRO' TRA X ANNI?",null,null,null,null,null,null,null,null,null,null,null,null,null,null,null,"INVESTENDO UN CAPITALE ANNUALE CONOSCIUTO, CON O SENZA CAPITALE INIZIALE A UN TASSO DI RIV CONOSCIUTO CHE MONTANTE AVRO' TRA X ANNI?",null,null,null,null,null,null,null,null,null,null,null,null,null,null,null,"INVESTENDO UN CAPITALE ANNUALE CONOSCIUTO, CON O SENZA CAPITALE INIZIALE A UN TASSO DI RIV CONOSCIUTO CHE MONTANTE AVRO' TRA X ANNI?",null,null,null,null,null,null,null,null,null,null,null,null,null,null,null,"INVESTENDO UN CAPITALE ANNUALE CONOSCIUTO, CON O SENZA CAPITALE INIZIALE A UN TASSO DI RIV CONOSCIUTO CHE MONTANTE AVRO' TRA X ANNI?",null,null,null,null,null,null,null,null,null,null,null,null,null,null,null,"INVESTENDO UN CAPITALE ANNUALE CONOSCIUTO, CON O SENZA CAPITALE INIZIALE A UN TASSO DI RIV CONOSCIUTO CHE MONTANTE AVRO' TRA X ANNI?",null,null,null,null,null,null,null,null,null,null,null,null,null,null,null,"INVESTENDO UN CAPITALE ANNUALE CONOSCIUTO, CON O SENZA CAPITALE INIZIALE A UN TASSO DI RIV CONOSCIUTO CHE MONTANTE AVRO' TRA X ANNI?",null,null,null,null,null,null,null,null,null,null,null,null,null,null,null,"INVESTENDO UN CAPITALE ANNUALE CONOSCIUTO, CON O SENZA CAPITALE INIZIALE A UN TASSO DI RIV CONOSCIUTO CHE MONTANTE AVRO' TRA X ANNI?",null,null,null,null,null,null,null,null,null,null,null,null,null,null,null,"INVESTENDO UN CAPITALE ANNUALE CONOSCIUTO, CON O SENZA CAPITALE INIZIALE A UN TASSO DI RIV CONOSCIUTO CHE MONTANTE AVRO' TRA X ANNI?",null,null,null,null,null,null,null,null,null,null,null,null,null,null,null,"INVESTENDO UN CAPITALE ANNUALE CONOSCIUTO, CON O SENZA CAPITALE INIZIALE A UN TASSO DI RIV CONOSCIUTO CHE MONTANTE AVRO' TRA X ANNI?",null,null,null,null,null,null,null,null,null,null,null,null,null,null,null,"INVESTENDO UN CAPITALE ANNUALE CONOSCIUTO, CON O SENZA CAPITALE INIZIALE A UN TASSO DI RIV CONOSCIUTO CHE MONTANTE AVRO' TRA X ANNI?",null,null,null,null,null,null,null,null,null,null,null,null,null,null,null,"INVESTENDO UN CAPITALE ANNUALE CONOSCIUTO, CON O SENZA CAPITALE INIZIALE A UN TASSO DI RIV CONOSCIUTO CHE MONTANTE AVRO' TRA X ANNI?",null,null,null,null,null,null,null,null,null,null,null,null,null,null,null,"INVESTENDO UN CAPITALE ANNUALE CONOSCIUTO, CON O SENZA CAPITALE INIZIALE A UN TASSO DI RIV CONOSCIUTO CHE MONTANTE AVRO' TRA X ANNI?",null,null,null,null,null,null,null,null,null,null,null,null,null,null,null,"INVESTENDO UN CAPITALE ANNUALE CONOSCIUTO, CON O SENZA CAPITALE INIZIALE A UN TASSO DI RIV CONOSCIUTO CHE MONTANTE AVRO' TRA X ANNI?",null,null,null,null,null,null,null,null,null,null,null,null,null,null,null,"INVESTENDO UN CAPITALE ANNUALE CONOSCIUTO, CON O SENZA CAPITALE INIZIALE A UN TASSO DI RIV CONOSCIUTO CHE MONTANTE AVRO' TRA X ANNI?",null,null,null,null,null,null,null,null,null,null,null,null,null,null,null,"INVESTENDO UN CAPITALE ANNUALE CONOSCIUTO, CON O SENZA CAPITALE INIZIALE A UN TASSO DI RIV CONOSCIUTO CHE MONTANTE AVRO' TRA X ANNI?",null,null,null,null,null,null,null,null,null,null,null,null,null,null,null,"INVESTENDO UN CAPITALE ANNUALE CONOSCIUTO, CON O SENZA CAPITALE INIZIALE A UN TASSO DI RIV CONOSCIUTO CHE MONTANTE AVRO' TRA X ANNI?",null,null,null,null,null,null,null,null,null,null,null,null,null,null,null,"INVESTENDO UN CAPITALE ANNUALE CONOSCIUTO, CON O SENZA CAPITALE INIZIALE A UN TASSO DI RIV CONOSCIUTO CHE MONTANTE AVRO' TRA X ANNI?",null,null,null,null,null,null,null,null,null,null,null,null,null,null,null,"INVESTENDO UN CAPITALE ANNUALE CONOSCIUTO, CON O SENZA CAPITALE INIZIALE A UN TASSO DI RIV CONOSCIUTO CHE MONTANTE AVRO' TRA X ANNI?",null,null,null,null,null,null,null,null,null,null,null,null,null,null,null,"INVESTENDO UN CAPITALE ANNUALE CONOSCIUTO, CON O SENZA CAPITALE INIZIALE A UN TASSO DI RIV CONOSCIUTO CHE MONTANTE AVRO' TRA X ANNI?",null,null,null,null,null,null,null,null,null,null,null,null,null,null,null,"INVESTENDO UN CAPITALE ANNUALE CONOSCIUTO, CON O SENZA CAPITALE INIZIALE A UN TASSO DI RIV CONOSCIUTO CHE MONTANTE AVRO' TRA X ANNI?",null,null,null,null,null,null,null,null,null,null,null,null,null,null,null,"INVESTENDO UN CAPITALE ANNUALE CONOSCIUTO, CON O SENZA CAPITALE INIZIALE A UN TASSO DI RIV CONOSCIUTO CHE MONTANTE AVRO' TRA X ANNI?",null,null,null,null,null,null,null,null,null,null,null,null,null,null,null,"INVESTENDO UN CAPITALE ANNUALE CONOSCIUTO, CON O SENZA CAPITALE INIZIALE A UN TASSO DI RIV CONOSCIUTO CHE MONTANTE AVRO' TRA X ANNI?",null,null,null,null,null,null,null,null,null,null,null,null,null,null,null,"INVESTENDO UN CAPITALE ANNUALE CONOSCIUTO, CON O SENZA CAPITALE INIZIALE A UN TASSO DI RIV CONOSCIUTO CHE MONTANTE AVRO' TRA X ANNI?",null,null,null,null,null,null,null,null,null,null,null,null,null,null,null,"INVESTENDO UN CAPITALE ANNUALE CONOSCIUTO, CON O SENZA CAPITALE INIZIALE A UN TASSO DI RIV CONOSCIUTO CHE MONTANTE AVRO' TRA X ANNI?",null,null,null,null,null,null,null,null,null,null,null,null,null,null,null,"INVESTENDO UN CAPITALE ANNUALE CONOSCIUTO, CON O SENZA CAPITALE INIZIALE A UN TASSO DI RIV CONOSCIUTO CHE MONTANTE AVRO' TRA X ANNI?",null,null,null,null,null,null,null,null,null,null,null,null,null,null,null,"INVESTENDO UN CAPITALE ANNUALE CONOSCIUTO, CON O SENZA CAPITALE INIZIALE A UN TASSO DI RIV CONOSCIUTO CHE MONTANTE AVRO' TRA X ANNI?",null,null,null,null,null,null,null,null,null,null,null,null,null,null,null,"INVESTENDO UN CAPITALE ANNUALE CONOSCIUTO, CON O SENZA CAPITALE INIZIALE A UN TASSO DI RIV CONOSCIUTO CHE MONTANTE AVRO' TRA X ANNI?",null,null,null,null,null,null,null,null,null,null,null,null,null,null,null,"INVESTENDO UN CAPITALE ANNUALE CONOSCIUTO, CON O SENZA CAPITALE INIZIALE A UN TASSO DI RIV CONOSCIUTO CHE MONTANTE AVRO' TRA X ANNI?",null,null,null,null,null,null,null,null,null,null,null,null,null,null,null,"INVESTENDO UN CAPITALE ANNUALE CONOSCIUTO, CON O SENZA CAPITALE INIZIALE A UN TASSO DI RIV CONOSCIUTO CHE MONTANTE AVRO' TRA X ANNI?",null,null,null,null,null,null,null,null,null,null,null,null,null,null,null,"INVESTENDO UN CAPITALE ANNUALE CONOSCIUTO, CON O SENZA CAPITALE INIZIALE A UN TASSO DI RIV CONOSCIUTO CHE MONTANTE AVRO' TRA X ANNI?",null,null,null,null,null,null,null,null,null,null,null,null,null,null,null,"INVESTENDO UN CAPITALE ANNUALE CONOSCIUTO, CON O SENZA CAPITALE INIZIALE A UN TASSO DI RIV CONOSCIUTO CHE MONTANTE AVRO' TRA X ANNI?",null,null,null,null,null,null,null,null,null,null,null,null,null,null,null,"INVESTENDO UN CAPITALE ANNUALE CONOSCIUTO, CON O SENZA CAPITALE INIZIALE A UN TASSO DI RIV CONOSCIUTO CHE MONTANTE AVRO' TRA X ANNI?",null,null,null,null,null,null,null,null,null,null,null,null,null,null,null,"INVESTENDO UN CAPITALE ANNUALE CONOSCIUTO, CON O SENZA CAPITALE INIZIALE A UN TASSO DI RIV CONOSCIUTO CHE MONTANTE AVRO' TRA X ANNI?",null,null,null,null,null,null,null,null,null,null,null,null,null,null,null,"INVESTENDO UN CAPITALE ANNUALE CONOSCIUTO, CON O SENZA CAPITALE INIZIALE A UN TASSO DI RIV CONOSCIUTO CHE MONTANTE AVRO' TRA X ANNI?",null,null,null,null,null,null,null,null,null,null,null,null,null,null,null,"INVESTENDO UN CAPITALE ANNUALE CONOSCIUTO, CON O SENZA CAPITALE INIZIALE A UN TASSO DI RIV CONOSCIUTO CHE MONTANTE AVRO' TRA X ANNI?",null,null,null,null,null,null,null,null,null,null,null,null,null,null,null,"INVESTENDO UN CAPITALE ANNUALE CONOSCIUTO, CON O SENZA CAPITALE INIZIALE A UN TASSO DI RIV CONOSCIUTO CHE MONTANTE AVRO' TRA X ANNI?",null,null,null,null,null,null,null,null,null,null,null,null,null,null,null,"INVESTENDO UN CAPITALE ANNUALE CONOSCIUTO, CON O SENZA CAPITALE INIZIALE A UN TASSO DI RIV CONOSCIUTO CHE MONTANTE AVRO' TRA X ANNI?",null,null,null,null,null,null,null,null,null,null,null,null,null,null,null,"INVESTENDO UN CAPITALE ANNUALE CONOSCIUTO, CON O SENZA CAPITALE INIZIALE A UN TASSO DI RIV CONOSCIUTO CHE MONTANTE AVRO' TRA X ANNI?",null,null,null,null,null,null,null,null,null,null,null,null,null,null,null,"INVESTENDO UN CAPITALE ANNUALE CONOSCIUTO, CON O SENZA CAPITALE INIZIALE A UN TASSO DI RIV CONOSCIUTO CHE MONTANTE AVRO' TRA X ANNI?",null,null,null,null,null,null,null,null,null,null,null,null,null,null,null,"INVESTENDO UN CAPITALE ANNUALE CONOSCIUTO, CON O SENZA CAPITALE INIZIALE A UN TASSO DI RIV CONOSCIUTO CHE MONTANTE AVRO' TRA X ANNI?",null,null,null,null,null,null,null,null,null,null,null,null,null,null,null,"INVESTENDO UN CAPITALE ANNUALE CONOSCIUTO, CON O SENZA CAPITALE INIZIALE A UN TASSO DI RIV CONOSCIUTO CHE MONTANTE AVRO' TRA X ANNI?",null,null,null,null,null,null,null,null,null,null,null,null,null,null,null,"INVESTENDO UN CAPITALE ANNUALE CONOSCIUTO, CON O SENZA CAPITALE INIZIALE A UN TASSO DI RIV CONOSCIUTO CHE MONTANTE AVRO' TRA X ANNI?",null,null,null,null,null,null,null,null,null,null,null,null,null,null,null,"INVESTENDO UN CAPITALE ANNUALE CONOSCIUTO, CON O SENZA CAPITALE INIZIALE A UN TASSO DI RIV CONOSCIUTO CHE MONTANTE AVRO' TRA X ANNI?",null,null,null,null,null,null,null,null,null,null,null,null,null,null,null,"INVESTENDO UN CAPITALE ANNUALE CONOSCIUTO, CON O SENZA CAPITALE INIZIALE A UN TASSO DI RIV CONOSCIUTO CHE MONTANTE AVRO' TRA X ANNI?",null,null,null,null,null,null,null,null,null,null,null,null,null,null,null,"INVESTENDO UN CAPITALE ANNUALE CONOSCIUTO, CON O SENZA CAPITALE INIZIALE A UN TASSO DI RIV CONOSCIUTO CHE MONTANTE AVRO' TRA X ANNI?",null,null,null,null,null,null,null,null,null,null,null,null,null,null,null,"INVESTENDO UN CAPITALE ANNUALE CONOSCIUTO, CON O SENZA CAPITALE INIZIALE A UN TASSO DI RIV CONOSCIUTO CHE MONTANTE AVRO' TRA X ANNI?",null,null,null,null,null,null,null,null,null,null,null,null,null,null,null,"INVESTENDO UN CAPITALE ANNUALE CONOSCIUTO, CON O SENZA CAPITALE INIZIALE A UN TASSO DI RIV CONOSCIUTO CHE MONTANTE AVRO' TRA X ANNI?",null,null,null,null,null,null,null,null,null,null,null,null,null,null,null,"INVESTENDO UN CAPITALE ANNUALE CONOSCIUTO, CON O SENZA CAPITALE INIZIALE A UN TASSO DI RIV CONOSCIUTO CHE MONTANTE AVRO' TRA X ANNI?",null,null,null,null,null,null,null,null,null,null,null,null,null,null,null,"INVESTENDO UN CAPITALE ANNUALE CONOSCIUTO, CON O SENZA CAPITALE INIZIALE A UN TASSO DI RIV CONOSCIUTO CHE MONTANTE AVRO' TRA X ANNI?",null,null,null,null,null,null,null,null,null,null,null,null,null,null,null,"INVESTENDO UN CAPITALE ANNUALE CONOSCIUTO, CON O SENZA CAPITALE INIZIALE A UN TASSO DI RIV CONOSCIUTO CHE MONTANTE AVRO' TRA X ANNI?",null,null,null,null,null,null,null,null,null,null,null,null,null,null,null,"INVESTENDO UN CAPITALE ANNUALE CONOSCIUTO, CON O SENZA CAPITALE INIZIALE A UN TASSO DI RIV CONOSCIUTO CHE MONTANTE AVRO' TRA X ANNI?",null,null,null,null,null,null,null,null,null,null,null,null,null,null,null,"INVESTENDO UN CAPITALE ANNUALE CONOSCIUTO, CON O SENZA CAPITALE INIZIALE A UN TASSO DI RIV CONOSCIUTO CHE MONTANTE AVRO' TRA X ANNI?",null,null,null,null,null,null,null,null,null,null,null,null,null,null,null,"INVESTENDO UN CAPITALE ANNUALE CONOSCIUTO, CON O SENZA CAPITALE INIZIALE A UN TASSO DI RIV CONOSCIUTO CHE MONTANTE AVRO' TRA X ANNI?",null,null,null,null,null,null,null,null,null,null,null,null,null,null,null,"INVESTENDO UN CAPITALE ANNUALE CONOSCIUTO, CON O SENZA CAPITALE INIZIALE A UN TASSO DI RIV CONOSCIUTO CHE MONTANTE AVRO' TRA X ANNI?",null,null,null,null,null,null,null,null,null,null,null,null,null,null,null,"INVESTENDO UN CAPITALE ANNUALE CONOSCIUTO, CON O SENZA CAPITALE INIZIALE A UN TASSO DI RIV CONOSCIUTO CHE MONTANTE AVRO' TRA X ANNI?",null,null,null,null,null,null,null,null,null,null,null,null,null,null,null,"INVESTENDO UN CAPITALE ANNUALE CONOSCIUTO, CON O SENZA CAPITALE INIZIALE A UN TASSO DI RIV CONOSCIUTO CHE MONTANTE AVRO' TRA X ANNI?",null,null,null,null,null,null,null,null,null,null,null,null,null,null,null,"INVESTENDO UN CAPITALE ANNUALE CONOSCIUTO, CON O SENZA CAPITALE INIZIALE A UN TASSO DI RIV CONOSCIUTO CHE MONTANTE AVRO' TRA X ANNI?",null,null,null,null,null,null,null,null,null,null,null,null,null,null,null,"INVESTENDO UN CAPITALE ANNUALE CONOSCIUTO, CON O SENZA CAPITALE INIZIALE A UN TASSO DI RIV CONOSCIUTO CHE MONTANTE AVRO' TRA X ANNI?",null,null,null,null,null,null,null,null,null,null,null,null,null,null,null,"INVESTENDO UN CAPITALE ANNUALE CONOSCIUTO, CON O SENZA CAPITALE INIZIALE A UN TASSO DI RIV CONOSCIUTO CHE MONTANTE AVRO' TRA X ANNI?",null,null,null,null,null,null,null,null,null,null,null,null,null,null,null,"INVESTENDO UN CAPITALE ANNUALE CONOSCIUTO, CON O SENZA CAPITALE INIZIALE A UN TASSO DI RIV CONOSCIUTO CHE MONTANTE AVRO' TRA X ANNI?",null,null,null,null,null,null,null,null,null,null,null,null,null,null,null,"INVESTENDO UN CAPITALE ANNUALE CONOSCIUTO, CON O SENZA CAPITALE INIZIALE A UN TASSO DI RIV CONOSCIUTO CHE MONTANTE AVRO' TRA X ANNI?",null,null,null,null,null,null,null,null,null,null,null,null,null,null,null,"INVESTENDO UN CAPITALE ANNUALE CONOSCIUTO, CON O SENZA CAPITALE INIZIALE A UN TASSO DI RIV CONOSCIUTO CHE MONTANTE AVRO' TRA X ANNI?",null,null,null,null,null,null,null,null,null,null,null,null,null,null,null,"INVESTENDO UN CAPITALE ANNUALE CONOSCIUTO, CON O SENZA CAPITALE INIZIALE A UN TASSO DI RIV CONOSCIUTO CHE MONTANTE AVRO' TRA X ANNI?",null,null,null,null,null,null,null,null,null,null,null,null,null,null,null,"INVESTENDO UN CAPITALE ANNUALE CONOSCIUTO, CON O SENZA CAPITALE INIZIALE A UN TASSO DI RIV CONOSCIUTO CHE MONTANTE AVRO' TRA X ANNI?",null,null,null,null,null,null,null,null,null,null,null,null,null,null,null,"INVESTENDO UN CAPITALE ANNUALE CONOSCIUTO, CON O SENZA CAPITALE INIZIALE A UN TASSO DI RIV CONOSCIUTO CHE MONTANTE AVRO' TRA X ANNI?",null,null,null,null,null,null,null,null,null,null,null,null,null,null,null,"INVESTENDO UN CAPITALE ANNUALE CONOSCIUTO, CON O SENZA CAPITALE INIZIALE A UN TASSO DI RIV CONOSCIUTO CHE MONTANTE AVRO' TRA X ANNI?",null,null,null,null,null,null,null,null,null,null,null,null,null,null,null,"INVESTENDO UN CAPITALE ANNUALE CONOSCIUTO, CON O SENZA CAPITALE INIZIALE A UN TASSO DI RIV CONOSCIUTO CHE MONTANTE AVRO' TRA X ANNI?",null,null,null,null,null,null,null,null,null,null,null,null,null,null,null,"INVESTENDO UN CAPITALE ANNUALE CONOSCIUTO, CON O SENZA CAPITALE INIZIALE A UN TASSO DI RIV CONOSCIUTO CHE MONTANTE AVRO' TRA X ANNI?",null,null,null,null,null,null,null,null,null,null,null,null,null,null,null,"INVESTENDO UN CAPITALE ANNUALE CONOSCIUTO, CON O SENZA CAPITALE INIZIALE A UN TASSO DI RIV CONOSCIUTO CHE MONTANTE AVRO' TRA X ANNI?",null,null,null,null,null,null,null,null,null,null,null,null,null,null,null,"INVESTENDO UN CAPITALE ANNUALE CONOSCIUTO, CON O SENZA CAPITALE INIZIALE A UN TASSO DI RIV CONOSCIUTO CHE MONTANTE AVRO' TRA X ANNI?",null,null,null,null,null,null,null,null,null,null,null,null,null,null,null,"INVESTENDO UN CAPITALE ANNUALE CONOSCIUTO, CON O SENZA CAPITALE INIZIALE A UN TASSO DI RIV CONOSCIUTO CHE MONTANTE AVRO' TRA X ANNI?",null,null,null,null,null,null,null,null,null,null,null,null,null,null,null,"INVESTENDO UN CAPITALE ANNUALE CONOSCIUTO, CON O SENZA CAPITALE INIZIALE A UN TASSO DI RIV CONOSCIUTO CHE MONTANTE AVRO' TRA X ANNI?",null,null,null,null,null,null,null,null,null,null,null,null,null,null,null,"INVESTENDO UN CAPITALE ANNUALE CONOSCIUTO, CON O SENZA CAPITALE INIZIALE A UN TASSO DI RIV CONOSCIUTO CHE MONTANTE AVRO' TRA X ANNI?",null,null,null,null,null,null,null,null,null,null,null,null,null,null,null,"INVESTENDO UN CAPITALE ANNUALE CONOSCIUTO, CON O SENZA CAPITALE INIZIALE A UN TASSO DI RIV CONOSCIUTO CHE MONTANTE AVRO' TRA X ANNI?",null,null,null,null,null,null,null,null,null,null,null,null,null,null,null,"INVESTENDO UN CAPITALE ANNUALE CONOSCIUTO, CON O SENZA CAPITALE INIZIALE A UN TASSO DI RIV CONOSCIUTO CHE MONTANTE AVRO' TRA X ANNI?",null,null,null,null,null,null,null,null,null,null,null,null,null,null,null,"INVESTENDO UN CAPITALE ANNUALE CONOSCIUTO, CON O SENZA CAPITALE INIZIALE A UN TASSO DI RIV CONOSCIUTO CHE MONTANTE AVRO' TRA X ANNI?",null,null,null,null,null,null,null,null,null,null,null,null,null,null,null,"INVESTENDO UN CAPITALE ANNUALE CONOSCIUTO, CON O SENZA CAPITALE INIZIALE A UN TASSO DI RIV CONOSCIUTO CHE MONTANTE AVRO' TRA X ANNI?"]
[]
[]
[]
["Avvertenza: I risultati di calcolo sono basati su procedure che utilizzano dati stimati dall'Aderente e pertanto potrebbero non trovare conferma nel corso del rapporto. Quindi la posizione"]
["individuale maturata e la prestazione pensionistica corrispondente potrebbero risultare differenti da quelle riportate nel progetto esemplificativo individuale."]
[]
[null,null,null,null,null,null,null,"PROGETTO ESEMPLIFICATIVO INDIVIDUALE"]
[]
[]
[null,null,null,null,null,null,null,"CALCOLO RENDITE VITALIZIE"]
[]
[null,null,null,null,"PROPRIETA' INTELLETTUALE E REALIZZAZIONE DI GIUSEPPE NICOLETTI - E' VIETATA LA RIPRODUZIONE E/O COMMERCIALIZZAZIONE ANCHE PARZIALE "]

{"sheet":"TFR","index":1,"n_rows":23,"n_cols":16,"rows_kept":23,"cut":false,"hidden":false,"merged":[[22,2,22,15],[18,16,18,19],[18,8,18,10],[2,4,2,11],[15,2,15,6],[10,11,10,13],[9,12,9,14],[10,14,10,15],[5,2,5,6],[7,2,7,6],[9,2,9,6],[10,2,10,6],[12,2,12,6],[13,2,13,6]]}
[]
[]
[null,null,null,null,"CONVIENE INVESTIRE IL TFR IN UN FONDO O LASCIARLO IN AZIENDA?"]
[]
[]
[null,null,"RETRIBUZIONE ANNUALE INIZIALE",null,null,null,null,20000]
[]
[null,null,"% INCREMENTO ANNUO RETRIBUZIONE",null,null,null,null,2,"la percentuale inserita può essere modificata secondo stime individuali"]
[null,null,null,null,null,null,null,null,null,null,"ANNI"]
[null,null,"ANNO INIZIO INVESTIMENTO TFR NEL FONDO ",null,null,null,null,2014,null,null,{"$f":"+H11-H10+1","v":21},null,"TASSAZIONE"]
[null,null,"ANNO FINE INVESTIMENTO NEL FONDO",null,null,null,null,2034,null,null,null,"RISCATTO",null,null,"PENSIONAMENTO"]
[null,null,null,null,null,null,null,null,"O/W RIV","SOLO TFR",null,"FONDO","AZIENDA",null,"FONDO","AZIENDA"]
[null,null,"TFR YTD NEL FONDO",null,null,null,null,{"$f":"VLOOKUP(H11,CALCOLI1!$H$29:$U$59,5)","v":53401.070887046859},{"$f":"VLOOKUP(H11,CALCOLI1!$H$29:$U$59,14)","v":15203.563931645267},{"$f":"+H13-I13","v":38197.506955401594},null,0.23,{"$f":"+CALCOLI1!Q69/100","v":0.23},null,{"$f":"VLOOKUP(K10,CALCOLI1!$H$72:$J$113,3)/100","v":0.13199999999999995},{"$f":"+M13","v":0.23}]
[null,null,"TFR YTD IN AZIENDA",null,null,null,null,{"$f":"VLOOKUP(H11,CALCOLI1!$H$29:$U$59,4)","v":51989.170858207486},{"$f":"VLOOKUP(H11,CALCOLI1!$H$29:$U$59,13)","v":13791.663902805898},{"$f":"+H14-I14","v":38197.506955401586}]
[]
[null,null,"DELTA FONDO - AZIENDA",null,null,null,null,{"$f":"+H13-H14","v":1411.9000288393727},null,null,null,{"$f":"+M13-L13","v":0},null,null,{"$f":"+P13-O13","v":9.8000000000000059E-2}]
[]
[]
[null,null,null,"<===== campi modificabili"]
[null,null,null,"<===== risultato",null,null,null,null,"<===== modifica facoltativa"]
[]
["ATTENZIONE: LE PERCENTUALI DI RIVALUTAZIONE DOPO IL 2013 SONO STIMATE CON INFLAZIONE CHE SI INCREMENTA DEL 2% ALL'ANNO E FONDO CHE SI MANTIENE STABILE AL 4% ANNUO"]
[null,null,"PROPRIETA' INTELLETTUALE E REALIZZAZIONE DI GIUSEPPE NICOLETTI - E' VIETATA LA RIPRODUZIONE E/O COMMERCIALIZZAZIONE ANCHE PARZIALE "]

{"sheet":"TCM","index":2,"n_rows":28,"n_cols":17,"rows_kept":28,"cut":false,"hidden":false,"merged":[[12,16,12,19],[8,16,8,19],[10,16,10,19],[15,16,15,19],[13,2,13,4],[4,2,4,4],[5,2,5,4],[6,2,6,4],[10,2,10,4],[11,2,11,4],[27,3,27,16],[24,10,24,12],[22,2,22,4],[18,2,18,17],[20,2,20,4],[21,2,21,4],[23,2,23,4],[20,10,20,12],[21,10,21,12],[22,10,22,12],[23,10,23,12]]}
[]
[]
[null,null,"TRA QUANTO TEMPO INVESTENDO UN CAPITALE NOTO A UN TASSO ANNUO DI RENDIMENTO NOTO POTRO' AVERE IL MONTANTE CHE MI SERVE?"]
[]
[null,null,"CAPITALE INVESTITO",null,null,0,null,"anni","mesi","giorni"]
[null,null,"MONTANTE DESIDERATO",null,null,0,null,{"$f":"+CALCOLI!H8","v":0},{"$f":"+CALCOLI!I8","v":0},{"$f":"+CALCOLI!J8","v":0}]
[null,null,"TASSO ANNUO RENDIMENTO",null,null,0]
[]
[null,null,"QUANTO CAPITALE DEVO INVESTIRE PER OTTENERE TRA X ANNI UN MONTANTE DESIDERATO?",null,null,null,null,null,null,null,null,null,null,null,null,null,"<===== dati modificabili"]
[]
[null,null,"MONTANTE DESIDERATO",null,null,0,null,null,null,null,null,null,null,null,null,null,"<===== dati fissi"]
[null,null,"TASSO ANNUO RENDIMENTO",null,null,0]
[null,null,"PERIODO INVESTIMENTO ANNI",null,null,0,null,null,null,null,null,null,null,null,null,null,"<===== risultato"]
[null,null,"CAPITALE DA INVESTIRE",null,null,{"$f":"+CALCOLI!M8","v":0}]
[]
[null,null,null,null,null,null,null,null,null,null,null,null,null,null,null,null,"<===== modifica facoltativa"]
[]
[]
[null,null,"INVESTENDO UN CAPITALE ANNUALE CONOSCIUTO, CON O SENZA CAPITALE INIZIALE A UN TASSO DI RIV CONOSCIUTO CHE MONTANTE AVRO' TRA X ANNI?"]
[]
[null,null,"EVENTUALE CAPITALE INIZIALE",null,null,0,null,null,null,{"$f":"IF(F26=0,0,VLOOKUP(F26,CALCOLI1!$L$74:$U$123,5))","v":0},"MONTANTE FINALE"]
[null,null,"VERSAMENTO ANNUO",null,null,0,null,null,null,{"$f":"IF(F26=0,0,VLOOKUP(F26,CALCOLI1!$L$74:$V$123,11))","v":0},"RIVALUTAZIONE"]
[null,null,"INCREM VERSAMENTO ANNUO",null,null,0,"(*)",null,null,{"$f":"IF(F26=0,0,VLOOKUP(F26,CALCOLI1!$L$74:$W$123,12))","v":0},"CAPITALE INVESTITO"]
[null,null,"TASSO ANNUO RENDIMENTO",null,null,0,null,null,null,0.05,"% CARICAMENTO"]
[null,null,"INCREMENTO ANNUO RIV",null,null,1,null,null,null,0.4,"% NON RETROC. SU RIV."]
[null,null,"ANNI INVESTIMENTO",null,null,0,null,null,null,"(*) la percentuale inserita può essere modificata secondo stime personali"]
[]
[null,null,null,"PROPRIETA' INTELLETTUALE E REALIZZAZIONE DI GIUSEPPE NICOLETTI - E' VIETATA LA RIPRODUZIONE E/O COMMERCIALIZZAZIONE ANCHE PARZIALE "]

{"sheet":"M&R","index":3,"n_rows":25,"n_cols":18,"rows_kept":25,"cut":false,"hidden":false,"merged":[[1,1,1,3],[5,6,5,7],[5,9,5,10],[5,12,5,13],[11,17,11,19],[3,3,3,11],[9,6,9,7],[24,1,24,14],[13,6,13,7],[13,9,13,10],[7,9,7,10],[5,17,5,19],[19,15,19,18],[20,15,20,18],[21,15,21,18],[18,15,18,18],[15,10,15,11],[16,10,16,11]]}
[]
[]
[]
[null,null,null,"PROGETTO ESEMPLIFICATIVO PERSONALIZZATO ADERENTI NON DIRIGENTI",null,null,null,null,null,null,null,null,null,"Età minima 51 anni =====>",null,null,{"$f":"IF(O6-I6>0,O6-I6,0)","v":51},"< === età"]
[]
[null,"SESSO",null,"M","(M o F)",null,"ANNO DI NASCITA",null,1960,"ANNO INIZIO VERSAMENTI",null,1986,"ANNO FINE VERSAMENTI",null,2011,null,{"$f":"IF(O6-L6>0,O6-L6,0)","v":25},"< === anni versamenti"]
[]
[null,"RETRIBUZIONE ANNUALE",null,80000,null,null,"% INCR. RETRIB. ANNUA ",null,2,"TFR ANNUALE",null,{"$f":"+CALCOLI1!E11","v":5925.9259259259261},"% TFR ACCANTONATO",null,100,null,null,"<== campi modificabili"]
[]
[null,"CODICE AZIENDA",null,1,"(**)",null,"QUALIFICA CONTRATTUALE",null,null,"CONTR VOLONTARIO INIZIO €",null,0,"% CONTRIB. SOLO PER EX S3 ",null,1.6,null,null,"<== modifica facoltativa"]
[]
[null,"% RIV FONDO",null,3,"(°)",null,"% CARICAMENTO",null,0.05,"% NON RETROCESSA SU RIV",null,{"$f":"0.4+CALCOLI1!AT5","v":0.45},null,null,null,null,null,"<===== dati fissi"]
[]
[null,"CONTRIBUTI YTD",null,{"$f":"+CALCOLI1!E22","v":162748.29723981916},null,null,"TFR YTD",null,{"$f":"+CALCOLI1!E23","v":187911.09170965408},"TOT YTD CON RIV",null,{"$f":"+CALCOLI1!E24","v":412398.98210169899},"SOLO RIVALUTAZIONE",null,{"$f":"+CALCOLI1!E25","v":61739.593152225745},null,null,"<===== risultato"]
[null,"ULTIMA RETRIB PERCEPITA",null,{"$f":"+CALCOLI1!U7","v":211104.94345675339}]
[]
[]
[]
[null,"(**) 1=IBM/ISSF/TOSHIBA/ACG/ Modis/HCL/DB2I/SEM. GEST LABS/Lenovo; 3=ex S3"]
[null,"(*) valore calcolato su superstite di età UGUALE a quella dell'aderente "]
[null,"(^) tasso di sostituzione calcolato sull'ultima retribuzione lorda percepita"]
[null,"(°) percentuale modificabile in funzione del comparto da 1% a 4%"]
[]
[]
[null,"PROPRIETA' INTELLETTUALE E REALIZZAZIONE DI GIUSEPPE NICOLETTI - E' VIETATA LA RIPRODUZIONE E/O COMMERCIALIZZAZIONE ANCHE PARZIALE "]

{"sheet":"CALCOLI1","index":4,"n_rows":123,"n_cols":46,"rows_kept":123,"cut":false,"hidden":true,"merged":[[7,7,7,8],[61,7,61,9],[11,23,11,24],[11,26,11,27]]}
[]
[]
[null,null,"DETERMINAZIONE DELLA RENDITA IMMEDIATA, REVERSIBILE, CERTA PER 5 E 10 ANNI, CONTROASSICURATA CASO MORTE  ",null,null,null,null,null,null,null,null,null,null,null,null,null,"ETA' ALLA PENSIONE",null,{"$f":"IF($E$7-$E$5>0,$E$7-$E$5,0)","v":51},null,{"$f":"IF($E$4=\"M\",VLOOKUP($S$3,CALCOLI1!$X$13:$Y$102,2),VLOOKUP($S$3,CALCOLI1!$AA$13:$AB$100,2))","v":-1},null,null,null,null,null,null,null,null,null,null,null,null,null,null,null,null,null,null,null,null,null,"calcolo over performance per M&R"]
[null,null,"SESSO",null,{"$f":"+'M&R'!D6","v":"M"},null,null,null,null,null,null,null,null,null,null,null,"RENDITA IMMEDIATA",null,null,null,"RETRIBUZIONE","TASSO SOST"]
[null,null,"ANNO DI NASCITA",null,{"$f":"IF('M&R'!I6>0,'M&R'!I6,0)","v":1960},null,null,{"$f":"TODAY()","v":"2018-12-13"},{"$f":"YEAR(H5)","v":2018},{"$f":"+I5-E5","v":58},"<=ETA'",null,null,null,null,null,"ETA' ALLA PENS+AGE SHIFTING",null,{"$f":"IF($E$7-$E$5>0,$E$7-$E$5+U3,0)","v":50},null,null,null,null,null,null,"RENDITA","VALORE","TASSO SOST.(^)",null,null,null,null,null,null,null,null,null,null,null,null,null,null,{"$f":"+'M&R'!D12","v":3},{"$f":"IF(AQ5>2.5,AQ5-2.5,0)","v":0.5},{"$f":"+AR5*10","v":5},{"$f":"+AS5*0.01","v":0.05}]
[null,null,"ANNO INIZIO VERSAMENTI",null,{"$f":"IF('M&R'!L6>0,'M&R'!L6,0)","v":1986},null,null,null,null,null,null,null,null,null,null,null,"PENSIONE COEFF",null,null,{"$f":"IF($E$4=\"M\",VLOOKUP($S$5,CALCOLI!$F$16:$H$36,2),VLOOKUP($S$5,CALCOLI!$F$16:$H$36,3))","v":2.7609999999999999E-2},null,null,null,null,null,"ORDINARIA",{"$f":"+T7","v":11386.33589582791},{"$f":"+V7","v":5.3936851072180103E-2}]
[null,null,"ANNO FINE VERSAMENTI",null,{"$f":"IF('M&R'!O6>0,'M&R'!O6,0)","v":2011},null,null,{"$f":"+E7-E6","v":25},null,null,null,null,null,null,null,null,"VALORE PENSIONE ANNUA",null,null,{"$f":"+E24*T6","v":11386.33589582791},{"$f":"IF($S$5>0,VLOOKUP($S$5,CALCOLI!$A$41:$J$110,10),0)","v":211104.94345675339},{"$f":"+T7/U7","v":5.3936851072180103E-2},null,null,{"$f":"+AA6*73.53%","v":8372.3727842022618},"REVERSIBILE",{"$f":"+Y7","v":8372.3727842022618},{"$f":"+V11","v":3.965976659337403E-2}]
[null,null,"ANZIANITA' DI SERVIZIO",null,{"$f":"+'M&R'!I10","v":0},null,null,"% INCR RETR ANNUALE",null,null,null,"% RIV FONDO",null,"% CARIC","% SU RIV",null,"RENDITA REVERSIBILE",null,null,null,null,null,null,null,null,"AL SUPERSTITE *",{"$f":"+U11","v":5023.4236705213571},{"$f":"+W11","v":2.3795859956024418E-2}]
[null,null,"RETRIBUZIONE ANNUALE",null,{"$f":"+'M&R'!D8","v":80000},null,null,{"$f":"+'M&R'!I8","v":2},{"$f":"IF(E9>46031,46031,E9)","v":46031},{"$f":"IF(I9<46031,0,E9-I9)","v":33969},null,{"$f":"+'M&R'!D12","v":3},null,{"$f":"+'M&R'!I12","v":0.05},{"$f":"+'M&R'!L12+M12","v":0.5},null,"ETA' ALLA PENS+AGE SHIFTING",null,{"$f":"+S5","v":50},null,"AL SUPERSTITE",null,null,null,{"$f":"+T15*99.29%","v":11297.303491980958},"CERTA 5 ANNI",{"$f":"+Y9","v":11297.303491980958},{"$f":"+V15","v":5.3515106311545491E-2}]
[null,null,"% INCREMENTO RETRIB",null,null,null,null,null,2,7,null,null,null,null,null,null,"PENSIONE COEFF",null,null,{"$f":"IF($E$4=\"M\",VLOOKUP($S$5,CALCOLI!$Z$5:$AB$25,2),VLOOKUP($S$5,CALCOLI!$Z$5:AJ$25,3))","v":2.274E-2},null,null,null,null,{"$f":"+T19*97.11%","v":11029.237142832153},"CERTA 10 ANNI",{"$f":"+Y10","v":11029.237142832153},{"$f":"+V19","v":5.2245281243693778E-2}]
[null,null,"TFR ANNUALE",null,{"$f":"+E9/13.5","v":5925.9259259259261},null,null,null,{"$f":"+I9*I10%","v":920.62},{"$f":"+J9*J10%","v":2377.8300000000004},{"$f":"+I11+J11","v":3298.4500000000003},{"$f":"+L9-2.5","v":0.5},{"$f":"IF(L11>0,L11,0)","v":0.5},null,null,null,"VALORE PENSIONE ANNUA",null,null,{"$f":"+E24*T10","v":9377.9528529926356},{"$f":"+Y7*60%","v":5023.4236705213571},{"$f":"+Y7/U7","v":3.965976659337403E-2},{"$f":"+U11/U7","v":2.3795859956024418E-2},null,{"$f":"+T23*85.56%","v":9456.3416515105273},"CONTROASSICURATA",{"$f":"+Y11","v":9456.3416515105273},{"$f":"+V23","v":4.47945059772972E-2}]
[null,null,"% TFR ACCANTONATO",null,{"$f":"+'M&R'!O8","v":100},null,null,null,null,null,{"$f":"+K11/E9%","v":4.1230625000000005},"over perf===>",{"$f":"+M11*10*0.01","v":0.05},null,"CTR DIR","CTR AZ","RENDITA CERTA 5 ANNI",null,null,null,null,null,null,"maschi",null,null,"femmine"]
[null,null,"TFR ACCANTONATO",null,{"$f":"+E11*E12%","v":5925.9259259259261},null,null,null,null,null,null,null,null,null,null,null,"ETA' ALLA PENS+AGE SHIFTING",null,{"$f":"+S9","v":50},null,null,null,null,0,-2,null,0,-2]
[null,null,"% CONTR DIP AL FONDO",null,{"$f":"+O19","v":3.8573926562499996},null,null,null,0,null,63000,{"$f":"+K14-I14","v":63000},{"$f":"IF(E9>L14,L14,E9)","v":63000},{"$f":"+E9-M14","v":17000},{"$f":"+M14*3.25%","v":2047.5},{"$f":"+M14*2.89%","v":1820.7},"PENSIONE COEFF",null,null,{"$f":"IF($E$4=\"M\",VLOOKUP($S$5,CALCOLI!$J$16:$L$36,2),VLOOKUP($S$5,CALCOLI!$J$16:$L$36,3))","v":2.759E-2},null,null,null,{"$f":"1+X13","v":1},-2,null,{"$f":"1+AA13","v":1},-2]
[null,null,"%CONTR AZ AL FONDO",null,{"$f":"+P19","v":3.24919341875},null,null,null,63000.01,null,76411.460000000006,{"$f":"+K15-I15","v":13411.450000000004},{"$f":"IF(N14>=L15,L15,N14)","v":13411.450000000004},{"$f":"+N14-M15","v":3588.5499999999956},{"$f":"+M15*5.95%","v":797.98127500000032},{"$f":"+M15*4.46%","v":598.15067000000022},"VALORE PENSIONE ANNUA",null,null,{"$f":"+E24*T14","v":11378.087916185876},null,{"$f":"+Y9/U7","v":5.3515106311545491E-2},null,{"$f":"1+X14","v":2},-2,null,{"$f":"1+AA14","v":2},-2]
[null,null,"CONTRIBUTO DIPENDENTE",null,{"$f":"+O18","v":3085.9141249999998},null,null,null,76411.47,null,87458.9,11047.429999999993,{"$f":"IF(N15>=L16,L16,N15)","v":3588.5499999999956},{"$f":"+N15-M16","v":0},{"$f":"+M16*6.7%","v":240.43284999999972},{"$f":"+M16*5.03%","v":180.5040649999998},"RENDITA CERTA 10 ANNI",null,null,null,null,null,null,3,-2,null,3,-2]
[null,null,"CONTRIBUTO AZIENDA",null,{"$f":"+P18","v":2599.3547349999999},null,null,null,87458.91,null,999999,912540.09,{"$f":"+N16","v":0},null,{"$f":"+M17*7.3%","v":0},{"$f":"+M17*5.48%","v":0},"ETA' ALLA PENS+AGE SHIFTING",null,{"$f":"+S13","v":50},null,null,null,null,4,-2,null,4,-2]
[null,null,"IMPORTO CONTR VOL",null,null,null,null,null,null,null,null,null,null,null,{"$f":"SUM(O14:O17)","v":3085.9141249999998},{"$f":"SUM(P14:P17)","v":2599.3547349999999},"PENSIONE COEFF",null,null,{"$f":"IF($E$4=\"M\",VLOOKUP($S$5,CALCOLI!$N$16:$P$36,2),VLOOKUP($S$5,CALCOLI!$N$16:$P$36,3))","v":2.7539999999999999E-2},null,null,null,5,-2,null,5,-2]
[null,null,"TOTALE",null,{"$f":"+E13+E16+E17+E18","v":11611.194785925927},null,null,null,null,null,null,"ALIQUOTA MEDIA IBM TOSHIBA",null,null,{"$f":"+O18/E9%","v":3.8573926562499996},{"$f":"+P18/E9%","v":3.24919341875},"VALORE PENSIONE ANNUA",null,null,{"$f":"+E24*T18","v":11357.467967080789},null,{"$f":"+Y10/U7","v":5.2245281243693778E-2},null,6,-2,null,6,-2]
[null,null,"VERSAMENTO INIZIALE",null,null,null,null,null,null,null,null,null,null,null,null,null,"RENDITA CONTRASSICURATA",null,null,null,null,null,null,7,-2,null,7,-2]
[null,null,null,null,null,null,null,null,null,null,null,null,null,null,null,null,"ETA' ALLA PENS+AGE SHIFTING",null,{"$f":"+S17","v":50},null,null,null,null,8,-2,null,8,-2]
[null,null,"VERSAMENTI YTD",null,{"$f":"IF(H7>0,VLOOKUP(H7,CALCOLI!$A$41:$I$110,9),0)","v":162748.29723981916},null,null,null,null,null,null,null,null,null,null,null,"PENSIONE COEFF",null,null,{"$f":"IF($E$4=\"M\",VLOOKUP($S$5,CALCOLI!$R$16:$T$36,2),VLOOKUP($S$5,CALCOLI!$R$16:$T$36,3))","v":2.6800000000000001E-2},null,null,null,9,-2,null,9,-2]
[null,null,"TFR YTD",null,{"$f":"IF(H7>0,VLOOKUP(H7,CALCOLI!$A$41:$H$110,6),0)","v":187911.09170965408},null,null,null,null,null,null,null,null,null,null,null,"VALORE PENSIONE ANNUA",null,null,{"$f":"+E24*T22","v":11052.292720325533},null,{"$f":"+Y11/U7","v":4.47945059772972E-2},null,10,-2,null,10,-2]
[null,null,"TOT YTD CON RIV",null,{"$f":"IF(H7>0,VLOOKUP(H7,CALCOLI!$A$41:$H$110,8),0)","v":412398.98210169899},null,null,null,null,null,null,null,null,null,null,null,null,null,null,null,null,null,null,11,-2,null,11,-2]
[null,null,"SOLO RIV",null,{"$f":"+E24-E23-E22","v":61739.593152225745},null,null,null,null,null,null,{"$f":"+TFR!H8+100","v":102},null,null,null,null,null,null,null,null,null,null,null,12,-2,null,12,-2]
[null,null,null,null,null,null,null,null,{"$f":"+TFR!H6","v":20000},null,null,null,null,null,null,null,null,null,null,null,null,null,null,13,-2,null,13,-2]
[null,null,"RETRIBUZIONE","IN","ANNI",null,null,"ANNI","RETR ANNUALE","TFR","TFRYTD ISTAT","TFRYTD FONDO","CAP+RIV","RIV ISTAT","RIV FONDO",null,"RIV ISTAT","RIV TFR",null,"ytd riv istat","ytd riv fondo",null,null,14,-2,null,14,-2]
[null,null,{"$f":"IF(D28<>0,0,$I$26)","v":0},{"$f":"+TFR!$H$10-E28","v":7},2007,null,null,null,{"$f":"+C28","v":0},{"$f":"+I28/13.5","v":0},{"$f":"+J28","v":0},null,null,null,null,null,null,null,null,null,null,null,null,15,-2,null,15,-2]
[null,null,{"$f":"IF(D29<>0,0,$I$26)","v":0},{"$f":"+TFR!$H$10-E29","v":6},2008,null,null,2008,{"$f":"IF(I28=0,C29,+I28*$L$25/100)","v":0},{"$f":"+I29/13.5","v":0},{"$f":"+J29+K28+Q29","v":0},{"$f":"+K28+J29+R29","v":0},null,3.03,4.3600000000000003,null,{"$f":"+K28*N29%","v":0},{"$f":"+K28*O29%","v":0},null,{"$f":"+Q29","v":0},{"$f":"+R29","v":0},null,null,16,-2,null,16,-2]
[null,null,{"$f":"IF(D30<>0,0,$I$26)","v":0},{"$f":"+TFR!$H$10-E30","v":5},2009,null,null,2009,{"$f":"IF(I29=0,C30,+I29*$L$25/100)","v":0},0,0,{"$f":"+L29+J30+R30","v":0},null,2.2200000000000002,4.24,null,0,{"$f":"+L29*O30%","v":0},null,{"$f":"+Q30+T29","v":0},{"$f":"+R30+U29","v":0},null,null,17,-2,null,17,-2]
[null,null,{"$f":"IF(D31<>0,0,$I$26)","v":0},{"$f":"+TFR!$H$10-E31","v":4},2010,null,null,2010,{"$f":"IF(I30=0,C31,+I30*$L$25/100)","v":0},0,0,{"$f":"+L30+J31+R31","v":0},null,2.93,3.8,null,0,{"$f":"+L30*O31%","v":0},null,{"$f":"+Q31+T30","v":0},{"$f":"+R31+U30","v":0},null,null,18,-2,null,18,-2]
[null,null,0,{"$f":"+TFR!$H$10-E32","v":3},2011,null,null,2011,0,0,0,{"$f":"+L31+J32+R32","v":0},null,3.88,4.01,null,0,{"$f":"+L31*O32%","v":0},null,0,0,null,null,19,-2,null,19,-2]
[null,null,0,{"$f":"+TFR!$H$10-E33","v":2},2012,null,null,2012,0,0,0,{"$f":"+L32+J33+R33","v":0},null,3.3,3.83,null,0,{"$f":"+L32*O33%","v":0},null,0,0,null,null,20,-2,null,20,-2]
[null,null,0,{"$f":"+TFR!$H$10-E34","v":1},2013,null,null,2013,0,0,0,{"$f":"+L33+J34+R34","v":0},null,1.92,3.91,null,0,{"$f":"+L33*O34%","v":0},null,0,0,null,null,21,-2,null,21,-2]
[null,null,20000,{"$f":"+TFR!$H$10-E35","v":0},2014,null,null,2014,20000,1481.4814814814815,{"$f":"+J35+K34+Q35","v":1481.4814814814815},{"$f":"+L34+J35+R35","v":1481.4814814814815},null,{"$f":"0.21+1.5","v":1.71},3.9,null,{"$f":"+K34*N35%","v":0},{"$f":"+L34*O35%","v":0},null,0,0,null,null,22,-2,null,22,-2]
[null,null,0,{"$f":"+TFR!$H$10-E36","v":-1},{"$f":"+E35+1","v":2015},null,null,{"$f":"+H35+1","v":2015},20400,1511.1111111111111,{"$f":"+J36+K35+Q36","v":3022.2222222222222},3051.8518518518517,null,2,4,null,29.62962962962963,59.25925925925926,null,29.62962962962963,59.25925925925926,null,null,23,-2,null,23,-2]
[null,null,0,{"$f":"+TFR!$H$10-E37","v":-2},{"$f":"+E36+1","v":2016},null,null,{"$f":"+H36+1","v":2016},20808,1541.3333333333333,4636.0888888888894,4688.7081481481482,null,2.4,3.13,null,72.533333333333331,95.522962962962964,null,102.16296296296296,154.78222222222223,null,null,24,-2,null,24,-2]
[null,null,0,{"$f":"+TFR!$H$10-E38","v":-3},2017,null,null,2017,21224.16,1572.16,6338.0593777777785,6406.2181007407407,null,2.8,3.1,null,129.8104888888889,145.34995259259259,null,231.97345185185185,300.13217481481479,null,null,25,-2,null,25,-2]
[null,null,0,{"$f":"+TFR!$H$10-E39","v":-4},2018,null,null,2018,21648.643199999999,1603.6031999999998,8144.4804778666667,8230.8358252162961,null,3.2,{"$f":"4-0.55","v":3.45},null,202.8179000888889,221.01452447555556,null,434.79135194074075,521.14669929037041,null,null,26,-2,null,26,-2]
[null,null,0,{"$f":"+TFR!$H$10-E40","v":-5},2019,null,null,2019,22081.616063999998,1635.6752639999997,10040.779117158401,10150.474925186258,null,3.2,{"$f":"4-0.55","v":3.45},null,260.62337529173334,283.96383596996225,null,695.41472723247409,805.11053526033265,null,null,27,-2,null,27,-2]
[null,null,0,{"$f":"+TFR!$H$10-E41","v":-6},2020,null,null,2020,22523.24838528,1668.3887692799999,12030.472818187471,12169.055079385183,null,3.2,3.45,null,321.30493174906883,350.19138491892591,null,1016.7196589815429,1155.3019201792586,null,null,28,-2,null,28,-2]
[null,null,0,{"$f":"+TFR!$H$10-E42","v":-7},2021,null,null,2021,22973.7133529856,1701.7565446655999,14117.204493035071,14290.644024289573,null,3.2,3.45,null,384.97513018199908,419.83240023878886,null,1401.6947891635421,1575.1343204180475,null,null,29,-2,null,29,-2]
[null,null,0,{"$f":"+TFR!$H$10-E43","v":-8},2022,null,null,2022,23433.187620045312,1735.7916755589119,16304.746712371105,16519.462918686477,null,3.2,3.45,null,451.75054377712229,493.02721883799035,null,1853.4453329406642,2068.1615392560379,null,null,30,-2,null,30,-2]
[null,null,0,{"$f":"+TFR!$H$10-E44","v":-9},2023,null,null,2023,23901.851372446217,1770.5075090700902,18597.006116237069,18859.891898451253,null,3.2,3.45,null,521.75189479587539,569.92147069468353,null,2375.1972277365394,2638.0830099507216,null,null,31,-2,null,31,-2]
[null,null,0,{"$f":"+TFR!$H$10-E45","v":-10},2024,null,null,2024,24379.888399895142,1805.9176592514921,20998.027971208146,21316.475828199313,null,3.2,3.45,null,595.10419571958619,650.66627049656825,null,2970.3014234561256,3288.7492804472899,null,null,32,-2,null,32,-2]
[null,null,0,{"$f":"+TFR!$H$10-E46","v":-11},2025,null,null,2025,24867.486167893047,1842.036012436522,23512.000878723327,23893.930256708711,null,3.2,3.45,null,671.93689507866065,735.41841607287631,null,3642.2383185347862,4024.1676965201664,null,null,33,-2,null,33,-2]
[null,null,0,{"$f":"+TFR!$H$10-E47","v":-12},2026,null,null,2026,25364.835891250907,1878.8767326852524,26143.261639527729,26597.147583250415,null,3.2,3.45,null,752.38402811914648,824.3405938564506,null,4394.6223466539323,4848.508290376617,null,null,34,-2,null,34,-2]
[null,null,0,{"$f":"+TFR!$H$10-E48","v":-13},2027,null,null,2027,25872.132609075921,1916.4542673389572,28896.300279331575,29431.203442211514,null,3.2,3.45,null,836.58437246488734,917.60159162213938,null,5231.2067191188198,5766.1098819987565,null,null,35,-2,null,35,-2]
[null,null,0,{"$f":"+TFR!$H$10-E49","v":-14},2028,null,null,2028,26389.57526125744,1954.7833526857362,31775.765240955923,32401.363313653546,null,3.2,3.45,null,924.68160893861045,1015.3765187562973,null,6155.88832805743,6781.4864007550541,null,null,36,-2,null,36,-2]
[null,null,0,{"$f":"+TFR!$H$10-E50","v":-15},2029,null,null,2029,26917.366766482588,1993.879019739451,34786.468748405961,35513.089367714048,null,3.2,3.45,null,1016.8244877105896,1117.8470343210474,null,7172.7128157680199,7899.3334350761015,null,null,37,-2,null,37,-2]
[null,null,0,{"$f":"+TFR!$H$10-E51","v":-16},2030,null,null,2030,27455.714101812238,2033.75660013424,37933.392348489193,38772.047551034426,null,3.2,3.45,null,1113.1669999489907,1225.2015831861347,null,8285.8798157170113,9124.5350182622369,null,null,38,-2,null,38,-2]
[null,null,0,{"$f":"+TFR!$H$10-E52","v":-17},2031,null,null,2031,28004.828383848482,2074.4317321369244,41221.69263577777,42184.114923682035,null,3.2,3.45,null,1213.8685551516542,1337.6356405106878,null,9499.748370868665,10462.170658772924,null,null,39,-2,null,39,-2]
[null,null,0,{"$f":"+TFR!$H$10-E53","v":-18},2032,null,null,2032,28564.924951525452,2115.9203667796633,44656.707166902321,45755.387255328729,null,3.2,3.45,null,1319.0941643448887,1455.3519648670303,null,10818.842535213553,11917.522623639954,null,null,40,-2,null,40,-2]
[null,null,0,{"$f":"+TFR!$H$10-E54","v":-19},2033,null,null,2033,29136.223450555961,2158.2387741152565,48243.960570358453,49492.186889752826,null,3.2,3.45,null,1429.0146293408743,1578.5608603088413,null,12247.857164554427,13496.083483948794,null,null,41,-2,null,41,-2]
[null,null,0,{"$f":"+TFR!$H$10-E55","v":-20},2034,null,null,2034,29718.947919567079,2201.4035495975613,51989.170858207486,53401.070887046859,null,3.2,3.45,null,1543.8067382514705,1707.4804476964725,null,13791.663902805898,15203.563931645267,null,null,42,-2,null,42,-2]
[null,null,0,{"$f":"+TFR!$H$10-E56","v":-21},2035,null,null,2035,30313.326877958421,2245.4316205895125,55898.25594625964,57488.839453239489,null,3.2,3.45,null,1663.6534674626396,1842.3369456031169,null,15455.317370268538,17045.900877248383,null,null,43,-2,null,43,-2]
[null,null,0,{"$f":"+TFR!$H$10-E57","v":-22},2036,null,null,2036,30919.593415517589,2290.3402530013027,59977.340389541256,61762.544667377559,null,3.2,3.45,null,1788.7441902803084,1983.3649611367625,null,17244.061560548846,19029.265838385145,null,null,44,-2,null,44,-2]
[null,null,0,{"$f":"+TFR!$H$10-E58","v":-23},2037,null,null,2037,31537.98528382794,2336.1470580613291,64232.762340067908,66229.499516463417,null,3.2,3.45,null,1919.2748924653201,2130.8077910245261,null,19163.336453014166,21160.073629409671,null,null,45,-2,null,45,-2]
[null,null,0,{"$f":"+TFR!$H$10-E59","v":-24},2038,null,null,2038,32168.744989504499,2382.8699992225556,68671.080734172632,70897.287249003959,null,3.2,3.45,null,2055.448394882173,2284.9177333179882,null,21218.784847896339,23444.991362727658,null,null,46,-2,null,46,-1]
[null,null,null,null,null,null,null,null,null,null,null,null,null,null,null,null,null,null,null,null,null,null,null,47,-2,null,47,-1]
[null,null,null,null,null,null,null,null,null,null,null,null,"ANNI","TFR","RR",null,null,null,null,null,null,null,null,48,-1,null,48,-1]
[null,null,null,null,null,null,null,"SCAGLIONI",null,null,"ALIQUOTE","RESIDUI",null,null,null,null,"IMPOSTE",null,null,null,null,null,null,49,-1,null,49,-1]
[null,null,null,null,null,null,null,0,26000,26000,23,{"$f":"IF(O63>I63,I63,O63)","v":21827.146831658054},{"$f":"+TFR!K10","v":21},{"$f":"+TFR!J13","v":38197.506955401594},{"$f":"+N63*144/(M63*12)","v":21827.146831658054},null,{"$f":"+L63*K63%","v":5020.2437712813526},null,null,null,null,null,null,50,-1,null,50,-1]
[null,null,null,null,null,null,null,26000.01,{"$f":"+J64-H64","v":28999.99},55000,33,{"$f":"IF(O64>I64,I64,O64)","v":0},null,null,{"$f":"IF(O63>L63,O63-L63,0)","v":0},null,{"$f":"+L64*K64%","v":0},null,null,null,null,null,null,51,-1,null,51,-1]
[null,null,null,null,null,null,null,55000.01,{"$f":"+J65-H65","v":44999.99},100000,39,{"$f":"IF(O65>I65,I65,O65)","v":0},null,null,{"$f":"IF(O64>L64,O64-L64,0)","v":0},null,{"$f":"+L65*K65%","v":0},null,null,null,null,null,null,52,-1,null,52,-1]
[null,null,null,null,null,null,null,100000.01,{"$f":"+J66-H66","v":899998.99},999999,43,{"$f":"IF(O66>I66,I66,O66)","v":0},null,null,{"$f":"IF(O65>L65,O65-L65,0)","v":0},null,{"$f":"+L66*K66%","v":0},null,null,null,null,null,null,53,-1,null,53,-1]
[null,null,null,null,null,null,null,null,null,null,null,null,null,null,null,null,{"$f":"SUM(Q63:Q66)","v":5020.2437712813526},null,null,null,null,null,null,54,-1,null,54,-1]
[null,null,null,null,null,null,null,null,null,null,null,null,null,null,null,null,null,null,null,null,null,null,null,55,-1,null,55,-1]
[null,null,null,null,null,null,null,null,null,null,null,null,null,null,"% MEDIA",null,{"$f":"+Q67/O63*100","v":23},null,null,null,null,null,null,56,-1,null,56,0]
[null,null,null,null,null,null,null,null,"TASSAZIONE FONDO PER PENSIONAMENTO",null,null,null,null,null,null,null,null,null,null,null,null,null,null,57,-1,null,57,0]
[null,null,null,null,null,null,null,null,null,null,null,null,null,null,null,null,null,null,null,null,null,null,null,58,0,null,58,0]
[null,null,null,null,null,null,null,1,null,15,null,null,null,null,null,null,null,null,null,null,null,null,null,59,0,null,59,0]
[null,null,null,null,null,null,null,{"$f":"1+H72","v":2},null,15,null,"ANNI","EVENTUALE CAPITALE INIZIALE","VERSAMENTO ANNUALE","INCREMENTO ANNUALE DEL VERSAMENTO","MONTANTE ANNUALE","RIVALUTAZIONE ANNUALE","EVENTUALE INCREMENTO RIVALUTAZIONE ANNUALE",null,"VERSAMENTO INCREMENTATO","RIVALUTAZIONE",null,null,60,0,null,60,0]
[null,null,null,null,null,null,null,{"$f":"1+H73","v":3},null,15,null,1,{"$f":"+TCM!F21","v":0},{"$f":"+TCM!F22","v":0},{"$f":"+TCM!F23/100","v":0},{"$f":"((+M74+N74)+U74)","v":0},{"$f":"+TCM!F24/100-TCM!J25/100","v":-4.0000000000000001E-3},{"$f":"+TCM!F25/100","v":0.01},null,{"$f":"N74+N74*O74","v":0},{"$f":"(N74+M74)*99%*Q74","v":0},null,{"$f":"+M74+N74","v":0},61,0,null,61,0]
[null,null,null,null,null,null,null,4,null,15,null,{"$f":"+L74+1","v":2},null,{"$f":"+T74","v":0},null,{"$f":"+P74+U75+N75","v":0},{"$f":"Q74+Q74*$R$74","v":-4.0400000000000002E-3},null,null,{"$f":"N75+N75*$O$74","v":0},{"$f":"(N75+M75+P74)*Q75","v":0},{"$f":"+U75+U74","v":0},{"$f":"+M75+N75+W74","v":0},62,0,null,62,0]
[null,null,null,null,null,null,null,5,null,15,null,{"$f":"+L75+1","v":3},null,{"$f":"+T75","v":0},null,{"$f":"+P75+U76+N76","v":0},{"$f":"Q75+Q75*$R$74","v":-4.0804000000000005E-3},null,null,{"$f":"N76+N76*$O$74","v":0},{"$f":"(N76+M76+P75)*Q76","v":0},{"$f":"+U76+V75","v":0},{"$f":"+M76+N76+W75","v":0},63,0,null,63,0]
[null,null,null,null,null,null,null,6,null,15,null,4,null,0,null,0,-4.1212040000000007E-3,null,null,0,0,{"$f":"+U77+V76","v":0},0,64,0,null,64,0]
[null,null,null,null,null,null,null,7,null,15,null,5,null,0,null,0,-4.1624160400000011E-3,null,null,0,{"$f":"N78*Q78+M78*Q78+P77*Q78","v":0},0,0,65,0,null,65,0]
[null,null,null,null,null,null,null,8,null,15,null,6,null,0,null,0,-4.2040402004000013E-3,null,null,0,0,0,0,{"$f":"1+X78","v":66},0,null,{"$f":"1+AA78","v":66},0]
[null,null,null,null,null,null,null,9,null,15,null,7,null,0,null,0,-4.246080602404001E-3,null,null,0,0,0,0,67,0,null,67,0]
[null,null,null,null,null,null,null,10,null,15,null,8,null,0,null,0,-4.2885414084280413E-3,null,null,0,0,0,0,68,0,null,68,0]
[null,null,null,null,null,null,null,11,null,15,null,9,null,0,null,0,-4.3314268225123215E-3,null,null,0,0,0,0,69,0,null,69,1]
[null,null,null,null,null,null,null,12,null,15,null,10,null,0,null,0,-4.374741090737445E-3,null,null,0,0,0,0,70,0,null,70,1]
[null,null,null,null,null,null,null,13,null,15,null,11,null,0,null,0,-4.4184885016448194E-3,null,null,0,0,0,0,71,1,null,71,1]
[null,null,null,null,null,null,null,14,null,15,null,12,null,0,null,0,-4.4626733866612676E-3,null,null,0,0,0,0,72,1,null,72,1]
[null,null,null,null,null,null,null,15,null,15,null,13,null,0,null,0,-4.5073001205278799E-3,null,null,0,0,0,0,73,1,null,73,1]
[null,null,null,null,null,null,null,16,null,{"$f":"+J86-0.3","v":14.7},null,14,null,0,null,0,-4.5523731217331585E-3,null,null,0,0,0,0,74,1,null,74,1]
[null,null,null,null,null,null,null,17,null,{"$f":"+J87-0.3","v":14.399999999999999},null,15,null,0,null,0,-4.5978968529504904E-3,null,null,0,0,0,0,75,1,null,75,1]
[null,null,null,null,null,null,null,18,null,14.099999999999998,null,16,null,0,null,0,-4.6438758214799956E-3,null,null,0,0,0,0,76,1,null,76,1]
[null,null,null,null,null,null,null,19,null,13.799999999999997,null,17,null,0,null,0,-4.6903145796947958E-3,null,null,0,0,0,0,77,1,null,77,1]
[null,null,null,null,null,null,null,20,null,13.499999999999996,null,18,null,0,null,0,-4.7372177254917441E-3,null,null,0,0,0,0,78,1,null,78,2]
[null,null,null,null,null,null,null,21,null,13.199999999999996,null,19,null,0,null,0,-4.7845899027466618E-3,null,null,0,0,0,0,79,1,null,79,2]
[null,null,null,null,null,null,null,22,null,12.899999999999995,null,20,null,0,null,0,-4.8324358017741284E-3,null,null,0,0,0,0,80,2,null,80,2]
[null,null,null,null,null,null,null,23,null,12.599999999999994,null,21,null,0,null,0,-4.8807601597918695E-3,null,null,0,0,0,0,81,2,null,81,2]
[null,null,null,null,null,null,null,24,null,12.299999999999994,null,22,null,0,null,0,-4.9295677613897882E-3,null,null,0,0,0,0,82,2,null,82,2]
[null,null,null,null,null,null,null,25,null,11.999999999999993,null,23,null,0,null,0,-4.9788634390036859E-3,null,null,0,0,0,0,83,2,null,83,2]
[null,null,null,null,null,null,null,26,null,11.699999999999992,null,24,null,0,null,0,-5.0286520733937232E-3,null,null,0,0,0,0,84,2,null,84,2]
[null,null,null,null,null,null,null,27,null,11.399999999999991,null,25,null,0,null,0,-5.0789385941276601E-3,null,null,0,0,0,0,85,2,null,85,2]
[null,null,null,null,null,null,null,28,null,11.099999999999991,null,26,null,0,null,0,-5.1297279800689363E-3,null,null,0,0,0,0,86,2,null,86,2]
[null,null,null,null,null,null,null,29,null,10.79999999999999,null,27,null,0,null,0,-5.1810252598696255E-3,null,null,0,0,0,0,87,2,null,87,2]
[null,null,null,null,null,null,null,30,null,10.499999999999989,null,28,null,0,null,0,-5.232835512468322E-3,null,null,0,0,0,0,88,2]
[null,null,null,null,null,null,null,31,null,10.199999999999989,null,29,null,0,null,0,-5.2851638675930051E-3,null,null,0,0,0,0,89,2]
[null,null,null,null,null,null,null,32,null,9.8999999999999879,null,30,null,0,null,0,-5.3380155062689354E-3,null,null,0,0,0,0]
[null,null,null,null,null,null,null,33,null,9.5999999999999872,null,31,null,0,null,0,-5.3913956613316251E-3,null,null,0,0,0,0]
[null,null,null,null,null,null,null,34,null,9.2999999999999865,null,32,null,0,null,0,-5.4453096179449415E-3,null,null,0,0,0,0]
[null,null,null,null,null,null,null,35,null,8.9999999999999858,null,33,null,0,null,0,-5.4997627141243908E-3,null,null,0,0,0,0]
[null,null,null,null,null,null,null,36,null,9,null,34,null,0,null,0,-5.5547603412656344E-3,null,null,0,0,0,0]
[null,null,null,null,null,null,null,37,null,9,null,35,null,0,null,0,-5.6103079446782906E-3,null,null,0,0,0,0]
[null,null,null,null,null,null,null,38,null,9,null,36,null,0,null,0,-5.6664110241250731E-3,null,null,0,0,0,0]
[null,null,null,null,null,null,null,39,null,9,null,37,null,0,null,0,-5.7230751343663238E-3,null,null,0,0,0,0]
[null,null,null,null,null,null,null,40,null,9,null,38,null,0,null,0,-5.7803058857099875E-3,null,null,0,0,0,0]
[null,null,null,null,null,null,null,41,null,9,null,39,null,0,null,0,-5.8381089445670876E-3,null,null,0,0,0,0]
[null,null,null,null,null,null,null,42,null,9,null,40,null,0,null,0,-5.8964900340127586E-3,null,null,0,0,0,0]
[null,null,null,null,null,null,null,null,null,null,null,41,null,0,null,0,-5.9554549343528865E-3,null,null,0,0,0,0]
[null,null,null,null,null,null,null,null,null,null,null,42,null,0,null,0,-6.0150094836964154E-3,null,null,0,0,0,0]
[null,null,null,null,null,null,null,null,null,null,null,43,null,0,null,0,-6.0751595785333793E-3,null,null,0,0,0,0]
[null,null,null,null,null,null,null,null,null,null,null,44,null,0,null,0,-6.1359111743187131E-3,null,null,0,0,0,0]
[null,null,null,null,null,null,null,null,null,null,null,45,null,0,null,0,-6.1972702860619002E-3,null,null,0,0,0,0]
[null,null,null,null,null,null,null,null,null,null,null,46,null,0,null,0,-6.2592429889225193E-3,null,null,0,0,0,0]
[null,null,null,null,null,null,null,null,null,null,null,47,null,0,null,0,-6.3218354188117444E-3,null,null,0,0,0,0]
[null,null,null,null,null,null,null,null,null,null,null,48,null,0,null,0,-6.3850537729998619E-3,null,null,0,0,0,0]
[null,null,null,null,null,null,null,null,null,null,null,49,null,0,null,0,-6.4489043107298603E-3,null,null,0,0,0,0]
[null,null,null,null,null,null,null,null,null,null,null,50,null,0,null,0,-6.5133933538371594E-3,null,null,0,0,0,0]

{"sheet":"CALCOLI","index":5,"n_rows":113,"n_cols":56,"rows_kept":113,"cut":false,"hidden":true,"merged":[[1,24,1,29],[11,21,11,23],[0,14,0,16],[0,17,0,19],[37,2,37,5],[5,10,5,11],[6,10,6,11],[3,10,3,11],[4,10,4,11],[7,2,7,3],[8,2,8,3],[11,9,11,11],[11,13,11,15],[11,17,11,19],[34,2,34,3],[11,4,11,8]]}
[]
[null,null,null,null,null,null,null,null,null,null,null,null,null,null,null,null,null,null,null,null,null,null,null,null,"RENDITA REVERSIBILE SU ASSICURATO DI PARI ETA' E SESSO DIVERSO"]
[null,null,null,null,null,null,null,null,null,null,null,null,null,null,null,null,null,null,null,null,null,null,null,null,null,"Età","Maschi","Femmine"]
[null,null,"capitale iniziale",null,{"$f":"+TCM!F5","v":0},null,{"$f":"+F8*F9","v":0},null,null,null,"capitale iniziale",null,{"$f":"+M8","v":0}]
[null,null,"montante desiderato",null,{"$f":"+TCM!F6","v":0},null,null,null,{"$f":"+G8-H8","v":0},{"$f":"+I6-I8","v":0},"montante desiderato",null,{"$f":"+TCM!F11","v":0},null,null,null,null,null,null,null,null,null,null,null,null,50,2.274E-2,2.274E-2]
[null,null,"% per int composto annuo",null,{"$f":"+TCM!F7","v":0},null,null,null,{"$f":"+I5*12","v":0},{"$f":"+J5*30","v":0},"interesse composto annuo",null,{"$f":"+TCM!F12","v":0},null,null,null,null,null,null,null,null,null,null,null,null,{"$f":"1+Z5","v":51},2.3269999999999999E-2,2.3269999999999999E-2]
[null,null,null,null,null,"log","periodo","anni","mesi","giorni","anni da oggi",null,{"$f":"+TCM!F13","v":0},null,null,null,null,null,null,null,null,null,null,null,null,{"$f":"1+Z6","v":52},2.383E-2,2.383E-2]
[null,null,"numeratore",null,{"$f":"IF(E5=0,0,E5/E4)","v":0},{"$f":"IF(E8=0,0,+LOG(E8))","v":0},{"$f":"IF(G4=0,0,+F8/F9)","v":0},{"$f":"INT(G8)","v":0},{"$f":"INT(I6)","v":0},{"$f":"INT(J6)","v":0},null,null,{"$f":"+M5*(1+M6/100)^-M7","v":0},null,null,null,null,null,null,null,null,null,null,null,null,53,2.4410000000000001E-2,2.4410000000000001E-2]
[null,null,"denominatore",null,{"$f":"1+E6/100","v":1},{"$f":"+LOG(E9)","v":0},null,null,null,null,null,null,null,null,null,null,null,null,null,null,null,null,null,null,null,54,2.5010000000000001E-2,2.5010000000000001E-2]
[null,null,null,null,null,null,null,null,null,null,null,null,null,null,null,null,null,null,null,null,null,null,null,null,null,55,2.5649999999999999E-2,2.5649999999999999E-2]
[null,null,null,null,null,null,null,null,null,null,null,null,null,null,null,null,null,null,null,null,null,null,null,null,null,56,2.632E-2,2.632E-2]
[null,null,null,null,"RENDITA VITALIZIA IMMEDIATA A PREMIO UNICO",null,null,null,null,"RENDITA VITALIZIA CERTA 5 ANNI",null,null,null,"RENDITA VITALIZIA CERTA 10 ANNI",null,null,null,"RENDITA CONTROASSICURATA",null,null,null,"RENDITA CON RADDOPPIO TLC",null,null,null,57,2.7029999999999998E-2,2.7029999999999998E-2]
[null,null,null,null,null,null,null,null,null,null,null,null,null,null,null,null,null,null,null,null,null,null,null,null,null,58,2.7779999999999999E-2,2.7779999999999999E-2]
[null,null,null,null,null,"Età","Maschi","Femmine",null,"Età","Maschi","Femmine",null,"Età","Maschi","Femmine",null,"Età","Maschi","Femmine",null,"Età","Maschi","Femmine",null,59,2.8559999999999999E-2,2.8559999999999999E-2]
[null,null,null,null,null,null,null,null,null,null,null,null,null,null,null,null,null,null,null,null,null,null,null,null,null,60,2.9389999999999999E-2,2.9389999999999999E-2]
[null,null,null,null,null,50,2.7609999999999999E-2,2.487E-2,null,50,2.759E-2,2.486E-2,null,50,2.7539999999999999E-2,2.4830000000000001E-2,null,50,2.6800000000000001E-2,2.5239999999999999E-2,null,50,2.6280000000000001E-2,2.317E-2,null,61,3.0269999999999998E-2,3.0269999999999998E-2]
[null,null,null,null,null,{"$f":"1+F16","v":51},2.836E-2,2.5489999999999999E-2,null,{"$f":"1+J16","v":51},2.385E-2,2.547E-2,null,{"$f":"1+N16","v":51},2.8289999999999999E-2,2.5440000000000001E-2,null,{"$f":"1+R16","v":51},2.7310000000000001E-2,2.571E-2,null,{"$f":"1+V16","v":51},2.6970000000000001E-2,2.3709999999999998E-2,null,62,3.1199999999999999E-2,3.1199999999999999E-2]
[null,null,null,null,null,{"$f":"1+F17","v":52},2.9159999999999998E-2,2.613E-2,null,{"$f":"1+J17","v":52},2.9139999999999999E-2,2.6120000000000001E-2,null,{"$f":"1+N17","v":52},2.9069999999999999E-2,2.6079999999999999E-2,null,{"$f":"1+R17","v":52},2.7830000000000001E-2,2.6179999999999998E-2,null,{"$f":"1+V17","v":52},2.7689999999999999E-2,2.426E-2,null,63,3.218E-2,3.218E-2]
[null,null,null,null,null,53,0.03,2.681E-2,null,53,2.998E-2,2.6790000000000001E-2,null,53,2.9899999999999999E-2,2.6749999999999999E-2,null,53,2.8369999999999999E-2,2.6669999999999999E-2,null,53,2.845E-2,2.4850000000000001E-2,null,64,3.3230000000000003E-2,3.3230000000000003E-2]
[null,null,null,null,null,54,3.0890000000000001E-2,2.7519999999999999E-2,null,54,3.0859999999999999E-2,2.75E-2,null,54,3.0769999999999999E-2,2.7459999999999998E-2,null,54,2.8930000000000001E-2,2.7189999999999999E-2,null,54,2.9239999999999999E-2,2.546E-2,null,65,3.4340000000000002E-2,3.4340000000000002E-2]
[null,null,null,null,null,55,3.1829999999999997E-2,2.827E-2,null,55,3.1800000000000002E-2,2.8250000000000001E-2,null,55,3.168E-2,2.8199999999999999E-2,null,55,2.9530000000000001E-2,2.7720000000000002E-2,null,55,3.0079999999999999E-2,2.6100000000000002E-2,null,66,3.5520000000000003E-2,3.5520000000000003E-2]
[null,null,null,null,null,56,3.2820000000000002E-2,2.9059999999999999E-2,null,56,3.2779999999999997E-2,2.904E-2,null,56,3.2640000000000002E-2,2.8979999999999999E-2,null,56,3.0130000000000001E-2,2.827E-2,null,56,3.0970000000000001E-2,2.6769999999999999E-2,null,67,3.6769999999999997E-2,3.6769999999999997E-2]
[null,null,null,null,null,57,3.3869999999999997E-2,2.989E-2,null,57,3.3820000000000003E-2,2.9870000000000001E-2,null,57,3.3660000000000002E-2,2.98E-2,null,57,3.0769999999999999E-2,2.8850000000000001E-2,null,57,3.1899999999999998E-2,2.7480000000000001E-2,null,68,3.8120000000000001E-2,3.8120000000000001E-2,null,{"$f":"+CALCOLI1!E8","v":0},"<=ANZIANITA' DI SERVIZIO"]
[null,null,null,null,null,58,3.4979999999999997E-2,3.0769999999999999E-2,null,58,3.4930000000000003E-2,3.075E-2,null,58,3.4729999999999997E-2,3.066E-2,null,58,3.143E-2,2.945E-2,null,58,3.2890000000000003E-2,2.8230000000000002E-2,null,69,3.9550000000000002E-2,3.9550000000000002E-2,null,{"$f":"+CALCOLI1!J5","v":58},"<=60 ANNI DI ETA'"]
[null,null,null,null,null,59,3.6170000000000001E-2,3.1710000000000002E-2,null,59,3.61E-2,3.168E-2,null,59,3.5869999999999999E-2,3.1579999999999997E-2,null,59,3.2120000000000003E-2,3.007E-2,null,59,3.3939999999999998E-2,2.9010000000000001E-2,null,70,4.1090000000000002E-2,4.1090000000000002E-2,null,null,null,null,null,null,null,null,null,null,{"$f":"+'M&R'!O10","v":1.6}]
[null,null,null,null,null,60,3.7429999999999998E-2,3.27E-2,null,60,3.7350000000000001E-2,3.2669999999999998E-2,null,60,3.7069999999999999E-2,3.2550000000000003E-2,null,60,3.2829999999999998E-2,3.0720000000000001E-2,null,60,3.5049999999999998E-2,2.9839999999999998E-2,null,null,null,null,null,null,null,null,null,null,"GEST LABS","SIPRO",null,null,"EX S3"]
[null,null,null,null,null,61,3.8769999999999999E-2,3.3750000000000002E-2,null,61,3.8679999999999999E-2,3.3709999999999997E-2,null,61,3.8330000000000003E-2,3.3570000000000003E-2,null,61,3.3590000000000002E-2,3.141E-2,null,61,3.6229999999999998E-2,3.0720000000000001E-2,null,null,null,null,"IBM","toshiba","LENOVO",null,null,null,"dip","az",null,null,"DIP","AZ"]
[null,null,null,null,null,62,4.0189999999999997E-2,3.4869999999999998E-2,null,62,4.0079999999999998E-2,3.4819999999999997E-2,null,62,3.9660000000000001E-2,3.465E-2,null,62,3.4369999999999998E-2,3.2120000000000003E-2,null,62,3.7479999999999999E-2,3.1649999999999998E-2,null,null,null,null,"SERV FIN","ACG","SEM",null,null,null,null,null,null,null,1.2,2]
[null,null,null,null,null,63,4.1709999999999997E-2,3.6049999999999999E-2,null,63,4.1570000000000003E-2,3.5999999999999997E-2,null,63,4.1070000000000002E-2,3.5799999999999998E-2,null,63,3.5189999999999999E-2,3.2849999999999997E-2,null,63,3.8800000000000001E-2,3.2629999999999999E-2,null,null,null,0,46031,2,{"$f":"IF(AD24>=60,0,1.5)","v":1.5},null,0,46031,2,{"$f":"IF($AD$24>=60,0,1.2)","v":1.2},null,null,1.4,2]
[null,null,null,null,null,64,4.3319999999999997E-2,3.7319999999999999E-2,null,64,4.3159999999999997E-2,3.7249999999999998E-2,null,64,4.2549999999999998E-2,3.7010000000000001E-2,null,64,3.6049999999999999E-2,3.363E-2,null,64,4.02E-2,3.3660000000000002E-2,null,null,{"$f":"+AC30-AB30","v":1953968.99},46031.01,2000000,7,{"$f":"IF(AD24>=60,0,4)","v":4},{"$f":"+AH30-AG30","v":1953968.99},46031.01,2000000,7,{"$f":"IF($AD$24>=60,0,1.2)","v":1.2},null,null,1.6,2]
[null,null,null,null,null,65,4.505E-2,3.866E-2,null,65,4.4850000000000001E-2,3.8580000000000003E-2,null,65,4.4119999999999999E-2,3.8300000000000001E-2,null,65,3.6949999999999997E-2,3.4439999999999998E-2,null,65,4.1680000000000002E-2,3.4759999999999999E-2,null,null,null,null,null,"<10 ANNI ANZ"]
[null,null,null,null,null,66,4.6899999999999997E-2,4.0090000000000001E-2,null,66,4.666E-2,0.04,null,66,4.5769999999999998E-2,3.9660000000000001E-2,null,66,3.7879999999999997E-2,3.5279999999999999E-2,null,66,4.3270000000000003E-2,3.5920000000000001E-2,null,null,null,0,46031,2,{"$f":"IF(AD24>=60,0,1.6)","v":1.6},null,null,"<10 ANNI ANZ"]
[null,null,null,null,null,67,4.8869999999999997E-2,4.163E-2,null,67,4.8579999999999998E-2,4.1520000000000001E-2,null,67,4.752E-2,4.1110000000000001E-2,null,67,3.8879999999999998E-2,3.6179999999999997E-2,null,67,4.4949999999999997E-2,3.7159999999999999E-2,null,null,{"$f":"+AC33-AB33","v":1953968.99},46031.01,2000000,7,{"$f":"IF(AD24>=60,0,1.6)","v":1.6},null,0,46031,2,{"$f":"IF($AD$24>=60,0,1.4)","v":1.4}]
[null,null,null,null,null,68,5.0990000000000001E-2,4.3270000000000003E-2,null,68,5.0630000000000001E-2,4.3139999999999998E-2,null,68,4.9360000000000001E-2,4.2659999999999997E-2,null,68,3.9910000000000001E-2,3.7130000000000003E-2,null,68,4.6739999999999997E-2,3.848E-2,null,null,null,null,null,null,null,{"$f":"+AH34-AG34","v":1953968.99},46031.01,2000000,7,{"$f":"IF($AD$24>=60,0,1.4)","v":1.4}]
[null,{"$f":"+'M&R'!D10","v":1},"CODICE AZIENDA",null,null,69,5.3260000000000002E-2,4.5039999999999997E-2,null,69,5.2819999999999999E-2,4.4880000000000003E-2,null,69,5.1290000000000002E-2,4.4299999999999999E-2,null,69,4.0989999999999999E-2,3.8089999999999999E-2,null,69,4.8649999999999999E-2,3.9879999999999999E-2]
[null,null,null,null,null,70,5.57E-2,4.6940000000000003E-2,null,70,5.5169999999999997E-2,4.6739999999999997E-2,null,70,5.3310000000000003E-2,4.6039999999999998E-2,null,70,4.215E-2,3.9120000000000002E-2,null,70,5.0700000000000002E-2,4.138E-2]
[null,null,null,null,null,null,null,null,null,null,null,null,null,null,null,null,null,null,null,null,null,null,null,null,null,null,null,null,null,null,null,null,null,null,null,null,null,"IBM/TOSHIBA/ACG/LENOVO/ISF/SEM"]
[null,{"$f":"+CALCOLI1!H7","v":25},"NETTO CARICAMENTO",null,null,null,null,null,null,null,null,null,null,null,null,null,null,null,null,null,null,null,null,null,null,null,null,null,null,null,null,null,null,null,null,null,null,null,null,null,null,"GEST LABS",null,null,null,"GEST LABS",null,null,null,"EX S3","EX S3","EX S3","EX S3","EX S3","EX S3","EX S3"]
[null,"CONTR IN","VERS DIP","VERS AZ","VERS VOL","TFR","TOTALE C","TOT VER+TFR+RIV",null,"RETRIB",{"$f":"+CALCOLI1!H8","v":"% INCR RETR ANNUALE"},null,"RIV YTD",{"$f":"+CALCOLI1!L8","v":"% RIV FONDO"},"RIV FONDO","% DIP","% AZ","% TFR","TFR",null,"VERS DIP","VERS AZ","TFR","VER VOL","TOTALE C","TOT VER+TFR",null,null,null,null,null,null,null,null,null,null,null,"contr diP","contr az","totale",null,null,null,null,null,"contr dip","contr az","totale",null,null,null,null,null,"contr dip","contr az","totale"]
[null,null,null,null,null,null,null,null,null,null,null,null,null,"NETTO 0,5%"]
[1,{"$f":"+CALCOLI1!E20*99.95%","v":0},{"$f":"IF($B$35=1,AL41*99.95%,IF($B$35=2,AL41*99.95%,BB41*99.95%))","v":3296.8007750000002},{"$f":"IF($B$35=1,AM41*99.95%,IF($B$35=2,AU41*99.95%,BC41*99.95%))","v":1279.3600000000001},{"$f":"+CALCOLI1!$E$18*99.95%","v":0},{"$f":"+CALCOLI1!E13*99%","v":5866.666666666667},{"$f":"+B41+C41+D41","v":4576.1607750000003},{"$f":"+G41+F41+O41","v":10703.898127708335},{"$f":"+G41","v":4576.1607750000003},{"$f":"+CALCOLI1!E9","v":80000},{"$f":"+CALCOLI1!H9+100","v":102},null,{"$f":"+O41","v":261.0706860416667},{"$f":"+CALCOLI1!L9-0.5","v":2.5},{"$f":"+(G41+F41)*$N$41/100","v":261.0706860416667},{"$f":"+CALCOLI1!E14","v":3.8573926562499996},{"$f":"+CALCOLI1!E15","v":3.24919341875},{"$f":"+CALCOLI1!E12","v":100},{"$f":"+J41/13.5","v":5925.9259259259261},null,null,null,null,null,null,null,null,{"$f":"+J41","v":80000},{"$f":"IF(AB41>=$AC$29,$AC$29,AB41)","v":46031},{"$f":"+AB41-AC41","v":33969},{"$f":"IF(AD41>=$AA$30,$AA$30,AD41)","v":33969},{"$f":"+AD41-AE41","v":0},{"$f":"IF(AF41>=$AA$31,$AA$31,AF41)","v":0},{"$f":"+AF41-AG41","v":0},{"$f":"IF(AH41>=$AA$32,$AA$32,AH41)","v":0},{"$f":"IF(AH41>=$AA$33,$AA$33,AH41)","v":0},null,{"$f":"+((AC41*$AD$29)+(AE41*$AD$30))/100","v":3298.45},{"$f":"IF($AD$23>=10,((AC41*$AE$29)+(AE41*$AE$30)),(AC41*$AE$32)+(AE41*$AE$33))/100","v":1280},{"$f":"+AL41+AM41","v":4578.45},null,{"$f":"+AB41","v":80000},{"$f":"IF(AP41>=$AH$29,$AH$29,AP41)","v":46031},{"$f":"+AP41-AQ41","v":33969},null,{"$f":"+AQ41*$AI$29%+AR41*$AI$30%","v":3298.4500000000003},{"$f":"IF($AD$23>=10,(AQ41*$AJ$29/100)+(AR41*$AJ$30/100),(AQ41*$AJ33/100+AR41*$AJ$34/100))","v":1120},{"$f":"+AT41+AU41","v":4418.4500000000007},null,{"$f":"+J41","v":80000},null,null,null,{"$f":"+AX41*$AM$25%","v":1280},{"$f":"+AX41*$AM$25%","v":1280},{"$f":"+BB41+BC41","v":2560}]
[{"$f":"1+A41","v":2},null,{"$f":"IF($B$35=1,AL42*99.95%,IF($B$35=2,AT42*99.95%,BB42*99.95%))","v":3408.7447750000001},{"$f":"IF($B$35=1,AM42*99.95%,IF($B$35=2,AU42*99.95%,BC42*99.95%))","v":1304.9472000000001},{"$f":"+CALCOLI1!$E$18*99.95%","v":0},{"$f":"+F41+W42","v":11850.666666666666},{"$f":"+B42+C42+D42","v":4713.6919749999997},{"$f":"+I42+F42+M42","v":21822.225835901041},{"$f":"+I41+G42","v":9289.85275},{"$f":"+J41*$K$41/100","v":81600},null,null,{"$f":"+M41+O42","v":681.70641923437506},null,{"$f":"+(G42+F42+O41)*$N$41/100","v":420.63573319270836},null,null,null,{"$f":"+J42/13.5","v":6044.4444444444443},null,{"$f":"+J42*$P$41/100*99%","v":3116.1560834249995},{"$f":"+J42*$Q$41*99%/100","v":2624.8284114030002},{"$f":"+J42/13.5*$R$41/100*99%","v":5983.9999999999991},null,{"$f":"+U42+V42+X42","v":5740.9844948279997},{"$f":"+Y42+W42","v":11724.984494827999},null,{"$f":"+J42","v":81600},{"$f":"IF(AB42>=$AC$29,$AC$29,AB42)","v":46031},{"$f":"+AB42-AC42","v":35569},{"$f":"IF(AD42>=$AA$30,$AA$30,AD42)","v":35569},{"$f":"+AD42-AE42","v":0},{"$f":"IF(AF42>=$AA$31,$AA$31,AF42)","v":0},{"$f":"+AF42-AG42","v":0},{"$f":"IF(AH42>=$AA$32,$AA$32,AH42)","v":0},{"$f":"IF(AH42>=$AA$33,$AA$33,AH42)","v":0},null,{"$f":"+((AC42*$AD$29)+(AE42*$AD$30))/100","v":3410.45},{"$f":"IF($AD$23>=10,((AC42*$AE$29)+(AE42*$AE$30)),(AC42*$AE$32)+(AE42*$AE$33))/100","v":1305.5999999999999},{"$f":"+AL42+AM42","v":4716.0499999999993},null,{"$f":"+AB42","v":81600},{"$f":"IF(AP42>=$AH$29,$AH$29,AP42)","v":46031},{"$f":"+AP42-AQ42","v":35569},null,{"$f":"+AQ42*$AI$29%+AR42*$AI$30%","v":3410.4500000000003},{"$f":"IF($AD$23>=10,(AQ42*$AJ$29/100)+(AR42*$AJ$30/100),(AQ42*$AJ34/100+AR42*$AJ$34/100))","v":1142.4000000000001},{"$f":"+AT42+AU42","v":4552.8500000000004},null,{"$f":"+J42","v":81600},null,null,null,{"$f":"+AX42*$AM$25%","v":1305.6000000000001},{"$f":"+AX42*$AM$25%","v":1305.6000000000001},{"$f":"+BB42+BC42","v":2611.2000000000003}]
[{"$f":"1+A42","v":3},null,3522.9276550000004,1331.0461440000004,{"$f":"+CALCOLI1!$E$18*99.95%","v":0},{"$f":"+F42+W43","v":17954.346666666665},4853.9737990000012,{"$f":"+I43+F43+M43","v":33360.603539872522},{"$f":"+I42+G43","v":14143.826549000001},{"$f":"+J42*$K$41/100","v":83232},null,null,{"$f":"+M42+O43","v":1262.4303242058595},null,{"$f":"+(G43+F43+O42)*$N$41/100","v":580.72390497148433},null,null,null,6165.333333333333,null,{"$f":"+J43*$P$41/100*99%","v":3178.4792050934993},{"$f":"+J43*$Q$41*99%/100","v":2677.3249796310597},{"$f":"+J43/13.5*$R$41/100*99%","v":6103.6799999999985},null,{"$f":"+U43+V43+X43","v":5855.8041847245586},{"$f":"+Y43+W43","v":11959.484184724557},null,83232,46031,37201,37201,0,0,0,0,0,null,3524.69,1331.7120000000002,4856.402,null,83232,46031,37201,null,3524.69,520.81399999999996,4045.5039999999999,null,83232,null,null,null,1331.712,1331.712,2663.424]
[4,null,3639.3941925999998,1357.6670668800002,{"$f":"+CALCOLI1!$E$18*99.95%","v":0},24180.100266666665,4997.0612594800004,45327.365535130484,19140.887808480002,84896.639999999999,null,null,2006.3774599838132,null,743.94713577795369,null,null,null,6288.64,null,3242.0487891953694,2730.8714792236815,6225.7536,null,5972.9202684190514,12198.673868419051,null,84896.639999999999,46031,38865.64,38865.64,0,0,0,0,0,null,3641.2147999999997,1358.3462400000001,4999.5610399999996,null,84896.639999999999,46031,38865.64,null,3641.2148000000002,544.1189599999999,4185.3337600000004,null,84896.639999999999,null,null,null,1358.3462400000001,1358.3462400000001,2716.6924800000002]
[5,null,3758.1900609520003,1384.8204082176003,{"$f":"+CALCOLI1!$E$18*99.95%","v":0},30530.368938666663,5143.0104691696006,57731.077839890437,24283.898277649601,86594.572799999994,null,null,2916.8106235741689,null,910.43316359035543,null,null,null,6414.4127999999992,null,3306.8897649792766,2785.4889088081545,6350.2686719999992,null,6092.3786737874307,12442.647345787431,null,86594.572799999994,46031,40563.572799999994,40563.572799999994,0,0,0,0,0,null,3760.0700959999999,1385.5131648000001,5145.5832608000001,null,86594.572799999994,46031,40563.572799999994,null,3760.0700959999999,567.89001919999987,4327.9601151999996,null,86594.572799999994,null,null,null,1385.5131647999999,1385.5131647999999,2771.0263295999998]
[6,null,3879.3618466710395,1412.5168163819519,{"$f":"+CALCOLI1!$E$18*99.95%","v":0},37007.642984106664,5291.8786630529912,70580.479418652161,29575.776940702592,88326.464255999992,null,null,3997.0594938429194,null,1080.2488702687506,null,null,null,6542.701055999999,null,3373.027560278862,2841.1986869843176,6477.2740454399991,null,6214.2262472631792,12691.500292703178,null,88326.464255999992,46031,42295.464255999992,42295.464255999992,0,0,0,0,0,null,3881.3024979199995,1413.2234280959999,5294.5259260159992,null,88326.464255999992,46031,42295.464255999992,null,3881.3024979199995,592.13649958399981,4473.4389975039994,null,88326.464255999992,null,null,null,1413.2234280959999,1413.2234280959999,2826.4468561919998]
[7,null,4002.9570681044615,1440.7671527095913,{"$f":"+CALCOLI1!$E$18*99.95%","v":0},43614.462510455465,5443.7242208140524,83884.484055853478,35019.501161516644,90092.993541119999,null,null,5250.5203838813759,null,1253.4608900384567,null,null,null,6673.5550771199996,null,3440.4881114844397,2898.0226607240043,6606.8195263487996,null,6338.510772208444,12945.330298557245,null,90092.993541119999,46031,44061.993541119999,44061.993541119999,0,0,0,0,0,null,4004.9595478784004,1441.4878966579201,5446.4474445363203,null,90092.993541119999,46031,44061.993541119999,null,4004.9595478783999,616.86790957567996,4621.8274574540801,null,90092.993541119999,null,null,null,1441.4878966579199,1441.4878966579199,2882.9757933158398]
[8,null,4129.0241939665502,1469.5824957637831,{"$f":"+CALCOLI1!$E$18*99.95%","v":0},50353.418427331242,5598.6066897303335,97652.183812637086,40618.107851246976,91894.8534119424,null,null,6680.657534058877,null,1430.1371501775006,null,null,null,6807.0261786623996,null,3509.2978737141289,2955.9831139384837,6738.955916875776,null,6465.2809876526126,13204.236904528389,null,91894.8534119424,46031,45863.8534119424,45863.8534119424,0,0,0,0,0,null,4131.0897388359681,1470.3176545910785,5601.4073934270464,null,91894.8534119424,46031,45863.8534119424,null,4131.0897388359681,642.09394776719353,4773.1836866031617,null,91894.8534119424,null,null,null,1470.3176545910785,1470.3176545910785,2940.635309182157]
[9,null,4257.6126623458813,1498.9741456790584,{"$f":"+CALCOLI1!$E$18*99.95%","v":0},57227.153462544535,5756.5868080249402,111892.85259139401,46374.694659271918,93732.750480181247,null,null,8291.0044695775505,null,1610.3469355186744,null,null,null,6943.1667022356478,null,3579.4838311884109,3015.1027762172539,6873.7350352132908,null,6594.5866074056648,13468.321642618956,null,93732.750480181247,46031,47701.750480181247,47701.750480181247,0,0,0,0,0,null,4259.7425336126871,1499.7240076828998,5759.4665412955874,null,93732.750480181247,46031,47701.750480181247,null,4259.742533612688,667.82450672253754,4927.5670403352251,null,93732.750480181247,null,null,null,1499.7240076829,1499.7240076829,2999.4480153658001]
[10,null,4388.7729000927984,1528.9536285926397,{"$f":"+CALCOLI1!$E$18*99.95%","v":0},64238.363198462088,5917.7265286854381,126615.94977256365,52292.421187957356,95607.405489784869,null,null,10085.165386144206,null,1794.160916566655,null,null,null,7082.0300362803609,null,3651.0735078121797,3075.4048317415991,7011.2097359175568,null,6726.4783395537788,13737.688075471335,null,95607.405489784869,46031,49576.405489784869,49576.405489784869,0,0,0,0,0,null,4390.9683842849408,1529.7184878365579,5920.6868721214987,null,95607.405489784869,46031,49576.405489784869,null,4390.9683842849408,694.06967685698805,5085.0380611419287,null,95607.405489784869,null,null,null,1529.7184878365579,1529.7184878365579,3059.4369756731157]
[11,null,4522.5563425946548,1559.5327011644927,{"$f":"+CALCOLI1!$E$18*99.95%","v":0},71389.797129097991,6082.0890437591479,141831.12392419428,58374.5102317165,97519.553599580569,null,null,12066.816563379802,null,1981.651177235595,null,null,null,7223.6706370059683,null,3724.0949779684224,3136.9129283764305,7151.4339306359088,null,6861.0079063448529,14012.441836980761,null,97519.553599580569,46031,51488.553599580569,51488.553599580569,0,0,0,0,0,null,4524.8187519706398,1560.3128575932892,6085.1316095639286,null,97519.553599580569,46031,51488.553599580569,null,4524.8187519706407,720.83975039412792,5245.6585023647685,null,97519.553599580569,null,null,null,1560.3128575932892,1560.3128575932892,3120.6257151865784]
[12,null,4659.0154539465484,1590.7233551877825,{"$f":"+CALCOLI1!$E$18*99.95%","v":0},78684.25973834662,6249.7388091343309,157548.21658569519,64624.249040850831,99469.944671572186,null,null,14239.707806497716,null,2172.8912431179137,null,null,null,7368.1440497460881,null,3798.5768775277916,3199.6511869439601,7294.4626092486269,null,6998.2280644717521,14292.690673720379,null,99469.944671572186,46031,53438.944671572186,53438.944671572186,0,0,0,0,0,null,4661.3461270100534,1591.5191147451551,6252.8652417552084,null,99469.944671572186,46031,53438.944671572186,null,4661.3461270100534,748.14522540201051,5409.4913524120639,null,99469.944671572186,null,null,null,1591.5191147451551,1591.5191147451551,3183.0382294903102]
[13,null,4798.2037475254792,1622.5378222915383,{"$f":"+CALCOLI1!$E$18*99.95%","v":0},86124.611599780226,6420.7415698170171,173777.26612726366,71044.990610667854,101459.34356500363,null,null,16607.663916815596,null,2367.9561103178794,null,null,null,7515.5069307410095,null,3874.5484150783477,3263.644210682839,7440.3518614335999,null,7138.1926257611867,14578.544487194788,null,101459.34356500363,46031,55428.343565003626,55428.343565003626,0,0,0,0,0,null,4800.6040495502539,1623.3494970400582,6423.9535465903118,null,101459.34356500363,46031,55428.343565003626,null,4800.6040495502539,775.99680991005062,5576.6008594603045,null,101459.34356500363,null,null,null,1623.3494970400582,1623.3494970400582,3246.6989940801163]
[14,null,4940.1758069759871,1654.9885787373689,{"$f":"+CALCOLI1!$E$18*99.95%","v":0},93713.770498442493,6595.1643857133558,190528.51168650115,77640.154996381214,103488.53043630368,null,null,19174.586191677437,null,2566.9222748618431,null,null,null,7665.8170693558286,null,3952.0393833799139,3328.9170948964957,7589.158898662271,null,7280.9564782764101,14870.11537693868,null,103488.53043630368,46031,57457.530436303685,57457.530436303685,0,0,0,0,0,null,4942.6471305412579,1655.8164869808593,6598.4636175221167,null,103488.53043630368,46031,57457.530436303685,null,4942.6471305412588,804.4054261082515,5747.0525566495107,null,103488.53043630368,null,null,null,1655.8164869808591,1655.8164869808591,3311.6329739617181]
[15,null,5084.9873076155072,1688.0883503121161,{"$f":"+CALCOLI1!$E$18*99.95%","v":0},101454.71257507801,6773.0756579276231,207812.39718376097,84413.230654308834,105558.30104502976,null,null,21944.453954374127,null,2769.8677626966874,null,null,null,7819.1334107429448,null,4031.0801710475121,3395.4954367944247,7740.9420766355161,null,7426.5756078419363,15167.517684477452,null,105558.30104502976,46031,59527.301045029759,59527.301045029759,0,0,0,0,0,null,5087.5310731520831,1688.9328167204762,6776.4638898725589,null,105558.30104502976,46031,59527.301045029759,null,5087.5310731520831,833.38221463041657,5920.9132877824995,null,105558.30104502976,null,null,null,1688.9328167204762,1688.9328167204762,3377.8656334409525]
[16,null,5232.6950382678169,1721.8501173183583,{"$f":"+CALCOLI1!$E$18*99.95%","v":0},109350.47349324623,6954.5451555861755,225639.5754178036,91367.775809895014,107669.46706593035,null,null,24921.326114662355,null,2976.872160288227,null,null,null,7975.516078957804,null,4111.7017744684626,3463.4053455303138,7895.7609181682255,null,7575.1071199987764,15470.868038167002,null,107669.46706593035,46031,61638.467065930352,61638.467065930352,0,0,0,0,0,null,5235.3126946151242,1722.7114730548858,6958.0241676700098,null,107669.46706593035,46031,61638.467065930352,null,5235.3126946151251,862.93853892302491,6098.2512335381498,null,107669.46706593035,null,null,null,1722.7114730548856,1722.7114730548856,3445.4229461097711]
[17,null,5383.3569235331724,1756.2871196647254,{"$f":"+CALCOLI1!$E$18*99.95%","v":0},117404.14962977782,7139.6440431978981,244020.9122433647,98507.419853092913,109822.85640724895,null,null,28109.342760493953,null,3188.0166458315985,null,null,null,8135.02640053696,null,4193.9358099578303,3532.6734524409198,8053.6761365315906,null,7726.6092623987497,15780.28539893034,null,109822.85640724895,46031,63791.856407248953,63791.856407248953,0,0,0,0,0,null,5386.0499485074261,1757.1657025159834,7143.215651023409,null,109822.85640724895,46031,63791.856407248953,null,5386.049948507427,893.08598970148523,6279.1359382089122,null,109822.85640724895,null,null,null,1757.1657025159832,1757.1657025159832,3514.3314050319664]
[18,null,5537.0320465038367,1791.41286205802,{"$f":"+CALCOLI1!$E$18*99.95%","v":0},125618.89928904004,7328.4449085618562,262967.49083227461,105835.86476165477,112019.31353539393,null,null,31512.72678157979,null,3403.384021085838,null,null,null,8297.7269285476978,null,4277.8145261569871,3603.3269214897382,8214.749659262221,null,7881.1414476467253,16095.891106908946,null,112019.31353539393,46031,65988.313535393929,65988.313535393929,0,0,0,0,0,null,5539.8019474775756,1792.3090165663029,7332.110964043879,null,112019.31353539393,46031,65988.313535393929,null,5539.8019474775756,923.83638949551494,6463.6383369730902,null,112019.31353539393,null,null,null,1792.3090165663029,1792.3090165663029,3584.6180331326059]
[19,null,5693.7806719339142,1827.2411192991804,{"$f":"+CALCOLI1!$E$18*99.95%","v":0},133997.94394148749,7521.0217912330945,282490.61601980031,113356.88655288787,114259.69980610181,null,null,35135.785525424952,null,3623.0587438451603,null,null,null,8463.681467118653,null,4363.3708166801271,3675.3934599195327,8379.0446524474664,null,8038.7642765996598,16417.808929047125,null,114259.69980610181,46031,68228.699806101809,68228.699806101809,0,0,0,0,0,null,5696.6289864271275,1828.1551968976291,7524.7841833247567,null,114259.69980610181,46031,68228.699806101809,null,5696.6289864271266,955.2017972854253,6651.8307837125521,null,114259.69980610181,null,null,null,1828.1551968976289,1828.1551968976289,3656.3103937952578]
[20,null,5853.6642698725918,1863.7859416851641,{"$f":"+CALCOLI1!$E$18*99.95%","v":0},142544.56948698391,7717.4502115577561,302601.81873791415,121074.33676444562,116544.89380222384,null,null,38982.912486484624,null,3847.1269610596705,null,null,null,8632.9550964610262,null,4450.6382330137294,3748.9013291179231,8546.6255454964157,null,8199.5395621316529,16746.165107628069,null,116544.89380222384,46031,70513.893802223844,70513.893802223844,0,0,0,0,0,null,5856.5925661556694,1864.7183008355817,7721.3108669912508,null,116544.89380222384,46031,70513.893802223844,null,5856.5925661556694,987.19451323113378,6843.7870793868033,null,116544.89380222384,null,null,null,1864.7183008355814,1864.7183008355814,3729.4366016711629]
[21,null,6016.7455397700433,1901.0616605188673,{"$f":"+CALCOLI1!$E$18*99.95%","v":0},151262.12754339026,7917.8072002889103,323312.86053722788,128992.14396473453,118875.79167826832,null,null,43058.589029103096,null,4075.6765426184716,null,null,null,8805.6141983902453,null,4539.6509976740044,3823.8793557002818,8717.5580564063421,null,8363.5303533742863,17081.088409780627,null,118875.79167826832,46031,72844.791678268317,72844.791678268317,0,0,0,0,0,null,6019.755417478782,1902.0126668522933,7921.7680843310754,null,118875.79167826832,46031,72844.791678268317,null,6019.7554174787829,1019.8270834957564,7039.5825009745395,null,118875.79167826832,null,null,null,1902.012666852293,1902.012666852293,3804.025333704586]
[22,null,6183.0884350654442,1939.0828937292447,{"$f":"+CALCOLI1!$E$18*99.95%","v":0},160154.03676092473,8122.1713287946886,344635.73819936544,137114.31529352922,121253.30751183369,null,null,47367.386144911543,null,4308.7971158084465,null,null,null,8981.7264823580499,null,4630.4440176274848,3900.3569428142878,8891.9092175344686,null,8530.800960441773,17422.710177976242,null,121253.30751183369,46031,75222.307511833686,75222.307511833686,0,0,0,0,0,null,6186.1815258283577,1940.0529201893391,8126.2344460176973,null,121253.30751183369,46031,75222.307511833686,null,6186.1815258283586,1053.1123051656716,7239.29383099403,null,121253.30751183369,null,null,null,1940.0529201893389,1940.0529201893389,3880.1058403786778]
[23,null,6352.7581882667528,1977.8645516038296,{"$f":"+CALCOLI1!$E$18*99.95%","v":0},169223.7841628099,8330.6227398705814,366582.68844158348,145444.93803339981,123678.37366207036,null,null,51913.966245373769,null,4546.5801004622226,null,null,null,9161.3610120052108,null,4723.0528979800347,3978.3640816705733,9069.747401885159,null,8701.4169796506085,17771.164381535767,null,123678.37366207036,46031,77647.373662070357,77647.373662070357,0,0,0,0,0,null,6355.9361563449247,1978.8539785931259,8334.79013493805,null,123678.37366207036,46031,77647.373662070357,null,6355.9361563449256,1087.063231268985,7442.9993876139106,null,123678.37366207036,null,null,null,1978.8539785931257,1978.8539785931257,3957.7079571862514]
[24,null,6525.821336532088,2017.4218426359059,{"$f":"+CALCOLI1!$E$18*99.95%","v":0},178474.92651273275,8543.2431791679937,389166.19271548343,153988.18121256781,126151.94113531176,null,null,56703.084990182848,null,4789.118744809075,null,null,null,9344.5882322453162,null,4817.5139559396348,4057.9313633039842,9251.1423499228622,null,8875.4453192436195,18126.587669166482,null,126151.94113531176,46031,80120.941135311761,80120.941135311761,0,0,0,0,0,null,6529.0858794718233,2018.4310581649884,8547.5169376368121,null,126151.94113531176,46031,80120.941135311761,null,6529.0858794718233,1121.6931758943645,7650.779055366188,null,126151.94113531176,null,null,null,2018.4310581649881,2018.4310581649881,4036.8621163299763]
[25,null,6702.3457477627289,2057.7702794886241,{"$f":"+CALCOLI1!$E$18*99.95%","v":0},187911.09170965408,8760.1160272513534,412398.98210169899,162748.29723981916,128674.979958018,null,null,61739.593152225709,null,5036.5081620428628,null,null,null,9531.4799968902225,null,4913.8642350584278,4139.0899905700644,9436.1651969213199,null,9052.9542256284913,18489.119422549811,null,128674.979958018,46031,82643.979958017997,82643.979958017997,0,0,0,0,0,null,6705.6985970612595,2058.7996793282882,8764.4982763895478,null,128674.979958018,46031,82643.979958017997,null,6705.6985970612604,1157.0157194122519,7862.7143164735126,null,128674.979958018,null,null,null,2058.7996793282882,2058.7996793282882,4117.5993586565764]
[26,null,6882.4006472179844,2098.9256850783968,{"$f":"+CALCOLI1!$E$18*99.95%","v":0},197535.98021051384,8981.3263322963812,436294.04230247642,171729.62357211555,131248.47955717836,null,null,67028.438519847041,null,5288.8453676213267,null,null,null,9722.109596828026,null,5012.1415197595961,4221.8717903814659,9624.8885008597463,null,9234.0133101410611,18858.901811000807,null,131248.47955717836,46031,85217.479557178362,85217.479557178362,0,0,0,0,0,null,6885.8435690024853,2099.9756729148539,8985.8192419173392,null,131248.47955717836,46031,85217.479557178362,null,6885.8435690024862,1193.044713800497,8078.8882828029837,null,131248.47955717836,null,null,null,2099.9756729148539,2099.9756729148539,4199.9513458297079]
[27,null,7066.0566446623434,2140.9041987799646,{"$f":"+CALCOLI1!$E$18*99.95%","v":0},207353.36648139078,9206.960843442308,460864.618734107,180936.58441555785,133873.44914832193,null,null,72574.667837158398,null,5546.2293173113603,null,null,null,9916.5517887645874,null,5112.3843501547881,4306.3092261890952,9817.3862708769411,null,9418.6935763438833,19236.079847220826,null,133873.44914832193,46031,87842.449148321932,87842.449148321932,0,0,0,0,0,null,7069.5914403825345,2141.9751863731512,9211.5666267556862,null,133873.44914832193,46031,87842.449148321932,null,7069.5914403825354,1229.794288076507,8299.3857284590431,null,133873.44914832193,null,null,null,2141.9751863731508,2141.9751863731508,4283.9503727463016]
[28,null,7253.3857620555918,2183.7222827555638,{"$f":"+CALCOLI1!$E$18*99.95%","v":0},217367.10047768525,9437.1080448111552,486124.22172120784,190373.692460369,136550.91813128837,null,null,78383.428783153591,null,5808.7609459951937,null,null,null,10114.88282453988,null,5214.6320371578831,4392.4354107128775,10013.733996294481,null,9607.0674478707606,19620.801444165241,null,136550.91813128837,46031,90519.918131288374,90519.918131288374,0,0,0,0,0,null,7257.0142691901865,2184.8146901006139,9441.8289592908004,null,136550.91813128837,46031,90519.918131288374,null,7257.0142691901865,1267.2788538380371,8524.2931230282229,null,136550.91813128837,null,null,null,2184.8146901006139,2184.8146901006139,4369.6293802012278]
[29,null,7444.4614617967036,2227.3967284106752,{"$f":"+CALCOLI1!$E$18*99.95%","v":0},227581.10915390562,9671.8581902073784,512086.63179488829,200045.55065057636,139281.93649391414,null,null,84459.971990406295,null,6076.5432072527046,null,null,null,10317.180481030677,null,5318.9246779010409,4480.2841189271348,10214.00867622037,null,9799.2087968281758,20013.217473048546,null,139281.93649391414,46031,93250.936493914138,93250.936493914138,0,0,0,0,0,null,7448.18555457399,2228.5109839026263,9676.6965384766154,null,139281.93649391414,46031,93250.936493914138,null,7448.18555457399,1305.5131109147978,8753.6986654887878,null,139281.93649391414,null,null,null,2228.5109839026263,2228.5109839026263,4457.0219678052526]
[30,null,7639.3586755326378,2271.944662978889,{"$f":"+CALCOLI1!$E$18*99.95%","v":0},237999.39800365039,9911.3033385115268,538765.90509687993,209956.85398908789,142067.57522379243,null,null,90809.65310414166,null,6349.6811137353661,null,null,null,10523.524090651292,null,5425.3031714590625,4569.8898013056778,10418.288849744778,null,9995.1929727647403,20413.481822509519,null,142067.57522379243,46031,96036.575223792432,96036.575223792432,0,0,0,0,0,null,7643.18026566547,2273.0812035806794,9916.2614692461502,null,142067.57522379243,46031,96036.575223792432,null,7643.1802656654709,1344.5120531330938,8987.6923187985649,null,142067.57522379243,null,null,null,2273.0812035806789,2273.0812035806789,4546.1624071613578]
[31,null,7838.1538335432897,2317.3835562384666,{"$f":"+CALCOLI1!$E$18*99.95%","v":0},248626.05263039007,10155.537389781755,566176.37889174907,220112.39137886965,144908.92672826827,null,null,97437.934882489339,null,6628.2817783476794,null,null,null,10733.994572464317,null,5533.8092348882437,4661.2875973317905,10626.654626739673,null,10195.096832220035,20821.751458959709,null,144908.92672826827,46031,98877.92672826827,98877.92672826827,0,0,0,0,0,null,7842.0748709787786,2318.5428276522925,10160.617698631071,null,144908.92672826827,46031,98877.92672826827,null,7842.0748709787795,1384.2909741957556,9226.3658451745359,null,144908.92672826827,null,null,null,2318.5428276522925,2318.5428276522925,4637.0856553045851]
[32,null,8040.924894714155,2363.7312273632356,{"$f":"+CALCOLI1!$E$18*99.95%","v":0},259465.24034966453,10404.656122077391,594332.67718935315,230517.04750094705,147807.10526283362,null,null,104350.38933874157,null,6912.4544562522387,null,null,null,10948.674463913601,null,5644.485419586008,4754.5133492784262,10839.187719274465,null,10398.998768864434,21238.186488138897,null,147807.10526283362,46031,101776.10526283362,101776.10526283362,0,0,0,0,0,null,8044.9473683983533,2364.9136842053381,10409.861052603692,null,147807.10526283362,46031,101776.10526283362,null,8044.9473683983542,1424.8654736796705,9469.8128420780249,null,147807.10526283362,null,null,null,2364.9136842053381,2364.9136842053381,4729.8273684106762]
[33,null,8247.7513771084377,2411.0058519105005,{"$f":"+CALCOLI1!$E$18*99.95%","v":0},270521.2118233245,10658.757229018938,623249.71647974697,241175.80472996598,150763.24736809029,null,null,111552.69992645647,null,7202.3105877148919,null,null,null,11167.647953191874,null,5757.3751279777271,4849.6036162639948,11055.971473659954,null,10606.978744241722,21662.950217901678,null,150763.24736809029,46031,104732.24736809029,104732.24736809029,0,0,0,0,0,null,8251.87731576632,2412.2119578894449,10664.089273655765,null,150763.24736809029,46031,104732.24736809029,null,8251.8773157663218,1466.251463153264,9718.1287789195849,null,150763.24736809029,null,null,null,2412.2119578894449,2412.2119578894449,4824.4239157788898]
[34,null,8458.7143891506075,2459.22596894871,{"$f":"+CALCOLI1!$E$18*99.95%","v":0},281798.30272645765,10917.940358099317,652942.71158278629,252093.74508806531,153778.5123154521,null,null,119050.66376826326,null,7497.9638418067952,null,null,null,11391.000912255711,null,5872.5226305372835,4946.5956885892747,11277.090903133156,null,10819.118319126559,22096.209222259713,null,153778.5123154521,46031,107747.5123154521,107747.5123154521,0,0,0,0,0,null,8462.9458620816476,2460.4561970472337,10923.402059128881,null,153778.5123154521,46031,107747.5123154521,null,8462.9458620816476,1508.4651724163291,9971.4110344979763,null,153778.5123154521,null,null,null,2460.4561970472337,2460.4561970472337,4920.9123940944673]
[35,null,8673.8966614336186,2508.4104883276846,{"$f":"+CALCOLI1!$E$18*99.95%","v":0},293300.93544765346,11182.307149761304,683427.18161472399,263276.05223782663,156854.08256176114,null,null,126850.1939292438,null,7799.5301609805392,null,null,null,11618.820930500826,null,5989.9730831480292,5045.5276023610604,11502.63272119582,null,11035.500685509091,22538.13340670491,null,156854.08256176114,46031,110823.08256176114,110823.08256176114,0,0,0,0,0,null,8678.2357793232804,2509.6653209881783,11187.901100311459,null,156854.08256176114,46031,110823.08256176114,null,8678.2357793232804,1551.5231558646558,10229.758935187936,null,156854.08256176114,null,null,null,2509.6653209881783,2509.6653209881783,5019.3306419763567]
[36,null,8893.3825791622912,2558.5786980942385,{"$f":"+CALCOLI1!$E$18*99.95%","v":0},305033.6208232732,11451.961277256531,714718.95607413794,274728.01351508318,159991.16421299637,null,null,134957.32173578156,null,8107.1278065377564,null,null,null,11851.197349110842,null,6109.7725448109886,5146.4381544082817,11732.685375619734,null,11256.210699219271,22988.896074839005,null,159991.16421299637,46031,113960.16421299637,113960.16421299637,0,0,0,0,0,null,8897.8314949097457,2559.8586274079421,11457.690122317688,null,159991.16421299637,46031,113960.16421299637,null,8897.8314949097476,1595.4422989819491,10493.273793891696,null,159991.16421299637,null,null,null,2559.8586274079421,2559.8586274079421,5119.7172548158842]
[37,null,9117.2582152455379,2609.7502720561233,{"$f":"+CALCOLI1!$E$18*99.95%","v":0},317000.9599064053,11727.00848730166,746834.18104957778,286455.02200238482,163190.98749725631,null,null,143378.19914078768,null,8420.8774050061184,null,null,null,12088.221296093061,null,6231.9679957072103,5249.3669174964471,11967.33908313213,null,11481.334913203656,23448.673996335787,null,163190.98749725631,46031,117159.98749725631,117159.98749725631,0,0,0,0,0,null,9121.819124807942,2611.0557999561011,11732.874924764043,null,163190.98749725631,46031,117159.98749725631,null,9121.8191248079438,1640.2398249615883,10762.058949769533,null,163190.98749725631,null,null,null,2611.0557999561011,2611.0557999561011,5222.1115999122021]
[38,null,9345.61136405045,2661.945277497246,{"$f":"+CALCOLI1!$E$18*99.95%","v":0},329207.64577120007,12007.556641547697,779789.32555136411,298462.57864393253,166454.80724720145,null,null,152119.10113623153,null,8740.9019954438463,null,null,null,12329.985722014922,null,6356.6073556213551,5354.3542558463769,12206.685864794774,null,11710.961611467732,23917.647476262508,null,166454.80724720145,46031,120423.80724720145,120423.80724720145,0,0,0,0,0,null,9350.2865073041012,2663.2769159552236,12013.563423259326,null,166454.80724720145,46031,120423.80724720145,null,9350.286507304103,1685.9333014608201,11036.219808764923,null,166454.80724720145,null,null,null,2663.2769159552231,2663.2769159552231,5326.5538319104462]
[39,null,9578.5315758314591,2715.1841830471913,{"$f":"+CALCOLI1!$E$18*99.95%","v":0},341658.46535329073,12293.71575887865,813601.18797002384,310756.29440281121,169783.9033921455,null,null,161186.42821392187,null,9067.3270776903319,null,null,null,12576.585436455221,null,6483.7395027337825,5461.4413409633053,12450.819582090669,null,11945.180843697088,24396.000425787759,null,169783.9033921455,46031,123752.9033921455,123752.9033921455,0,0,0,0,0,null,9583.323237450184,2716.5424542743281,12299.865691724512,null,169783.9033921455,46031,123752.9033921455,null,9583.3232374501858,1732.5406474900367,11315.863884940223,null,169783.9033921455,null,null,null,2716.5424542743281,2716.5424542743281,5433.0849085486561]
[40,null,9816.110191848089,2769.4878667081348,{"$f":"+CALCOLI1!$E$18*99.95%","v":0},354358.30132702319,12585.598058556225,848286.90266389423,323341.89246136742,173179.5814599884,null,null,170586.70887550362,null,9400.2806615817426,null,null,null,12828.117145184326,null,6613.4142927884577,5570.6701677825713,12699.835973732483,null,12184.08446057103,24883.920434303513,null,173179.5814599884,46031,127148.5814599884,127148.5814599884,0,0,0,0,0,null,9821.0207021991882,2770.8733033598146,12591.894005559003,null,173179.5814599884,46031,127148.5814599884,null,9821.0207021991901,1780.0801404398374,11601.100842639027,null,173179.5814599884,null,null,null,2770.8733033598146,2770.8733033598146,5541.7466067196292]
[41,null,10058.440380185051,2824.8776240422976,{"$f":"+CALCOLI1!$E$18*99.95%","v":0},367312.13402023033,12883.318004227349,883863.94667847978,336225.21046559478,176643.17308918817,null,null,180326.60219265462,null,9739.8933171509852,null,null,null,13084.679488088013,null,6745.6825786442278,5682.0835711382224,12953.832693207132,null,12427.76614978245,25381.598842989581,null,176643.17308918817,46031,130612.17308918817,130612.17308918817,0,0,0,0,0,null,10063.472116243172,2826.2907694270111,12889.762885670183,null,176643.17308918817,46031,130612.17308918817,null,10063.472116243174,1828.5704232486344,11892.042539491809,null,176643.17308918817,null,null,null,2826.2907694270107,2826.2907694270107,5652.5815388540213]
[42,null,10305.617172288752,2881.3751765231436,{"$f":"+CALCOLI1!$E$18*99.95%","v":0},380525.04336730158,13186.992348811895,920350.14660019451,349412.20281440666,180176.03655097194,null,null,190412.90041848624,null,10086.298225831611,null,null,null,13346.373077849774,null,6880.596230217112,5795.7252425609877,13212.909347071276,null,12676.3214727781,25889.230819849377,null,180176.03655097194,46031,134145.03655097194,134145.03655097194,0,0,0,0,0,null,10310.772558568036,2882.8165848155513,13193.589143383588,null,180176.03655097194,46031,134145.03655097194,null,10310.772558568038,1878.0305117136072,12188.803070281645,null,180176.03655097194,null,null,null,2882.8165848155513,2882.8165848155513,5765.6331696311026]
[43,null,10557.737500234529,2939.0026800536061,{"$f":"+CALCOLI1!$E$18*99.95%","v":0},394002.21090131428,13496.740180288136,957763.68554718117,362908.94299469481,183779.55728199138,null,null,200852.53165117209,null,10439.631232685852,null,null,null,13613.30053940677,null,7018.2081548214537,5911.6397474122068,13477.1675340127,null,12929.847902233661,26407.015436246362,null,183779.55728199138,46031,137748.55728199138,137748.55728199138,0,0,0,0,0,null,10563.019009739399,2940.472916511862,13503.491926251261,null,183779.55728199138,46031,137748.55728199138,null,10563.019009739399,1928.4798019478794,12491.498811687277,null,183779.55728199138,null,null,null,2940.472916511862,2940.472916511862,5880.9458330237239]
[44,null,10814.900234739218,2997.7827336546784,{"$f":"+CALCOLI1!$E$18*99.95%","v":0},407748.92178600724,13812.682968393896,996123.11029994523,376721.62596308871,187455.14842763121,null,null,211652.56255084925,null,10800.030899677175,null,null,null,13885.566550194904,null,7158.5723179178831,6029.8725423604519,13746.710884692955,null,13188.444860278334,26935.155744971289,null,187455.14842763121,46031,141424.14842763121,141424.14842763121,0,0,0,0,0,null,10820.310389934184,2999.2823748420992,13819.592764776284,null,187455.14842763121,46031,141424.14842763121,null,10820.310389934186,1979.9380779868368,12800.248467921023,null,187455.14842763121,null,null,null,2999.2823748420992,2999.2823748420992,5998.5647496841984]
[45,null,11077.206223934001,3057.7383883277716,{"$f":"+CALCOLI1!$E$18*99.95%","v":0},421770.56688839407,14134.944612261774,1035447.338574602,390856.57057535049,191204.25139618383,null,null,222820.20111085757,null,11167.638560008325,null,null,null,14163.277881198803,null,7301.7437642762407,6150.4699932076592,14021.645102386814,null,13452.2137574839,27473.858859870714,null,191204.25139618383,46031,145173.25139618383,145173.25139618383,0,0,0,0,0,null,11082.747597732867,3059.2680223389411,14142.015620071808,null,191204.25139618383,46031,145173.25139618383,null,11082.74759773287,2032.4255195465732,13115.173117279444,null,191204.25139618383,null,null,null,3059.2680223389411,3059.2680223389411,6118.5360446778823]
[46,null,11344.758332912683,3118.8931560943283,{"$f":"+CALCOLI1!$E$18*99.95%","v":0},436072.6448928286,14463.65148900701,1075755.6664415896,405320.22206435748,195028.33642410752,null,null,234362.79948440366,null,11542.598373546098,null,null,null,14446.543438822779,null,7447.7786395617659,6273.4793930718142,14302.07800443455,null,13721.258032633581,28023.336037068133,null,195028.33642410752,46031,148997.33642410752,148997.33642410752,0,0,0,0,0,null,11350.433549687526,3120.4533827857208,14470.886932473248,null,195028.33642410752,46031,148997.33642410752,null,11350.433549687528,2085.9627099375052,13436.396259625033,null,195028.33642410752,null,null,null,3120.4533827857204,3120.4533827857204,6240.9067655714407]
[47,null,11617.661484070939,3181.2710192162144,{"$f":"+CALCOLI1!$E$18*99.95%","v":0},450660.76445735182,14798.932503287153,1117067.7758927548,420119.15456764464,198928.90315258969,null,null,246287.8568677583,null,11925.057383354628,null,null,null,14735.474307599236,null,7596.7342123530016,6398.9489809332499,14588.119564523244,null,13995.683193286251,28583.802757809495,null,198928.90315258969,46031,152897.90315258969,152897.90315258969,0,0,0,0,0,null,11623.473220681279,3182.8624504414352,14806.335671122713,null,198928.90315258969,46031,152897.90315258969,null,11623.473220681281,2140.5706441362554,13764.043864817537,null,198928.90315258969,null,null,null,3182.8624504414352,3182.8624504414352,6365.7249008828703]
[48,null,11896.022698252358,3244.896439600539,{"$f":"+CALCOLI1!$E$18*99.95%","v":0},465540.64641316555,15140.919137852898,1159403.7425597806,435260.07370549755,202907.48121564148,null,null,258603.02244111762,null,12315.165573359327,null,null,null,15030.183793751221,null,7748.668896600062,6526.927960551915,14879.881955813709,null,14275.596857151977,29155.478812965688,null,202907.48121564148,46031,156876.48121564148,156876.48121564148,0,0,0,0,0,null,11901.973685094905,3246.5196994502639,15148.493384545169,null,202907.48121564148,46031,156876.48121564148,null,11901.973685094907,2196.2707370189805,14098.244422113887,null,202907.48121564148,null,null,null,3246.5196994502639,3246.5196994502639,6493.0393989005279]
[49,null,12179.951136717404,3309.7943683925496,{"$f":"+CALCOLI1!$E$18*99.95%","v":0},480718.12600809551,15489.745505109953,1202784.0435869847,450749.8192106075,206965.6308399543,null,null,271316.09836828173,null,12713.075927164122,null,null,null,15330.787469626244,null,7903.6422745320633,6657.4665197629538,15177.479594929982,null,14561.108794295018,29738.588389224999,null,206965.6308399543,46031,160934.6308399543,160934.6308399543,0,0,0,0,0,null,12186.044158796802,3311.450093439269,15497.494252236071,null,206965.6308399543,46031,160934.6308399543,null,12186.044158796803,2253.08483175936,14439.128990556164,null,206965.6308399543,null,null,null,3311.450093439269,3311.450093439269,6622.9001868785381]
[50,null,12469.558143951752,3375.9902557604005,{"$f":"+CALCOLI1!$E$18*99.95%","v":0},496199.1551949241,15845.548399712152,1247229.5656615705,466595.36761031963,211104.94345675339,null,null,284435.04285632673,null,13118.94448804501,null,null,null,15637.40321901877,null,8061.7151200227036,6790.6158501582131,15481.029186828582,null,14852.330970180916,30333.360157009498,null,211104.94345675339,46031,165073.94345675339,165073.94345675339,0,0,0,0,0,null,12475.796041972737,3377.6790953080545,15853.475137280791,null,211104.94345675339,46031,165073.94345675339,null,12475.796041972739,2311.0352083945472,14786.831250367286,null,211104.94345675339,null,null,null,3377.6790953080545,3377.6790953080545,6755.3581906161089]
[51,null,12764.957291330787,3443.5100608756088,{"$f":"+CALCOLI1!$E$18*99.95%","v":0},511989.80496548925,16208.467352206397,1292761.6132044855,482803.83496252605,215327.04232588847,null,null,297967.97327647026,null,13532.930420143519,null,null,null,15950.151283399146,null,8222.9494224231585,6926.428167161378,15790.649770565155,null,15149.377589584536,30940.027360149688,null,215327.04232588847,46031,169296.04232588847,169296.04232588847,0,0,0,0,0,null,12771.342962812192,3445.2326772142155,16216.575640026407,null,215327.04232588847,46031,169296.04232588847,null,12771.342962812194,2370.1445925624384,15141.487555374631,null,215327.04232588847,null,null,null,3445.2326772142155,3445.2326772142155,6890.4653544284311]
[52,null,13066.264421657403,3512.3802620931215,{"$f":"+CALCOLI1!$E$18*99.95%","v":0},528096.26773146575,16578.644683750525,1339401.9167250965,499382.47964627657,219633.58317240624,null,null,311923.16934735427,null,13955.196070883996,null,null,null,16269.154309067129,null,8387.4084108716215,7064.9567305046039,16106.462765976457,null,15452.365141376225,31558.827907352683,null,219633.58317240624,46031,173602.58317240624,173602.58317240624,0,0,0,0,0,null,13072.800822068437,3514.1373307585004,16586.938152826937,null,219633.58317240624,46031,173602.58317240624,null,13072.800822068439,2430.4361644136875,15503.236986482127,null,219633.58317240624,null,null,null,3514.1373307585,3514.1373307585,7028.2746615169999]
[53,null,13373.597694590553,3582.6278673349839,{"$f":"+CALCOLI1!$E$18*99.95%","v":0},544524.85975276178,16956.225561925537,1387172.6413429575,516338.70520820213,224026.25483585437,null,null,326309.07638199354,null,14385.907034639284,null,null,null,16594.537395248473,null,8555.1565790890527,7206.2558651146965,16428.59202129599,null,15761.41244420375,32190.00446549974,null,224026.25483585437,46031,177995.25483585437,177995.25483585437,0,0,0,0,0,null,13380.287838509807,3584.4200773736707,16964.707915883479,null,224026.25483585437,46031,177995.25483585437,null,13380.287838509808,2491.9335677019612,15872.221406211769,null,224026.25483585437,null,null,null,3584.4200773736702,3584.4200773736702,7168.8401547473404]
[54,null,13687.077632982362,3654.2804246816827,{"$f":"+CALCOLI1!$E$18*99.95%","v":0},561282.02361448365,17341.358057664045,1436096.395480013,533680.06326586613,228506.77993257146,null,null,341134.3085996632,null,14825.232217669673,null,null,null,16926.42814315344,null,8726.2597106708363,7350.3809824169912,16757.163861721907,null,16076.640693087827,32833.804554809736,null,228506.77993257146,46031,182475.77993257146,182475.77993257146,0,0,0,0,0,null,13693.924595280001,3656.1084789211432,17350.033074201143,null,228506.77993257146,46031,182475.77993257146,null,13693.924595280005,2554.6609190560002,16248.585514336006,null,228506.77993257146,null,null,null,3656.1084789211436,3656.1084789211436,7312.2169578422872]
[55,null,14006.827170142009,3727.3660331753172,{"$f":"+CALCOLI1!$E$18*99.95%","v":0},578374.33075344004,17734.193203317325,1486196.2397266475,551414.25646918349,233076.91553122288,null,null,356407.65250402386,null,15273.343904360678,null,null,null,17264.95670601651,null,8900.7849048842509,7497.3886020653308,17092.307138956345,null,16398.173506949581,33490.480645905925,null,233076.91553122288,46031,187045.91553122288,187045.91553122288,0,0,0,0,0,null,14013.834087185602,3729.2306484995665,17743.06473568517,null,233076.91553122288,46031,187045.91553122288,null,14013.834087185603,2618.6428174371204,16632.476904622723,null,233076.91553122288,null,null,null,3729.2306484995661,3729.2306484995661,7458.4612969991322]
[56,null,14332.97169804485,3801.9133538388232,{"$f":"+CALCOLI1!$E$18*99.95%","v":0},595808.48403517553,18134.885051883673,1537495.695885052,569549.14152106713,237738.45384184734,null,null,372138.07032880938,null,15730.417824785494,null,null,null,17610.255840136841,null,9078.8006029819353,7647.3363741066369,17434.153281735471,null,16726.136977088572,34160.290258824039,null,237738.45384184734,46031,191707.45384184734,191707.45384184734,0,0,0,0,0,null,14340.141768929314,3803.8152614695578,18143.957030398873,null,237738.45384184734,46031,191707.45384184734,null,14340.141768929316,2683.9043537858624,17024.046122715179,null,237738.45384184734,null,null,null,3803.8152614695573,3803.8152614695573,7607.6305229391146]
[57,null,14665.639116505748,3877.9516209156,{"$f":"+CALCOLI1!$E$18*99.95%","v":0},613591.3203825457,18543.590737421349,1590018.7561934623,588092.73225848842,242493.2229186843,null,null,388334.70355242817,null,16196.633223618812,null,null,null,17962.46095693958,null,9260.3766150415759,7800.2831015887705,17782.836347370183,null,17060.659716630347,34843.49606400053,null,242493.2229186843,46031,196462.2229186843,196462.2229186843,0,0,0,0,0,null,14672.975604307901,3879.8915666989492,18552.867171006852,null,242493.2229186843,46031,196462.2229186843,null,14672.975604307903,2750.4711208615799,17423.446725169484,null,242493.2229186843,null,null,null,3879.8915666989487,3879.8915666989487,7759.7831333978975]
[58,null,15004.959883335863,3955.5106533339122,{"$f":"+CALCOLI1!$E$18*99.95%","v":0},631729.81345686328,18960.470536669774,1643789.8927348782,607053.20279515814,247343.08737705799,null,null,405006.87648285698,null,16672.172930428802,null,null,null,18321.71017607837,null,9445.584147342408,7956.288763620546,18138.493074317586,null,17401.872910962953,35540.365985280543,null,247343.08737705799,46031,201312.08737705799,201312.08737705799,0,0,0,0,0,null,15012.46611639406,3957.4893980329284,18969.955514426987,null,247343.08737705799,46031,201312.08737705799,null,15012.466116394062,2818.3692232788117,17830.835339672874,null,247343.08737705799,null,null,null,3957.489398032928,3957.489398032928,7914.9787960658559]
[59,null,15351.067065502581,4034.6208664005899,{"$f":"+CALCOLI1!$E$18*99.95%","v":0},650231.07639266725,19385.687931903172,1698834.0670339607,626438.89072706131,252289.94912459914,null,null,422164.09991423198,null,17157.22343137498,null,null,null,18688.144379599937,null,9634.4958302892555,8115.4145388929555,18501.262935803938,null,17749.910369182209,36251.17330498615,null,252289.94912459914,46031,206258.94912459914,206258.94912459914,0,0,0,0,0,null,15358.746438721941,4036.6391859935866,19395.385624715527,null,252289.94912459914,46031,206258.94912459914,null,15358.746438721942,2887.6252877443876,18246.371726466328,null,252289.94912459914,null,null,null,4036.6391859935861,4036.6391859935861,8073.2783719871722]
[60,null,15704.096391312631,4115.3132837286021,{"$f":"+CALCOLI1!$E$18*99.95%","v":0},669102.3645871873,19819.409675041232,1755176.7398458619,646258.30040210253,257335.74810709112,null,null,439816.07485657209,null,17651.974942340086,null,null,null,19061.907267191935,null,9827.1857468950402,8277.7228296708145,18871.288194520017,null,18104.908576565853,36976.196771085873,null,257335.74810709112,46031,211304.74810709112,211304.74810709112,0,0,0,0,0,null,15711.952367496378,4117.3719697134584,19829.324337209837,null,257335.74810709112,46031,211304.74810709112,null,15711.95236749638,2958.266473499275,18670.218840995654,null,257335.74810709112,null,null,null,4117.3719697134584,4117.3719697134584,8234.7439394269168]
[61,null,16064.186303638884,4197.6195494031745,{"$f":"+CALCOLI1!$E$18*99.95%","v":0},688351.07854559773,20261.80585304206,1812843.8811408388,666520.10625514458,262482.46306923294,null,null,457972.69634009659,null,18156.621483524494,null,null,null,19443.145412535774,null,10023.729461832942,8443.2772862642323,19248.713958410415,null,18467.006748097174,37715.720706507593,null,262482.46306923294,46031,216451.46306923294,216451.46306923294,0,0,0,0,0,null,16072.222414846306,4199.7194091077281,20271.941823954035,null,262482.46306923294,46031,216451.46306923294,null,16072.222414846308,3030.3204829692609,19102.542897815569,null,262482.46306923294,null,null,null,4199.7194091077272,4199.7194091077272,8399.4388182154544]
[62,null,16431.478014211662,4281.5719403912371,{"$f":"+CALCOLI1!$E$18*99.95%","v":0},707984.76678317634,20713.049954602899,1871861.9802885531,687233.15620974742,267732.11233061762,null,null,476644.05729562917,null,18671.360955532593,null,null,null,19832.008320786492,null,10224.204051069601,8612.1428319895167,19633.688237578626,null,18836.346883059115,38470.035120637738,null,267732.11233061762,46031,221701.11233061762,221701.11233061762,0,0,0,0,0,null,16439.697863143232,4283.7137972898818,20723.411660433114,null,267732.11233061762,46031,221701.11233061762,null,16439.697863143236,3103.8155726286468,19543.513435771882,null,267732.11233061762,null,null,null,4283.7137972898818,4283.7137972898818,8567.4275945797635]
[63,null,16806.115558995898,4367.2033791990616,{"$f":"+CALCOLI1!$E$18*99.95%","v":0},728011.12878550659,21173.31893819496,1932258.0564460589,708406.47514794243,273086.75457722996,null,null,495840.45251261001,null,19196.395216980854,null,null,null,20228.648487202219,null,10428.688132090992,8784.385688629307,20026.362002330196,null,19213.073820720299,39239.435823050495,null,273086.75457722996,46031,227055.75457722996,227055.75457722996,0,0,0,0,0,null,16814.522820406099,4369.3880732356793,21183.910893641776,null,273086.75457722996,46031,227055.75457722996,null,16814.522820406099,3178.7805640812194,19993.303384487317,null,273086.75457722996,null,null,null,4369.3880732356793,4369.3880732356793,8738.7761464713585]
[64,null,17188.245854675813,4454.5474467830445,{"$f":"+CALCOLI1!$E$18*99.95%","v":0},748438.01802788337,21642.793301458856,1994059.6691535525,730049.26844940125,278548.48966877459,null,null,515572.38267626805,null,19731.930163658075,null,null,null,20633.221456946267,null,10637.261894732816,8960.073402401893,20426.889242376805,null,19597.335297134709,40024.224539511517,null,278548.48966877459,46031,232517.48966877459,232517.48966877459,0,0,0,0,0,null,17196.844276814219,4456.7758347003946,21653.620111514614,null,278548.48966877459,46031,232517.48966877459,null,17196.844276814223,3255.2448553628437,20452.089132177069,null,278548.48966877459,null,null,null,4456.7758347003937,4456.7758347003937,8913.5516694007874]
[65,null,17578.018756269328,4543.6383957187036,{"$f":"+CALCOLI1!$E$18*99.95%","v":0},769273.4450551077,22121.657151988031,2057294.9291420337,752170.92560138926,284119.45946215006,null,null,535850.55848553695,null,20278.175809268843,null,null,null,21045.885886085191,null,10850.007132627468,9139.2748704499318,20835.427027224338,null,19989.282003077402,40824.709030301739,null,284119.45946215006,46031,238088.45946215006,238088.45946215006,0,0,0,0,0,null,17586.812162350503,4545.9113513944003,22132.723513744902,null,284119.45946215006,46031,238088.45946215006,null,17586.812162350503,3333.2384324701006,20920.050594820605,null,284119.45946215006,null,null,null,4545.9113513944012,4545.9113513944012,9091.8227027888024]
[66,null,{"$f":"IF($B$35=1,AL106*99.95%,IF($B$35=2,AT106*99.95%,BB106*99.95%))","v":17975.587115894719},{"$f":"IF($B$35=1,AM106*99.95%,IF($B$35=2,AU106*99.95%,BC106*99.95%))","v":4634.5111636330785},{"$f":"+CALCOLI1!$E$18*99.95%","v":0},790525.58062287653,{"$f":"+B106+C106+D106","v":22610.098279527796},2121992.5093571227,774781.02388091711,289801.84865139308,null,null,556685.90485332883,null,20835.34636779183,null,null,null,{"$f":"+J106/13.5","v":21466.803603806897},null,11067.007275280019,9322.0603678589305,21252.135567768826,null,20389.067643138951,41641.203210907777,null,{"$f":"+J106","v":289801.84865139308},{"$f":"IF(AB106>=$AC$29,$AC$29,AB106)","v":46031},{"$f":"+AB106-AC106","v":243770.84865139308},{"$f":"IF(AD106>=$AA$30,$AA$30,AD106)","v":243770.84865139308},{"$f":"+AD106-AE106","v":0},{"$f":"IF(AF106>=$AA$31,$AA$31,AF106)","v":0},{"$f":"+AF106-AG106","v":0},{"$f":"IF(AH106>=$AA$32,$AA$32,AH106)","v":0},{"$f":"IF(AH106>=$AA$33,$AA$33,AH106)","v":0},null,{"$f":"+((AC106*$AD$29)+(AE106*$AD$30))/100","v":17984.579405597517},{"$f":"IF($AD$23>=10,((AC106*$AE$29)+(AE106*$AE$30)),(AC106*$AE$32)+(AE106*$AE$33))/100","v":4636.8295784222892},{"$f":"+AL106+AM106","v":22621.408984019807},null,{"$f":"+AB106","v":289801.84865139308},{"$f":"IF(AP106>=$AH$29,$AH$29,AP106)","v":46031},{"$f":"+AP106-AQ106","v":243770.84865139308},null,{"$f":"+AQ106*$AI$29%+AR106*$AI$30%","v":17984.579405597517},{"$f":"IF($AD$23>=10,(AQ106*$AJ$29/100)+(AR106*$AJ$30/100),(AQ106*$AJ98/100+AR106*$AJ$34/100))","v":3412.7918811195032},{"$f":"+AT106+AU106","v":21397.371286717018},null,{"$f":"+J106","v":289801.84865139308},null,null,null,{"$f":"+AX106*$AM$25%","v":4636.8295784222892},{"$f":"+AX106*$AM$25%","v":4636.8295784222892},{"$f":"+BB106+BC106","v":9273.6591568445783}]
[{"$f":"1+A106","v":67},null,18381.106842712616,4727.20138690574,{"$f":"+CALCOLI1!$E$18*99.95%","v":0},{"$f":"+F106+W107","v":812202.75890200073},23108.308229618357,{"$f":"+I107+F107+M107","v":2188181.6562033501},{"$f":"+I106+G107","v":797889.33211053547},{"$f":"+J106*$K$41/100","v":295597.88562442095},null,null,{"$f":"+M106+O107","v":578089.56519081409},null,{"$f":"+(G107+F107+O106)*$N$41/100","v":21403.660337485275},null,null,null,21896.139675883034,null,{"$f":"+J107*$P$41/100*99%","v":11288.34742078562},{"$f":"+J107*$Q$41*99%/100","v":9508.5015752161089},{"$f":"+J107/13.5*$R$41/100*99%","v":21677.178279124208},null,{"$f":"+U107+V107+X107","v":20796.848996001729},{"$f":"+Y107+W107","v":42474.027275125933},null,295597.88562442095,46031,249566.88562442095,249566.88562442095,0,0,0,0,0,null,18390.301993709469,4729.566169990735,23119.868163700205,null,295597.88562442095,46031,249566.88562442095,null,18390.301993709465,3493.9363987418928,21884.238392451356,null,295597.88562442095,null,null,null,4729.566169990735,4729.566169990735,9459.1323399814701]
[68,null,18794.736964066866,4821.7454146438549,{"$f":"+CALCOLI1!$E$18*99.95%","v":0},834313.48074670741,23616.48237871072,2255892.2010133406,821505.81448924623,301509.84333690937,null,null,600072.90577738662,null,21983.340586572587,null,null,null,22334.062469400695,null,11514.114369201334,9698.6716067204306,22110.721844706688,null,21212.785975921764,43323.507820628452,null,301509.84333690937,46031,255478.84333690937,255478.84333690937,0,0,0,0,0,null,18804.139033583655,4824.1574933905504,23628.296526974205,null,301509.84333690937,46031,255478.84333690937,null,18804.139033583655,3576.7038067167309,22380.842840300385,null,301509.84333690937,null,null,null,4824.1574933905504,4824.1574933905504,9648.3149867811007]
[69,null,19216.639687848201,4918.1803229367306,{"$f":"+CALCOLI1!$E$18*99.95%","v":0},856866.41702830826,24134.820010784933,2325154.5717463675,845640.63450003113,307540.04020364751,null,null,622647.52021802822,null,22574.614440641642,null,null,null,22780.743718788704,null,11744.396656585359,9892.6450388548401,22552.936281600818,null,21637.041695440199,44189.977977041017,null,307540.04020364751,46031,261509.04020364751,261509.04020364751,0,0,0,0,0,null,19226.252814255327,4920.6406432583599,24146.893457513688,null,307540.04020364751,46031,261509.04020364751,null,19226.252814255327,3661.126562851065,22887.379377106394,null,307540.04020364751,null,null,null,4920.6406432583599,4920.6406432583599,9841.2812865167198]
[70,null,19646.98046610516,5016.543929395466,{"$f":"+CALCOLI1!$E$18*99.95%","v":0},879870.41203554114,24663.524395500626,2395999.8049208932,870304.15889553179,313690.84100772045,null,null,645825.23398982035,null,23177.713771792085,null,null,null,23236.358593164477,null,11979.284589717065,10090.497939631934,23003.995007232832,null,22069.782529348999,45073.777536581831,null,313690.84100772045,46031,267659.84100772045,267659.84100772045,0,0,0,0,0,null,19656.80887054043,5019.0534561235272,24675.862326663955,null,313690.84100772045,46031,267659.84100772045,null,19656.808870540433,3747.2377741080859,23404.046644648519,null,313690.84100772045,null,null,null,5019.0534561235272,5019.0534561235272,10038.106912247054]
[]
[null,null,null,null,null,null,null,null,null,null,null,null,null,null,null,null,null,null,{"$f":"SUM(S41:S111)","v":888757.99195509194},null,{"$f":"SUM(U42:U111)","v":455135.70990432025},383373.97435107862,{"$f":"SUM(W42:W111)","v":874003.7453688744},null,{"$f":"SUM(Y42:Y111)","v":838509.68425539869},{"$f":"SUM(Z42:Z111)","v":1712513.4296242732}]
[null,null,null,null,null,null,null,null,null,null,null,null,null,null,null,null,null,null,null,null,null,{"$f":"+V112+U112","v":838509.68425539881},null,null,null,{"$f":"+V113+W112","v":1712513.4296242732}]

{"sheet":"CALCOLO PENSIONE","index":6,"n_rows":99,"n_cols":23,"rows_kept":99,"cut":false,"hidden":true,"merged":[[32,8,32,9],[9,8,9,9],[28,8,28,9],[29,8,29,9],[30,8,30,9],[31,8,31,9],[10,8,10,9],[11,8,11,9],[12,8,12,9],[13,8,13,9],[14,8,14,9],[27,8,27,9],[16,8,16,9],[17,8,17,9],[18,8,18,9],[19,8,19,9],[8,3,8,4],[8,6,8,7],[2,13,2,19],[21,14,21,16],[20,8,20,9],[21,8,21,9],[26,8,26,9],[2,5,2,11],[15,8,15,9],[4,5,4,6],[4,8,4,9],[6,8,6,9],[7,8,7,9],[8,8,8,9],[25,8,25,9],[22,8,22,9],[23,8,23,9],[24,8,24,9]]}
[]
[]
[]
[null,null,null,"SESSO",{"$f":"+'RENDITE VITALIZIE'!H10","v":"M"},{"$f":"IF($E$4=\"M\",VLOOKUP($E$5,$D$10:$E$99,2),VLOOKUP($E$5,$G$10:$H$97,2))","v":0}]
[null,null,null,"ETA'",{"$f":"+'RENDITE VITALIZIE'!H6","v":67},null,null,null,{"$f":"+E7*L5","v":14660.999999999998},null,{"$f":"+E7*L5","v":14660.999999999998},{"$f":"IF($E$4=\"M\",VLOOKUP($E$6,CALCOLI!$F$16:$H$36,2),VLOOKUP($E$6,CALCOLI!$F$16:$H$36,3))","v":4.8869999999999997E-2},"IMMEDIATA",null,null,{"$f":"+K5","v":14660.999999999998}]
[null,null,null,"ETA' CORRETTA",{"$f":"+E5+F4","v":67}]
[null,null,null,"MONTANTE",{"$f":"+'RENDITE VITALIZIE'!H8","v":300000},null,null,null,null,null,{"$f":"+E7*L7","v":14574},{"$f":"IF($E$4=\"M\",VLOOKUP($E$6,CALCOLI!$J$16:$L$36,2),VLOOKUP($E$6,CALCOLI!$J$16:$L$36,3))","v":4.8579999999999998E-2},"CERTA 5 ANNI",null,null,{"$f":"+K7","v":14574}]
[]
[null,null,null,"maschi",null,null,"femmine",null,null,null,{"$f":"+E7*L9","v":14256},{"$f":"IF($E$4=\"M\",VLOOKUP($E$6,CALCOLI!$N$16:$P$36,2),VLOOKUP($E$6,CALCOLI!$N$16:$P$36,3))","v":4.752E-2},"CERTA 10 ANNI",null,null,{"$f":"+K9","v":14256}]
[null,null,null,0,-2,null,0,-2]
[null,null,null,{"$f":"1+D10","v":1},-2,null,{"$f":"1+G10","v":1},-2,null,null,{"$f":"+E7*L11","v":11664},{"$f":"IF($E$4=\"M\",VLOOKUP($E$6,CALCOLI!$R$16:$T$36,2),VLOOKUP($E$6,CALCOLI!$R$16:$T$36,3))","v":3.8879999999999998E-2},"CONTRASS TT0,5%",null,null,{"$f":"+K11","v":11664}]
[null,null,null,{"$f":"1+D11","v":2},-2,null,{"$f":"1+G11","v":2},-2]
[null,null,null,3,-2,null,3,-2,null,null,{"$f":"+E7*L13","v":11031},{"$f":"IF($E$4=\"M\",VLOOKUP($E$6,CALCOLI!$Z$5:$AB$25,2),VLOOKUP($E$6,CALCOLI!$Z$5:AB$25,3))","v":3.6769999999999997E-2},"REVERSIBILE",null,null,{"$f":"+K13","v":11031}]
[null,null,null,4,-2,null,4,-2]
[null,null,null,5,-2,null,5,-2]
[null,null,null,6,-2,null,6,-2]
[null,null,null,7,-2,null,7,-2,null,null,null,null,null,"% su"]
[null,null,null,8,-2,null,8,-2,null,null,null,null,null,"trimestrale"]
[null,null,null,9,-2,null,9,-2,null,null,100000,4.7750000000000001E-2,{"$f":"+K19*L19","v":4775},{"$f":"+M19/K5%","v":32.569401814337361},"annuale"]
[null,null,null,10,-2,null,10,-2,null,null,null,4.718E-2,{"$f":"+K19*L20","v":4718},{"$f":"+M20/K5%","v":32.180615237705481},"semestrale"]
[null,null,null,11,-2,null,11,-2,null,null,null,4.6710000000000002E-2,{"$f":"+K19*L21","v":4671},{"$f":"+M21/K5%","v":31.860036832412526},"mensile"]
[null,null,null,12,-2,null,12,-2]
[null,null,null,13,-2,null,13,-2]
[null,null,null,14,-2,null,14,-2]
[null,null,null,15,-2,null,15,-2,null,null,null,"età","montante","annuale","semestrale","trimestrale","mensile"]
[null,null,null,16,-2,null,16,-2,null,null,"rend ord",67,100000,4.9790000000000001E-2,4.9169999999999998E-2,4.8869999999999997E-2,4.8669999999999998E-2]
[null,null,null,17,-2,null,17,-2,null,null,null,null,null,{"$f":"+M26*N26","v":4979},{"$f":"+O26*M26","v":4917},{"$f":"+P26*M26","v":4887},{"$f":"+Q26*M26","v":4867},"m"]
[null,null,null,18,-2,null,18,-2,null,null,null,null,null,4.2299999999999997E-2,4.1849999999999998E-2,4.163E-2,4.1480000000000003E-2]
[null,null,null,19,-2,null,19,-2,null,null,null,null,null,{"$f":"+N28*M26","v":4230},{"$f":"+O28*M26","v":4185},{"$f":"+P28*M26","v":4163},{"$f":"+Q28*M26","v":4148},"f",null,null,{"$f":"+U32-T32","v":-62},{"$f":"+V32-T32","v":-92},{"$f":"+W32-T32","v":-112}]
[null,null,null,20,-2,null,20,-2,null,null,null,null,null,null,null,null,null,null,null,null,{"$f":"+U32/T32%","v":98.754770034143405},{"$f":"+V32/T32%","v":98.15223940550311},{"$f":"+W32/T32%","v":97.750552319742923}]
[null,null,null,21,-2,null,21,-2,null,null,null,null,null,null,null,null,null,null,null,"annuale","semestrale","trimestrale","mensile"]
[null,null,null,22,-2,null,22,-2,null,null,null,null,null,null,null,null,null,null,"M",{"$f":"+N27","v":4979},{"$f":"+O27","v":4917},{"$f":"+P27","v":4887},{"$f":"+Q27","v":4867}]
[null,null,null,23,-2,null,23,-2,null,null,null,null,null,null,null,null,null,null,"F",{"$f":"+N29","v":4230},{"$f":"+O29","v":4185},{"$f":"+P29","v":4163},{"$f":"+Q29","v":4148}]
[null,null,null,24,-2,null,24,-2,null,null,null,null,null,null,null,null,null,null,null,null,{"$f":"+U33-T33","v":-45},{"$f":"+V33-T33","v":-67},{"$f":"+W33-T33","v":-82}]
[null,null,null,25,-2,null,25,-2,null,null,null,null,null,null,null,null,null,null,null,null,{"$f":"+U33/T33%","v":98.936170212765958},{"$f":"+V33/T33%","v":98.416075650118216},{"$f":"+W33/T33%","v":98.061465721040193}]
[null,null,null,26,-2,null,26,-2]
[null,null,null,27,-2,null,27,-2]
[null,null,null,28,-2,null,28,-2]
[null,null,null,29,-2,null,29,-2]
[null,null,null,30,-2,null,30,-2]
[null,null,null,31,-2,null,31,-2]
[null,null,null,32,-2,null,32,-2]
[null,null,null,33,-2,null,33,-2]
[null,null,null,34,-2,null,34,-2]
[null,null,null,35,-2,null,35,-2]
[null,null,null,36,-2,null,36,-2]
[null,null,null,37,-2,null,37,-2]
[null,null,null,38,-2,null,38,-2]
[null,null,null,39,-2,null,39,-2]
[null,null,null,40,-2,null,40,-2]
[null,null,null,41,-2,null,41,-2]
[null,null,null,42,-2,null,42,-2]
[null,null,null,43,-2,null,43,-2]
[null,null,null,44,-2,null,44,-2]
[null,null,null,45,-2,null,45,-2]
[null,null,null,46,-2,null,46,-1]
[null,null,null,47,-2,null,47,-1]
[null,null,null,48,-1,null,48,-1]
[null,null,null,49,-1,null,49,-1]
[null,null,null,50,-1,null,50,-1]
[null,null,null,51,-1,null,51,-1]
[null,null,null,52,-1,null,52,-1]
[null,null,null,53,-1,null,53,-1]
[null,null,null,54,-1,null,54,-1]
[null,null,null,55,-1,null,55,-1]
[null,null,null,56,-1,null,56,0]
[null,null,null,57,-1,null,57,0]
[null,null,null,58,0,null,58,0]
[null,null,null,59,0,null,59,0]
[null,null,null,60,0,null,60,0]
[null,null,null,61,0,null,61,0]
[null,null,null,62,0,null,62,0]
[null,null,null,63,0,null,63,0]
[null,null,null,64,0,null,64,0]
[null,null,null,65,0,null,65,0]
[null,null,null,{"$f":"1+D75","v":66},0,null,{"$f":"1+G75","v":66},0]
[null,null,null,67,0,null,67,0]
[null,null,null,68,0,null,68,0]
[null,null,null,69,0,null,69,1]
[null,null,null,70,0,null,70,1]
[null,null,null,71,1,null,71,1]
[null,null,null,72,1,null,72,1]
[null,null,null,73,1,null,73,1]
[null,null,null,74,1,null,74,1]
[null,null,null,75,1,null,75,1]
[null,null,null,76,1,null,76,1]
[null,null,null,77,1,null,77,1]
[null,null,null,78,1,null,78,2]
[null,null,null,79,1,null,79,2]
[null,null,null,80,2,null,80,2]
[null,null,null,81,2,null,81,2]
[null,null,null,82,2,null,82,2]
[null,null,null,83,2,null,83,2]
[null,null,null,84,2,null,84,2]
[null,null,null,85,2,null,85,2]
[null,null,null,86,2,null,86,2]
[null,null,null,87,2,null,87,2]
[null,null,null,88,2]
[null,null,null,89,2]

{"sheet":"RENDITE VITALIZIE","index":7,"n_rows":23,"n_cols":10,"rows_kept":23,"cut":false,"hidden":false,"merged":[[3,12,3,13],[3,15,3,16],[22,4,22,17]]}
[]
[]
[null,null,null,null,null,null,null,null,null,"CALCOLO RENDITA VITALIZIA"]
[]
[]
[null,null,"ETA' AL MOMENTO DELLA RISCOSSIONE MINIMO 50",null,null,null,null,67]
[]
[null,null,"VALORE MONTANTE DA DESTINARE ALLA RENDITA",null,null,null,null,300000]
[]
[null,null,"SESSO",null,null,null,null,"M"]
[]
[]
[]
[]
[]
[]
[]
[]
[]
[]
[]
[]
[null,null,null,null,"PROPRIETA' INTELLETTUALE E REALIZZAZIONE DI GIUSEPPE NICOLETTI - E' VIETATA LA RIPRODUZIONE E/O COMMERCIALIZZAZIONE ANCHE PARZIALE "]